Workbook

Sheet SMI Analyse KGV
BB1: 18
A3: Financial Analysis SMI/SMIM et al. | D3: per | M3: =Daten!H3 -> 20250425 | N3: =Daten!H3 -> 20250425 | O3: =Daten!H3 -> 20250425 | V3: Kolonnen E - L einblenden für weitere Gewinndaten!
D5: =C5 ->  | Q5: KGV 2023 gewichtet SMI | R5: =BW55/CA55 -> 26.96469645 | S5: =R5 -> 26.96469645 | W5: letzter ausgewiesener Jahresabschluss | AK5: =$AQ$2 -> 0 | AL5: Bewertung günstig
B6: KGV Ø Gewinn 10 Jahre gewichtet SMI | C6: =BW55/BX55 -> 29.97891118 | D6: =C6 -> 29.97891118 | Q6: KGV 2024 gewichtet SMI | R6: =BW55/BY55 -> 25.11311668 | S6: =R6 -> 25.11311668 | W6: Schätzung | AK6: =$BB$1 -> 18 | AL6: Bewertung teuer | BD6: Abschlusses
B7: KGV Ø Gewinn 10 Jahre gewichtet SMIM | C7: =BW150/BX150 -> 54.05270335 | D7: =C7 -> 54.05270335 | Q7: KGV 2024 gewichtet SMIM | R7: =BW150/BY150 -> 39.47983733 | S7: =R7 -> 39.47983733
D9: Ø Gewinn | G9: Gewinn pro Aktie | N9: Gewinn pro Aktie | Y9: akt. Kurs | AA9: akt. Kurs | AC9: KGV 2005 | AE9: KGV 2006 | AG9: KGV 2007 | AI9: KGV 2008 | AZ9: KGV 2016 | BB9: KGV 2015 | BD9: KGV 2014 | BF9: KGV 2012 | BH9: KGV 2011 | BJ9: KGV 2010 | BM9: KGV 2009 | BO9: Ø Gewinn | BQ9: Ø Gewinnverän- | BS9: Gewinn- | BV9: Gewichtung | BW9: gewichteter | BX9: gewichteter | BY9: gewichteter | BZ9: gewichteter | CA9: gewichteter | CB9: gewichtetes | CC9: gewichtetes | CD9: gewichtetes | CE9: gewichtetes | CF9: gewichtetes | CG9: gewichtetes | CH9: gewichtetes | CI9: gewichtetes | CJ9: gewichtetes | CK9: gewichtetes | CL9: gewichtetes | CN9: Gewichtung
D10: 2015 – 2024 | E10: 2005 | F10: 2006 | G10: 2007 | H10: 2008 | I10: 2009 | J10: 2010 | K10: 2011 | L10: 2012 | M10: 2013 | N10: 2014 | O10: 2015 | P10: 2016 | Q10: 2017 | R10: 2018 | S10: 2019 | T10: 2020 | U10: 2021 | V10: 2022 | W10: 2023 | X10: 2024 | AA10: in RW | AJ10: KGV2024 | AL10: KGV2023 | AN10: KGV2022 | AP10: KGV2021 | AR10: KGV2020 | AT10: KGV2019 | AV10: KGV2018 | AX10: KGV2017 | BO10: 15-24 KGV | BQ10: derungsraten 10J | BS10: wachstum 10 J | BV10: per 24.01.25 | BW10: Preis | BX10: Gewinn 15-24 | BY10: Gewinn 2024 | BZ10: Gewinn 2023 | CA10: Gewinn 2022 | CB10: KGV2021 | CC10: KGV2020 | CD10: KGV2019 | CE10: KGV2018 | CF10: KGV2017 | CG10: KGV2016 | CH10: KGV2015 | CI10: KGV2014 | CJ10: KGV12 | CK10: KGV11 | CL10: KGV10 | CN10: per 16.3.10
BV11: gem. boerse.de
A13: SMI Titel
A15: USD | B15: ABB LTD N | C15: ABBN | D15: =SUM(O15:X15)/10 -> 1.463 | E15: 0.36 | F15: 0.63 | G15: 1.63 | H15: 1.36 | I15: 1.27 | J15: 1.12 | K15: 1.38 | L15: 1.18 | M15: 1.21 | N15: 1.13 | O15: 0.87 | P15: 0.88 | Q15: 1.04 | R15: 1.02 | S15: 0.67 | T15: 2.44 | U15: 2.27 | V15: 1.3 | W15: 2.01 | X15: 2.13 | Y15: =LOOKUP(C15,Daten!$C$2:$C$300,Daten!$E$2:$E$500) -> 43.25 | AA15: =Y15/Währungskurse!C$4 -> 52.74390244 | AC15: =AA15/E15 -> 146.5108401 | AE15: =AA15/F15 -> 83.72048006 | AG15: =AA15/G15 -> 32.35822236 | AI15: =AA15/H15 -> 38.78228121 | AJ15: =AA15/X15 -> 24.76239551 | AK15: =AJ15 -> 24.76239551 | AL15: =AA15/W15 -> 26.24074748 | AM15: =AL15 -> 26.24074748 | AN15: =AA15/V15 -> 40.57223265 | AO15: =AN15 -> 40.57223265 | AP15: =AA15/U15 -> 23.23519931 | AQ15: =AP15 -> 23.23519931 | AR15: =AA15/T15 -> 21.61635346 | AS15: =AR15 -> 21.61635346 | AT15: =AA15/S15 -> 78.72224245 | AU15: =AT15 -> 78.72224245 | AV15: =AA15/R15 -> 51.70970827 | AW15: =AV15 -> 51.70970827 | AX15: =AA15/Q15 -> 50.71529081 | AY15: =AX15 -> 50.71529081 | AZ15: =AA15/P15 -> 59.93625277 | BA15: =AZ15 -> 59.93625277 | BB15: =AA15/O15 -> 60.62517522 | BC15: =BB15 -> 60.62517522 | BD15: =AA15/N15 -> 46.67601986 | BE15: =BD15 -> 46.67601986 | BF15: =AA15/L15 -> 44.69822241 | BG15: =BF15 -> 44.69822241 | BH15: =AA15/K15 -> 38.22021916 | BI15: =BH15 -> 38.22021916 | BJ15: =AA15/J15 -> 47.09277003 | BK15: =BJ15 -> 47.09277003 | BM15: =AA15/I15 -> 41.53063184 | BN15: =BM15 -> 41.53063184 | BO15: =AA15/D15 -> 36.05188137 | BP15: =BO15 -> 36.05188137 | BQ15: =Tabelle1!O13 -> 0.2351517392 | BR15: =IF(BQ15>0,BQ15,10) -> 0.2351517392 | BS15: =IF(X15>O15,(X15-O15)/O15,-(O15-X15)/O15) -> 1.448275862 | BT15: =BS15 -> 1.448275862 | BV15: 7.49 | BW15: =BV15/100*AA15 -> 3.950518293 | BX15: =D15*(BV15/100) -> 0.1095787 | BY15: =X15*(BV15/100) -> 0.159537 | BZ15: =W15*(BV15/100) -> 0.150549 | CA15: =V15*(BV15/100) -> 0.09737 | CB15: =AP15*BV15 -> 174.0316428 | CC15: =AR15*BV15 -> 161.9064874 | CD15: =AT15*BV15 -> 589.6295959 | CE15: =AV15*BV15 -> 387.305715 | CF15: =AX15*BV15 -> 379.8575281 | CG15: =AZ15*BV15 -> 448.9225333 | CH15: =BB15*BV15 -> 454.0825624 | CI15: =BD15*BV15 -> 349.6033887 | CJ15: =BF15*BV15 -> 334.7896858 | CK15: =BH15*BV15 -> 286.2694415 | CL15: =BJ15*BV15 -> 352.7248476 | CN15: 6.09
A17: USD | B17: ALCON N | C17: ALC | D17: =SUM(O17:X17)/8 -> 0.385 | Q17: 0.52 | R17: -0.46 | S17: -1.34 | T17: -1.09 | U17: 0.76 | V17: 0.68 | W17: 1.96 | X17: 2.05 | Y17: =LOOKUP(C17,Daten!$C$2:$C$300,Daten!$E$2:$E$500) -> 78.52 | AA17: =Y17/Währungskurse!C$5 -> 85.34782609 | AJ17: =AA17/X17 -> 41.6330859 | AK17: =AJ17 -> 41.6330859 | AL17: =AA17/W17 -> 43.54480923 | AM17: =AL17 -> 43.54480923 | AN17: =AA17/V17 -> 125.511509 | AO17: =AN17 -> 125.511509 | AP17: =AA17/U17 -> 112.2997712 | AQ17: =AP17 -> 112.2997712 | AR17: na | AS17: =AR17 -> na | AT17: na | AU17: =AT17 -> na | AV17: na | AW17: =AV17 -> na | BO17: =AA17/D17 -> 221.6826652 | BP17: =BO17 -> 221.6826652 | BQ17: =Tabelle1!O15 -> -0.01297654881 | BR17: =IF(BQ17>0,BQ17,10) -> 10 | BS17: =IF(X17>N17,(X17-Q17)/Q17,-(Q17-X17)/Q17) -> 2.942307692 | BT17: =BS17 -> 2.942307692 | BV17: 3 | BW17: =BV17/100*AA17 -> 2.560434783 | BX17: =D17*(BV17/100) -> 0.01155 | BY17: =X17*(BV17/100) -> 0.0615 | BZ17: =W17*(BV17/100) -> 0.0588 | CA17: =V17*(BV17/100) -> 0.0204 | CB17: =AP17*BV17 -> 336.8993135 | CC17: 0 | CD17: 0
B19: GEBERIT N | C19: GEBN | D19: =SUM(O19:X19)/10 -> 17.069 | E19: 6.47 | F19: 8.86 | G19: 11.67 | H19: 11.9 | I19: 10.18 | J19: 10.32 | K19: 9.82 | L19: 10.29 | M19: 11.58 | N19: 13.26 | O19: 11.31 | P19: 14.85 | Q19: 14.31 | R19: 16.39 | S19: 17.93 | T19: 17.88 | U19: 21.16 | V19: 20.41 | W19: 18.35 | X19: 18.1 | Y19: =LOOKUP(C19,Daten!$C$2:$C$300,Daten!$E$2:$E$500) -> 556.6 | AJ19: =Y19/X19 -> 30.75138122 | AK19: =AJ19 -> 30.75138122 | AL19: =Y19/W19 -> 30.33242507 | AM19: =AL19 -> 30.33242507 | AN19: =Y19/V19 -> 27.27094561 | AO19: =AN19 -> 27.27094561 | AP19: =Y19/U19 -> 26.30434783 | AQ19: =AP19 -> 26.30434783 | AR19: =Y19/T19 -> 31.12975391 | AS19: =AR19 -> 31.12975391 | AT19: =Y19/S19 -> 31.04294479 | AU19: =AT19 -> 31.04294479 | AV19: =Y19/R19 -> 33.95973154 | AW19: =AV19 -> 33.95973154 | AX19: =Y19/Q19 -> 38.89587701 | AY19: =AX19 -> 38.89587701 | AZ19: =Y19/P19 -> 37.48148148 | BA19: =AZ19 -> 37.48148148 | BB19: =Y19/O19 -> 49.21308576 | BC19: =BB19 -> 49.21308576 | BD19: =Y19/N19 -> 41.97586727 | BE19: =BD19 -> 41.97586727 | BF19: =Y19/L19 -> 54.09135083 | BG19: =BF19 -> 54.09135083 | BH19: =Y19/K19 -> 56.6802444 | BI19: =BH19 -> 56.6802444 | BJ19: =Y19/J19 -> 53.93410853 | BK19: =BJ19 -> 53.93410853 | BM19: =Y19/I19 -> 54.67583497 | BN19: =BM19 -> 54.67583497 | BO19: =Y19/D19 -> 32.60882301 | BP19: =BO19 -> 32.60882301 | BQ19: =Tabelle1!O17 -> 0.03995449581 | BR19: =IF(BQ19>0,BQ19,10) -> 0.03995449581 | BS19: =IF(X19>O19,(X19-O19)/O19,-(O19-X19)/O19) -> 0.6003536693 | BT19: =BS19 -> 0.6003536693 | BV19: 1.24 | BW19: =BV19/100*Y19 -> 6.90184 | BX19: =D19*(BV19/100) -> 0.2116556 | BY19: =X19*(BV19/100) -> 0.22444 | BZ19: =W19*(BV19/100) -> 0.22754 | CA19: =V19*(BV19/100) -> 0.253084 | CB19: =AP19*BV19 -> 32.6173913 | CC19: =AR19*BV19 -> 38.60089485 | CD19: =AT19*BV19 -> 38.49325153 | CE19: =AV19*BV19 -> 42.11006711 | CF19: =AX19*BV19 -> 48.23088749 | CG19: =AZ19*BV19 -> 46.47703704 | CH19: =BB19*BV19 -> 61.02422635 | CI19: =BD19*BV19 -> 52.05007541 | CJ19: =BF19*BV19 -> 67.07327502 | CK19: =BH19*BV19 -> 70.28350305 | CL19: =BJ19*BV19 -> 66.87829457
B21: GIVAUDAN N | C21: GIVN | D21: =SUM(O21:X21)/10 -> 83.32 | E21: 56.17 | F21: 58.62 | G21: 13.2 | H21: 14.98 | I21: 24.97 | J21: 37.63 | K21: 27.55 | L21: 44.85 | M21: 52.83 | N21: 60.35 | O21: 67.06 | P21: 69.34 | Q21: 77.54 | R21: 71.36 | S21: 75.59 | T21: 79.96 | U21: 88.37 | V21: 92.51 | W21: 96.47 | X21: 115 | Y21: =LOOKUP(C21,Daten!$C$2:$C$300,Daten!$E$2:$E$500) -> 3875 | AJ21: =Y21/X21 -> 33.69565217 | AK21: =AJ21 -> 33.69565217 | AL21: =Y21/W21 -> 40.16792785 | AM21: =AL21 -> 40.16792785 | AN21: =Y21/V21 -> 41.88736353 | AO21: =AN21 -> 41.88736353 | AP21: =Y21/U21 -> 43.84972276 | AQ21: =AP21 -> 43.84972276 | AR21: =Y21/T21 -> 48.46173087 | AS21: =AR21 -> 48.46173087 | AT21: =Y21/S21 -> 51.26339463 | AU21: =AT21 -> 51.26339463 | AV21: =Y21/R21 -> 54.30213004 | AW21: =AV21 -> 54.30213004 | AX21: =Y21/Q21 -> 49.97420686 | AY21: =AX21 -> 49.97420686 | AZ21: =Y21/P21 -> 55.88404961 | BA21: =AZ21 -> 55.88404961 | BB21: =Y21/O21 -> 57.78407396 | BC21: =BB21 -> 57.78407396 | BD21: =Y21/N21 -> 64.2087821 | BE21: =BD21 -> 64.2087821 | BF21: =Y21/L21 -> 86.39910814 | BG21: =BF21 -> 86.39910814 | BH21: =Y21/K21 -> 140.6533575 | BI21: =BH21 -> 140.6533575 | BJ21: =Y21/J21 -> 102.9763487 | BK21: =BJ21 -> 102.9763487 | BM21: =Y21/I21 -> 155.1862235 | BN21: =BM21 -> 155.1862235 | BO21: =Y21/D21 -> 46.50744119 | BP21: =BO21 -> 46.50744119 | BQ21: =Tabelle1!O19 -> 0.06877426945 | BR21: =IF(BQ21>0,BQ21,10) -> 0.06877426945 | BS21: =IF(X21>O21,(X21-O21)/O21,-(O21-X21)/O21) -> 0.714882195 | BT21: =BS21 -> 0.714882195 | BV21: 2.65 | BW21: =BV21/100*Y21 -> 102.6875 | BX21: =D21*(BV21/100) -> 2.20798 | BY21: =X21*(BV21/100) -> 3.0475 | BZ21: =W21*(BV21/100) -> 2.556455 | CA21: =V21*(BV21/100) -> 2.451515 | CB21: =AP21*BV21 -> 116.2017653 | CC21: =AR21*BV21 -> 128.4235868 | CD21: =AT21*BV21 -> 135.8479958 | CE21: =AV21*BV21 -> 143.9006446 | CF21: =AX21*BV21 -> 132.4316482 | CG21: =AZ21*BV21 -> 148.0927315 | CH21: =BB21*BV21 -> 153.127796 | CI21: =BD21*BV21 -> 170.1532726 | CJ21: =BF21*BV21 -> 228.9576366 | CK21: =BH21*BV21 -> 372.7313975 | CL21: =BJ21*BV21 -> 272.8873239
B23: HOLCIM | C23: HOLN | D23: =SUM(O23:X23)/10 -> 2.576 | E23: 6.52 | F23: 8.5 | G23: 14.73 | H23: 6.81 | I23: 4.93 | J23: 3.69 | K23: 0.86 | L23: 1.92 | M23: 3.91 | N23: 3.95 | O23: -3.11 | P23: 2.96 | Q23: -2.78 | R23: 2.52 | S23: 3.68 | T23: 2.74 | U23: 3.72 | V23: 5.46 | W23: 5.35 | X23: 5.22 | Y23: =LOOKUP(C23,Daten!$C$2:$C$300,Daten!$E$2:$E$500) -> 91.9 | AC23: =Y23/E23 -> 14.09509202 | AE23: =Y23/F23 -> 10.81176471 | AG23: =Y23/G23 -> 6.238968092 | AI23: =Y23/H23 -> 13.4948605 | AJ23: =Y23/X23 -> 17.60536398 | AK23: =AJ23 -> 17.60536398 | AL23: =Y23/W23 -> 17.17757009 | AM23: =AL23 -> 17.17757009 | AN23: =Y23/V23 -> 16.83150183 | AO23: =AN23 -> 16.83150183 | AP23: =Y23/U23 -> 24.70430108 | AQ23: =AP23 -> 24.70430108 | AR23: =Y23/T23 -> 33.54014599 | AS23: =AR23 -> 33.54014599 | AT23: =Y23/S23 -> 24.97282609 | AU23: =AT23 -> 24.97282609 | AV23: =Y23/R23 -> 36.46825397 | AW23: =AV23 -> 36.46825397 | AX23: na | AY23: =AX23 -> na | AZ23: =Y23/P23 -> 31.0472973 | BA23: =AZ23 -> 31.0472973 | BB23: =Y23/O23 -> -29.54983923 | BC23: =BB23 -> -29.54983923 | BD23: =Y23/N23 -> 23.26582278 | BE23: =BD23 -> 23.26582278 | BF23: =Y23/L23 -> 47.86458333 | BG23: =BF23 -> 47.86458333 | BH23: =Y23/K23 -> 106.8604651 | BI23: =BH23 -> 106.8604651 | BJ23: =Y23/J23 -> 24.90514905 | BK23: =BJ23 -> 24.90514905 | BM23: =Y23/I23 -> 18.64097363 | BN23: =BM23 -> 18.64097363 | BO23: =Y23/D23 -> 35.67546584 | BP23: =BO23 -> 35.67546584 | BQ23: =Tabelle1!O21 -> 0.1117555609 | BR23: =IF(BQ23>0,BQ23,10) -> 0.1117555609 | BS23: =IF(X23>O23,(X23-O23)/O23,-(O23-X23)/O23)*-1 -> 2.678456592 | BT23: =BS23 -> 2.678456592 | BU23: negativer Ausgangswert! | BV23: 3.86 | BW23: =BV23/100*Y23 -> 3.54734 | BX23: =D23*(BV23/100) -> 0.0994336 | BY23: =X23*(BV23/100) -> 0.201492 | BZ23: =W23*(BV23/100) -> 0.20651 | CA23: =V23*(BV23/100) -> 0.210756 | CB23: =AP23*BV23 -> 95.35860215 | CC23: =AR23*BV23 -> 129.4649635 | CD23: =AT23*BV23 -> 96.3951087 | CE23: =AV23*BV23 -> 140.7674603 | CF23: =AX23*BV23 ->  | CG23: =AZ23*BV23 -> 119.8425676 | CH23: =BB23*BV23 -> -114.0623794 | CI23: =BD23*BV23 -> 89.80607595 | CJ23: =BF23*BV23 -> 184.7572917 | CK23: =BH23*BV23 -> 412.4813953 | CL23: =BJ23*BV23 -> 96.13387534 | CN23: 2.42
B25: KÜHNE & NAGEL | C25: KNIN | D25: =SUM(O25:X25)/10 -> 9.836 | I25: 3.9 | J25: 5.1 | K25: 5 | L25: 4 | M25: 5 | N25: 5.28 | O25: 5.64 | P25: 5.99 | Q25: 6.16 | R25: 6.43 | S25: 6.67 | T25: 6.59 | U25: 16.88 | V25: 22.03 | W25: 12.02 | X25: 9.95 | Y25: =LOOKUP(C25,Daten!$C$2:$C$300,Daten!$E$2:$E$500) -> 188.45 | AJ25: =Y25/X25 -> 18.93969849 | AK25: =AJ25 -> 18.93969849 | AL25: =Y25/W25 -> 15.67803661 | AM25: =AL25 -> 15.67803661 | AN25: =Y25/V25 -> 8.554244212 | AO25: =AN25 -> 8.554244212 | AP25: =Y25/U25 -> 11.16409953 | AQ25: =AP25 -> 11.16409953 | AR25: =Y25/T25 -> 28.59635812 | AS25: =AR25 -> 28.59635812 | AT25: =Y25/S25 -> 28.25337331 | AU25: =AT25 -> 28.25337331 | AV25: =Y25/R25 -> 29.30793157 | AW25: =AV25 -> 29.30793157 | AX25: na | AY25: =AX25 -> na | AZ25: =Y25/P25 -> 31.46076795 | BA25: =AZ25 -> 31.46076795 | BB25: =Y25/O25 -> 33.41312057 | BC25: =BB25 -> 33.41312057 | BD25: =Y25/N25 -> 35.69128788 | BE25: =BD25 -> 35.69128788 | BF25: =Y25/L25 -> 47.1125 | BG25: =BF25 -> 47.1125 | BH25: =Y25/K25 -> 37.69 | BI25: =BH25 -> 37.69 | BJ25: =Y25/J25 -> 36.95098039 | BK25: =BJ25 -> 36.95098039 | BM25: =Y25/I25 -> 48.32051282 | BN25: =BM25 -> 48.32051282 | BO25: =Y25/D25 -> 19.15921106 | BP25: =BO25 -> 19.15921106 | BQ25: =Tabelle1!O23 -> 0.1467739566 | BR25: =IF(BQ25>0,BQ25,10) -> 0.1467739566 | BS25: =IF(X25>O25,(X25-O25)/O25,-(O25-X25)/O25) -> 0.7641843972 | BT25: =BS25 -> 0.7641843972 | BV25: 1.83 | BW25: =BV25/100*Y25 -> 3.448635 | BX25: =D25*(BV25/100) -> 0.1799988 | BY25: =X25*(BV25/100) -> 0.182085 | BZ25: =W25*(BV25/100) -> 0.219966 | CA25: =V25*(BV25/100) -> 0.403149 | CB25: =AP25*BV25 -> 20.43030213 | CC25: =AR25*BV25 -> 52.33133536 | CD25: =AT25*BV25 -> 51.70367316 | CE25: =AV25*BV25 -> 53.63351477 | CF25: =AX25*BV25 ->  | CG25: =AZ25*BV25 -> 57.57320534 | CH25: =BB25*BV25 -> 61.14601064 | CI25: =BD25*BV25 -> 65.31505682 | CJ25: =BF25*BV25 -> 86.215875 | CK25: =BH25*BV25 -> 68.9727 | CL25: =BJ25*BV25 -> 67.62029412
A27: USD | B27: LOGITECH | C27: LOGN | D27: =SUM(O27:X27)/10 -> 2.587 | I27: 0.39 | J27: 0.74 | K27: 0.36 | L27: -1.44 | M27: 0.46 | N27: 0.06 | O27: 0.53 | P27: 1.24 | Q27: 1.23 | R27: 1.52 | S27: 2.66 | T27: 5.51 | U27: 3.78 | V27: 2.23 | W27: 3.87 | X27: 3.3 | Y27: =LOOKUP(C27,Daten!$C$2:$C$300,Daten!$E$2:$E$500) -> 63.76 | AA27: =Y27/Währungskurse!C$5 -> 69.30434783 | AJ27: =AA27/X27 -> 21.00131752 | AK27: =AJ27 -> 21.00131752 | AL27: =AA27/W27 -> 17.90810021 | AM27: =AL27 -> 17.90810021 | AN27: =AA27/V27 -> 31.07818288 | AO27: =AN27 -> 31.07818288 | AP27: =AA27/U27 -> 18.33448355 | AQ27: =AP27 -> 18.33448355 | AR27: =AA27/T27 -> 12.57792157 | AS27: =AR27 -> 12.57792157 | AT27: =AA27/S27 -> 26.0542661 | AU27: =AT27 -> 26.0542661 | AV27: =AA27/R27 -> 45.59496568 | AW27: =AV27 -> 45.59496568 | AX27: =AA27/Q27 -> 56.34499823 | AY27: =AX27 -> 56.34499823 | AZ27: =AA27/P27 -> 55.89060309 | BA27: =AZ27 -> 55.89060309 | BB27: =AA27/O27 -> 130.7629204 | BC27: =BB27 -> 130.7629204 | BD27: =AA27/N27 -> 1155.072464 | BE27: =BD27 -> 1155.072464 | BF27: =AA27/L27 -> -48.12801932 | BG27: =BF27 -> -48.12801932 | BH27: =AA27/K27 -> 192.5120773 | BI27: =BH27 -> 192.5120773 | BJ27: =AA27/J27 -> 93.65452409 | BK27: =BJ27 -> 93.65452409 | BM27: =AA27/I27 -> 177.703456 | BN27: =BM27 -> 177.703456 | BO27: =AA27/D27 -> 26.78946572 | BP27: =BO27 -> 26.78946572 | BQ27: =Tabelle1!O25 -> 1.108620407 | BR27: =IF(BQ27>0,BQ27,10) -> 1.108620407 | BS27: =IF(X27>O27,(X27-O27)/O27,-(O27-X27)/O27) -> 5.226415094 | BT27: =BS27 -> 5.226415094 | BV27: 0.96 | BW27: =BV27/100*AA27 -> 0.6653217391 | BX27: =D27*(BV27/100) -> 0.0248352 | BY27: =X27*(BV27/100) -> 0.03168 | BZ27: =W27*(BV27/100) -> 0.037152 | CA27: =V27*(BV27/100) -> 0.021408 | CB27: =AP27*BV27 -> 17.60110421 | CC27: =AR27*BV27 -> 12.0748047 | CD27: =AT27*BV27 -> 25.01209546 | CE27: =AV27*BV27 -> 43.77116705 | CF27: =AX27*BV27 -> 54.0911983 | CG27: =AZ27*BV27 -> 53.65497896 | CH27: =BB27*BV27 -> 125.5324036 | CI27: =BD27*BV27 -> 1108.869565 | CJ27: =BF27*BV27 -> -46.20289855 | CK27: =BH27*BV27 -> 184.8115942 | CL27: =BJ27*BV27 -> 89.90834313
B29: LONZA N | C29: LONN | D29: =SUM(O29:X29)/10 -> 12.297 | E29: 3.87 | F29: 4.3 | G29: 5.88 | H29: 8.15 | I29: 3.17 | J29: 5.53 | K29: 2.97 | L29: 3.5 | M29: 1.67 | N29: 4.54 | O29: 5.26 | P29: 5.69 | Q29: 10.6 | R29: 7.48 | S29: 8.65 | T29: 11.63 | U29: 39.52 | V29: 16.34 | W29: 8.88 | X29: 8.92 | Y29: =LOOKUP(C29,Daten!$C$2:$C$300,Daten!$E$2:$E$500) -> 573.8 | AJ29: =Y29/X29 -> 64.32735426 | AK29: =AJ29 -> 64.32735426 | AL29: =Y29/W29 -> 64.61711712 | AM29: =AL29 -> 64.61711712 | AN29: =Y29/V29 -> 35.11627907 | AO29: =AN29 -> 35.11627907 | AP29: =Y29/U29 -> 14.51923077 | AQ29: =AP29 -> 14.51923077 | AR29: =Y29/T29 -> 49.33791917 | AS29: =AR29 -> 49.33791917 | AT29: =Y29/S29 -> 66.33526012 | AU29: =AT29 -> 66.33526012 | AV29: =Y29/R29 -> 76.71122995 | AW29: =AV29 -> 76.71122995 | AX29: =Y29/Q29 -> 54.13207547 | AY29: =AX29 -> 54.13207547 | AZ29: =Y29/P29 -> 100.8435852 | BA29: =AZ29 -> 100.8435852 | BB29: =Y29/O29 -> 109.0874525 | BC29: =BB29 -> 109.0874525 | BO29: =Y29/D29 -> 46.66178743 | BP29: =BO29 -> 46.66178743 | BQ29: =Tabelle1!O27 -> 0.2669368953 | BR29: =IF(BQ29>0,BQ29,10) -> 0.2669368953 | BS29: =IF(X29>O29,(X29-O29)/O29,-(O29-X29)/O29) -> 0.6958174905 | BT29: =BS29 -> 0.6958174905 | BV29: 3.06 | BW29: =BV29/100*Y29 -> 17.55828 | BX29: =D29*(BV29/100) -> 0.3762882 | BY29: =X29*(BV29/100) -> 0.272952 | BZ29: =W29*(BV29/100) -> 0.271728 | CA29: =V29*(BV29/100) -> 0.500004 | CB29: =AP29*BV29 -> 44.42884615 | CC29: =AR29*BV29 -> 150.9740327 | CD29: =AT29*BV29 -> 202.985896 | CE29: =AV29*BV29 -> 234.7363636 | CF29: =AX29*BV29 -> 165.6441509 | CG29: =AZ29*BV29 -> 308.5813708 | CH29: =BB29*BV29 -> 333.8076046 | CI29: =BD29*BV29 -> 0 | CJ29: =BF29*BV29 -> 0 | CK29: =BH29*BV29 -> 0 | CL29: =BJ29*BV29 -> 0
B31: NESTLE N | C31: NESN | D31: =SUM(O31:X31)/10 -> 3.781 | E31: 2.06 | F31: 2.36 | G31: 2.76 | H31: 2.81 | I31: 2.91 | J31: 2.6 | K31: 2.96 | L31: 3.2 | M31: 3.13 | N31: 4.52 | O31: 2.89 | P31: 2.75 | Q31: 2.32 | R31: 3.36 | S31: 4.3 | T31: 4.29 | U31: 6.06 | V31: 3.42 | W31: 4.23 | X31: 4.19 | Y31: =LOOKUP(C31,Daten!$C$2:$C$300,Daten!$E$2:$E$500) -> 85.74 | AC31: =Y31/E31 -> 41.62135922 | AE31: =Y31/F31 -> 36.33050847 | AG31: =Y31/G31 -> 31.06521739 | AI31: =Y31/H31 -> 30.51245552 | AJ31: =Y31/X31 -> 20.46300716 | AK31: =AJ31 -> 20.46300716 | AL31: =Y31/W31 -> 20.26950355 | AM31: =AL31 -> 20.26950355 | AN31: =Y31/V31 -> 25.07017544 | AO31: =AN31 -> 25.07017544 | AP31: =Y31/U31 -> 14.14851485 | AQ31: =AP31 -> 14.14851485 | AR31: =Y31/T31 -> 19.98601399 | AS31: =AR31 -> 19.98601399 | AT31: =Y31/S31 -> 19.93953488 | AU31: =AT31 -> 19.93953488 | AV31: =Y31/R31 -> 25.51785714 | AW31: =AV31 -> 25.51785714 | AX31: =Y31/Q31 -> 36.95689655 | AY31: =AX31 -> 36.95689655 | AZ31: =Y31/P31 -> 31.17818182 | BA31: =AZ31 -> 31.17818182 | BB31: =Y31/O31 -> 29.66782007 | BC31: =BB31 -> 29.66782007 | BD31: =Y31/N31 -> 18.96902655 | BE31: =BD31 -> 18.96902655 | BF31: =Y31/L31 -> 26.79375 | BG31: =BF31 -> 26.79375 | BH31: =Y31/K31 -> 28.96621622 | BI31: =BH31 -> 28.96621622 | BJ31: =Y31/J31 -> 32.97692308 | BK31: =BJ31 -> 32.97692308 | BM31: =Y31/I31 -> 29.46391753 | BN31: =BM31 -> 29.46391753 | BO31: =Y31/D31 -> 22.6765406 | BP31: =BO31 -> 22.6765406 | BQ31: =Tabelle1!O29 -> 0.03646158622 | BR31: =IF(BQ31>0,BQ31,10) -> 0.03646158622 | BS31: =IF(X31>O31,(X31-O31)/O31,-(O31-X31)/O31) -> 0.4498269896 | BT31: =BS31 -> 0.4498269896 | BV31: 14.49 | BW31: =BV31/100*Y31 -> 12.423726 | BX31: =D31*(BV31/100) -> 0.5478669 | BY31: =X31*(BV31/100) -> 0.607131 | BZ31: =W31*(BV31/100) -> 0.612927 | CA31: =V31*(BV31/100) -> 0.495558 | CB31: =AP31*BV31 -> 205.0119802 | CC31: =AR31*BV31 -> 289.5973427 | CD31: =AT31*BV31 -> 288.9238605 | CE31: =AV31*BV31 -> 369.75375 | CF31: =AX31*BV31 -> 535.505431 | CG31: =AZ31*BV31 -> 451.7718545 | CH31: =BB31*BV31 -> 429.8867128 | CI31: =BD31*BV31 -> 274.8611947 | CJ31: =BF31*BV31 -> 388.2414375 | CK31: =BH31*BV31 -> 419.720473 | CL31: =BJ31*BV31 -> 477.8356154 | CN31: 24.53
A33: USD | B33: NOVARTIS | C33: NOVN | D33: =SUM(O33:X33)/10 -> 4.968 | E33: 2.62 | F33: 3.04 | G33: 5.13 | H33: 3.59 | I33: 3.69 | J33: 4.28 | K33: 3.78 | L33: 3.89 | M33: 3.7 | N33: 4.13 | O33: 2.88 | P33: 2.82 | Q33: 3.25 | R33: 5.38 | S33: 5.06 | T33: 3.52 | U33: 10.63 | V33: 3.17 | W33: 7.1 | X33: 5.87 | Y33: =LOOKUP(C33,Daten!$C$2:$C$300,Daten!$E$2:$E$500) -> 92.54 | AA33: =Y33/Währungskurse!C$4 -> 112.8536585 | AC33: =AA33/E33 -> 43.07391547 | AE33: =AA33/F33 -> 37.12291399 | AG33: =AA33/G33 -> 21.99876385 | AI33: =AA33/H33 -> 31.43555948 | AJ33: =AA33/X33 -> 19.22549549 | AK33: =AJ33 -> 19.22549549 | AL33: =AA33/W33 -> 15.89488148 | AM33: =AL33 -> 15.89488148 | AN33: =AA33/V33 -> 35.6005232 | AO33: =AN33 -> 35.6005232 | AP33: =AA33/U33 -> 10.61652479 | AQ33: =AP33 -> 10.61652479 | AR33: =AA33/T33 -> 32.06069845 | AS33: =AR33 -> 32.06069845 | AT33: =AA33/S33 -> 22.30309457 | AU33: =AT33 -> 22.30309457 | AV33: =AA33/R33 -> 20.97651646 | AW33: =AV33 -> 20.97651646 | AX33: =AA33/Q33 -> 34.72420263 | AY33: =AX33 -> 34.72420263 | AZ33: =AA33/P33 -> 40.01902785 | BA33: =AZ33 -> 40.01902785 | BB33: =AA33/O33 -> 39.1852981 | BC33: =BB33 -> 39.1852981 | BD33: =AA33/N33 -> 27.32534105 | BE33: =BD33 -> 27.32534105 | BF33: =AA33/L33 -> 29.01122327 | BG33: =BF33 -> 29.01122327 | BH33: =AA33/K33 -> 29.85546522 | BI33: =BH33 -> 29.85546522 | BJ33: =AA33/J33 -> 26.36767723 | BK33: =BJ33 -> 26.36767723 | BM33: =AA33/I33 -> 30.5836473 | BN33: =BM33 -> 30.5836473 | BO33: =AA33/D33 -> 22.71611484 | BP33: =BO33 -> 22.71611484 | BQ33: =Tabelle1!O31 -> 0.25051499 | BR33: =IF(BQ33>0,BQ33,10) -> 0.25051499 | BS33: =IF(X33>O33,(X33-O33)/O33,-(O33-X33)/O33) -> 1.038194444 | BT33: =BS33 -> 1.038194444 | BV33: 13.35 | BW33: =BV33/100*AA33 -> 15.06596341 | BX33: =D33*(BV33/100) -> 0.663228 | BY33: =X33*(BV33/100) -> 0.783645 | BZ33: =W33*(BV33/100) -> 0.94785 | CA33: =V33*(BV33/100) -> 0.423195 | CB33: =AP33*BV33 -> 141.730606 | CC33: =AR33*BV33 -> 428.0103243 | CD33: =AT33*BV33 -> 297.7463125 | CE33: =AV33*BV33 -> 280.0364947 | CF33: =AX33*BV33 -> 463.5681051 | CG33: =AZ33*BV33 -> 534.2540218 | CH33: =BB33*BV33 -> 523.1237297 | CI33: =BD33*BV33 -> 364.793303 | CJ33: =BF33*BV33 -> 387.2998307 | CK33: =BH33*BV33 -> 398.5704607 | CL33: =BJ33*BV33 -> 352.008491 | CN33: 17.09
B35: PARTNERS GROUP | C35: PGHN | D35: =SUM(O35:X35)/10 -> 33.355 | I35: 8.3 | J35: 11.9 | K35: 8 | L35: 10.1 | M35: 12.3 | N35: 14.48 | O35: 14.99 | P35: 21.15 | Q35: 28.37 | R35: 28.91 | S35: 33.93 | T35: 30.36 | U35: 55.12 | V35: 39.09 | W35: 38.55 | X35: 43.08 | Y35: =LOOKUP(C35,Daten!$C$2:$C$300,Daten!$E$2:$E$500) -> 1098.5 | AJ35: =Y35/X35 -> 25.49907149 | AK35: =AJ35 -> 25.49907149 | AL35: =Y35/W35 -> 28.49546044 | AM35: =AL35 -> 28.49546044 | AN35: =Y35/V35 -> 28.10181632 | AO35: =AN35 -> 28.10181632 | AP35: =Y35/U35 -> 19.92924528 | AQ35: =AP35 -> 19.92924528 | AR35: =Y35/T35 -> 36.18247694 | AS35: =AR35 -> 36.18247694 | AT35: =Y35/S35 -> 32.37547893 | AU35: =AT35 -> 32.37547893 | AV35: =Y35/R35 -> 37.99723279 | AW35: =AV35 -> 37.99723279 | AX35: =Y35/Q35 -> 38.72047938 | AY35: =AX35 -> 38.72047938 | AZ35: =Y35/P35 -> 51.93853428 | BA35: =AZ35 -> 51.93853428 | BB35: =Y35/O35 -> 73.28218813 | BC35: =BB35 -> 73.28218813 | BD35: =Y35/N35 -> 75.86325967 | BE35: =BD35 -> 75.86325967 | BF35: =Y35/L35 -> 108.7623762 | BG35: =BF35 -> 108.7623762 | BH35: =Y35/K35 -> 137.3125 | BI35: =BH35 -> 137.3125 | BJ35: =Y35/J35 -> 92.31092437 | BK35: =BJ35 -> 92.31092437 | BM35: =Y35/I35 -> 132.3493976 | BN35: =BM35 -> 132.3493976 | BO35: =Y35/D35 -> 32.93359316 | BP35: =BO35 -> 32.93359316 | BQ35: =Tabelle1!O33 -> 0.1503414883 | BR35: =IF(BQ35>0,BQ35,10) -> 0.1503414883 | BS35: =IF(X35>O35,(X35-O35)/O35,-(O35-X35)/O35) -> 1.873915944 | BT35: =BS35 -> 1.873915944 | BV35: 2.74 | BW35: =BV35/100*Y35 -> 30.0989 | BX35: =D35*(BV35/100) -> 0.913927 | BY35: =X35*(BV35/100) -> 1.180392 | BZ35: =W35*(BV35/100) -> 1.05627 | CA35: =V35*(BV35/100) -> 1.071066 | CB35: =AP35*BV35 -> 54.60613208 | CC35: =AR35*BV35 -> 99.13998682 | CD35: =AT35*BV35 -> 88.70881226 | CE35: =AV35*BV35 -> 104.1124178 | CF35: =AX35*BV35 -> 106.0941135 | CG35: =AZ35*BV35 -> 142.3115839 | CH35: =BB35*BV35 -> 200.7931955 | CI35: =BD35*BV35 -> 207.8653315 | CJ35: =BF35*BV35 -> 298.0089109 | CK35: =BH35*BV35 -> 376.23625 | CL35: =BJ35*BV35 -> 252.9319328
A37: EUR | B37: RICHEMONT | C37: CFR | D37: =SUM(O37:X37)/10 -> 3.1046 | E37: 1.951 | F37: 2.331 | G37: 2.75 | H37: 1.916 | I37: 1.076 | J37: 1.92 | K37: 2.75 | L37: 3.6 | M37: 3.68 | N37: 2.356 | O37: 3.94 | P37: 2.14 | Q37: 2.16 | R37: 4.927 | S37: 1.651 | T37: 2.3 | U37: 3.611 | V37: 0.54 | W37: 4.077 | X37: 5.7 | Y37: =LOOKUP(C37,Daten!$C$2:$C$300,Daten!$E$2:$E$500) -> 146.5 | AA37: =Y37/Währungskurse!C$5 -> 159.2391304 | AC37: =AA37/E37 -> 81.61923651 | AE37: =AA37/F37 -> 68.31365527 | AG37: =AA37/G37 -> 57.90513834 | AI37: =AA37/H37 -> 83.11019334 | AJ37: =AA37/X37 -> 27.93668955 | AK37: =AJ37 -> 27.93668955 | AL37: =AA37/W37 -> 39.05791769 | AM37: =AL37 -> 39.05791769 | AN37: =AA37/V37 -> 294.8872786 | AO37: =AN37 -> 294.8872786 | AP37: =AA37/U37 -> 44.09834684 | AQ37: =AP37 -> 44.09834684 | AR37: =AA37/T37 -> 69.23440454 | AS37: =AR37 -> 69.23440454 | AT37: =AA37/S37 -> 96.45010929 | AU37: =AT37 -> 96.45010929 | AV37: =AA37/R37 -> 32.31969361 | AW37: =AV37 -> 32.31969361 | AX37: =AA37/Q37 -> 73.72181965 | AY37: =AX37 -> 73.72181965 | AZ37: =AA37/P37 -> 74.41080861 | BA37: =AZ37 -> 74.41080861 | BB37: =AA37/O37 -> 40.41602295 | BC37: =BB37 -> 40.41602295 | BD37: =AA37/N37 -> 67.58876504 | BE37: =BD37 -> 67.58876504 | BF37: =AA37/L37 -> 44.23309179 | BG37: =BF37 -> 44.23309179 | BH37: =AA37/K37 -> 57.90513834 | BI37: =BH37 -> 57.90513834 | BJ37: =AA37/J37 -> 82.9370471 | BK37: =BJ37 -> 82.9370471 | BM37: =AA37/I37 -> 147.9917569 | BN37: =BM37 -> 147.9917569 | BO37: =AA37/D37 -> 51.29135168 | BP37: =BO37 -> 51.29135168 | BQ37: =Tabelle1!O35 -> 0.7901654831 | BR37: =IF(BQ37>0,BQ37,10) -> 0.7901654831 | BS37: =IF(X37>O37,(X37-O37)/O37,-(O37-X37)/O37) -> 0.4467005076 | BT37: =BS37 -> 0.4467005076 | BV37: 6.67 | BW37: =BV37/100*AA37 -> 10.62125 | BX37: =D37*(BV37/100) -> 0.20707682 | BY37: =X37*(BV37/100) -> 0.38019 | BZ37: =W37*(BV37/100) -> 0.2719359 | CA37: =V37*(BV37/100) -> 0.036018 | CB37: =AP37*BV37 -> 294.1359734 | CC37: =AR37*BV37 -> 461.7934783 | CD37: =AT37*BV37 -> 643.322229 | CE37: =AV37*BV37 -> 215.5723564 | CF37: =AX37*BV37 -> 491.724537 | CG37: =AZ37*BV37 -> 496.3200935 | CH37: =BB37*BV37 -> 269.5748731 | CI37: =BD37*BV37 -> 450.8170628 | CJ37: =BF37*BV37 -> 295.0347222 | CK37: =BH37*BV37 -> 386.2272727 | CL37: =BJ37*BV37 -> 553.1901042 | CN37: 2.72
B39: ROCHE GS | C39: ROG | D39: =SUM(O39:X39)/10 -> 13.199 | E39: 6.87 | F39: 9.05 | G39: 11.16 | H39: 10.23 | I39: 9.02 | J39: 10.11 | K39: 10.98 | L39: 11.16 | M39: 12.93 | N39: 10.81 | O39: 10.28 | P39: 11.13 | Q39: 10.04 | R39: 12.21 | S39: 15.62 | T39: 16.52 | U39: 16.2 | V39: 15.37 | W39: 14.31 | X39: 10.31 | Y39: =LOOKUP(C39,Daten!$C$2:$C$300,Daten!$E$2:$E$500) -> 261.9 | AC39: =Y39/E39 -> 38.12227074 | AE39: =Y39/F39 -> 28.93922652 | AG39: =Y39/G39 -> 23.46774194 | AI39: =Y39/H39 -> 25.60117302 | AJ39: =Y39/X39 -> 25.40252182 | AK39: =AJ39 -> 25.40252182 | AL39: =Y39/W39 -> 18.30188679 | AM39: =AL39 -> 18.30188679 | AN39: =Y39/V39 -> 17.0396877 | AO39: =AN39 -> 17.0396877 | AP39: =Y39/U39 -> 16.16666667 | AQ39: =AP39 -> 16.16666667 | AR39: =Y39/T39 -> 15.8535109 | AS39: =AR39 -> 15.8535109 | AT39: =Y39/S39 -> 16.76696543 | AU39: =AT39 -> 16.76696543 | AV39: =Y39/R39 -> 21.44963145 | AW39: =AV39 -> 21.44963145 | AX39: =Y39/Q39 -> 26.08565737 | AY39: =AX39 -> 26.08565737 | AZ39: =Y39/P39 -> 23.5309973 | BA39: =AZ39 -> 23.5309973 | BB39: =Y39/O39 -> 25.4766537 | BC39: =BB39 -> 25.4766537 | BD39: =Y39/N39 -> 24.22756707 | BE39: =BD39 -> 24.22756707 | BF39: =Y39/L39 -> 23.46774194 | BG39: =BF39 -> 23.46774194 | BH39: =Y39/K39 -> 23.85245902 | BI39: =BH39 -> 23.85245902 | BJ39: =Y39/J39 -> 25.90504451 | BK39: =BJ39 -> 25.90504451 | BM39: =Y39/I39 -> 29.03547672 | BN39: =BM39 -> 29.03547672 | BO39: =Y39/D39 -> 19.8424123 | BP39: =BO39 -> 19.8424123 | BQ39: =Tabelle1!O37 -> 0.006966045705 | BR39: =IF(BQ39>0,BQ39,10) -> 0.006966045705 | BS39: =IF(X39>O39,(X39-O39)/O39,-(O39-X39)/O39) -> 0.002918287938 | BT39: =BS39 -> 0.002918287938 | BV39: 14.33 | BW39: =BV39/100*Y39 -> 37.53027 | BX39: =D39*(BV39/100) -> 1.8914167 | BY39: =X39*(BV39/100) -> 1.477423 | BZ39: =W39*(BV39/100) -> 2.050623 | CA39: =V39*(BV39/100) -> 2.202521 | CB39: =AP39*BV39 -> 231.6683333 | CC39: =AR39*BV39 -> 227.1808111 | CD39: =AT39*BV39 -> 240.2706146 | CE39: =AV39*BV39 -> 307.3732187 | CF39: =AX39*BV39 -> 373.8074701 | CG39: =AZ39*BV39 -> 337.1991914 | CH39: =BB39*BV39 -> 365.0804475 | CI39: =BD39*BV39 -> 347.1810361 | CJ39: =BF39*BV39 -> 336.2927419 | CK39: =BH39*BV39 -> 341.8057377 | CL39: =BJ39*BV39 -> 371.2192878 | CN39: 13.58
B41: SIKA | C41: SIKA | D41: =SUM(O41:X41)/10 -> 5.3855 | I41: =91/60 -> 1.516666667 | J41: =124/60 -> 2.066666667 | K41: =85.1/60 -> 1.418333333 | L41: =110/60 -> 1.833333333 | M41: =135/60 -> 2.25 | N41: =173/60 -> 2.883333333 | O41: =181.37/60 -> 3.022833333 | P41: =221.81/60 -> 3.696833333 | Q41: =253.52/60 -> 4.225333333 | R41: 4.58 | S41: 4.81 | T41: 5.22 | U41: 6.6 | V41: 7.29 | W41: 6.65 | X41: 7.76 | Y41: =LOOKUP(C41,Daten!$C$2:$C$300,Daten!$E$2:$E$500) -> 205.5 | AJ41: =Y41/X41 -> 26.48195876 | AK41: =AJ41 -> 26.48195876 | AL41: =Y41/W41 -> 30.90225564 | AM41: =AL41 -> 30.90225564 | AN41: =Y41/V41 -> 28.18930041 | AO41: =AN41 -> 28.18930041 | AP41: =Y41/U41 -> 31.13636364 | AQ41: =AP41 -> 31.13636364 | AR41: =Y41/T41 -> 39.36781609 | AS41: =AR41 -> 39.36781609 | AT41: =Y41/S41 -> 42.72349272 | AU41: =AT41 -> 42.72349272 | AV41: =Y41/R41 -> 44.86899563 | AW41: =AV41 -> 44.86899563 | AX41: =Y41/Q41 -> 48.63521616 | AY41: =AX41 -> 48.63521616 | AZ41: =Y41/P41 -> 55.58811596 | BA41: =AZ41 -> 55.58811596 | BB41: =Y41/O41 -> 67.98257705 | BC41: =BB41 -> 67.98257705 | BD41: =Y41/N41 -> 71.2716763 | BE41: =BD41 -> 71.2716763 | BF41: =Y41/L41 -> 112.0909091 | BG41: =BF41 -> 112.0909091 | BH41: =Y41/K41 -> 144.8883666 | BI41: =BH41 -> 144.8883666 | BJ41: =Y41/J41 -> 99.43548387 | BK41: =BJ41 -> 99.43548387 | BM41: =Y41/I41 -> 135.4945055 | BN41: =BM41 -> 135.4945055 | BO41: =Y41/D41 -> 38.1580169 | BP41: =BO41 -> 38.1580169 | BQ41: =Tabelle1!O39 -> 0.108174596 | BR41: =IF(BQ41>0,BQ41,10) -> 0.108174596 | BS41: =IF(X41>O41,(X41-O41)/O41,-(O41-X41)/O41) -> 1.56712797 | BT41: =BS41 -> 1.56712797 | BV41: 2.8 | BW41: =BV41/100*Y41 -> 5.754 | BX41: =D41*(BV41/100) -> 0.150794 | BY41: =X41*(BV41/100) -> 0.21728 | BZ41: =W41*(BV41/100) -> 0.1862 | CA41: =V41*(BV41/100) -> 0.20412 | CB41: =AP41*BV41 -> 87.18181818 | CC41: =AR41*BV41 -> 110.2298851 | CD41: =AT41*BV41 -> 119.6257796 | CE41: =AV41*BV41 -> 125.6331878 | CF41: =AX41*BV41 -> 136.1786052 | CG41: =AZ41*BV41 -> 155.6467247 | CH41: =BB41*BV41 -> 190.3512157 | CI41: =BD41*BV41 -> 199.5606936 | CJ41: =BF41*BV41 -> 313.8545455 | CK41: =BH41*BV41 -> 405.6874266 | CL41: =BJ41*BV41 -> 278.4193548
B43: SONOVA | C43: SOON | D43: =SUM(O43:X43)/10 -> 8.303 | I43: 3.3 | J43: 3.5 | K43: 3.7 | L43: 1.6 | M43: 5.1 | N43: 5.37 | O43: 5.11 | P43: 5.35 | Q43: 6.13 | R43: 6.98 | S43: 7.61 | T43: 9.23 | U43: 10.35 | V43: 10.72 | W43: 10.05 | X43: 11.5 | Y43: =LOOKUP(C43,Daten!$C$2:$C$300,Daten!$E$2:$E$500) -> 250.9 | AJ43: =Y43/X43 -> 21.8173913 | AK43: =AJ43 -> 21.8173913 | AL43: =Y43/W43 -> 24.96517413 | AM43: =AL43 -> 24.96517413 | AN43: =Y43/V43 -> 23.40485075 | AO43: =AN43 -> 23.40485075 | AP43: =Y43/U43 -> 24.24154589 | AQ43: =AP43 -> 24.24154589 | AR43: =Y43/T43 -> 27.18309859 | AS43: =AR43 -> 27.18309859 | AT43: =Y43/S43 -> 32.96977661 | AU43: =AT43 -> 32.96977661 | AV43: =Y43/R43 -> 35.94555874 | AW43: =AV43 -> 35.94555874 | AX43: =Y43/Q43 -> 40.92985318 | AY43: =AX43 -> 40.92985318 | AZ43: =Y43/P43 -> 46.89719626 | BA43: =AZ43 -> 46.89719626 | BB43: =Y43/O43 -> 49.09980431 | BC43: =BB43 -> 49.09980431 | BD43: =Y43/N43 -> 46.72253259 | BE43: =BD43 -> 46.72253259 | BF43: =Y43/L43 -> 156.8125 | BG43: =BF43 -> 156.8125 | BH43: =Y43/K43 -> 67.81081081 | BI43: =BH43 -> 67.81081081 | BJ43: =Y43/J43 -> 71.68571429 | BK43: =BJ43 -> 71.68571429 | BM43: =Y43/I43 -> 76.03030303 | BN43: =BM43 -> 76.03030303 | BO43: =Y43/D43 -> 30.2179935 | BP43: =BO43 -> 30.2179935 | BQ43: =Tabelle1!O41 -> 0.08250128252 | BR43: =IF(BQ43>0,BQ43,10) -> 0.08250128252 | BS43: =IF(X43>O43,(X43-O43)/O43,-(O43-X43)/O43) -> 1.250489237 | BT43: =BS43 -> 1.250489237 | BV43: 1.43 | BW43: =BV43/100*Y43 -> 3.58787 | BX43: =D43*(BV43/100) -> 0.1187329 | BY43: =X43*(BV43/100) -> 0.16445 | BZ43: =W43*(BV43/100) -> 0.143715 | CA43: =V43*(BV43/100) -> 0.153296 | CB43: =AP43*BV43 -> 34.66541063 | CC43: =AR43*BV43 -> 38.87183099 | CD43: =AT43*BV43 -> 47.14678055 | CE43: =AV43*BV43 -> 51.402149 | CF43: =AX43*BV43 -> 58.52969005 | CG43: =AZ43*BV43 -> 67.06299065 | CH43: =BB43*BV43 -> 70.21272016 | CI43: =BD43*BV43 -> 66.8132216 | CJ43: =BF43*BV43 -> 224.241875 | CK43: =BH43*BV43 -> 96.96945946 | CL43: =BJ43*BV43 -> 102.5105714
B45: SWISS LIFE HOLDING | C45: SLHN | D45: =SUM(O45:X45)/10 -> 35.049 | E45: 24.82 | F45: 26.92 | G45: 39.6 | H45: 10.88 | I45: 8.83 | J45: 17.37 | K45: 18.87 | L45: 2.86 | M45: 24.22 | N45: 24.11 | O45: 25.85 | P45: 27.27 | Q45: 29.63 | R45: 31.49 | S45: 36.48 | T45: 32.78 | U45: 39.93 | V45: 47.76 | W45: 37.01 | X45: 42.29 | Y45: =LOOKUP(C45,Daten!$C$2:$C$300,Daten!$E$2:$E$500) -> 802.6 | AC45: =Y45/E45 -> 32.33682514 | AE45: =Y45/F45 -> 29.81426449 | AG45: =Y45/G45 -> 20.26767677 | AI45: =Y45/H45 -> 73.76838235 | AJ45: =Y45/X45 -> 18.97848191 | AK45: =AJ45 -> 18.97848191 | AL45: =Y45/W45 -> 21.6860308 | AM45: =AL45 -> 21.6860308 | AN45: =Y45/V45 -> 16.80485762 | AO45: =AN45 -> 16.80485762 | AP45: =Y45/U45 -> 20.10017531 | AQ45: =AP45 -> 20.10017531 | AR45: =Y45/T45 -> 24.48444173 | AS45: =AR45 -> 24.48444173 | AT45: =Y45/S45 -> 22.00109649 | AU45: =AT45 -> 22.00109649 | AV45: =Y45/R45 -> 25.48745634 | AW45: =AV45 -> 25.48745634 | AX45: =Y45/Q45 -> 27.08741141 | AY45: =AX45 -> 27.08741141 | AZ45: =Y45/P45 -> 29.43160983 | BA45: =AZ45 -> 29.43160983 | BB45: =Y45/O45 -> 31.0483559 | BC45: =BB45 -> 31.0483559 | BD45: =Y45/N45 -> 33.28909166 | BE45: =BD45 -> 33.28909166 | BF45: =Y45/L45 -> 280.6293706 | BG45: =BF45 -> 280.6293706 | BH45: =Y45/K45 -> 42.53312136 | BI45: =BH45 -> 42.53312136 | BJ45: =Y45/J45 -> 46.20610248 | BK45: =BJ45 -> 46.20610248 | BM45: =Y45/I45 -> 90.89467724 | BN45: =BM45 -> 90.89467724 | BO45: =Y45/D45 -> 22.89936945 | BP45: =BO45 -> 22.89936945 | BQ45: =Tabelle1!O43 -> 0.06652496557 | BR45: =IF(BQ45>0,BQ45,10) -> 0.06652496557 | BS45: =IF(X45>O45,(X45-O45)/O45,-(O45-X45)/O45) -> 0.6359767892 | BT45: =BS45 -> 0.6359767892 | BV45: 1.54 | BW45: =BV45/100*Y45 -> 12.36004 | BX45: =D45*(BV45/100) -> 0.5397546 | BY45: =X45*(BV45/100) -> 0.651266 | BZ45: =W45*(BV45/100) -> 0.569954 | CA45: =V45*(BV45/100) -> 0.735504 | CB45: =AP45*BV45 -> 30.95426997 | CC45: =AR45*BV45 -> 37.70604027 | CD45: =AT45*BV45 -> 33.8816886 | CE45: =AV45*BV45 -> 39.25068276 | CF45: =AX45*BV45 -> 41.71461357 | CG45: =AZ45*BV45 -> 45.32467913 | CH45: =BB45*BV45 -> 47.81446809 | CI45: =BD45*BV45 -> 51.26520116 | CJ45: =BF45*BV45 -> 432.1692308 | CK45: =BH45*BV45 -> 65.50100689 | CL45: =BJ45*BV45 -> 71.15739781
B47: SWISS RE | C47: SREN | D47: =SUM(O47:X47)/10 -> 4.799 | E47: 7.44 | F47: 13.49 | G47: 11.23 | H47: -2.61 | I47: 1.48 | J47: 2.64 | K47: 6.63 | L47: 10.39 | M47: 11.04 | N47: 8.56 | O47: 11.81 | P47: 9.66 | Q47: 1.01 | R47: 1.34 | S47: 2.4 | T47: -2.97 | U47: 4.35 | V47: 1.6 | W47: 9.31 | X47: 9.48 | Y47: =LOOKUP(C47,Daten!$C$2:$C$300,Daten!$E$2:$E$500) -> 144.8 | AC47: =Y47/E47 -> 19.46236559 | AE47: =Y47/F47 -> 10.73387695 | AG47: =Y47/G47 -> 12.89403384 | AI47: na | AJ47: =Y47/X47 -> 15.2742616 | AK47: =AJ47 -> 15.2742616 | AL47: =Y47/W47 -> 15.55316864 | AM47: =AL47 -> 15.55316864 | AN47: =Y47/V47 -> 90.5 | AO47: =AN47 -> 90.5 | AP47: =Y47/U47 -> 33.28735632 | AQ47: =AP47 -> 33.28735632 | AR47: na | AS47: =AR47 -> na | AT47: =Y47/S47 -> 60.33333333 | AU47: =AT47 -> 60.33333333 | AV47: =Y47/R47 -> 108.0597015 | AW47: =AV47 -> 108.0597015 | AX47: =Y47/Q47 -> 143.3663366 | AY47: =AX47 -> 143.3663366 | AZ47: =Y47/P47 -> 14.98964803 | BA47: =AZ47 -> 14.98964803 | BB47: =Y47/O47 -> 12.26079594 | BC47: =BB47 -> 12.26079594 | BD47: =Y47/N47 -> 16.91588785 | BE47: =BD47 -> 16.91588785 | BF47: =Y47/L47 -> 13.93647738 | BG47: =BF47 -> 13.93647738 | BH47: =Y47/K47 -> 21.84012066 | BI47: =BH47 -> 21.84012066 | BJ47: =Y47/J47 -> 54.84848485 | BK47: =BJ47 -> 54.84848485 | BM47: =Y47/I47 -> 97.83783784 | BN47: =BM47 -> 97.83783784 | BO47: =Y47/D47 -> 30.1729527 | BP47: =BO47 -> 30.1729527 | BQ47: =Tabelle1!O45 -> 0.4851928593 | BR47: =IF(BQ47>0,BQ47,10) -> 0.4851928593 | BS47: =IF(X47>O47,(X47-O47)/O47,-(O47-X47)/O47) -> -0.1972904318 | BT47: =BS47 -> -0.1972904318 | BV47: 3.03 | BW47: =BV47/100*Y47 -> 4.38744 | BX47: =D47*(BV47/100) -> 0.1454097 | BY47: =X47*(BV47/100) -> 0.287244 | BZ47: =W47*(BV47/100) -> 0.282093 | CA47: =V47*(BV47/100) -> 0.04848 | CB47: =AP47*BV47 -> 100.8606897 | CC47: 0 | CD47: =AT47*BV47 -> 182.81 | CE47: =AV47*BV47 -> 327.4208955 | CF47: =AX47*BV47 -> 434.4 | CG47: =AZ47*BV47 -> 45.41863354 | CH47: =BB47*BV47 -> 37.15021169 | CI47: =BD47*BV47 -> 51.25514019 | CJ47: =BF47*BV47 -> 42.22752647 | CK47: =BH47*BV47 -> 66.17556561 | CL47: =BJ47*BV47 -> 166.1909091 | CN47: 2.13
B49: SWISSCOM | C49: SCMN | D49: =SUM(O49:X49)/10 -> 30.795 | E49: 33.79 | F49: 28.92 | G49: 39.92 | H49: 33.9 | I49: 37.18 | J49: 34.96 | K49: 13.19 | L49: 33.88 | M49: 32.53 | N49: 32.7 | O49: 26.27 | P49: 30.97 | Q49: 30.31 | R49: 29.48 | S49: 32.28 | T49: 29.54 | U49: 35.37 | V49: 30.93 | W49: 33.03 | X49: 29.77 | Y49: =LOOKUP(C49,Daten!$C$2:$C$300,Daten!$E$2:$E$500) -> 538.5 | AC49: =Y49/E49 -> 15.93666765 | AE49: =Y49/F49 -> 18.62033195 | AG49: =Y49/G49 -> 13.48947896 | AI49: =Y49/H49 -> 15.88495575 | AJ49: =Y49/X49 -> 18.08867988 | AK49: =AJ49 -> 18.08867988 | AL49: =Y49/W49 -> 16.30336058 | AM49: =AL49 -> 16.30336058 | AN49: =Y49/V49 -> 17.41028128 | AO49: =AN49 -> 17.41028128 | AP49: =Y49/U49 -> 15.22476675 | AQ49: =AP49 -> 15.22476675 | AR49: =Y49/T49 -> 18.2295193 | AS49: =AR49 -> 18.2295193 | AT49: =Y49/S49 -> 16.68215613 | AU49: =AT49 -> 16.68215613 | AV49: =Y49/R49 -> 18.26662144 | AW49: =AV49 -> 18.26662144 | AX49: =Y49/Q49 -> 17.76641372 | AY49: =AX49 -> 17.76641372 | AZ49: =Y49/P49 -> 17.38779464 | BA49: =AZ49 -> 17.38779464 | BB49: =Y49/O49 -> 20.49866768 | BC49: =BB49 -> 20.49866768 | BD49: =Y49/N49 -> 16.46788991 | BE49: =BD49 -> 16.46788991 | BF49: =Y49/L49 -> 15.89433294 | BG49: =BF49 -> 15.89433294 | BH49: =Y49/K49 -> 40.82638362 | BI49: =BH49 -> 40.82638362 | BJ49: =Y49/J49 -> 15.40331808 | BK49: =BJ49 -> 15.40331808 | BM49: =Y49/I49 -> 14.48359333 | BN49: =BM49 -> 14.48359333 | BO49: =Y49/D49 -> 17.48660497 | BP49: =BO49 -> 17.48660497 | BQ49: =Tabelle1!O47 -> -0.001529556421 | BR49: =IF(BQ49>0,BQ49,10) -> 10 | BS49: =IF(X49>O49,(X49-O49)/O49,-(O49-X49)/O49) -> 0.1332318234 | BT49: =BS49 -> 0.1332318234 | BV49: 1.98 | BW49: =BV49/100*Y49 -> 10.6623 | BX49: =D49*(BV49/100) -> 0.609741 | BY49: =X49*(BV49/100) -> 0.589446 | BZ49: =W49*(BV49/100) -> 0.653994 | CA49: =V49*(BV49/100) -> 0.612414 | CB49: =AP49*BV49 -> 30.14503817 | CC49: =AR49*BV49 -> 36.09444821 | CD49: =AT49*BV49 -> 33.03066914 | CE49: =AV49*BV49 -> 36.16791045 | CF49: =AX49*BV49 -> 35.17749918 | CG49: =AZ49*BV49 -> 34.42783339 | CH49: =BB49*BV49 -> 40.58736201 | CI49: =BD49*BV49 -> 32.60642202 | CJ49: =BF49*BV49 -> 31.47077922 | CK49: =BH49*BV49 -> 80.83623958 | CL49: =BJ49*BV49 -> 30.49856979 | CN49: 1.16
A51: USD | B51: UBS N | C51: UBSG | D51: =SUM(O51:X51)/10 -> 2.097 | E51: 6.68 | F51: 4.98 | G51: -2.41 | H51: -7.69 | I51: -0.74 | J51: 1.96 | K51: 1.08 | L51: -0.67 | M51: 0.83 | N51: 0.91 | O51: 1.64 | P51: 0.84 | Q51: 0.27 | R51: 1.18 | S51: 1.14 | T51: 1.77 | U51: 2.06 | V51: 2.25 | W51: 8.3 | X51: 1.52 | Y51: =LOOKUP(C51,Daten!$C$2:$C$300,Daten!$E$2:$E$500) -> 24.79 | AA51: =Y51/Währungskurse!C$5 -> 26.94565217 | AC51: =Y51/E51 -> 3.711077844 | AE51: =Y51/F51 -> 4.977911647 | AG51: =Y51/G51 -> -10.28630705 | AI51: V | AJ51: =AA51/X51 -> 17.72740275 | AK51: =AJ51 -> 17.72740275 | AL51: =AA51/W51 -> 3.246464117 | AM51: =AL51 -> 3.246464117 | AN51: =AA51/V51 -> 11.97584541 | AO51: =AN51 -> 11.97584541 | AP51: =Y51/U51 -> 12.03398058 | AQ51: =AP51 -> 12.03398058 | AR51: =Y51/T51 -> 14.00564972 | AS51: =AR51 -> 14.00564972 | AT51: =Y51/S51 -> 21.74561404 | AU51: =AT51 -> 21.74561404 | AV51: =Y51/R51 -> 21.00847458 | AW51: =AV51 -> 21.00847458 | AX51: =Y51/Q51 -> 91.81481481 | AY51: =AX51 -> 91.81481481 | AZ51: =Y51/P51 -> 29.51190476 | BA51: =AZ51 -> 29.51190476 | BB51: =Y51/O51 -> 15.11585366 | BC51: =BB51 -> 15.11585366 | BD51: =Y51/N51 -> 27.24175824 | BE51: =BD51 -> 27.24175824 | BF51: =ABS(Y51/L51) -> 37 | BG51: =BF51 -> 37 | BH51: =Y51/K51 -> 22.9537037 | BI51: =BH51 -> 22.9537037 | BJ51: =Y51/J51 -> 12.64795918 | BK51: =BJ51 -> 12.64795918 | BM51: V | BN51: =BM51 -> V | BO51: =Y51/D51 -> 11.82164998 | BP51: =BO51 -> 11.82164998 | BQ51: =Tabelle1!O49 -> 0.5653021376 | BR51: =IF(BQ51>0,BQ51,10) -> 0.5653021376 | BS51: =IF(X51>O51,(X51-O51)/O51,-(O51-X51)/O51) -> -0.07317073171 | BT51: =BS51 -> -0.07317073171 | BV51: 7.72 | BW51: =BV51/100*Y51 -> 1.913788 | BX51: =D51*(BV51/100) -> 0.1618884 | BY51: =X51*(BV51/100) -> 0.117344 | BZ51: =W51*(BV51/100) -> 0.64076 | CA51: =V51*(BV51/100) -> 0.1737 | CB51: =AP51*BV51 -> 92.9023301 | CC51: =AR51*BV51 -> 108.1236158 | CD51: =AT51*BV51 -> 167.8761404 | CE51: =AV51*BV51 -> 162.1854237 | CF51: =AX51*BV51 -> 708.8103704 | CG51: =AZ51*BV51 -> 227.8319048 | CH51: =BB51*BV51 -> 116.6943902 | CI51: =BD51*BV51 -> 210.3063736 | CJ51: =BF51*BV51 -> 285.64 | CK51: =BH51*BV51 -> 177.2025926 | CL51: =BJ51*BV51 -> 97.6422449 | CN51: 7.25
A53: CHF! | B53: ZURICH FINANCIAL | C53: ZURN | D53: =SUM(O53:X53)/10 -> 25.133 | E53: 27.11 | F53: 38.71 | G53: 47.11 | H53: 23.35 | I53: 24.21 | J53: 24.38 | K53: 22.52 | L53: 24.66 | M53: 25.23 | N53: 23.84 | O53: 11.86 | P53: 21.04 | Q53: 19.58 | R53: 24.28 | S53: 27.51 | T53: 23.98 | U53: 31.68 | V53: 29.36 | W53: 26.71 | X53: 35.33 | Y53: =LOOKUP(C53,Daten!$C$2:$C$300,Daten!$E$2:$E$500) -> 568.8 | AC53: =Y53/E53 -> 20.98118775 | AE53: =Y53/F53 -> 14.69387755 | AG53: =Y53/G53 -> 12.07386967 | AI53: =Y53/H53 -> 24.35974304 | AJ53: =Y53/X53 -> 16.09963204 | AK53: =AJ53 -> 16.09963204 | AL53: =Y53/W53 -> 21.29539498 | AM53: =AL53 -> 21.29539498 | AN53: =Y53/V53 -> 19.373297 | AO53: =AN53 -> 19.373297 | AP53: =Y53/U53 -> 17.95454545 | AQ53: =AP53 -> 17.95454545 | AR53: =Y53/T53 -> 23.71976647 | AS53: =AR53 -> 23.71976647 | AT53: =Y53/S53 -> 20.67611778 | AU53: =AT53 -> 20.67611778 | AV53: =Y53/R53 -> 23.42668863 | AW53: =AV53 -> 23.42668863 | AX53: =Y53/Q53 -> 29.05005107 | AY53: =AX53 -> 29.05005107 | AZ53: =Y53/P53 -> 27.03422053 | BA53: =AZ53 -> 27.03422053 | BB53: =Y53/O53 -> 47.95952782 | BC53: =BB53 -> 47.95952782 | BD53: =Y53/N53 -> 23.8590604 | BE53: =BD53 -> 23.8590604 | BF53: =Y53/L53 -> 23.06569343 | BG53: =BF53 -> 23.06569343 | BH53: =Y53/K53 -> 25.25754885 | BI53: =BH53 -> 25.25754885 | BJ53: =Y53/J53 -> 23.33059885 | BK53: =BJ53 -> 23.33059885 | BM53: =Y53/I53 -> 23.49442379 | BN53: =BM53 -> 23.49442379 | BO53: =Y53/D53 -> 22.63159989 | BP53: =BO53 -> 22.63159989 | BQ53: =Tabelle1!O51 -> 0.0927212434 | BR53: =IF(BQ53>0,BQ53,10) -> 0.0927212434 | BS53: =IF(X53>O53,(X53-O53)/O53,-(O53-X53)/O53) -> 1.978920742 | BT53: =BS53 -> 1.978920742 | BV53: 5.84 | BW53: =BV53/100*Y53 -> 33.21792 | BX53: =D53*(BV53/100) -> 1.4677672 | BY53: =X53*(BV53/100) -> 2.063272 | BZ53: =W53*(BV53/100) -> 1.559864 | CA53: =V53*(BV53/100) -> 1.714624 | CB53: =AP53*BV53 -> 104.8545455 | CC53: =AR53*BV53 -> 138.5234362 | CD53: =AT53*BV53 -> 120.7485278 | CE53: =AV53*BV53 -> 136.8118616 | CF53: =AX53*BV53 -> 169.6522983 | CG53: =AZ53*BV53 -> 157.8798479 | CH53: =BB53*BV53 -> 280.0836425 | CI53: =BD53*BV53 -> 139.3369128 | CJ53: =BF53*BV53 -> 134.7036496 | CK53: =BH53*BV53 -> 147.5040853 | CL53: =BJ53*BV53 -> 136.2506973 | CN53: 4.7
BV55: =SUM(BV15:BV53) -> 100.01 | BW55: =SUM(BW15:BW53) -> 318.9433372 | BX55: =SUM(BX15:BX53) -> 10.63892332 | BY55: =SUM(BY15:BY53) -> 12.700269 | BZ55: =SUM(BZ15:BZ53) -> 12.7048859 | CA55: =SUM(CA15:CA53) -> 11.828182 | CB55: =SUM(CB15:CB54) -> 2246.286095 | CC55: =SUM(CC15:CC54) -> 2649.047305 | CD55: =SUM(CD15:CD54) -> 3404.159031 | CE55: =SUM(CE15:CE54) -> 3201.945281 | CN55: =SUM(CN15:CN53) -> 81.67
D58: Ø Gewinn | E58: Gewinn pro Aktie | K58: Gewinn pro Aktie | Y58: akt. Kurs | AA58: akt. Kurs | AC58: KGV 2005 | AE58: KGV 2006 | AG58: KGV 2007 | AI58: KGV 2008 | AP58: KGV 2021 | AR58: KGV 2020 | AT58: KGV 2019 | AV58: KGV2018 | AX58: KGV 2017 | AZ58: KGV 2016 | BB58: KGV 2015 | BD58: KGV 2014 | BF58: KGV 2012 | BH58: KGV 2011 | BJ58: KGV 2010 | BM58: KGV 2009 | BO58: Ø Gewinn | BQ58: Ø Gewinnverän- | BS58: Gewinn-
D59: 2015 – 2024 | E59: 2005 | F59: 2006 | G59: 2007 | H59: 2008 | I59: 2009 | J59: 2010 | K59: 2011 | L59: 2012 | M59: 2013 | N59: 2014 | O59: 2015 | P59: 2016 | Q59: 2017 | R59: 2018 | S59: 2019 | T59: 2020 | U59: 2021 | V59: 2022 | W59: 2023 | X59: 2024 | AA59: in RW | AJ59: KGV 2024 | AL59: KGV 2023 | AN59: KGV 2022 | BO59: 15-24 KGV | BQ59: derungsraten 10J | BS59: wachstum 10 J | BV59: per 18.07.2024
BV60: gem. ETF SMIM iShares
A61: weitere SPI Titel (SMIM et. al.)
A63: EUR | B63: Adecco | C63: ADEN | D63: =SUM(O63:X63)/10 -> 2.496 | E63: 2.34 | F63: 3.14 | G63: 3.8 | H63: 2.82 | I63: 0.04 | J63: 2.2 | K63: 2.72 | L63: 2 | M63: 3.08 | N63: 3.61 | O63: 0.05 | P63: 4.24 | Q63: 4.66 | R63: 2.77 | S63: 4.47 | T63: -0.61 | U63: 3.6 | V63: 2.04 | W63: 1.94 | X63: 1.8 | Y63: =LOOKUP(C63,Daten!$C$2:$C$300,Daten!$E$2:$E$500) -> 21.68 | AA63: =Y63/Währungskurse!C$5 -> 23.56521739 | AC63: =AA63/E63 -> 10.07060572 | AE63: =AA63/F63 -> 7.504846303 | AG63: =AA63/G63 -> 6.201372998 | AI63: =AA63/H63 -> 8.356460068 | AJ63: =AA63/X63 -> 13.09178744 | AK63: =AJ63 -> 13.09178744 | AL63: =AA63/W63 -> 12.14701927 | AM63: =AL63 -> 12.14701927 | AN63: =AA63/V63 -> 11.55157715 | AO63: =AN63 -> 11.55157715 | AP63: =AA63/U63 -> 6.54589372 | AQ63: =AP63 -> 6.54589372 | AR63: na | AS63: =AR63 -> na | AT63: =AA63/S63 -> 5.271860714 | AU63: =AT63 -> 5.271860714 | AV63: =AA63/R63 -> 8.507298697 | AW63: =AV63 -> 8.507298697 | AX63: =AA63/Q63 -> 5.056913603 | AY63: =AX63 -> 5.056913603 | AZ63: =AA63/P63 -> 5.55783429 | BA63: =AZ63 -> 5.55783429 | BB63: =AA63/O63 -> 471.3043478 | BC63: =BB63 -> 471.3043478 | BD63: =AA63/N63 -> 6.52776105 | BE63: =BD63 -> 6.52776105 | BF63: =AA63/L63 -> 11.7826087 | BG63: =BF63 -> 11.7826087 | BH63: =AA63/K63 -> 8.663682864 | BI63: =BH63 -> 8.663682864 | BJ63: =AA63/J63 -> 10.71146245 | BK63: =BJ63 -> 10.71146245 | BM63: FV | BN63: =BM63 -> FV | BO63: =AA63/D63 -> 9.441192865 | BP63: =BO63 -> 9.441192865 | BQ63: =Tabelle1!O65 -> 8.857594503 | BR63: =IF(BQ63>0,BQ63,10) -> 8.857594503 | BS63: =IF(X63>O63,(X63-O63)/O63,-(O63-X63)/O63) -> 35 | BT63: =BS63 -> 35 | BV63: 2.62 | BW63: =BV63/100*AA63 -> 0.6174086957 | BX63: =D63*(BV63/100) -> 0.0653952 | BY63: =X63*(BV63/100) -> 0.04716 | BZ63: =W63*(BV63/100) -> 0.050828 | CA63: =V63*(BV63/100) -> 0.053448
A65: ! | B65: AMS Osram | C65: AMS | D65: =SUM(O65:X65)/10 -> -0.548 | I65: -0.47 | J65: 0.63 | K65: 0.75 | L65: 1.5 | M65: 1.11 | N65: 1.88 | O65: 2.28 | P65: 1.51 | Q65: 0.81 | R65: 0.89 | S65: 2.81 | T65: -0.06 | U65: -0.13 | V65: -0.92 | W65: -5.05 | X65: -7.62 | Y65: =LOOKUP(C65,Daten!$C$2:$C$300,Daten!$E$2:$E$500) -> 6.94 | AJ65: na | AK65: =AJ65 -> na | AL65: na | AM65: =AL65 -> na | AN65: na | AO65: =AN65 -> na | AP65: na | AQ65: =AP65 -> na | AR65: =Y65/T65 -> -115.6666667 | AS65: =AR65 -> -115.6666667 | AT65: =Y65/S65 -> 2.46975089 | AU65: =AT65 -> 2.46975089 | AV65: =Y65/R65 -> 7.797752809 | AW65: =AV65 -> 7.797752809 | AX65: =Y65/Q65 -> 8.567901235 | AY65: =AX65 -> 8.567901235 | AZ65: =Y65/P65 -> 4.59602649 | BA65: =AZ65 -> 4.59602649 | BB65: =Y65/O65 -> 3.043859649 | BC65: =BB65 -> 3.043859649 | BD65: =Y65/N65 -> 3.691489362 | BE65: =BD65 -> 3.691489362 | BF65: =Y65/L65 -> 4.626666667 | BG65: =BF65 -> 4.626666667 | BH65: =Y65/K65 -> 9.253333333 | BI65: =BH65 -> 9.253333333 | BO65: na | BP65: =BO65 -> na | BQ65: =Tabelle1!O67 -> -1.039283949 | BR65: =IF(BQ65>0,BQ65,10) -> 10 | BS65: =IF(X65>O65,(X65-O65)/O65,-(O65-X65)/O65) -> -4.342105263 | BT65: =BS65 -> -4.342105263 | BV65: 0.64 | BW65: =BV65/100*Y65 -> 0.044416 | BX65: =D65*(BV65/100) -> -0.0035072 | BY65: =X65*(BV65/100) -> -0.048768 | BZ65: =W65*(BV65/100) -> -0.03232 | CA65: =V65*(BV65/100) -> -0.005888
B67: Avolta (ehem. Dufry) | C67: AVOL | D67: =SUM(O67:X67)/10 -> -4.524 | I67: 2 | J67: 4.6 | K67: 4.2 | L67: 4.5 | M67: 3.13 | N67: 1.55 | O67: -1.73 | P67: 0.05 | Q67: 1.06 | R67: 1.38 | S67: -0.53 | T67: -43.01 | U67: -4.39 | V67: 0.62 | W67: 0.63 | X67: 0.68 | Y67: =LOOKUP(C67,Daten!$C$2:$C$300,Daten!$E$2:$E$500) -> 37.2 | AJ67: =Y67/X67 -> 54.70588235 | AK67: =AJ67 -> 54.70588235 | AL67: =Y67/W67 -> 59.04761905 | AM67: =AL67 -> 59.04761905 | AN67: =Y67/V67 -> 60 | AO67: =AN67 -> 60 | AP67: =Y67/U67 -> -8.4738041 | AQ67: =AP67 -> -8.4738041 | AR67: =Y67/T67 -> -0.864915136 | AS67: =AR67 -> -0.864915136 | AT67: =Y67/S67 -> -70.18867925 | AU67: =AT67 -> -70.18867925 | AV67: =Y67/R67 -> 26.95652174 | AW67: =AV67 -> 26.95652174 | AX67: =Y67/Q67 -> 35.09433962 | AY67: =AX67 -> 35.09433962 | AZ67: =Y67/P67 -> 744 | BA67: =AZ67 -> 744 | BB67: =Y67/O67 -> -21.50289017 | BC67: =BB67 -> -21.50289017 | BD67: =Y67/N67 -> 24 | BE67: =BD67 -> 24 | BF67: =Y67/L67 -> 8.266666667 | BG67: =BF67 -> 8.266666667 | BH67: =Y67/K67 -> 8.857142857 | BI67: =BH67 -> 8.857142857 | BJ67: =Y67/J67 -> 8.086956522 | BK67: =BJ67 -> 8.086956522 | BM67: =Y67/I67 -> 18.6 | BN67: =BM67 -> 18.6 | BO67: na | BP67: =BO67 -> na | BQ67: =Tabelle1!O69 -> -6.056984439 | BR67: =IF(BQ67>0,BQ67,10) -> 10 | BS67: =IF(X67>O67,(X67-O67)/O67,-(O67-X67)/O67) -> -1.393063584 | BT67: =BS67 -> -1.393063584 | BV67: 1.95 | BW67: =BV67/100*Y67 -> 0.7254 | BX67: =D67*(BV67/100) -> -0.088218 | BY67: =X67*(BV67/100) -> 0.01326 | BZ67: =W67*(BV67/100) -> 0.012285 | CA67: =V67*(BV67/100) -> 0.01209
B69: Bachem | C69: BANB | D69: =SUM(O69:X69)/10 -> 1.0378 | J69: =2.1/5 -> 0.42 | K69: =0.7/5 -> 0.14 | L69: =1.2/5 -> 0.24 | M69: =1.8/5 -> 0.36 | N69: =2.15/5 -> 0.43 | O69: =2.35/5 -> 0.47 | P69: =3.04/5 -> 0.608 | Q69: 0.62 | R69: 0.69 | S69: 0.78 | T69: 1.12 | U69: 1.62 | V69: 1.37 | W69: 1.5 | X69: 1.6 | Y69: =LOOKUP(C69,Daten!$C$2:$C$300,Daten!$E$2:$E$500) -> 49.52 | AJ69: =Y69/X69 -> 30.95 | AK69: =AJ69 -> 30.95 | AL69: =Y69/W69 -> 33.01333333 | AM69: =AL69 -> 33.01333333 | AN69: =Y69/V69 -> 36.1459854 | AO69: =AN69 -> 36.1459854 | AP69: =Y69/U69 -> 30.56790123 | AQ69: =AP69 -> 30.56790123 | AR69: =Y69/T69 -> 44.21428571 | AS69: =AR69 -> 44.21428571 | AT69: =Y69/S69 -> 63.48717949 | AU69: =AT69 -> 63.48717949 | AV69: =Y69/R69 -> 71.76811594 | AW69: =AV69 -> 71.76811594 | AX69: =Y69/Q69 -> 79.87096774 | AY69: =AX69 -> 79.87096774 | AZ69: =Y69/P69 -> 81.44736842 | BA69: =AZ69 -> 81.44736842 | BB69: =Y69/O69 -> 105.3617021 | BC69: =BB69 -> 105.3617021 | BD69: =Y69/N69 -> 115.1627907 | BE69: =BD69 -> 115.1627907 | BF69: =Y69/L69 -> 206.3333333 | BG69: =BF69 -> 206.3333333 | BH69: =Y69/K69 -> 353.7142857 | BI69: =BH69 -> 353.7142857 | BO69: =Y69/D69 -> 47.71632299 | BP69: =BO69 -> 47.71632299 | BQ69: =Tabelle1!O71 -> 0.1667055103 | BR69: =IF(BQ69>0,BQ69,10) -> 0.1667055103 | BS69: =IF(X69>O69,(X69-O69)/O69,-(O69-X69)/O69) -> 2.404255319 | BT69: =BS69 -> 2.404255319
B71: Baloise | C71: BALN | D71: =SUM(O71:X71)/10 -> 10.21 | L71: 10.2 | M71: 9.65 | N71: 15.15 | O71: 10.96 | P71: 11.53 | Q71: 11.5 | R71: 11.14 | S71: 15.02 | T71: 9.65 | U71: 13.06 | V71: 5.48 | W71: 5.29 | X71: 8.47 | Y71: =LOOKUP(C71,Daten!$C$2:$C$300,Daten!$E$2:$E$500) -> 184.2 | AJ71: =Y71/X71 -> 21.74734357 | AK71: =AJ71 -> 21.74734357 | AL71: =Y71/W71 -> 34.82041588 | AM71: =AL71 -> 34.82041588 | AN71: =Y71/V71 -> 33.61313869 | AO71: =AN71 -> 33.61313869 | AP71: =Y71/U71 -> 14.10413476 | AQ71: =AP71 -> 14.10413476 | AR71: =Y71/T71 -> 19.0880829 | AS71: =AR71 -> 19.0880829 | AT71: =Y71/S71 -> 12.26364847 | AU71: =AT71 -> 12.26364847 | AV71: =Y71/R71 -> 16.53500898 | AW71: =AV71 -> 16.53500898 | AX71: =Y71/Q71 -> 16.0173913 | AY71: =AX71 -> 16.0173913 | AZ71: =Y71/P71 -> 15.97571552 | BA71: =AZ71 -> 15.97571552 | BB71: =Y71/O71 -> 16.80656934 | BC71: =BB71 -> 16.80656934 | BD71: =Y71/N71 -> 12.15841584 | BE71: =BD71 -> 12.15841584 | BF71: =Y71/L71 -> 18.05882353 | BG71: =BF71 -> 18.05882353 | BH71: =Y71/K71 ->  | BI71: =BH71 ->  | BO71: =Y71/D71 -> 18.04113614 | BP71: =BO71 -> 18.04113614 | BQ71: =Tabelle1!O73 -> 0.004055088582 | BR71: =IF(BQ71>0,BQ71,10) -> 0.004055088582 | BS71: =IF(X71>O71,(X71-O71)/O71,-(O71-X71)/O71) -> -0.227189781 | BT71: =BS71 -> -0.227189781 | BV71: 3.74 | BW71: =BV71/100*Y71 -> 6.88908 | BX71: =D71*(BV71/100) -> 0.381854 | BY71: =X71*(BV71/100) -> 0.316778 | BZ71: =W71*(BV71/100) -> 0.197846 | CA71: =V71*(BV71/100) -> 0.204952
B73: Barry Callebaut | C73: BARN | D73: =SUM(O73:X73)/10 -> 57.511 | I73: 44 | J73: 48.6 | K73: 34.4 | L73: 27.5 | M73: 42.7 | N73: 46 | O73: 43.25 | P73: 39.57 | Q73: 51.15 | R73: 64.93 | S73: 67.57 | T73: 57.66 | U73: 69.84 | V73: 65.66 | W73: 80.9 | X73: 34.58 | Y73: =LOOKUP(C73,Daten!$C$2:$C$300,Daten!$E$2:$E$500) -> 765 | AJ73: =Y73/X73 -> 22.12261423 | AK73: =AJ73 -> 22.12261423 | AL73: =Y73/W73 -> 9.456118665 | AM73: =AL73 -> 9.456118665 | AN73: =Y73/V73 -> 11.65092903 | AO73: =AN73 -> 11.65092903 | AP73: =Y73/U73 -> 10.95360825 | AQ73: =AP73 -> 10.95360825 | AR73: =Y73/T73 -> 13.26742976 | AS73: =AR73 -> 13.26742976 | AT73: =Y73/S73 -> 11.32159242 | AU73: =AT73 -> 11.32159242 | AV73: =Y73/R73 -> 11.78191899 | AW73: =AV73 -> 11.78191899 | AX73: =Y73/Q73 -> 14.95601173 | AY73: =AX73 -> 14.95601173 | AZ73: =Y73/P73 -> 19.3328279 | BA73: =AZ73 -> 19.3328279 | BB73: =Y73/O73 -> 17.68786127 | BC73: =BB73 -> 17.68786127 | BD73: =Y73/N73 -> 16.63043478 | BE73: =BD73 -> 16.63043478 | BF73: =Y73/L73 -> 27.81818182 | BG73: =BF73 -> 27.81818182 | BH73: =Y73/K73 -> 22.23837209 | BI73: =BH73 -> 22.23837209 | BO73: =Y73/D73 -> 13.30180313 | BP73: =BO73 -> 13.30180313 | BQ73: =Tabelle1!O75 -> 0.07719521557 | BR73: =IF(BQ73>0,BQ73,10) -> 0.07719521557 | BS73: =IF(X73>O73,(X73-O73)/O73,-(O73-X73)/O73) -> -0.2004624277 | BT73: =BS73 -> -0.2004624277 | BV73: 2.56 | BW73: =BV73/100*Y73 -> 19.584 | BX73: =D73*(BV73/100) -> 1.4722816 | BY73: =X73*(BV73/100) -> 0.885248 | BZ73: =W73*(BV73/100) -> 2.07104 | CA73: =V73*(BV73/100) -> 1.680896
B75: Belimo | C75: BEAN | D75: =SUM(O75:X75)/10 -> 8.2966 | J75: =101/20 -> 5.05 | K75: =84.6/20 -> 4.23 | L75: =99.4/20 -> 4.97 | M75: =103/20 -> 5.15 | N75: =110/20 -> 5.5 | O75: =91.52/20 -> 4.576 | P75: =114/20 -> 5.7 | Q75: =126/20 -> 6.3 | R75: 7.01 | S75: 9.85 | T75: 7.05 | U75: 9.41 | V75: 9.99 | W75: 11.14 | X75: 11.94 | Y75: =LOOKUP(C75,Daten!$C$2:$C$300,Daten!$E$2:$E$500) -> 645 | AJ75: =Y75/X75 -> 54.0201005 | AK75: =AJ75 -> 54.0201005 | AL75: =Y75/W75 -> 57.8994614 | AM75: =AL75 -> 57.8994614 | AN75: =Y75/V75 -> 64.56456456 | AO75: =AN75 -> 64.56456456 | AP75: =Y75/U75 -> 68.54410202 | AQ75: =AP75 -> 68.54410202 | AR75: =Y75/T75 -> 91.4893617 | AS75: =AR75 -> 91.4893617 | AT75: =Y75/S75 -> 65.4822335 | AU75: =AT75 -> 65.4822335 | AV75: =Y75/R75 -> 92.01141227 | AW75: =AV75 -> 92.01141227 | AX75: =Y75/Q75 -> 102.3809524 | AY75: =AX75 -> 102.3809524 | AZ75: =Y75/P75 -> 113.1578947 | BA75: =AZ75 -> 113.1578947 | BB75: =Y75/O75 -> 140.9527972 | BC75: =BB75 -> 140.9527972 | BD75: =Y75/N75 -> 117.2727273 | BE75: =BD75 -> 117.2727273 | BF75: =Y75/L75 -> 129.778672 | BG75: =BF75 -> 129.778672 | BH75: =Y75/K75 -> 152.4822695 | BI75: =BH75 -> 152.4822695 | BO75: =Y75/D75 -> 77.74268978 | BP75: =BO75 -> 77.74268978 | BQ75: =Tabelle1!O77 -> 0.09959271126 | BR75: =IF(BQ75>0,BQ75,10) -> 0.09959271126 | BS75: =IF(X75>O75,(X75-O75)/O75,-(O75-X75)/O75) -> 1.609265734 | BT75: =BS75 -> 1.609265734 | BV75: 2.23 | BW75: =BV75/100*Y75 -> 14.3835 | BX75: =D75*(BV75/100) -> 0.18501418 | BY75: =X75*(BV75/100) -> 0.266262 | BZ75: =W75*(BV75/100) -> 0.248422 | CA75: =V75*(BV75/100) -> 0.222777
B77: Bell | C77: BELL | D77: =SUM(O77:X77)/10 -> 20.034 | E77: 89 | F77: 110 | G77: =142/10 -> 14.2 | H77: =151/10 -> 15.1 | I77: =141/10 -> 14.1 | J77: =163/10 -> 16.3 | K77: =180/10 -> 18 | L77: =191/10 -> 19.1 | M77: =192/10 -> 19.2 | N77: =219/10 -> 21.9 | O77: 23.75 | P77: 25.18 | Q77: 26.68 | R77: 16.89 | S77: 7.9 | T77: 18.91 | U77: 20.31 | V77: 20.37 | W77: 20.64 | X77: 19.71 | Y77: =LOOKUP(C77,Daten!$C$2:$C$300,Daten!$E$2:$E$500) -> 263 | AJ77: =Y77/X77 -> 13.34348047 | AK77: =AJ77 -> 13.34348047 | AL77: =Y77/W77 -> 12.74224806 | AM77: =AL77 -> 12.74224806 | AN77: =Y77/V77 -> 12.91114384 | AO77: =AN77 -> 12.91114384 | AP77: =Y77/U77 -> 12.94928607 | AQ77: =AP77 -> 12.94928607 | AR77: =Y77/T77 -> 13.90798519 | AS77: =AR77 -> 13.90798519 | AT77: =Y77/S77 -> 33.29113924 | AU77: =AT77 -> 33.29113924 | AV77: =Y77/R77 -> 15.57134399 | AW77: =AV77 -> 15.57134399 | AX77: =Y77/Q77 -> 9.857571214 | AY77: =AX77 -> 9.857571214 | AZ77: =Y77/P77 -> 10.44479746 | BA77: =AZ77 -> 10.44479746 | BB77: =Y77/O77 -> 11.07368421 | BC77: =BB77 -> 11.07368421 | BD77: =Y77/N77 -> 12.00913242 | BE77: =BD77 -> 12.00913242 | BF77: =Y77/L77 -> 13.76963351 | BG77: =BF77 -> 13.76963351 | BH77: =Y77/K77 -> 14.61111111 | BI77: =BH77 -> 14.61111111 | BO77: =Y77/D77 -> 13.12768294 | BP77: =BO77 -> 13.12768294 | BQ77: =Tabelle1!O79 -> 0.09295871416 | BR77: =IF(BQ77>0,BQ77,10) -> 0.09295871416 | BS77: =IF(X77>O77,(X77-O77)/O77,-(O77-X77)/O77) -> -0.1701052632 | BT77: =BS77 -> -0.1701052632
B79: BKW | C79: BKW | D79: =SUM(O79:X79)/10 -> 7.194 | J79: 4.5 | K79: -1.4 | L79: 2.7 | M79: -4.5 | N79: 5.96 | O79: 5.71 | P79: 6.41 | Q79: 4.92 | R79: 3.56 | S79: 7.42 | T79: 6.86 | U79: 5.77 | V79: 10.43 | W79: 9.06 | X79: 11.8 | Y79: =LOOKUP(C79,Daten!$C$2:$C$300,Daten!$E$2:$E$500) -> 157 | AJ79: =Y79/X79 -> 13.30508475 | AK79: =AJ79 -> 13.30508475 | AL79: =Y79/W79 -> 17.32891832 | AM79: =AL79 -> 17.32891832 | AN79: =Y79/V79 -> 15.0527325 | AO79: =AN79 -> 15.0527325 | AP79: =Y79/U79 -> 27.20970537 | AQ79: =AP79 -> 27.20970537 | AR79: =Y79/T79 -> 22.88629738 | AS79: =AR79 -> 22.88629738 | AT79: =Y79/S79 -> 21.15902965 | AU79: =AT79 -> 21.15902965 | AV79: =Y79/R79 -> 44.1011236 | AW79: =AV79 -> 44.1011236 | AX79: =Y79/Q79 -> 31.91056911 | AY79: =AX79 -> 31.91056911 | AZ79: =Y79/P79 -> 24.49297972 | BA79: =AZ79 -> 24.49297972 | BB79: =Y79/O79 -> 27.49562172 | BC79: =BB79 -> 27.49562172 | BD79: =Y79/N79 -> 26.34228188 | BE79: =BD79 -> 26.34228188 | BF79: =Y79/L79 -> 58.14814815 | BG79: =BF79 -> 58.14814815 | BH79: =Y79/K79 -> -112.1428571 | BI79: =BH79 -> -112.1428571 | BO79: =Y79/D79 -> 21.82374201 | BP79: =BO79 -> 21.82374201 | BQ79: =Tabelle1!O81 -> 0.3422397634 | BR79: =IF(BQ79>0,BQ79,10) -> 0.3422397634 | BS79: =IF(X79>O79,(X79-O79)/O79,-(O79-X79)/O79) -> 1.066549912 | BT79: =BS79 -> 1.066549912 | BV79: 1.5 | BW79: =BV79/100*Y79 -> 2.355 | BX79: =D79*(BV79/100) -> 0.10791 | BY79: =X79*(BV79/100) -> 0.177 | BZ79: =W79*(BV79/100) -> 0.1359 | CA79: =V79*(BV79/100) -> 0.15645
B81: Bossard | C81: BOSN | D81: =SUM(O81:X81)/10 -> 9.973 | E81: =6.57/2 -> 3.285 | F81: =3.98/2 -> 1.99 | G81: =10.03/2 -> 5.015 | H81: =10.68/2 -> 5.34 | I81: =4.97/2 -> 2.485 | J81: =14.81/2 -> 7.405 | K81: =14.89/2 -> 7.445 | L81: =14.38/2 -> 7.19 | M81: 7.4 | N81: 7.49 | O81: 7.01 | P81: 8.04 | Q81: 10.33 | R81: 10.95 | S81: 9.73 | T81: 8.73 | U81: 12.53 | V81: 13.38 | W81: 9.64 | X81: 9.39 | Y81: =LOOKUP(C81,Daten!$C$2:$C$300,Daten!$E$2:$E$500) -> 178.2 | AJ81: =Y81/X81 -> 18.97763578 | AK81: =AJ81 -> 18.97763578 | AL81: =Y81/W81 -> 18.48547718 | AM81: =AL81 -> 18.48547718 | AN81: =Y81/V81 -> 13.31838565 | AO81: =AN81 -> 13.31838565 | AP81: =Y81/U81 -> 14.22186752 | AQ81: =AP81 -> 14.22186752 | AR81: =Y81/T81 -> 20.41237113 | AS81: =AR81 -> 20.41237113 | AT81: =Y81/S81 -> 18.31449126 | AU81: =AT81 -> 18.31449126 | AV81: =Y81/R81 -> 16.2739726 | AW81: =AV81 -> 16.2739726 | AX81: =Y81/Q81 -> 17.25072604 | AY81: =AX81 -> 17.25072604 | AZ81: =Y81/P81 -> 22.1641791 | BA81: =AZ81 -> 22.1641791 | BB81: =Y81/O81 -> 25.42082739 | BC81: =BB81 -> 25.42082739 | BD81: =Y81/N81 -> 23.7917223 | BE81: =BD81 -> 23.7917223 | BF81: =Y81/L81 -> 24.78442281 | BG81: =BF81 -> 24.78442281 | BH81: =Y81/K81 -> 23.9355272 | BI81: =BH81 -> 23.9355272 | BJ81: =Y81/J81 -> 24.06482107 | BK81: =BJ81 -> 24.06482107 | BM81: =Y81/I81 -> 71.71026157 | BN81: =BM81 -> 71.71026157 | BO81: =Y81/D81 -> 17.86824426 | BP81: =BO81 -> 17.86824426 | BQ81: =Tabelle1!O83 -> 0.04492606096 | BR81: =IF(BQ81>0,BQ81,10) -> 0.04492606096 | BS81: =IF(X81>O81,(X81-O81)/O81,-(O81-X81)/O81) -> 0.3395149786 | BT81: =BS81 -> 0.3395149786
B83: Bucher Industries | C83: BUCN | D83: =SUM(O83:X83)/10 -> 21.442 | I83: -2.6 | J83: 9.5 | K83: 12.5 | L83: 15.53 | M83: 19.64 | N83: 18.59 | O83: 13.68 | P83: 11.71 | Q83: 16.79 | R83: 20.76 | S83: 21.92 | T83: 14.71 | U83: 25.96 | V83: 32.36 | W83: 34.38 | X83: 22.15 | Y83: =LOOKUP(C83,Daten!$C$2:$C$300,Daten!$E$2:$E$500) -> 346.5 | AJ83: =Y83/X83 -> 15.64334086 | AK83: =AJ83 -> 15.64334086 | AL83: =Y83/W83 -> 10.07853403 | AM83: =AL83 -> 10.07853403 | AN83: =Y83/V83 -> 10.70766378 | AO83: =AN83 -> 10.70766378 | AP83: =Y83/U83 -> 13.34745763 | AQ83: =AP83 -> 13.34745763 | AR83: =Y83/T83 -> 23.55540449 | AS83: =AR83 -> 23.55540449 | AT83: =Y83/S83 -> 15.80748175 | AU83: =AT83 -> 15.80748175 | AV83: =Y83/R83 -> 16.69075145 | AW83: =AV83 -> 16.69075145 | AX83: =Y83/Q83 -> 20.6372841 | AY83: =AX83 -> 20.6372841 | BO83: =Y83/D83 -> 16.15987315 | BP83: =BO83 -> 16.15987315 | BQ83: =Tabelle1!O85 -> 0.1009373914 | BR83: =IF(BQ83>0,BQ83,10) -> 0.1009373914 | BS83: =IF(X83>O83,(X83-O83)/O83,-(O83-X83)/O83) -> 0.6191520468 | BT83: =BS83 -> 0.6191520468
B85: Burckhardt Compression | C85: BCHN | D85: =SUM(O85:X85)/10 -> 15.82 | F85: 11.8 | G85: 20 | H85: 21.46 | I85: 16.68 | J85: 13.56 | K85: 15.22 | L85: 16.42 | M85: 15.87 | N85: 16.93 | O85: 16.34 | P85: 11.2 | Q85: 8.51 | R85: 8.15 | S85: 9.56 | T85: 13 | U85: 14.82 | V85: 20.64 | W85: 26.63 | X85: 29.35 | Y85: =LOOKUP(C85,Daten!$C$2:$C$300,Daten!$E$2:$E$500) -> 536 | AE85: =Y85/F85 -> 45.42372881 | AG85: =Y85/G85 -> 26.8 | AI85: =Y85/H85 -> 24.97670084 | AJ85: =Y85/X85 -> 18.26235094 | AK85: =AJ85 -> 18.26235094 | AL85: =Y85/W85 -> 20.12767555 | AM85: =AL85 -> 20.12767555 | AN85: =Y85/V85 -> 25.96899225 | AO85: =AN85 -> 25.96899225 | AP85: =Y85/U85 -> 36.16734143 | AQ85: =AP85 -> 36.16734143 | AR85: =Y85/T85 -> 41.23076923 | AS85: =AR85 -> 41.23076923 | AT85: =Y85/S85 -> 56.06694561 | AU85: =AT85 -> 56.06694561 | AV85: =Y85/R85 -> 65.76687117 | AW85: =AV85 -> 65.76687117 | AX85: =Y85/Q85 -> 62.98472385 | AY85: =AX85 -> 62.98472385 | AZ85: =Y85/P85 -> 47.85714286 | BA85: =AZ85 -> 47.85714286 | BB85: =Y85/O85 -> 32.80293758 | BC85: =BB85 -> 32.80293758 | BD85: =Y85/N85 -> 31.65977555 | BE85: =BD85 -> 31.65977555 | BF85: =Y85/L85 -> 32.64311815 | BG85: =BF85 -> 32.64311815 | BH85: =Y85/K85 -> 35.21681997 | BI85: =BH85 -> 35.21681997 | BJ85: =Y85/J85 -> 39.5280236 | BK85: =BJ85 -> 39.5280236 | BM85: =Y85/I85 -> 32.13429257 | BN85: =BM85 -> 32.13429257 | BO85: =Y85/D85 -> 33.88116308 | BP85: =BO85 -> 33.88116308 | BQ85: =Tabelle1!O89 -> 0.05469590326 | BR85: =IF(BQ85>0,BQ85,10) -> 0.05469590326 | BS85: =IF(X85>O85,(X85-O85)/O85,-(O85-X85)/O85) -> 0.7962056304 | BT85: =BS85 -> 0.7962056304
B87: Burkhalter | C87: BRKN | D87: =SUM(O87:X87)/10 -> 4.574 | E87: =11.3/5 -> 2.26 | F87: =14.53/5 -> 2.906 | G87: =19.81/5 -> 3.962 | H87: =23.13/5 -> 4.626 | I87: =15.48/5 -> 3.096 | J87: =17.95/5 -> 3.59 | K87: =20.11/5 -> 4.022 | L87: 4.29 | M87: 4.48 | N87: 5.25 | O87: 5.8 | P87: 6.08 | Q87: 5.02 | R87: 3.92 | S87: 3.72 | T87: 2.43 | U87: 3.99 | V87: 4.73 | W87: 4.95 | X87: 5.1 | Y87: =LOOKUP(C87,Daten!$C$2:$C$300,Daten!$E$2:$E$500) -> 121.8 | AC87: =Y87/E87 -> 53.89380531 | AE87: =Y87/F87 -> 41.91328286 | AG87: =Y87/G87 -> 30.74204947 | AI87: =Y87/H87 -> 26.32944228 | AJ87: =Y87/X87 -> 23.88235294 | AK87: =AJ87 -> 23.88235294 | AL87: =Y87/W87 -> 24.60606061 | AM87: =AL87 -> 24.60606061 | AN87: =Y87/V87 -> 25.75052854 | AO87: =AN87 -> 25.75052854 | AP87: =Y87/U87 -> 30.52631579 | AQ87: =AP87 -> 30.52631579 | AR87: =Y87/T87 -> 50.12345679 | AS87: =AR87 -> 50.12345679 | AT87: =Y87/S87 -> 32.74193548 | AU87: =AT87 -> 32.74193548 | AV87: =Y87/R87 -> 31.07142857 | AW87: =AV87 -> 31.07142857 | AX87: =Y87/Q87 -> 24.26294821 | AY87: =AX87 -> 24.26294821 | AZ87: =Y87/P87 -> 20.03289474 | BA87: =AZ87 -> 20.03289474 | BB87: =Y87/O87 -> 21 | BC87: =BB87 -> 21 | BD87: =Y87/N87 -> 23.2 | BE87: =BD87 -> 23.2 | BF87: =Y87/L87 -> 28.39160839 | BG87: =BF87 -> 28.39160839 | BH87: =Y87/K87 -> 30.28344107 | BI87: =BH87 -> 30.28344107 | BJ87: =Y87/J87 -> 33.9275766 | BK87: =BJ87 -> 33.9275766 | BM87: =Y87/I87 -> 39.34108527 | BN87: =BM87 -> 39.34108527 | BO87: =Y87/D87 -> 26.62877132 | BP87: =BO87 -> 26.62877132 | BQ87: =Tabelle1!O87 -> 0.06513047 | BR87: =IF(BQ87>0,BQ87,10) -> 0.06513047 | BS87: =IF(X87>O87,(X87-O87)/O87,-(O87-X87)/O87) -> -0.1206896552 | BT87: =BS87 -> -0.1206896552
B89: Calida | C89: CALN | D89: =SUM(O89:X89)/10 -> 1.011 | G89: 2 | H89: 1.4 | I89: -5.15 | J89: 2.7 | K89: 2.9 | L89: 2.58 | M89: 1.36 | N89: 2.74 | O89: 1.97 | P89: 1.72 | Q89: 1.88 | R89: 1.97 | S89: 1.9 | T89: -0.17 | U89: 2.43 | V89: 4.39 | W89: -7.88 | X89: 1.9 | Y89: =LOOKUP(C89,Daten!$C$2:$C$300,Daten!$E$2:$E$500) -> 15.82 | AJ89: =Y89/X89 -> 8.326315789 | AK89: =AJ89 -> 8.326315789 | AL89: na | AM89: =AL89 -> na | AN89: =Y89/V89 -> 3.603644647 | AO89: =AN89 -> 3.603644647 | AP89: =Y89/U89 -> 6.510288066 | AQ89: =AP89 -> 6.510288066 | AR89: na | AS89: =AR89 -> na | AT89: =Y89/S89 -> 8.326315789 | AU89: =AT89 -> 8.326315789 | AV89: =Y89/R89 -> 8.030456853 | AW89: =AV89 -> 8.030456853 | AX89: =Y89/Q89 -> 8.414893617 | AY89: =AX89 -> 8.414893617 | AZ89: =Y89/P89 -> 9.197674419 | BA89: =AZ89 -> 9.197674419 | BB89: =Y89/O89 -> 8.030456853 | BC89: =BB89 -> 8.030456853 | BD89: =Y89/N89 -> 5.773722628 | BE89: =BD89 -> 5.773722628 | BF89: =Y89/L89 -> 6.131782946 | BG89: =BF89 -> 6.131782946 | BH89: =Y89/K89 -> 5.455172414 | BI89: =BH89 -> 5.455172414 | BJ89: =Y89/J89 -> 5.859259259 | BK89: =BJ89 -> 5.859259259 | BM89: =Y89/I89 -> -3.07184466 | BO89: =Y89/D89 -> 15.64787339 | BP89: =BO89 -> 15.64787339 | BQ89: =Tabelle1!O91 -> 1.292838275 | BR89: =IF(BQ89>0,BQ89,10) -> 1.292838275 | BS89: =IF(X89>O89,(X89-O89)/O89,-(O89-X89)/O89) -> -0.03553299492 | BT89: =BS89 -> -0.03553299492
B91: Carlo Gavazzi 1) | C91: GAV | D91: =SUM(O91:X91)/10 -> 19.006 | E91: 17.11 | F91: 16.23 | G91: 23.81 | H91: 11.25 | I91: 10.89 | J91: 31.98 | K91: 23.57 | L91: 17.66 | M91: 15.69 | N91: 17.26 | O91: 13.58 | P91: 18.84 | Q91: 11.81 | R91: 15.07 | S91: 8.55 | T91: 16.96 | U91: 31 | V91: 39.71 | W91: 26.29 | X91: 8.25 | Y91: =LOOKUP(C91,Daten!$C$2:$C$300,Daten!$E$2:$E$500) -> 192.5 | AJ91: =Y91/X91 -> 23.33333333 | AK91: =AJ91 -> 23.33333333 | AL91: =Y91/W91 -> 7.322175732 | AM91: =AL91 -> 7.322175732 | AN91: =Y91/V91 -> 4.847645429 | AO91: =AN91 -> 4.847645429 | AP91: =Y91/U91 -> 6.209677419 | AQ91: =AP91 -> 6.209677419 | AR91: =Y91/T91 -> 11.35023585 | AS91: =AR91 -> 11.35023585 | AT91: =Y91/S91 -> 22.51461988 | AU91: =AT91 -> 22.51461988 | AV91: =Y91/R91 -> 12.77372263 | AW91: =AV91 -> 12.77372263 | AX91: =Y91/Q91 -> 16.29974598 | AY91: =AX91 -> 16.29974598 | AZ91: =Y91/P91 -> 10.21762208 | BA91: =AZ91 -> 10.21762208 | BB91: =Y91/O91 -> 14.17525773 | BC91: =BB91 -> 14.17525773 | BD91: =Y91/N91 -> 11.15295481 | BE91: =BD91 -> 11.15295481 | BF91: =Y91/L91 -> 10.90033975 | BG91: =BF91 -> 10.90033975 | BH91: =Y91/K91 -> 8.167161646 | BI91: =BH91 -> 8.167161646 | BJ91: =Y91/J91 -> 6.019387117 | BK91: =BJ91 -> 6.019387117 | BM91: =Y91/I91 -> 17.67676768 | BN91: =BM91 -> 17.67676768 | BO91: =Y91/D91 -> 10.12838051 | BP91: =BO91 -> 10.12838051 | BQ91: =Tabelle1!O93 -> 0.1498909201 | BR91: =IF(BQ91>0,BQ91,10) -> 0.1498909201 | BS91: =IF(X91>O91,(X91-O91)/O91,-(O91-X91)/O91) -> -0.3924889543 | BT91: =BS91 -> -0.3924889543
B93: Clariant | C93: CLN | D93: =SUM(O93:X93)/10 -> 0.732 | I93: -0.91 | J93: 0.81 | K93: 0.86 | L93: 0.74 | M93: -0.06 | N93: 0.48 | O93: 0.71 | P93: 0.78 | Q93: 0.84 | R93: 1.02 | S93: 0.03 | T93: 2.38 | U93: 0.81 | V93: -0.4 | W93: 0.41 | X93: 0.74 | Y93: =LOOKUP(C93,Daten!$C$2:$C$300,Daten!$E$2:$E$500) -> 9.085 | AJ93: =Y93/X93 -> 12.27702703 | AK93: =AJ93 -> 12.27702703 | AL93: =Y93/W93 -> 22.15853659 | AM93: =AL93 -> 22.15853659 | AN93: na | AO93: =AN93 -> na | AP93: =Y93/U93 -> 11.21604938 | AQ93: =AP93 -> 11.21604938 | AR93: =Y93/T93 -> 3.817226891 | AS93: =AR93 -> 3.817226891 | AT93: =Y93/S93 -> 302.8333333 | AU93: =AT93 -> 302.8333333 | AV93: =Y93/R93 -> 8.906862745 | AW93: =AV93 -> 8.906862745 | AX93: =Y93/Q93 -> 10.81547619 | AY93: =AX93 -> 10.81547619 | AZ93: =Y93/P93 -> 11.6474359 | BA93: =AZ93 -> 11.6474359 | BB93: =Y93/O93 -> 12.79577465 | BC93: =BB93 -> 12.79577465 | BD93: =Y93/N93 -> 18.92708333 | BE93: =BD93 -> 18.92708333 | BF93: =Y93/L93 -> 12.27702703 | BG93: =BF93 -> 12.27702703 | BH93: =Y93/K93 -> 10.56395349 | BI93: =BH93 -> 10.56395349 | BJ93: =Y93/J93 -> 11.21604938 | BK93: =BJ93 -> 11.21604938 | BM93: =Y93/I93 -> -9.983516484 | BN93: =BM93 -> -9.983516484 | BO93: =Y93/D93 -> 12.41120219 | BP93: =BO93 -> 12.41120219 | BQ93: =Tabelle1!O95 -> 8.710322108 | BR93: =IF(BQ93>0,BQ93,10) -> 8.710322108 | BS93: =IF(X93>O93,(X93-O93)/O93,-(O93-X93)/O93) -> 0.04225352113 | BT93: =BS93 -> 0.04225352113 | BV93: 1.69 | BW93: =BV93/100*Y93 -> 0.1535365 | BX93: =D93*(BV93/100) -> 0.0123708 | BY93: =X93*(BV93/100) -> 0.012506 | BZ93: =W93*(BV93/100) -> 0.006929 | CA93: =V93*(BV93/100) -> -0.00676
B95: Dätwyler 2) | C95: DAE | D95: =SUM(O95:X95)/10 -> 5.47 | E95: 2.62 | F95: 4.98 | G95: 14.27 | H95: 7.12 | I95: 3.71 | J95: 6.36 | K95: 6.22 | L95: 8.23 | M95: 7.6 | N95: 6.14 | O95: 5.04 | P95: 3.47 | Q95: 7.28 | R95: 7.12 | S95: 5.6 | T95: 6.99 | U95: 7.28 | V95: 6.16 | W95: 3.93 | X95: 1.83 | Y95: =LOOKUP(C95,Daten!$C$2:$C$300,Daten!$E$2:$E$500) -> 121 | AJ95: =Y95/X95 -> 66.12021858 | AK95: =AJ95 -> 66.12021858 | AL95: =Y95/W95 -> 30.78880407 | AM95: =AL95 -> 30.78880407 | AN95: =Y95/V95 -> 19.64285714 | AO95: =AN95 -> 19.64285714 | AP95: =Y95/U95 -> 16.62087912 | AQ95: =AP95 -> 16.62087912 | AR95: =Y95/T95 -> 17.31044349 | AS95: =AR95 -> 17.31044349 | AT95: =Y95/S95 -> 21.60714286 | AU95: =AT95 -> 21.60714286 | AV95: =Y95/R95 -> 16.99438202 | AW95: =AV95 -> 16.99438202 | AX95: =Y95/Q95 -> 16.62087912 | AY95: =AX95 -> 16.62087912 | AZ95: =Y95/P95 -> 34.870317 | BA95: =AZ95 -> 34.870317 | BB95: =Y95/O95 -> 24.00793651 | BC95: =BB95 -> 24.00793651 | BD95: =Y95/N95 -> 19.70684039 | BE95: =BD95 -> 19.70684039 | BF95: =Y95/L95 -> 14.70230863 | BG95: =BF95 -> 14.70230863 | BH95: =Y95/K95 -> 19.45337621 | BI95: =BH95 -> 19.45337621 | BJ95: =Y95/J95 -> 19.02515723 | BK95: =BJ95 -> 19.02515723 | BM95: =Y95/I95 -> 32.61455526 | BN95: =BM95 -> 32.61455526 | BO95: =Y95/D95 -> 22.12065814 | BP95: =BO95 -> 22.12065814 | BQ95: =Tabelle1!O97 -> -0.004640176861 | BR95: =IF(BQ95>0,BQ95,10) -> 10 | BS95: =IF(X95>O95,(X95-O95)/O95,-(O95-X95)/O95) -> -0.6369047619 | BT95: =BS95 -> -0.6369047619
B97: Ems-Chemie | C97: EMSN | D97: =SUM(O97:X97)/10 -> 20.474 | E97: 7.27 | F97: 12.65 | G97: 12.09 | H97: 9.25 | I97: 9.66 | J97: 9.71 | K97: 10.14 | L97: 11.45 | M97: 13.58 | N97: 14.66 | O97: 16.09 | P97: 19.19 | Q97: 20.59 | R97: 22.22 | S97: 22.54 | T97: 18.57 | U97: 23.53 | V97: 22.75 | W97: 19.56 | X97: 19.7 | Y97: =LOOKUP(C97,Daten!$C$2:$C$300,Daten!$E$2:$E$500) -> 596 | AC97: =Y97/E97 -> 81.98074278 | AE97: =Y97/F97 -> 47.11462451 | AG97: =Y97/G97 -> 49.29693962 | AI97: =Y97/H97 -> 64.43243243 | AJ97: =Y97/X97 -> 30.25380711 | AK97: =AJ97 -> 30.25380711 | AL97: =Y97/W97 -> 30.47034765 | AM97: =AL97 -> 30.47034765 | AN97: =Y97/V97 -> 26.1978022 | AO97: =AN97 -> 26.1978022 | AP97: =Y97/U97 -> 25.32936677 | AQ97: =AP97 -> 25.32936677 | AR97: =Y97/T97 -> 32.09477652 | AS97: =AR97 -> 32.09477652 | AT97: =Y97/S97 -> 26.4418811 | AU97: =AT97 -> 26.4418811 | AV97: =Y97/R97 -> 26.82268227 | AW97: =AV97 -> 26.82268227 | AX97: =Y97/Q97 -> 28.94609034 | AY97: =AX97 -> 28.94609034 | AZ97: =Y97/P97 -> 31.05784263 | BA97: =AZ97 -> 31.05784263 | BB97: =Y97/O97 -> 37.04164077 | BC97: =BB97 -> 37.04164077 | BD97: =Y97/N97 -> 40.65484311 | BE97: =BD97 -> 40.65484311 | BF97: =Y97/L97 -> 52.05240175 | BG97: =BF97 -> 52.05240175 | BH97: =Y97/K97 -> 58.77712032 | BI97: =BH97 -> 58.77712032 | BJ97: =Y97/J97 -> 61.3800206 | BK97: =BJ97 -> 61.3800206 | BM97: =Y97/I97 -> 61.69772257 | BN97: =BM97 -> 61.69772257 | BO97: =Y97/D97 -> 29.11009085 | BP97: =BO97 -> 29.11009085 | BQ97: =Tabelle1!O99 -> 0.04538572519 | BR97: =IF(BQ97>0,BQ97,10) -> 0.04538572519 | BS97: =IF(X97>O97,(X97-O97)/O97,-(O97-X97)/O97) -> 0.2243629584 | BT97: =BS97 -> 0.2243629584 | BV97: 2.49 | BW97: =BV97/100*Y97 -> 14.8404 | BX97: =D97*(BV97/100) -> 0.5098026 | BY97: =X97*(BV97/100) -> 0.49053 | BZ97: =W97*(BV97/100) -> 0.487044 | CA97: =V97*(BV97/100) -> 0.566475
B99: Flughafen Zürich | C99: FHZN | D99: =SUM(O99:X99)/10 -> 6.574 | J99: =22.6/5 -> 4.52 | K99: =27.7/5 -> 5.54 | L99: =15.5/5 -> 3.1 | M99: =22.3/5 -> 4.46 | N99: 6.71 | O99: 5.85 | P99: 8.07 | Q99: 9.29 | R99: 7.75 | S99: 10.07 | T99: -2.25 | U99: -0.33 | V99: 6.74 | W99: 9.91 | X99: 10.64 | Y99: =LOOKUP(C99,Daten!$C$2:$C$300,Daten!$E$2:$E$500) -> 206.8 | AJ99: =Y99/X99 -> 19.43609023 | AK99: =AJ99 -> 19.43609023 | AL99: =Y99/W99 -> 20.86781029 | AM99: =AL99 -> 20.86781029 | AN99: =Y99/V99 -> 30.68249258 | AO99: =AN99 -> 30.68249258 | AP99: na | AQ99: =AP99 -> na | AR99: =Y99/T99 -> -91.91111111 | AS99: =AR99 -> -91.91111111 | AT99: =Y99/S99 -> 20.53624628 | AU99: =AT99 -> 20.53624628 | AV99: =Y99/R99 -> 26.68387097 | AW99: =AV99 -> 26.68387097 | AX99: =Y99/Q99 -> 22.26049516 | AY99: =AX99 -> 22.26049516 | AZ99: =Y99/P99 -> 25.62577447 | BA99: =AZ99 -> 25.62577447 | BB99: =Y99/O99 -> 35.35042735 | BC99: =BB99 -> 35.35042735 | BD99: =Y99/N99 -> 30.81967213 | BE99: =BD99 -> 30.81967213 | BF99: =Y99/L99 -> 66.70967742 | BG99: =BF99 -> 66.70967742 | BH99: =Y99/K99 -> 37.32851986 | BI99: =BH99 -> 37.32851986 | BJ99: =Y99/J99 -> 45.75221239 | BK99: =BJ99 -> 45.75221239 | BM99: =Y99/I99 ->  | BN99: =BM99 ->  | BO99: =Y99/D99 -> 31.45725586 | BP99: =BO99 -> 31.45725586 | BQ99: =Tabelle1!O101 -> 2.256503318 | BR99: =IF(BQ99>0,BQ99,10) -> 2.256503318 | BS99: =IF(X99>O99,(X99-O99)/O99,-(O99-X99)/O99) -> 0.8188034188 | BT99: =BS99 -> 0.8188034188 | BV99: 1.9 | BW99: =BV99/100*Y99 -> 3.9292 | BX99: =D99*(BV99/100) -> 0.124906 | BY99: =X99*(BV99/100) -> 0.20216 | BZ99: =W99*(BV99/100) -> 0.18829 | CA99: =V99*(BV99/100) -> 0.12806
B101: Forbo N | C101: FORN | D101: =SUM(O101:X101)/10 -> 69.78 | E101: -6.26 | F101: 23.57 | G101: 43.45 | H101: 6.84 | I101: 33.67 | J101: 71.48 | K101: 62.61 | L101: 89.04 | M101: 53.19 | N101: 61.95 | O101: 62.13 | P101: 74.65 | Q101: 22.36 | R101: 82.38 | S101: 86.33 | T101: 66.6 | U101: 91.62 | V101: 71.76 | W101: 72.55 | X101: 67.42 | Y101: =LOOKUP(C101,Daten!$C$2:$C$300,Daten!$E$2:$E$500) -> 782 | AC101: =Y101/E101 -> -124.9201278 | AE101: =Y101/F101 -> 33.17776835 | AG101: =Y101/G101 -> 17.9976985 | AI101: =Y101/H101 -> 114.3274854 | AJ101: =Y101/X101 -> 11.59893207 | AK101: =AJ101 -> 11.59893207 | AL101: =Y101/W101 -> 10.77877326 | AM101: =AL101 -> 10.77877326 | AN101: =Y101/V101 -> 10.8974359 | AO101: =AN101 -> 10.8974359 | AP101: =Y101/U101 -> 8.535254311 | AQ101: =AP101 -> 8.535254311 | AR101: =Y101/T101 -> 11.74174174 | AS101: =AR101 -> 11.74174174 | AT101: =Y101/S101 -> 9.058264798 | AU101: =AT101 -> 9.058264798 | AV101: =Y101/R101 -> 9.49259529 | AW101: =AV101 -> 9.49259529 | AX101: =Y101/Q101 -> 34.97316637 | AY101: =AX101 -> 34.97316637 | AZ101: =Y101/P101 -> 10.47555258 | BA101: =AZ101 -> 10.47555258 | BB101: =Y101/O101 -> 12.58651215 | BC101: =BB101 -> 12.58651215 | BD101: =Y101/N101 -> 12.62308313 | BE101: =BD101 -> 12.62308313 | BF101: =Y101/L101 -> 8.782569632 | BG101: =BF101 -> 8.782569632 | BH101: =Y101/K101 -> 12.49001757 | BI101: =BH101 -> 12.49001757 | BJ101: =Y101/J101 -> 10.94012311 | BK101: =BJ101 -> 10.94012311 | BM101: =Y101/I101 -> 23.22542323 | BN101: =BM101 -> 23.22542323 | BO101: =Y101/D101 -> 11.20664947 | BP101: =BO101 -> 11.20664947 | BQ101: =Tabelle1!O103 -> 0.234222647 | BR101: =IF(BQ101>0,BQ101,10) -> 0.234222647 | BS101: =IF(X101>O101,(X101-O101)/O101,-(O101-X101)/O101) -> 0.08514405279 | BT101: =BS101 -> 0.08514405279
B103: Galenica | C103: GALE | D103: =SUM(O103:X103)/10 -> 3.083 | L103: 3.9 | M103: 4.5 | N103: 1.64 | O103: 1.62 | P103: 1.67 | Q103: 2.43 | R103: 3 | S103: 2.54 | T103: 3.48 | U103: 3.38 | V103: 3.32 | W103: 5.72 | X103: 3.67 | Y103: =LOOKUP(C103,Daten!$C$2:$C$300,Daten!$E$2:$E$500) -> 84.05 | AJ103: =Y103/X103 -> 22.90190736 | AK103: =AJ103 -> 22.90190736 | AL103: =Y103/W103 -> 14.69405594 | AM103: =AL103 -> 14.69405594 | AN103: =Y103/V103 -> 25.31626506 | AO103: =AN103 -> 25.31626506 | AP103: =Y103/U103 -> 24.86686391 | AQ103: =AP103 -> 24.86686391 | AR103: =Y103/T103 -> 24.15229885 | AS103: =AR103 -> 24.15229885 | AT103: =Y103/S103 -> 33.09055118 | AU103: =AT103 -> 33.09055118 | AV103: =Y103/R103 -> 28.01666667 | AW103: =AV103 -> 28.01666667 | AX103: =Y103/Q103 -> 34.58847737 | AY103: =AX103 -> 34.58847737 | AZ103: =Y103/P103 -> 50.32934132 | BA103: =AZ103 -> 50.32934132 | BB103: =Y103/O103 -> 51.88271605 | BC103: =BB103 -> 51.88271605 | BD103: =Y103/N103 -> 51.25 | BE103: =BD103 -> 51.25 | BF103: =Y103/L103 -> 21.55128205 | BG103: =BF103 -> 21.55128205 | BH103: =Y103/K103 ->  | BI103: =BH103 ->  | BJ103: =Y103/J103 ->  | BK103: =BJ103 ->  | BM103: =Y103/I103 ->  | BN103: =BM103 ->  | BO103: =Y103/D103 -> 27.26240675 | BP103: =BO103 -> 27.26240675 | BQ103: =Tabelle1!O105 -> 0.09659211032 | BR103: =IF(BQ103>0,BQ103,10) -> 0.09659211032 | BS103: =IF(X103>O103,(X103-O103)/O103,-(O103-X103)/O103) -> 1.265432099 | BT103: =BS103 -> 1.265432099 | BV103: 1.89 | BW103: =BV103/100*Y103 -> 1.588545 | BX103: =D103*(BV103/100) -> 0.0582687 | BY103: =X103*(BV103/100) -> 0.069363 | BZ103: =W103*(BV103/100) -> 0.108108 | CA103: =V103*(BV103/100) -> 0.062748
B105: Georg Fischer AG | C105: GF | D105: =SUM(O105:X105)/10 -> 2.647 | E105: 2.3 | F105: 3.1 | G105: 2.9 | H105: 0.7 | I105: -3.05 | J105: 1.2 | K105: 1.95 | L105: 1.6 | M105: 1.7 | N105: 2.25 | O105: 2.3 | P105: 2.65 | Q105: 3.1 | R105: 3.45 | S105: 2.1 | T105: 1.4 | U105: 2.62 | V105: 3.37 | W105: 2.87 | X105: 2.61 | Y105: =LOOKUP(C105,Daten!$C$2:$C$300,Daten!$E$2:$E$500) -> 59.45 | AI105: =N105/M105 -> 1.323529412 | AJ105: =Y105/X105 -> 22.77777778 | AK105: =AJ105 -> 22.77777778 | AL105: =Y105/W105 -> 20.71428571 | AM105: =AL105 -> 20.71428571 | AN105: =Y105/V105 -> 17.64094955 | AO105: =AN105 -> 17.64094955 | AP105: =Y105/U105 -> 22.69083969 | AQ105: =AP105 -> 22.69083969 | AR105: =Y105/T105 -> 42.46428571 | AS105: =AR105 -> 42.46428571 | AT105: =Y105/S105 -> 28.30952381 | AU105: =AT105 -> 28.30952381 | AV105: =Y105/R105 -> 17.23188406 | AW105: =AV105 -> 17.23188406 | AX105: =Y105/Q105 -> 19.17741935 | AY105: =AX105 -> 19.17741935 | AZ105: =Y105/P105 -> 22.43396226 | BA105: =AZ105 -> 22.43396226 | BB105: =Y105/O105 -> 25.84782609 | BC105: =BB105 -> 25.84782609 | BD105: =Y105/N105 -> 26.42222222 | BE105: =BD105 -> 26.42222222 | BL105: =N105/D105 -> 0.8500188893 | BO105: =Y105/D105 -> 22.45938799 | BP105: =BO105 -> 22.45938799 | BQ105: =Tabelle1!O107 -> 0.1065322573 | BR105: =IF(BQ105>0,BQ105,10) -> 0.1065322573 | BS105: =IF(X105>O105,(X105-O105)/O105,-(O105-X105)/O105) -> 0.1347826087 | BT105: =BS105 -> 0.1347826087 | BV105: 2.56 | BW105: =BV105/100*Y105 -> 1.52192 | BX105: =D105*(BV105/100) -> 0.0677632 | BY105: =X105*(BV105/100) -> 0.066816 | BZ105: =W105*(BV105/100) -> 0.073472 | CA105: =V105*(BV105/100) -> 0.086272
B107: Gurit Holding I | C107: GURN | D107: =SUM(O107:X107)/10 -> 3.7682 | J107: 5.34 | K107: 4.78 | L107: 2.94 | M107: 0.024 | N107: 2.374 | O107: 4.824 | P107: 5.564 | Q107: 5.332 | R107: 4.296 | S107: 7.606 | T107: 10.031 | U107: 2.429 | V107: 1.98 | W107: 1.59 | X107: -5.97 | Y107: =LOOKUP(C107,Daten!$C$2:$C$300,Daten!$E$2:$E$500) -> 12.54 | AJ107: na | AK107: =AJ107 -> na | AL107: =Y107/W107 -> 7.886792453 | AM107: =AL107 -> 7.886792453 | AN107: =Y107/V107 -> 6.333333333 | AO107: =AN107 -> 6.333333333 | AP107: =Y107/U107 -> 5.162618361 | AQ107: =AP107 -> 5.162618361 | AR107: =Y107/T107 -> 1.250124614 | AS107: =AR107 -> 1.250124614 | AT107: =Y107/S107 -> 1.648698396 | AU107: =AT107 -> 1.648698396 | AV107: =Y107/R107 -> 2.918994413 | AW107: =AV107 -> 2.918994413 | AX107: =Y107/Q107 -> 2.351837959 | AY107: =AX107 -> 2.351837959 | AZ107: =Y107/P107 -> 2.253774263 | BA107: =AZ107 -> 2.253774263 | BB107: =Y107/O107 -> 2.599502488 | BC107: =BB107 -> 2.599502488 | BD107: =Y107/N107 -> 5.282224094 | BE107: =BD107 -> 5.282224094 | BL107: =N107/D107 -> 0.6300090229 | BO107: =Y107/D107 -> 3.32784884 | BP107: =BO107 -> 3.32784884 | BQ107: =Tabelle1!O109 -> 9.881572594 | BR107: =IF(BQ107>0,BQ107,10) -> 9.881572594 | BS107: =IF(X107>O107,(X107-O107)/O107,-(O107-X107)/O107) -> -2.237562189 | BT107: =BS107 -> -2.237562189
B109: Helvetia Holding | C109: HELN | D109: =SUM(O109:X109)/10 -> 7.848 | I109: =37.5/5 -> 7.5 | J109: =39.3/5 -> 7.86 | K109: =32.7/5 -> 6.54 | L109: =37.1/5 -> 7.42 | M109: =40.89/5 -> 8.178 | N109: =42.98/5 -> 8.596 | O109: =28.98/5 -> 5.796 | P109: =36.07/5 -> 7.214 | Q109: 7.82 | R109: 8.37 | S109: 10.52 | T109: 4.76 | U109: 9.17 | V109: 10.6 | W109: 5.24 | X109: 8.99 | Y109: =LOOKUP(C109,Daten!$C$2:$C$300,Daten!$E$2:$E$500) -> 180.7 | AJ109: =Y109/X109 -> 20.10011123 | AK109: =AJ109 -> 20.10011123 | AL109: =Y109/W109 -> 34.48473282 | AM109: =AL109 -> 34.48473282 | AN109: =Y109/V109 -> 17.04716981 | AO109: =AN109 -> 17.04716981 | AP109: =Y109/U109 -> 19.70556161 | AQ109: =AP109 -> 19.70556161 | AR109: =Y109/T109 -> 37.96218487 | AS109: =AR109 -> 37.96218487 | AT109: =Y109/S109 -> 17.17680608 | AU109: =AT109 -> 17.17680608 | AV109: =Y109/R109 -> 21.58900836 | AW109: =AV109 -> 21.58900836 | AX109: =Y109/Q109 -> 23.10741688 | AY109: =AX109 -> 23.10741688 | AZ109: =Y109/P109 -> 25.04851677 | BA109: =AZ109 -> 25.04851677 | BB109: =Y109/O109 -> 31.17667357 | BC109: =BB109 -> 31.17667357 | BD109: =Y109/N109 -> 21.0214053 | BE109: =BD109 -> 21.0214053 | BF109: =Y109/L109 -> 24.35309973 | BG109: =BF109 -> 24.35309973 | BH109: =Y109/K109 -> 27.62996942 | BI109: =BH109 -> 27.62996942 | BJ109: =Y109/J109 -> 22.98982188 | BK109: =BJ109 -> 22.98982188 | BM109: =Y109/I109 -> 24.09333333 | BN109: =BM109 -> 24.09333333 | BO109: =Y109/D109 -> 23.02497452 | BP109: =BO109 -> 23.02497452 | BQ109: =Tabelle1!O111 -> 0.04104618941 | BR109: =IF(BQ109>0,BQ109,10) -> 0.04104618941 | BS109: =IF(X109>O109,(X109-O109)/O109,-(O109-X109)/O109) -> 0.5510697032 | BT109: =BS109 -> 0.5510697032 | BV109: 2.26 | BW109: =BV109/100*Y109 -> 4.08382 | BX109: =D109*(BV109/100) -> 0.1773648 | BY109: =X109*(BV109/100) -> 0.203174 | BZ109: =W109*(BV109/100) -> 0.118424 | CA109: =V109*(BV109/100) -> 0.23956
B111: Hypo Lenzburg | C111: HBLN | D111: =SUM(O111:X111)/10 -> 282.769 | E111: 259 | F111: 277 | G111: 315 | H111: 330 | I111: 311 | J111: 321 | K111: 312 | L111: 337 | M111: 318 | N111: 294 | O111: 295 | P111: 300 | Q111: 307 | R111: 289.36 | S111: 292.33 | T111: 251 | U111: 254 | V111: 259 | W111: 295 | X111: 285 | Y111: =LOOKUP(C111,Daten!$C$2:$C$300,Daten!$E$2:$E$500) -> 4020 | AJ111: =Y111/X111 -> 14.10526316 | AK111: =AJ111 -> 14.10526316 | AL111: =Y111/W111 -> 13.62711864 | AM111: =AL111 -> 13.62711864 | AN111: =Y111/V111 -> 15.52123552 | AO111: =AN111 -> 15.52123552 | AP111: =Y111/U111 -> 15.82677165 | AQ111: =AP111 -> 15.82677165 | AR111: =Y111/T111 -> 16.01593625 | AS111: =AR111 -> 16.01593625 | AT111: =Y111/S111 -> 13.75158212 | AU111: =AT111 -> 13.75158212 | AV111: =Y111/R111 -> 13.89272878 | AW111: =AV111 -> 13.89272878 | AX111: =Y111/Q111 -> 13.09446254 | AY111: =AX111 -> 13.09446254 | AZ111: =Y111/P111 -> 13.4 | BA111: =AZ111 -> 13.4 | BB111: =Y111/O111 -> 13.62711864 | BC111: =BB111 -> 13.62711864 | BD111: =Y111/N111 -> 13.67346939 | BE111: =BD111 -> 13.67346939 | BF111: =Y111/L111 -> 11.92878338 | BG111: =BF111 -> 11.92878338 | BH111: =Y111/K111 -> 12.88461538 | BI111: =BH111 -> 12.88461538 | BJ111: =Y111/J111 -> 12.52336449 | BK111: =BJ111 -> 12.52336449 | BM111: =Y111/I111 -> 12.92604502 | BN111: =BM111 -> 12.92604502 | BO111: =Y111/D111 -> 14.21655132 | BP111: =BO111 -> 14.21655132 | BQ111: =Tabelle1!O113 -> -0.004973105015 | BR111: =IF(BQ111>0,BQ111,10) -> 10 | BS111: =IF(X111>O111,(X111-O111)/O111,-(O111-X111)/O111) -> -0.03389830508 | BT111: =BS111 -> -0.03389830508
B113: Julius Bär | C113: BAER | D113: =SUM(O113:X113)/10 -> 3.217 | E113: 2.58 | F113: 6 | G113: 4.36 | H113: 1.7 | I113: 1.88 | J113: 1.71 | K113: 1.27 | L113: 1.47 | M113: 0.86 | N113: 1.68 | O113: 0.55 | P113: 2.84 | Q113: 3.25 | R113: 3.38 | S113: 2.12 | T113: 3.23 | U113: 5.06 | V113: 4.56 | W113: 2.21 | X113: 4.97 | Y113: =LOOKUP(C113,Daten!$C$2:$C$300,Daten!$E$2:$E$500) -> 52.02 | AC113: =Y113/E113 -> 20.1627907 | AE113: =Y113/F113 -> 8.67 | AG113: =Y113/G113 -> 11.93119266 | AI113: =Y113/H113 -> 30.6 | AJ113: =Y113/X113 -> 10.4668008 | AK113: =AJ113 -> 10.4668008 | AL113: =Y113/W113 -> 23.53846154 | AM113: =AL113 -> 23.53846154 | AN113: =Y113/V113 -> 11.40789474 | AO113: =AN113 -> 11.40789474 | AP113: =Y113/U113 -> 10.28063241 | AQ113: =AP113 -> 10.28063241 | AR113: =Y113/T113 -> 16.10526316 | AS113: =AR113 -> 16.10526316 | AT113: =Y113/S113 -> 24.53773585 | AU113: =AT113 -> 24.53773585 | AV113: =Y113/R113 -> 15.39053254 | AW113: =AV113 -> 15.39053254 | AX113: =Y113/Q113 -> 16.00615385 | AY113: =AX113 -> 16.00615385 | AZ113: =Y113/P113 -> 18.31690141 | BA113: =AZ113 -> 18.31690141 | BB113: =Y113/O113 -> 94.58181818 | BC113: =BB113 -> 94.58181818 | BD113: =Y113/N113 -> 30.96428571 | BE113: =BD113 -> 30.96428571 | BF113: =Y113/L113 -> 35.3877551 | BG113: =BF113 -> 35.3877551 | BH113: =Y113/K113 -> 40.96062992 | BI113: =BH113 -> 40.96062992 | BJ113: =Y113/J113 -> 30.42105263 | BK113: =BJ113 -> 30.42105263 | BM113: =Y113/I113 -> 27.67021277 | BN113: =BM113 -> 27.67021277 | BO113: =Y113/D113 -> 16.17034504 | BP113: =BO113 -> 16.17034504 | BQ113: =Tabelle1!O115 -> 0.4732074087 | BR113: =IF(BQ113>0,BQ113,10) -> 0.4732074087 | BS113: =IF(X113>O113,(X113-O113)/O113,-(O113-X113)/O113) -> 8.036363636 | BT113: =BS113 -> 8.036363636 | BV113: 5.34 | BW113: =BV113/100*Y113 -> 2.777868 | BX113: =D113*(BV113/100) -> 0.1717878 | BY113: =X113*(BV113/100) -> 0.265398 | BZ113: =W113*(BV113/100) -> 0.118014 | CA113: =V113*(BV113/100) -> 0.243504
B115: Jungfraubahn | C115: JFN | D115: =SUM(O115:X115)/10 -> 6.878 | E115: 3 | F115: 3.28 | G115: 3.69 | H115: 3.6 | I115: 3.79 | J115: 3.88 | K115: 4.35 | L115: 4.46 | M115: 5.17 | N115: 5.23 | O115: 6.23 | P115: 5.31 | Q115: 7.09 | R115: 8.22 | S115: 9.11 | T115: -1.58 | U115: -0.08 | V115: 7.49 | W115: 13.61 | X115: 13.38 | Y115: =LOOKUP(C115,Daten!$C$2:$C$300,Daten!$E$2:$E$500) -> 196.6 | AJ115: =Y115/X115 -> 14.6935725 | AK115: =AJ115 -> 14.6935725 | AL115: =Y115/W115 -> 14.44526084 | AM115: =AL115 -> 14.44526084 | AN115: =Y115/V115 -> 26.24833111 | AO115: =AN115 -> 26.24833111 | AP115: na | AQ115: =AP115 -> na | AR115: na | AS115: =AR115 -> na | AT115: =Y115/S115 -> 21.58068057 | AU115: =AT115 -> 21.58068057 | AV115: =Y115/R115 -> 23.91727494 | AW115: =AV115 -> 23.91727494 | AX115: =Y115/Q115 -> 27.72919605 | AY115: =AX115 -> 27.72919605 | AZ115: =Y115/P115 -> 37.02448211 | BA115: =AZ115 -> 37.02448211 | BB115: =Y115/O115 -> 31.55698234 | BC115: =BB115 -> 31.55698234 | BD115: =Y115/N115 -> 37.59082218 | BE115: =BD115 -> 37.59082218 | BF115: =Y115/L115 -> 44.08071749 | BG115: =BF115 -> 44.08071749 | BH115: =Y115/K115 -> 45.1954023 | BI115: =BH115 -> 45.1954023 | BJ115: =Y115/J115 -> 50.67010309 | BK115: =BJ115 -> 50.67010309 | BM115: =Y115/I115 -> 51.87335092 | BN115: =BM115 -> 51.87335092 | BO115: =Y115/D115 -> 28.58389067 | BP115: =BO115 -> 28.58389067 | BQ115: =Tabelle1!O117 -> 9.58760267 | BR115: =IF(BQ115>0,BQ115,10) -> 9.58760267 | BS115: =IF(X115>O115,(X115-O115)/O115,-(O115-X115)/O115) -> 1.147672552 | BT115: =BS115 -> 1.147672552
B117: Lindt | C117: LISN | D117: =SUM(O117:X117)/10 -> 2101.88 | I117: 851 | J117: 1061 | K117: 1084 | L117: 1079 | M117: 1339 | N117: 1503 | O117: 1646 | P117: 1791 | Q117: 1893 | R117: 2021 | S117: 2142 | T117: 1333 | U117: 2049 | V117: 2387 | W117: 2859.1 | X117: 2897.7 | Y117: =LOOKUP(C117,Daten!$C$2:$C$300,Daten!$E$2:$E$500) -> 115000 | AJ117: =Y117/X117 -> 39.68664803 | AK117: =AJ117 -> 39.68664803 | AL117: =Y117/W117 -> 40.22244762 | AM117: =AL117 -> 40.22244762 | AN117: =Y117/V117 -> 48.17762882 | AO117: =AN117 -> 48.17762882 | AP117: =Y117/U117 -> 56.12493899 | AQ117: =AP117 -> 56.12493899 | AR117: =Y117/T117 -> 86.27156789 | AS117: =AR117 -> 86.27156789 | AT117: =Y117/S117 -> 53.68814192 | AU117: =AT117 -> 53.68814192 | AV117: =Y117/R117 -> 56.9025235 | AW117: =AV117 -> 56.9025235 | AX117: =Y117/Q117 -> 60.75013207 | AY117: =AX117 -> 60.75013207 | AZ117: =Y117/P117 -> 64.20993858 | BA117: =AZ117 -> 64.20993858 | BB117: =Y117/O117 -> 69.86634265 | BC117: =BB117 -> 69.86634265 | BD117: =Y117/N117 -> 76.51363939 | BE117: =BD117 -> 76.51363939 | BF117: =Y117/L117 -> 106.5801668 | BG117: =BF117 -> 106.5801668 | BH117: =Y117/K117 -> 106.0885609 | BI117: =BH117 -> 106.0885609 | BJ117: =Y117/J117 -> 108.3883129 | BK117: =BJ117 -> 108.3883129 | BM117: =Y117/I117 -> 135.1351351 | BN117: =BM117 -> 135.1351351 | BO117: =Y117/D117 -> 54.71292367 | BP117: =BO117 -> 54.71292367 | BQ117: =Tabelle1!O119 -> 0.10123432 | BR117: =IF(BQ117>0,BQ117,10) -> 0.10123432 | BS117: =IF(X117>O117,(X117-O117)/O117,-(O117-X117)/O117) -> 0.7604495747 | BT117: =BS117 -> 0.7604495747 | BV117: 11.69 | BW117: =BV117/100*Y117 -> 13443.5 | BX117: =D117*(BV117/100) -> 245.709772 | BY117: =X117*(BV117/100) -> 338.74113 | BZ117: =W117*(BV117/100) -> 334.22879 | CA117: =V117*(BV117/100) -> 279.0403
B119: MeierTobler | C119: MTG | D119: =SUM(O119:X119)/10 -> 1.061 | E119: =9.94/5 -> 1.988 | F119: =17.09/5 -> 3.418 | G119: =28.28/5 -> 5.656 | H119: =2.03/5 -> 0.406 | I119: =10.37/5 -> 2.074 | J119: =19.09/5 -> 3.818 | K119: =24.54/5 -> 4.908 | L119: =26.26/5 -> 5.252 | M119: 2.92 | N119: 1.96 | O119: 1.02 | P119: 2.02 | Q119: -0.29 | R119: -0.77 | S119: 0.11 | T119: 0.32 | U119: 1.31 | V119: 2.6 | W119: 2.37 | X119: 1.92 | Y119: =LOOKUP(C119,Daten!$C$2:$C$300,Daten!$E$2:$E$500) -> 33.95 | AJ119: =Y119/X119 -> 17.68229167 | AK119: =AJ119 -> 17.68229167 | AL119: =Y119/W119 -> 14.32489451 | AM119: =AL119 -> 14.32489451 | AN119: =Y119/V119 -> 13.05769231 | AO119: =AN119 -> 13.05769231 | AP119: =Y119/U119 -> 25.91603053 | AQ119: =AP119 -> 25.91603053 | AR119: =Y119/T119 -> 106.09375 | AS119: =AR119 -> 106.09375 | AT119: =Y119/S119 -> 308.6363636 | AU119: =AT119 -> 308.6363636 | AV119: na | AW119: =AV119 -> na | AX119: na | AY119: =AX119 -> na | AZ119: =Y119/P119 -> 16.80693069 | BA119: =AZ119 -> 16.80693069 | BB119: =Y119/O119 -> 33.28431373 | BC119: =BB119 -> 33.28431373 | BD119: =Y119/N119 -> 17.32142857 | BE119: =BD119 -> 17.32142857 | BF119: =Y119/L119 -> 6.464204113 | BG119: =BF119 -> 6.464204113 | BH119: =Y119/K119 -> 6.917277914 | BI119: =BH119 -> 6.917277914 | BO119: =Y119/D119 -> 31.99811499 | BP119: =BO119 -> 31.99811499 | BQ119: =Tabelle1!O121 -> 0.4415265765 | BR119: =IF(BQ119>0,BQ119,10) -> 0.4415265765 | BS119: =IF(X119>O119,(X119-O119)/O119,-(O119-X119)/O119) -> 0.8823529412 | BT119: =BS119 -> 0.8823529412
B121: Meyer Burger | C121: MBTN | D121: =SUM(O121:X121)/10 -> -0.134 | J121: 1.8 | K121: 0.72 | L121: -1.9 | M121: -2.3 | N121: -0.52 | O121: -0.65 | P121: -0.3 | Q121: -0.14 | R121: -0.05 | S121: -0.02 | T121: -0.04 | U121: -0.04 | V121: -0.02 | W121: -0.08 | X121: 0 | Y121: =LOOKUP(C121,Daten!$C$2:$C$300,Daten!$E$2:$E$500) -> 1.616 | AJ121: na | AK121: =AJ121 -> na | AL121: na | AM121: =AL121 -> na | AN121: na | AO121: =AN121 -> na | AP121: na | AQ121: =AP121 -> na | AR121: =Y121/T121 -> -40.4 | AS121: =AR121 -> -40.4 | AT121: =Y121/S121 -> -80.8 | AU121: =AT121 -> -80.8 | AV121: =Y121/R121 -> -32.32 | AW121: =AV121 -> -32.32 | AX121: =Y121/Q121 -> -11.54285714 | AY121: =AX121 -> -11.54285714 | AZ121: =Y121/P121 -> -5.386666667 | BA121: =AZ121 -> -5.386666667 | BB121: =Y121/O121 -> -2.486153846 | BC121: =BB121 -> -2.486153846 | BD121: =Y121/N121 -> -3.107692308 | BE121: =BD121 -> -3.107692308 | BF121: =Y121/L121 -> -0.8505263158 | BG121: =BF121 -> -0.8505263158 | BH121: =Y121/K121 -> 2.244444444 | BI121: =BH121 -> 2.244444444 | BJ121: =Y121/J121 -> 0.8977777778 | BK121: =BJ121 -> 0.8977777778 | BM121: =Y121/I121 ->  | BN121: =BM121 ->  | BO121: na | BP121: =BO121 -> na | BQ121: =Tabelle1!O123 -> -0.06614349419 | BR121: =IF(BQ121>0,BQ121,10) -> 10 | BS121: =IF(X121>O121,(X121-O121)/O121,-(O121-X121)/O121) -> -1 | BT121: =BS121 -> -1 | BV121: 0.07 | BW121: =BV121/100*Y121 -> 0.0011312 | BX121: =D121*(BV121/100) -> -9.38e-05 | BY121: =X121*(BV121/100) -> 0 | BZ121: =W121*(BV121/100) -> -5.6e-05 | CA121: =V121*(BV121/100) -> -1.4e-05
B123: PSP Swiss Property | C123: PSPN | D123: =SUM(O123:X123)/10 -> 4.681 | I123: 3.3 | J123: 3.3 | K123: 3.5 | L123: 3.6 | M123: 3.79 | N123: 3.69 | O123: 3.52 | P123: 3.76 | Q123: 3.89 | R123: 3.84 | S123: 4.69 | T123: 4.7 | U123: 4.82 | V123: 5.14 | W123: 7.4 | X123: 5.05 | Y123: =LOOKUP(C123,Daten!$C$2:$C$300,Daten!$E$2:$E$500) -> 142.8 | AJ123: =Y123/X123 -> 28.27722772 | AK123: =AJ123 -> 28.27722772 | AL123: =Y123/W123 -> 19.2972973 | AM123: =AL123 -> 19.2972973 | AN123: =Y123/V123 -> 27.78210117 | AO123: =AN123 -> 27.78210117 | AP123: =Y123/U123 -> 29.62655602 | AQ123: =AP123 -> 29.62655602 | AR123: =Y123/T123 -> 30.38297872 | AS123: =AR123 -> 30.38297872 | AT123: =Y123/S123 -> 30.44776119 | AU123: =AT123 -> 30.44776119 | AV123: =Y123/R123 -> 37.1875 | AW123: =AV123 -> 37.1875 | AX123: =Y123/Q123 -> 36.70951157 | AY123: =AX123 -> 36.70951157 | AZ123: =Y123/P123 -> 37.9787234 | BA123: =AZ123 -> 37.9787234 | BB123: =Y123/O123 -> 40.56818182 | BC123: =BB123 -> 40.56818182 | BD123: =Y123/N123 -> 38.69918699 | BE123: =BD123 -> 38.69918699 | BF123: =Y123/L123 -> 39.66666667 | BG123: =BF123 -> 39.66666667 | BH123: =Y123/K123 -> 40.8 | BI123: =BH123 -> 40.8 | BJ123: =Y123/J123 -> 43.27272727 | BK123: =BJ123 -> 43.27272727 | BM123: =Y123/I123 -> 43.27272727 | BN123: =BM123 -> 43.27272727 | BO123: =Y123/D123 -> 30.50630207 | BP123: =BO123 -> 30.50630207 | BQ123: =Tabelle1!O125 -> 0.0772544166 | BR123: =IF(BQ123>0,BQ123,10) -> 0.0772544166 | BS123: =IF(X123>O123,(X123-O123)/O123,-(O123-X123)/O123) -> 0.4346590909 | BT123: =BS123 -> 0.4346590909 | BV123: 2.68 | BW123: =BV123/100*Y123 -> 3.82704 | BX123: =D123*(BV123/100) -> 0.1254508 | BY123: =X123*(BV123/100) -> 0.13534 | BZ123: =W123*(BV123/100) -> 0.19832 | CA123: =V123*(BV123/100) -> 0.137752
A125: in CHF | B125: Sandoz | C125: SDZ | D125: =SUM(O125:X125)/5 -> 1.018 | T125: 1.01 | U125: 1.93 | V125: 1.97 | W125: 0.18 | X125: 0 | Y125: =LOOKUP(C125,Daten!$C$2:$C$300,Daten!$E$2:$E$500) -> 34.99 | AA125: =Y125/Währungskurse!C$5 -> 38.0326087 | AJ125: na | AK125: =AJ125 -> na | AL125: =AA125/W125 -> 211.2922705 | AM125: =AL125 -> 211.2922705 | AN125: =AA125/V125 -> 19.30589274 | AO125: =AN125 -> 19.30589274 | AP125: =AA125/U125 -> 19.70601487 | AQ125: =AP125 -> 19.70601487 | AR125: =AA125/T125 -> 37.65604821 | AS125: =AR125 -> 37.65604821 | AT125: =AA125/S125 ->  | AU125: =AT125 ->  | AV125: =AA125/R125 ->  | AW125: =AV125 ->  | AX125: =AA125/Q125 ->  | AY125: =AX125 ->  | AZ125: =AA125/P125 ->  | BA125: =AZ125 ->  | BB125: =AA125/O125 ->  | BC125: =BB125 ->  | BD125: =AA125/N125 ->  | BE125: =BD125 ->  | BF125: =AA125/L125 ->  | BG125: =BF125 ->  | BH125: =AA125/K125 ->  | BI125: =BH125 ->  | BJ125: =AA125/J125 ->  | BK125: =BJ125 ->  | BM125: =AA125/I125 ->  | BN125: =BM125 ->  | BO125: =AA125/D125 -> 37.36012642 | BP125: =BO125 -> 37.36012642 | BQ125: =Tabelle1!O125 -> 0.0772544166 | BR125: =IF(BQ125>0,BQ125,10) -> 0.0772544166 | BS125: =IF(X125>O125,(X125-O125)/O125,-(O125-X125)/O125) ->  | BT125: =BS125 ->  | BV125: 7.24 | BW125: =BV125/100*AA125 -> 2.75356087 | BX125: =D125*(BV125/100) -> 0.0737032 | BY125: =X125*(BV125/100) -> 0 | BZ125: =W125*(BV125/100) -> 0.013032 | CA125: =V125*(BV125/100) -> 0.142628
B127: Schindler | C127: SCHN | D127: =SUM(O127:X127)/10 -> 7.488 | I127: 5.3 | J127: 5.7 | K127: 4.9 | L127: 6.1 | M127: 3.76 | N127: 7.74 | O127: 6.28 | P127: 7.14 | Q127: 7.7 | R127: 8.79 | S127: 8.04 | T127: 6.72 | U127: 7.68 | V127: 5.66 | W127: 8.04 | X127: 8.83 | Y127: =LOOKUP(C127,Daten!$C$2:$C$300,Daten!$E$2:$E$500) -> 268 | AJ127: =Y127/X127 -> 30.35107588 | AK127: =AJ127 -> 30.35107588 | AL127: =Y127/W127 -> 33.33333333 | AM127: =AL127 -> 33.33333333 | AN127: =Y127/V127 -> 47.34982332 | AO127: =AN127 -> 47.34982332 | AP127: =Y127/U127 -> 34.89583333 | AQ127: =AP127 -> 34.89583333 | AR127: =Y127/T127 -> 39.88095238 | AS127: =AR127 -> 39.88095238 | AT127: =Y127/S127 -> 33.33333333 | AU127: =AT127 -> 33.33333333 | AV127: =Y127/R127 -> 30.48919226 | AW127: =AV127 -> 30.48919226 | AX127: =Y127/Q127 -> 34.80519481 | AY127: =AX127 -> 34.80519481 | AZ127: =Y127/P127 -> 37.53501401 | BA127: =AZ127 -> 37.53501401 | BB127: =Y127/O127 -> 42.67515924 | BC127: =BB127 -> 42.67515924 | BD127: =Y127/N127 -> 34.625323 | BE127: =BD127 -> 34.625323 | BF127: =Y127/L127 -> 43.93442623 | BG127: =BF127 -> 43.93442623 | BH127: =Y127/K127 -> 54.69387755 | BI127: =BH127 -> 54.69387755 | BJ127: =Y127/J127 -> 47.01754386 | BK127: =BJ127 -> 47.01754386 | BM127: =Y127/I127 -> 50.56603774 | BN127: =BM127 -> 50.56603774 | BO127: =Y127/D127 -> 35.79059829 | BP127: =BO127 -> 35.79059829 | BQ127: =Tabelle1!O127 -> 0.1277640309 | BR127: =IF(BQ127>0,BQ127,10) -> 0.1277640309 | BS127: =IF(X127>O127,(X127-O127)/O127,-(O127-X127)/O127) -> 0.4060509554 | BT127: =BS127 -> 0.4060509554 | BV127: =4.75+2.38 -> 7.13 | BW127: =BV127/100*Y127 -> 19.1084 | BX127: =D127*(BV127/100) -> 0.5338944 | BY127: =X127*(BV127/100) -> 0.629579 | BZ127: =W127*(BV127/100) -> 0.573252 | CA127: =V127*(BV127/100) -> 0.403558
B129: Schweiter Technologies | C129: SWTQ | D129: =SUM(O129:X129)/10 -> 46.801 | E129: 7.66 | F129: 23.15 | G129: 8.03 | H129: -8.58 | I129: -14.94 | J129: 36.29 | K129: 30.51 | L129: 28.4 | M129: 21.11 | N129: 31.79 | O129: 34.98 | P129: 49.33 | Q129: 120.09 | R129: 42.09 | S129: 41.89 | T129: 72.29 | U129: 59 | V129: 20.03 | W129: 19.3 | X129: 9.01 | Y129: =LOOKUP(C129,Daten!$C$2:$C$300,Daten!$E$2:$E$500) -> 373 | AJ129: =Y129/X129 -> 41.39844617 | AK129: =AJ129 -> 41.39844617 | AL129: =Y129/W129 -> 19.32642487 | AM129: =AL129 -> 19.32642487 | AN129: =Y129/V129 -> 18.6220669 | AO129: =AN129 -> 18.6220669 | AP129: =Y129/U129 -> 6.322033898 | AQ129: =AP129 -> 6.322033898 | AR129: =Y129/T129 -> 5.159773136 | AS129: =AR129 -> 5.159773136 | AT129: =Y129/S129 -> 8.904273096 | AU129: =AT129 -> 8.904273096 | AV129: =Y129/R129 -> 8.861962461 | AW129: =AV129 -> 8.861962461 | AX129: =Y129/Q129 -> 3.10600383 | AY129: =AX129 -> 3.10600383 | AZ129: =Y129/P129 -> 7.561321711 | BA129: =AZ129 -> 7.561321711 | BB129: =Y129/O129 -> 10.66323613 | BC129: =BB129 -> 10.66323613 | BD129: =Y129/N129 -> 11.73324945 | BE129: =BD129 -> 11.73324945 | BF129: =Y129/L129 -> 13.13380282 | BG129: =BF129 -> 13.13380282 | BH129: =Y129/K129 -> 12.22549984 | BI129: =BH129 -> 12.22549984 | BO129: =Y129/D129 -> 7.969915173 | BP129: =BO129 -> 7.969915173 | BQ129: =Tabelle1!O129 -> 0.1641571993 | BR129: =IF(BQ129>0,BQ129,10) -> 0.1641571993 | BS129: =IF(X129>O129,(X129-O129)/O129,-(O129-X129)/O129) -> -0.7424242424 | BT129: =BS129 -> -0.7424242424
B131: SGS N | C131: SGSN | D131: =SUM(O131:X131)/10 -> 3.09588 | E131: 1.978 | F131: 2.3156 | G131: 2.5948 | H131: 3.6288 | I131: 3.0068 | J131: 3.0888 | K131: 2.8064 | L131: 2.9004 | M131: 3.1136 | N131: 3.266 | O131: 2.878 | P131: 2.8588 | Q131: 3.2908 | R131: 3.3728 | S131: 3.4872 | T131: 2.5528 | U131: 3.2716 | V131: 3.1468 | W131: 3 | X131: 3.1 | Y131: =LOOKUP(C131,Daten!$C$2:$C$300,Daten!$E$2:$E$500) -> 80.26 | AC131: =Y131/E131 -> 40.57633974 | AE131: =Y131/F131 -> 34.66056314 | AG131: =Y131/G131 -> 30.93109296 | AI131: =Y131/H131 -> 22.11750441 | AJ131: =Y131/X131 -> 25.89032258 | AK131: =AJ131 -> 25.89032258 | AL131: =Y131/W131 -> 26.75333333 | AM131: =AL131 -> 26.75333333 | AN131: =Y131/V131 -> 25.5052752 | AO131: =AN131 -> 25.5052752 | AP131: =Y131/U131 -> 24.53233892 | AQ131: =AP131 -> 24.53233892 | AR131: =Y131/T131 -> 31.43998746 | AS131: =AR131 -> 31.43998746 | AT131: =Y131/S131 -> 23.01559991 | AU131: =AT131 -> 23.01559991 | AV131: =Y131/R131 -> 23.79625237 | AW131: =AV131 -> 23.79625237 | AX131: =Y131/Q131 -> 24.38920627 | AY131: =AX131 -> 24.38920627 | AZ131: =Y131/P131 -> 28.07471666 | BA131: =AZ131 -> 28.07471666 | BB131: =Y131/O131 -> 27.88742182 | BC131: =BB131 -> 27.88742182 | BD131: =Y131/N131 -> 24.57440294 | BE131: =BD131 -> 24.57440294 | BF131: =Y131/L131 -> 27.67204524 | BG131: =BF131 -> 27.67204524 | BH131: =Y131/K131 -> 28.59891676 | BI131: =BH131 -> 28.59891676 | BJ131: =Y131/J131 -> 25.98420098 | BK131: =BJ131 -> 25.98420098 | BM131: =Y131/I131 -> 26.69282959 | BN131: =BM131 -> 26.69282959 | BO131: =Y131/D131 -> 25.92477745 | BP131: =BO131 -> 25.92477745 | BQ131: =Tabelle1!O131 -> 0.00622489877 | BR131: =IF(BQ131>0,BQ131,10) -> 0.00622489877 | BS131: =IF(X131>O131,(X131-O131)/O131,-(O131-X131)/O131) -> 0.07713690063 | BT131: =BS131 -> 0.07713690063 | BV131: 6.47 | BW131: =BV131/100*Y131 -> 5.192822 | BX131: =D131*(BV131/100) -> 0.200303436 | BY131: =X131*(BV131/100) -> 0.20057 | BZ131: =W131*(BV131/100) -> 0.1941 | CA131: =V131*(BV131/100) -> 0.20359796
A133: ! | B133: SIG Group | C133: SIGN | D133: =SUM(O133:X133)/10 -> 0.143 | Q133: -0.5 | R133: -0.4 | S133: 0.37 | T133: 0.23 | U133: 0.51 | V133: 0.1 | W133: 0.64 | X133: 0.48 | Y133: =LOOKUP(C133,Daten!$C$2:$C$300,Daten!$E$2:$E$500) -> 15.71 | AJ133: =Y133/X133 -> 32.72916667 | AK133: =AJ133 -> 32.72916667 | AL133: =Y133/W133 -> 24.546875 | AM133: =AL133 -> 24.546875 | AN133: =Y133/V133 -> 157.1 | AO133: =AN133 -> 157.1 | AP133: =Y133/U133 -> 30.80392157 | AQ133: =AP133 -> 30.80392157 | AR133: =Y133/T133 -> 68.30434783 | AS133: =AR133 -> 68.30434783 | AT133: =Y133/S133 -> 42.45945946 | AU133: =AT133 -> 42.45945946 | AV133: =Y133/R133 -> -39.275 | AW133: =AV133 -> -39.275 | AX133: =Y133/Q133 -> -31.42 | AY133: =AX133 -> -31.42 | AZ133: =Y133/P133 ->  | BA133: =AZ133 ->  | BB133: =Y133/O133 ->  | BC133: =BB133 ->  | BD133: =Y133/N133 ->  | BE133: =BD133 ->  | BF133: =Y133/L133 ->  | BG133: =BF133 ->  | BH133: =Y133/K133 ->  | BI133: =BH133 ->  | BJ133: =Y133/J133 ->  | BK133: =BJ133 ->  | BM133: =Y133/I133 ->  | BN133: =BM133 ->  | BO133: =Y133/D133 -> 109.8601399 | BP133: =BO133 -> 109.8601399 | BQ133: =Tabelle1!O133 -> 1.260015226 | BR133: =IF(BQ133>0,BQ133,10) -> 1.260015226 | BS133: =IF(X133>O133,(X133-O133)/O133,-(O133-X133)/O133) ->  | BT133: =BS133 ->  | BV133: 3.01 | BW133: =BV133/100*Y133 -> 0.472871 | BX133: =D133*(BV133/100) -> 0.0043043 | BY133: =X133*(BV133/100) -> 0.014448 | BZ133: =W133*(BV133/100) -> 0.019264 | CA133: =V133*(BV133/100) -> 0.00301
B135: Straumann | C135: STMN | D135: =SUM(O135:X135)/10 -> 1.755 | I135: =9.4/10 -> 0.94 | J135: =8.4/10 -> 0.84 | K135: =4.5/10 -> 0.45 | L135: =2.4/10 -> 0.24 | M135: =6.5/10 -> 0.65 | N135: =10.15/10 -> 1.015 | O135: =4.52/10 -> 0.452 | P135: =14.68/10 -> 1.468 | Q135: 1.8 | R135: 1.72 | S135: 1.93 | T135: 0.57 | U135: 2.48 | V135: 2.72 | W135: 1.54 | X135: 2.87 | Y135: =LOOKUP(C135,Daten!$C$2:$C$300,Daten!$E$2:$E$500) -> 101.9 | AJ135: =Y135/X135 -> 35.50522648 | AK135: =AJ135 -> 35.50522648 | AL135: =Y135/W135 -> 66.16883117 | AM135: =AL135 -> 66.16883117 | AN135: =Y135/V135 -> 37.46323529 | AO135: =AN135 -> 37.46323529 | AP135: =Y135/U135 -> 41.08870968 | AQ135: =AP135 -> 41.08870968 | AR135: =Y135/T135 -> 178.7719298 | AS135: =AR135 -> 178.7719298 | AT135: =Y135/S135 -> 52.79792746 | AU135: =AT135 -> 52.79792746 | AV135: =Y135/R135 -> 59.24418605 | AW135: =AV135 -> 59.24418605 | AX135: =Y135/Q135 -> 56.61111111 | AY135: =AX135 -> 56.61111111 | AZ135: =Y135/P135 -> 69.41416894 | BA135: =AZ135 -> 69.41416894 | BB135: =Y135/O135 -> 225.4424779 | BC135: =BB135 -> 225.4424779 | BD135: =Y135/N135 -> 100.3940887 | BE135: =BD135 -> 100.3940887 | BF135: =Y135/L135 -> 424.5833333 | BG135: =BF135 -> 424.5833333 | BH135: =Y135/J135 -> 121.3095238 | BI135: =BH135 -> 121.3095238 | BJ135: =Y135/#REF! ->  | BK135: =BJ135 ->  | BM135: =Y135/I135 -> 108.4042553 | BN135: =BM135 -> 108.4042553 | BO135: =Y135/D135 -> 58.06267806 | BP135: =BO135 -> 58.06267806 | BQ135: =Tabelle1!O135 -> 0.4867617531 | BR135: =IF(BQ135>0,BQ135,10) -> 0.4867617531 | BS135: =IF(X135>O135,(X135-O135)/O135,-(O135-X135)/O135) -> 5.349557522 | BT135: =BS135 -> 5.349557522 | BV135: 6.79 | BW135: =BV135/100*Y135 -> 6.91901 | BX135: =D135*(BV135/100) -> 0.1191645 | BY135: =X135*(BV135/100) -> 0.194873 | BZ135: =W135*(BV135/100) -> 0.104566 | CA135: =V135*(BV135/100) -> 0.184688
B137: Sulzer | C137: SUN | D137: =SUM(O137:X137)/10 -> 3.592 | E137: 3.6 | F137: 6.23 | G137: 8.35 | H137: 9.52 | I137: 7.99 | J137: 8.82 | K137: 8.19 | L137: 8.83 | M137: 6.86 | N137: 8.1 | O137: 2.16 | P137: 1.72 | Q137: 2.42 | R137: 3.53 | S137: 4.48 | T137: 2.44 | U137: 4.03 | V137: 0.83 | W137: 6.67 | X137: 7.64 | Y137: =LOOKUP(C137,Daten!$C$2:$C$300,Daten!$E$2:$E$500) -> 137.2 | AC137: =Y137/E137 -> 38.11111111 | AE137: =Y137/F137 -> 22.02247191 | AG137: =Y137/G137 -> 16.43113772 | AI137: =Y137/H137 -> 14.41176471 | AJ137: =Y137/X137 -> 17.95811518 | AK137: =AJ137 -> 17.95811518 | AL137: =Y137/W137 -> 20.56971514 | AM137: =AL137 -> 20.56971514 | AN137: =Y137/V137 -> 165.3012048 | AO137: =AN137 -> 165.3012048 | AP137: =Y137/U137 -> 34.04466501 | AQ137: =AP137 -> 34.04466501 | AR137: =Y137/T137 -> 56.2295082 | AS137: =AR137 -> 56.2295082 | AT137: =Y137/S137 -> 30.625 | AU137: =AT137 -> 30.625 | AV137: =Y137/R137 -> 38.86685552 | AW137: =AV137 -> 38.86685552 | AX137: =Y137/Q137 -> 56.69421488 | AY137: =AX137 -> 56.69421488 | AZ137: =Y137/P137 -> 79.76744186 | BA137: =AZ137 -> 79.76744186 | BB137: =Y137/O137 -> 63.51851852 | BC137: =BB137 -> 63.51851852 | BD137: =Y137/N137 -> 16.9382716 | BE137: =BD137 -> 16.9382716 | BF137: =Y137/L137 -> 15.53793884 | BG137: =BF137 -> 15.53793884 | BH137: =Y137/K137 -> 16.75213675 | BI137: =BH137 -> 16.75213675 | BJ137: =Y137/J137 -> 15.55555556 | BK137: =BJ137 -> 15.55555556 | BM137: =Y137/I137 -> 17.17146433 | BN137: =BM137 -> 17.17146433 | BO137: =Y137/D137 -> 38.19599109 | BP137: =BO137 -> 38.19599109 | BQ137: =Tabelle1!O137 -> 0.6816879338 | BR137: =IF(BQ137>0,BQ137,10) -> 0.6816879338 | BS137: =IF(X137>O137,(X137-O137)/O137,-(O137-X137)/O137) -> 2.537037037 | BT137: =BS137 -> 2.537037037
B139: Swatch Group | C139: UHR | D139: =SUM(O139:X139)/10 -> 12.471 | E139: 10.74 | F139: 14.87 | G139: 18.49 | H139: 15.51 | I139: 14.26 | J139: 19.83 | K139: 23.48 | L139: 29.62 | M139: 35.38 | N139: 25.47 | O139: 20.05 | P139: 10.68 | Q139: 13.85 | R139: 16.13 | S139: 14.17 | T139: -0.99 | U139: 14.77 | V139: 15.56 | W139: 16.75 | X139: 3.74 | Y139: =LOOKUP(C139,Daten!$C$2:$C$300,Daten!$E$2:$E$500) -> 142.7 | AC139: =Y139/E139 -> 13.2867784 | AE139: =Y139/F139 -> 9.596503026 | AG139: =Y139/G139 -> 7.717685235 | AI139: =Y139/H139 -> 9.200515796 | AJ139: =Y139/X139 -> 38.15508021 | AK139: =AJ139 -> 38.15508021 | AL139: =Y139/W139 -> 8.519402985 | AM139: =AL139 -> 8.519402985 | AN139: =Y139/V139 -> 9.170951157 | AO139: =AN139 -> 9.170951157 | AP139: =Y139/U139 -> 9.661475965 | AQ139: =AP139 -> 9.661475965 | AR139: na | AS139: =AR139 -> na | AT139: =Y139/S139 -> 10.07057163 | AU139: =AT139 -> 10.07057163 | AV139: =Y139/R139 -> 8.846869188 | AW139: =AV139 -> 8.846869188 | AX139: =Y139/Q139 -> 10.3032491 | AY139: =AX139 -> 10.3032491 | AZ139: =Y139/P139 -> 13.36142322 | BA139: =AZ139 -> 13.36142322 | BB139: =Y139/O139 -> 7.117206983 | BC139: =BB139 -> 7.117206983 | BD139: =Y139/N139 -> 5.602669808 | BE139: =BD139 -> 5.602669808 | BF139: =Y139/L139 -> 4.817690749 | BG139: =BF139 -> 4.817690749 | BH139: =Y139/K139 -> 6.077512777 | BI139: =BH139 -> 6.077512777 | BJ139: =Y139/J139 -> 7.196167423 | BK139: =BJ139 -> 7.196167423 | BM139: =Y139/I139 -> 10.00701262 | BN139: =BM139 -> 10.00701262 | BO139: =Y139/D139 -> 11.44254671 | BP139: =BO139 -> 11.44254671 | BQ139: =Tabelle1!O139 -> 1.435898287 | BR139: =IF(BQ139>0,BQ139,10) -> 1.435898287 | BS139: =IF(X139>O139,(X139-O139)/O139,-(O139-X139)/O139) -> -0.8134663342 | BT139: =BS139 -> -0.8134663342 | BV139: 2.61 | BW139: =BV139/100*Y139 -> 3.72447 | BX139: =D139*(BV139/100) -> 0.3254931 | BY139: =X139*(BV139/100) -> 0.097614 | BZ139: =W139*(BV139/100) -> 0.437175 | CA139: =V139*(BV139/100) -> 0.406116
B141: Swiss Prime Site | C141: SPSN | D141: =SUM(O141:X141)/10 -> 4.259 | I141: 3.8 | J141: 3.1 | K141: 4.6 | L141: 3.6 | M141: 3.69 | N141: 3.9 | O141: 3.87 | P141: 4.17 | Q141: 3.88 | R141: 3.95 | S141: 4.14 | T141: 6.27 | U141: 3.87 | V141: 4.97 | W141: 2.95 | X141: 4.52 | Y141: =LOOKUP(C141,Daten!$C$2:$C$300,Daten!$E$2:$E$500) -> 112.9 | AJ141: =Y141/X141 -> 24.97787611 | AK141: =AJ141 -> 24.97787611 | AL141: =Y141/W141 -> 38.27118644 | AM141: =AL141 -> 38.27118644 | AN141: =Y141/V141 -> 22.71629779 | AO141: =AN141 -> 22.71629779 | AP141: =Y141/U141 -> 29.17312661 | AQ141: =AP141 -> 29.17312661 | AR141: =Y141/T141 -> 18.00637959 | AS141: =AR141 -> 18.00637959 | AT141: =Y141/S141 -> 27.2705314 | AU141: =AT141 -> 27.2705314 | AV141: =Y141/R141 -> 28.58227848 | AW141: =AV141 -> 28.58227848 | AX141: =Y141/Q141 -> 29.09793814 | AY141: =AX141 -> 29.09793814 | AZ141: =Y141/P141 -> 27.07434053 | BA141: =AZ141 -> 27.07434053 | BB141: =Y141/O141 -> 29.17312661 | BC141: =BB141 -> 29.17312661 | BD141: =Y141/N141 -> 28.94871795 | BE141: =BD141 -> 28.94871795 | BF141: =Y141/L141 -> 31.36111111 | BG141: =BF141 -> 31.36111111 | BH141: =Y141/K141 -> 24.54347826 | BI141: =BH141 -> 24.54347826 | BJ141: =Y141/J141 -> 36.41935484 | BK141: =BJ141 -> 36.41935484 | BM141: =Y141/I141 -> 29.71052632 | BN141: =BM141 -> 29.71052632 | BO141: =Y141/D141 -> 26.50857009 | BP141: =BO141 -> 26.50857009 | BQ141: =Tabelle1!O141 -> 0.0132852508 | BR141: =IF(BQ141>0,BQ141,10) -> 0.0132852508 | BS141: =IF(X141>O141,(X141-O141)/O141,-(O141-X141)/O141) -> 0.1679586563 | BT141: =BS141 -> 0.1679586563 | BV141: 3.39 | BW141: =BV141/100*Y141 -> 3.82731 | BX141: =D141*(BV141/100) -> 0.1443801 | BY141: =X141*(BV141/100) -> 0.153228 | BZ141: =W141*(BV141/100) -> 0.100005 | CA141: =V141*(BV141/100) -> 0.168483
B143: Tecan Group | C143: TECN | D143: =SUM(O143:X143)/10 -> 7.136 | J143: 1.6 | K143: 4.4 | L143: 3.9 | M143: 4.2 | N143: 3.63 | O143: 5.06 | P143: 4.74 | Q143: 5.73 | R143: 6.02 | S143: 6.18 | T143: 8.69 | U143: 9.88 | V143: 9.47 | W143: 10.3 | X143: 5.29 | Y143: =LOOKUP(C143,Daten!$C$2:$C$300,Daten!$E$2:$E$500) -> 151.3 | AJ143: =Y143/X143 -> 28.60113422 | AK143: =AJ143 -> 28.60113422 | AL143: =Y143/W143 -> 14.68932039 | AM143: =AL143 -> 14.68932039 | AN143: =Y143/V143 -> 15.97676874 | AO143: =AN143 -> 15.97676874 | AP143: =Y143/U143 -> 15.31376518 | AQ143: =AP143 -> 15.31376518 | AR143: =Y143/T143 -> 17.41081703 | AS143: =AR143 -> 17.41081703 | AT143: =Y143/S143 -> 24.48220065 | AU143: =AT143 -> 24.48220065 | AV143: =Y143/R143 -> 25.13289037 | AW143: =AV143 -> 25.13289037 | AX143: =Y143/Q143 -> 26.40488656 | AY143: =AX143 -> 26.40488656 | AZ143: =Y143/P143 -> 31.91983122 | BA143: =AZ143 -> 31.91983122 | BB143: =Y143/O143 -> 29.90118577 | BC143: =BB143 -> 29.90118577 | BD143: =Y143/N143 -> 41.68044077 | BE143: =BD143 -> 41.68044077 | BF143: =Y143/L143 -> 38.79487179 | BG143: =BF143 -> 38.79487179 | BH143: =Y143/K143 -> 34.38636364 | BI143: =BH143 -> 34.38636364 | BJ143: =Y143/J143 -> 94.5625 | BK143: =BJ143 -> 94.5625 | BM143: =Y143/I143 ->  | BN143: =BM143 ->  | BO143: =Y143/D143 -> 21.20235426 | BP143: =BO143 -> 21.20235426 | BQ143: =Tabelle1!O143 -> 0.1070268752 | BR143: =IF(BQ143>0,BQ143,10) -> 0.1070268752 | BS143: =IF(X143>O143,(X143-O143)/O143,-(O143-X143)/O143) -> 0.04545454545 | BT143: =BS143 -> 0.04545454545 | BV143: 2.12 | BW143: =BV143/100*Y143 -> 3.20756 | BX143: =D143*(BV143/100) -> 0.1512832 | BY143: =X143*(BV143/100) -> 0.112148 | BZ143: =W143*(BV143/100) -> 0.21836 | CA143: =V143*(BV143/100) -> 0.200764
B145: Temenos | C145: TEMN | D145: =SUM(O145:X145)/10 -> 1.943 | I145: 1.3 | J145: 1 | K145: -0.37 | L145: 0.34 | M145: 0.92 | N145: 1.24 | O145: 0.97 | P145: 1.66 | Q145: 1.95 | R145: 2.38 | S145: 2.56 | T145: 2.28 | U145: 2.21 | V145: 1.52 | W145: 1.68 | X145: 2.22 | Y145: =LOOKUP(C145,Daten!$C$2:$C$300,Daten!$E$2:$E$500) -> 58.7 | AJ145: =Y145/X145 -> 26.44144144 | AK145: =AJ145 -> 26.44144144 | AL145: =Y145/W145 -> 34.94047619 | AM145: =AL145 -> 34.94047619 | AN145: =Y145/V145 -> 38.61842105 | AO145: =AN145 -> 38.61842105 | AP145: =Y145/U145 -> 26.56108597 | AQ145: =AP145 -> 26.56108597 | AR145: =Y145/T145 -> 25.74561404 | AS145: =AR145 -> 25.74561404 | AT145: =Y145/S145 -> 22.9296875 | AU145: =AT145 -> 22.9296875 | AV145: =Y145/R145 -> 24.66386555 | AW145: =AV145 -> 24.66386555 | AX145: =Y145/Q145 -> 30.1025641 | AY145: =AX145 -> 30.1025641 | AZ145: =Y145/P145 -> 35.36144578 | BA145: =AZ145 -> 35.36144578 | BB145: =Y145/O145 -> 60.51546392 | BC145: =BB145 -> 60.51546392 | BD145: =Y145/N145 -> 47.33870968 | BE145: =BD145 -> 47.33870968 | BF145: =Y145/L145 -> 172.6470588 | BG145: =BF145 -> 172.6470588 | BH145: =Y145/K145 -> -158.6486486 | BI145: =BH145 -> -158.6486486 | BJ145: =Y145/J145 -> 58.7 | BK145: =BJ145 -> 58.7 | BM145: =Y145/I145 -> 45.15384615 | BN145: =BM145 -> 45.15384615 | BO145: =Y145/D145 -> 30.2110139 | BP145: =BO145 -> 30.2110139 | BQ145: =Tabelle1!O145 -> 0.09652354344 | BR145: =IF(BQ145>0,BQ145,10) -> 0.09652354344 | BS145: =IF(X145>O145,(X145-O145)/O145,-(O145-X145)/O145) -> 1.288659794 | BT145: =BS145 -> 1.288659794 | BV145: 2.09 | BW145: =BV145/100*Y145 -> 1.22683 | BX145: =D145*(BV145/100) -> 0.0406087 | BY145: =X145*(BV145/100) -> 0.046398 | BZ145: =W145*(BV145/100) -> 0.035112 | CA145: =V145*(BV145/100) -> 0.031768
A147: ! | B147: VAT Group | C147: VACN | D147: =SUM(O147:X147)/10 -> 4.879 | N147: 0.89 | O147: 0.34 | P147: 2.43 | Q147: 3.86 | R147: 4.53 | S147: 2.5 | T147: 4.27 | U147: 7.24 | V147: 10.22 | W147: 6.34 | X147: 7.06 | Y147: =LOOKUP(C147,Daten!$C$2:$C$300,Daten!$E$2:$E$500) -> 294.9 | AJ147: =Y147/X147 -> 41.77053824 | AK147: =AJ147 -> 41.77053824 | AL147: =Y147/W147 -> 46.51419558 | AM147: =AL147 -> 46.51419558 | AN147: =Y147/V147 -> 28.85518591 | AO147: =AN147 -> 28.85518591 | AP147: =Y147/U147 -> 40.7320442 | AQ147: =AP147 -> 40.7320442 | AR147: =Y147/T147 -> 69.06323185 | AS147: =AR147 -> 69.06323185 | AT147: =Y147/S147 -> 117.96 | AU147: =AT147 -> 117.96 | AV147: =Y147/R147 -> 65.09933775 | AW147: =AV147 -> 65.09933775 | AX147: =Y147/Q147 -> 76.39896373 | AY147: =AX147 -> 76.39896373 | AZ147: =Y147/P147 -> 121.3580247 | BA147: =AZ147 -> 121.3580247 | BB147: =Y147/O147 -> 867.3529412 | BC147: =BB147 -> 867.3529412 | BD147: =Y147/N147 -> 331.3483146 | BE147: =BD147 -> 331.3483146 | BF147: =Y147/L147 ->  | BG147: =BF147 ->  | BH147: =Y147/K147 ->  | BI147: =BH147 ->  | BJ147: =Y147/J147 ->  | BK147: =BJ147 ->  | BM147: =Y147/I147 ->  | BN147: =BM147 ->  | BO147: =Y147/D147 -> 60.44271367 | BP147: =BO147 -> 60.44271367 | BQ147: =Tabelle1!O147 -> 0.808723887 | BR147: =IF(BQ147>0,BQ147,10) -> 0.808723887 | BS147: =IF(X147>O147,(X147-O147)/O147,-(O147-X147)/O147) -> 19.76470588 | BT147: =BS147 -> 19.76470588 | BV147: 7.08 | BW147: =BV147/100*Y147 -> 20.87892 | BX147: =D147*(BV147/100) -> 0.3454332 | BY147: =X147*(BV147/100) -> 0.499848 | BZ147: =W147*(BV147/100) -> 0.448872 | CA147: =V147*(BV147/100) -> 0.723576
B149: Zehnder | C149: ZEHN | D149: =SUM(O149:X149)/10 -> 2.648 | K149: 4.2 | L149: 2.8 | M149: 1.7 | N149: 2.66 | O149: 0.01 | P149: 1.9 | Q149: 1.49 | R149: 2.29 | S149: 2.93 | T149: 3.57 | U149: 5.55 | V149: 4.86 | W149: 3.73 | X149: 0.15 | Y149: =LOOKUP(C149,Daten!$C$2:$C$300,Daten!$E$2:$E$500) -> 54.1 | AJ149: =Y149/X149 -> 360.6666667 | AK149: =AJ149 -> 360.6666667 | AL149: =Y149/W149 -> 14.50402145 | AM149: =AL149 -> 14.50402145 | AN149: =Y149/V149 -> 11.13168724 | AO149: =AN149 -> 11.13168724 | AP149: =Y149/V149 -> 11.13168724 | AQ149: =AP149 -> 11.13168724 | AR149: =Y149/U149 -> 9.747747748 | AS149: =AR149 -> 9.747747748 | AT149: =Y149/T149 -> 15.15406162 | AU149: =AT149 -> 15.15406162 | AV149: =Y149/R149 -> 23.62445415 | AW149: =AV149 -> 23.62445415 | AX149: =Y149/Q149 -> 36.30872483 | AY149: =AX149 -> 36.30872483 | AZ149: =Y149/P149 -> 28.47368421 | BA149: =AZ149 -> 28.47368421 | BB149: =Y149/O149 -> 5410 | BC149: =BB149 -> 5410 | BD149: =Y149/N149 -> 20.33834586 | BE149: =BD149 -> 20.33834586 | BF149: =Y149/L149 -> 19.32142857 | BG149: =BF149 -> 19.32142857 | BH149: =Y149/K149 -> 12.88095238 | BI149: =BH149 -> 12.88095238 | BJ149: =Y149/J149 ->  | BK149: =BJ149 ->  | BM149: =Y149/I149 ->  | BN149: =BM149 ->  | BO149: =Y149/D149 -> 20.4305136 | BP149: =BO149 -> 20.4305136 | BQ149: =Tabelle1!O149 -> 21.00228621 | BR149: =IF(BQ149>0,BQ149,10) -> 21.00228621 | BS149: =IF(X149>O149,(X149-O149)/O149,-(O149-X149)/O149) -> 14 | BT149: =BS149 -> 14
BV150: =SUM(BV60:BV147)+BV151 -> 100.17 | BW150: =SUM(BW60:BW147)+(BV151/100*Y39) -> 13599.73619 | BX150: =SUM(BX60:BX147)+(BV151/100*D39) -> 251.6014065 | BY150: =SUM(BY60:BY147)+(BV151/100*V39) -> 344.472954 | BZ150: =SUM(BZ60:BZ147)+(BV151/100*W39) -> 340.989007 | CA150: =SUM(CA60:CA147)+(BV151/100*V39) -> 285.971702
B151: 1) Carlo Gavazzi: Geschäftsjahr endet per 31.3. | BU151: Roche I | BV151: 4.43
B152: 2) Dätwyler: Zahlen 2019 nur fortgeführte Geschäftsfelder; insgesamt Verlust von CHF -5.09 pro Aktie
B153: 3) ASM Osram: Gewinne (EUR) umgerechnet in CHF
B154: 4) SIG Group: Gewinne umgerechnet in CHF
B158: Analysemöglichkeiten
B160: 1. Suchen Sie nach Firmen, deren KGV unter 16 liegt (Ticker grün). Entweder neuestes KGV oder, etwas konservativer, KGV des durchschnittlichen Gewinnes über 10 Jahre.
B162: 2. Alternativ suchen Sie nach Firmen, deren Sicherheitsmarge grösser als 5% ist (Ticker grün).
B164: 3. Untersuchen Sie bei diesen Firmen, ob Sie eine über 10 Jahre insgesamt eine Gewinnsteigerung von über 160% ausweisen.
B166: 4. Eine hohe durchschnittliche Gewinnveränderungsrate (> 100%) weist auf unstete Gewinnentwicklung mit Verlustjahren und/oder Jahren mit sehr kleinen Gewinnen hin!
B168: 5. Ein extrem hohes Gewinnwachstum deutet auf einen ungewöhnlich niedrigen Ausgangswert hin, der nicht die Normalität abbildet.

Sheet Sicherheitsmarge nach Graham
B3: Sicherheitsmarge nach Graham
B5: Umlaufrenditen der Obligationen im Schnitt in % | G5: 0 | I5: =K5 -> 0 | J5: 0 | K5: 0 | L5: 1.1 | M5: 1.1 | N5: 0.5
B6: Sicherheitsmarge muss grösser als 5%-Punkte sein
H8: Gewinn pro Aktie | K8: Gewinn pro Aktie | Y8: akt. Kurs | AA8: akt. Kurs | AC8: Ø Gewinn | AE8: Gewinn- | AG8: Sicherheitsmarge
B9: SMI Titel | E9: 2005 | F9: 2006 | G9: 2007 | H9: 2008 | I9: 2009 | J9: 2010 | K9: 2011 | L9: 2012 | M9: 2013 | N9: 2014 | O9: 2015 | P9: 2016 | Q9: 2017 | R9: 2018 | S9: 2019 | T9: 2020 | U9: 2021 | V9: 2022 | W9: 2023 | X9: 2024 | AA9: in RW | AC9: 2015-2024 | AE9: rendite | AG9: >=5% Punkte
B12: USD | C12: ABB LTD N | D12: ABBN | E12: ='SMI Analyse KGV'!E15 -> 0.36 | F12: ='SMI Analyse KGV'!F15 -> 0.63 | G12: ='SMI Analyse KGV'!G15 -> 1.63 | H12: ='SMI Analyse KGV'!H15 -> 1.36 | I12: ='SMI Analyse KGV'!I15 -> 1.27 | J12: ='SMI Analyse KGV'!J15 -> 1.12 | K12: ='SMI Analyse KGV'!K15 -> 1.38 | L12: ='SMI Analyse KGV'!L15 -> 1.18 | M12: ='SMI Analyse KGV'!M15 -> 1.21 | N12: ='SMI Analyse KGV'!N15 -> 1.13 | O12: ='SMI Analyse KGV'!O15 -> 0.87 | P12: ='SMI Analyse KGV'!P15 -> 0.88 | Q12: ='SMI Analyse KGV'!Q15 -> 1.04 | R12: ='SMI Analyse KGV'!R15 -> 1.02 | S12: ='SMI Analyse KGV'!S15 -> 0.67 | T12: ='SMI Analyse KGV'!T15 -> 2.44 | U12: ='SMI Analyse KGV'!U15 -> 2.27 | V12: ='SMI Analyse KGV'!V15 -> 1.3 | W12: ='SMI Analyse KGV'!W15 -> 2.01 | X12: ='SMI Analyse KGV'!X15 -> 2.13 | Y12: =LOOKUP(D12,Daten!$C$2:$C$300,Daten!$E$2:$E$500) -> 43.25 | AA12: =Y12/Währungskurse!C$4 -> 52.74390244 | AC12: ='SMI Analyse KGV'!D15 -> 1.463 | AE12: =AC12/AA12*100 -> 2.773780347 | AG12: =AE12-$N$5 -> 2.273780347 | AH12: =AG12 -> 2.273780347
B14: USD | C14: ALCON N | D14: ALC | Q14: ='SMI Analyse KGV'!Q17 -> 0.52 | R14: ='SMI Analyse KGV'!R17 -> -0.46 | S14: ='SMI Analyse KGV'!S17 -> -1.34 | T14: ='SMI Analyse KGV'!T17 -> -1.09 | U14: ='SMI Analyse KGV'!U17 -> 0.76 | V14: ='SMI Analyse KGV'!V17 -> 0.68 | W14: ='SMI Analyse KGV'!W17 -> 1.96 | X14: ='SMI Analyse KGV'!X17 -> 2.05 | Y14: =LOOKUP(D14,Daten!$C$2:$C$300,Daten!$E$2:$E$500) -> 78.52 | AA14: =Y14/Währungskurse!C$5 -> 85.34782609 | AC14: ='SMI Analyse KGV'!D17 -> 0.385 | AE14: =AC14/AA14*100 -> 0.4510952624 | AG14: =AE14-$N$5 -> -0.04890473765 | AH14: =AG14 -> -0.04890473765
C16: ='SMI Analyse KGV'!B19 -> GEBERIT N | D16: GEBN | E16: ='SMI Analyse KGV'!E19 -> 6.47 | F16: ='SMI Analyse KGV'!F19 -> 8.86 | G16: ='SMI Analyse KGV'!G19 -> 11.67 | H16: ='SMI Analyse KGV'!H19 -> 11.9 | I16: ='SMI Analyse KGV'!I19 -> 10.18 | J16: ='SMI Analyse KGV'!J19 -> 10.32 | K16: ='SMI Analyse KGV'!K19 -> 9.82 | L16: ='SMI Analyse KGV'!L19 -> 10.29 | M16: ='SMI Analyse KGV'!M19 -> 11.58 | N16: ='SMI Analyse KGV'!N19 -> 13.26 | O16: ='SMI Analyse KGV'!O19 -> 11.31 | P16: ='SMI Analyse KGV'!P19 -> 14.85 | Q16: ='SMI Analyse KGV'!Q19 -> 14.31 | R16: ='SMI Analyse KGV'!R19 -> 16.39 | S16: ='SMI Analyse KGV'!S19 -> 17.93 | T16: ='SMI Analyse KGV'!T19 -> 17.88 | U16: ='SMI Analyse KGV'!U19 -> 21.16 | V16: ='SMI Analyse KGV'!V19 -> 20.41 | W16: ='SMI Analyse KGV'!W19 -> 18.35 | X16: ='SMI Analyse KGV'!X19 -> 18.1 | Y16: =LOOKUP(D16,Daten!$C$2:$C$300,Daten!$E$2:$E$500) -> 556.6 | AC16: ='SMI Analyse KGV'!D19 -> 17.069 | AE16: =AC16/Y16*100 -> 3.066654689 | AG16: =AE16-$N$5 -> 2.566654689 | AH16: =AG16 -> 2.566654689
C17: ='SMI Analyse KGV'!B20 -> 0
C18: ='SMI Analyse KGV'!B21 -> GIVAUDAN N | D18: GIVN | E18: ='SMI Analyse KGV'!E21 -> 56.17 | F18: ='SMI Analyse KGV'!F21 -> 58.62 | G18: ='SMI Analyse KGV'!G21 -> 13.2 | H18: ='SMI Analyse KGV'!H21 -> 14.98 | I18: ='SMI Analyse KGV'!I21 -> 24.97 | J18: ='SMI Analyse KGV'!J21 -> 37.63 | K18: ='SMI Analyse KGV'!K21 -> 27.55 | L18: ='SMI Analyse KGV'!L21 -> 44.85 | M18: ='SMI Analyse KGV'!M21 -> 52.83 | N18: ='SMI Analyse KGV'!N21 -> 60.35 | O18: ='SMI Analyse KGV'!O21 -> 67.06 | P18: ='SMI Analyse KGV'!P21 -> 69.34 | Q18: ='SMI Analyse KGV'!Q21 -> 77.54 | R18: ='SMI Analyse KGV'!R21 -> 71.36 | S18: ='SMI Analyse KGV'!S21 -> 75.59 | T18: ='SMI Analyse KGV'!T21 -> 79.96 | U18: ='SMI Analyse KGV'!U21 -> 88.37 | V18: ='SMI Analyse KGV'!V21 -> 92.51 | W18: ='SMI Analyse KGV'!W21 -> 96.47 | X18: ='SMI Analyse KGV'!X21 -> 115 | Y18: =LOOKUP(D18,Daten!$C$2:$C$300,Daten!$E$2:$E$500) -> 3875 | AC18: ='SMI Analyse KGV'!D21 -> 83.32 | AE18: =AC18/Y18*100 -> 2.150193548 | AG18: =AE18-$N$5 -> 1.650193548 | AH18: =AG18 -> 1.650193548
C19: ='SMI Analyse KGV'!B22 -> 0
C20: HOLCIM N | D20: HOLN | E20: ='SMI Analyse KGV'!E33 -> 2.62 | F20: ='SMI Analyse KGV'!F23 -> 8.5 | G20: ='SMI Analyse KGV'!G23 -> 14.73 | H20: ='SMI Analyse KGV'!H23 -> 6.81 | I20: ='SMI Analyse KGV'!I23 -> 4.93 | J20: ='SMI Analyse KGV'!J23 -> 3.69 | K20: ='SMI Analyse KGV'!K23 -> 0.86 | L20: ='SMI Analyse KGV'!L23 -> 1.92 | M20: ='SMI Analyse KGV'!M23 -> 3.91 | N20: ='SMI Analyse KGV'!N23 -> 3.95 | O20: ='SMI Analyse KGV'!O23 -> -3.11 | P20: ='SMI Analyse KGV'!P23 -> 2.96 | Q20: ='SMI Analyse KGV'!Q23 -> -2.78 | R20: ='SMI Analyse KGV'!R23 -> 2.52 | S20: ='SMI Analyse KGV'!S23 -> 3.68 | T20: ='SMI Analyse KGV'!T23 -> 2.74 | U20: ='SMI Analyse KGV'!U23 -> 3.72 | V20: ='SMI Analyse KGV'!V23 -> 5.46 | W20: ='SMI Analyse KGV'!W23 -> 5.35 | X20: ='SMI Analyse KGV'!X23 -> 5.22 | Y20: =LOOKUP(D20,Daten!$C$2:$C$300,Daten!$E$2:$E$500) -> 91.9 | AC20: ='SMI Analyse KGV'!D23 -> 2.576 | AE20: =AC20/Y20*100 -> 2.80304679 | AG20: =AE20-$N$5 -> 2.30304679 | AH20: =AG20 -> 2.30304679
C22: KÜHNE & NAGEL | D22: KNIN | N22: ='SMI Analyse KGV'!N25 -> 5.28 | O22: ='SMI Analyse KGV'!O25 -> 5.64 | P22: ='SMI Analyse KGV'!P25 -> 5.99 | Q22: ='SMI Analyse KGV'!Q25 -> 6.16 | R22: ='SMI Analyse KGV'!R25 -> 6.43 | S22: ='SMI Analyse KGV'!S25 -> 6.67 | T22: ='SMI Analyse KGV'!T25 -> 6.59 | U22: ='SMI Analyse KGV'!U25 -> 16.88 | V22: ='SMI Analyse KGV'!V25 -> 22.03 | W22: ='SMI Analyse KGV'!W25 -> 12.02 | X22: ='SMI Analyse KGV'!X25 -> 9.95 | Y22: =LOOKUP(D22,Daten!$C$2:$C$300,Daten!$E$2:$E$500) -> 188.45 | AC22: ='SMI Analyse KGV'!D25 -> 9.836 | AE22: =AC22/Y22*100 -> 5.219421597 | AG22: =AE22-$N$5 -> 4.719421597 | AH22: =AG22 -> 4.719421597
B24: USD | C24: LOGITECH | D24: LOGN | K24: ='SMI Analyse KGV'!K27 -> 0.36 | L24: ='SMI Analyse KGV'!L27 -> -1.44 | M24: ='SMI Analyse KGV'!M27 -> 0.46 | N24: ='SMI Analyse KGV'!N27 -> 0.06 | O24: ='SMI Analyse KGV'!O27 -> 0.53 | P24: ='SMI Analyse KGV'!P27 -> 1.24 | Q24: ='SMI Analyse KGV'!Q27 -> 1.23 | R24: ='SMI Analyse KGV'!R27 -> 1.52 | S24: ='SMI Analyse KGV'!S27 -> 2.66 | T24: ='SMI Analyse KGV'!T27 -> 5.51 | U24: ='SMI Analyse KGV'!U27 -> 3.78 | V24: ='SMI Analyse KGV'!V27 -> 2.23 | W24: ='SMI Analyse KGV'!W27 -> 3.87 | X24: ='SMI Analyse KGV'!X27 -> 3.3 | Y24: =LOOKUP(D24,Daten!$C$2:$C$300,Daten!$E$2:$E$500) -> 63.76 | AA24: =Y24/Währungskurse!C$4 -> 77.75609756 | AC24: ='SMI Analyse KGV'!D27 -> 2.587 | AE24: =AC24/AA24*100 -> 3.327070263 | AG24: =AE24-$N$5 -> 2.827070263 | AH24: =AG24 -> 2.827070263
C26: LONZA | D26: LONN | I26: ='SMI Analyse KGV'!I29 -> 3.17 | J26: ='SMI Analyse KGV'!J29 -> 5.53 | K26: ='SMI Analyse KGV'!K29 -> 2.97 | L26: ='SMI Analyse KGV'!L29 -> 3.5 | M26: ='SMI Analyse KGV'!M29 -> 1.67 | N26: ='SMI Analyse KGV'!N29 -> 4.54 | O26: ='SMI Analyse KGV'!O29 -> 5.26 | P26: ='SMI Analyse KGV'!P29 -> 5.69 | Q26: ='SMI Analyse KGV'!Q29 -> 10.6 | R26: ='SMI Analyse KGV'!R29 -> 7.48 | S26: ='SMI Analyse KGV'!S29 -> 8.65 | T26: ='SMI Analyse KGV'!T29 -> 11.63 | U26: ='SMI Analyse KGV'!U29 -> 39.52 | V26: ='SMI Analyse KGV'!V29 -> 16.34 | W26: ='SMI Analyse KGV'!W27 -> 3.87 | X26: ='SMI Analyse KGV'!X29 -> 8.92 | Y26: =LOOKUP(D26,Daten!$C$2:$C$300,Daten!$E$2:$E$500) -> 573.8 | AC26: ='SMI Analyse KGV'!D29 -> 12.297 | AE26: =AC26/Y26*100 -> 2.143081213 | AG26: =AE26-$N$5 -> 1.643081213 | AH26: =AG26 -> 1.643081213
C28: NESTLE N | D28: NESN | E28: ='SMI Analyse KGV'!E31 -> 2.06 | F28: ='SMI Analyse KGV'!F31 -> 2.36 | G28: ='SMI Analyse KGV'!G31 -> 2.76 | H28: ='SMI Analyse KGV'!H31 -> 2.81 | I28: ='SMI Analyse KGV'!I31 -> 2.91 | J28: ='SMI Analyse KGV'!J31 -> 2.6 | K28: ='SMI Analyse KGV'!K31 -> 2.96 | L28: ='SMI Analyse KGV'!L31 -> 3.2 | M28: ='SMI Analyse KGV'!M31 -> 3.13 | N28: ='SMI Analyse KGV'!N31 -> 4.52 | O28: ='SMI Analyse KGV'!O31 -> 2.89 | P28: ='SMI Analyse KGV'!P31 -> 2.75 | Q28: ='SMI Analyse KGV'!Q31 -> 2.32 | R28: ='SMI Analyse KGV'!R31 -> 3.36 | S28: ='SMI Analyse KGV'!S31 -> 4.3 | T28: ='SMI Analyse KGV'!T31 -> 4.29 | U28: ='SMI Analyse KGV'!U31 -> 6.06 | V28: ='SMI Analyse KGV'!V31 -> 3.42 | W28: ='SMI Analyse KGV'!W29 -> 8.88 | X28: ='SMI Analyse KGV'!X31 -> 4.19 | Y28: =LOOKUP(D28,Daten!$C$2:$C$300,Daten!$E$2:$E$500) -> 85.74 | AC28: ='SMI Analyse KGV'!D31 -> 3.781 | AE28: =AC28/Y28*100 -> 4.409843714 | AG28: =AE28-$N$5 -> 3.909843714 | AH28: =AG28 -> 3.909843714
B30: USD | C30: NOVARTIS | D30: NOVN | E30: ='SMI Analyse KGV'!E33 -> 2.62 | F30: ='SMI Analyse KGV'!F33 -> 3.04 | G30: ='SMI Analyse KGV'!G33 -> 5.13 | H30: ='SMI Analyse KGV'!H33 -> 3.59 | I30: ='SMI Analyse KGV'!I33 -> 3.69 | J30: ='SMI Analyse KGV'!J33 -> 4.28 | K30: ='SMI Analyse KGV'!K33 -> 3.78 | L30: ='SMI Analyse KGV'!L33 -> 3.89 | M30: ='SMI Analyse KGV'!M33 -> 3.7 | N30: ='SMI Analyse KGV'!N33 -> 4.13 | O30: ='SMI Analyse KGV'!O33 -> 2.88 | P30: ='SMI Analyse KGV'!P33 -> 2.82 | Q30: ='SMI Analyse KGV'!Q33 -> 3.25 | R30: ='SMI Analyse KGV'!R33 -> 5.38 | S30: ='SMI Analyse KGV'!S33 -> 5.06 | T30: ='SMI Analyse KGV'!T33 -> 3.52 | U30: ='SMI Analyse KGV'!U33 -> 10.63 | V30: ='SMI Analyse KGV'!V33 -> 3.17 | W30: ='SMI Analyse KGV'!W33 -> 7.1 | X30: ='SMI Analyse KGV'!X33 -> 5.87 | Y30: =LOOKUP(D30,Daten!$C$2:$C$300,Daten!$E$2:$E$500) -> 92.54 | AA30: =Y30/Währungskurse!C$4 -> 112.8536585 | AC30: ='SMI Analyse KGV'!D33 -> 4.968 | AE30: =AC30/AA30*100 -> 4.402161228 | AG30: =AE30-$N$5 -> 3.902161228 | AH30: =AG30 -> 3.902161228
C32: PARTNERS GROUP | D32: PGHN | L32: ='SMI Analyse KGV'!L35 -> 10.1 | M32: ='SMI Analyse KGV'!M35 -> 12.3 | N32: ='SMI Analyse KGV'!N35 -> 14.48 | O32: ='SMI Analyse KGV'!O35 -> 14.99 | P32: ='SMI Analyse KGV'!P35 -> 21.15 | Q32: ='SMI Analyse KGV'!Q35 -> 28.37 | R32: ='SMI Analyse KGV'!R35 -> 28.91 | S32: ='SMI Analyse KGV'!S35 -> 33.93 | T32: ='SMI Analyse KGV'!T35 -> 30.36 | U32: ='SMI Analyse KGV'!U35 -> 55.12 | V32: ='SMI Analyse KGV'!V35 -> 39.09 | W32: ='SMI Analyse KGV'!W35 -> 38.55 | X32: ='SMI Analyse KGV'!X35 -> 43.08 | Y32: =LOOKUP(D32,Daten!$C$2:$C$300,Daten!$E$2:$E$500) -> 1098.5 | AC32: ='SMI Analyse KGV'!D35 -> 33.355 | AE32: =AC32/Y32*100 -> 3.036413291 | AG32: =AE32-$N$5 -> 2.536413291 | AH32: =AG32 -> 2.536413291
B34: EUR | C34: RICHEMONT | D34: CFR | E34: ='SMI Analyse KGV'!E37 -> 1.951 | F34: ='SMI Analyse KGV'!F37 -> 2.331 | G34: ='SMI Analyse KGV'!G37 -> 2.75 | H34: ='SMI Analyse KGV'!H37 -> 1.916 | I34: ='SMI Analyse KGV'!I37 -> 1.076 | J34: ='SMI Analyse KGV'!J37 -> 1.92 | K34: ='SMI Analyse KGV'!K37 -> 2.75 | L34: ='SMI Analyse KGV'!L37 -> 3.6 | M34: ='SMI Analyse KGV'!M37 -> 3.68 | N34: ='SMI Analyse KGV'!N37 -> 2.356 | O34: ='SMI Analyse KGV'!O37 -> 3.94 | P34: ='SMI Analyse KGV'!P37 -> 2.14 | Q34: ='SMI Analyse KGV'!Q37 -> 2.16 | R34: ='SMI Analyse KGV'!R37 -> 4.927 | S34: ='SMI Analyse KGV'!S37 -> 1.651 | T34: ='SMI Analyse KGV'!T37 -> 2.3 | U34: ='SMI Analyse KGV'!U37 -> 3.611 | V34: ='SMI Analyse KGV'!V37 -> 0.54 | W34: ='SMI Analyse KGV'!W37 -> 4.077 | X34: ='SMI Analyse KGV'!X37 -> 5.7 | Y34: =LOOKUP(D34,Daten!$C$2:$C$300,Daten!$E$2:$E$500) -> 146.5 | AA34: =Y34/Währungskurse!C$5 -> 159.2391304 | AC34: ='SMI Analyse KGV'!D37 -> 3.1046 | AE34: =AC34/AA34*100 -> 1.949646416 | AG34: =AE34-$N$5 -> 1.449646416 | AH34: =AG34 -> 1.449646416
C36: ROCHE GS | D36: ROG | E36: ='SMI Analyse KGV'!E39 -> 6.87 | F36: ='SMI Analyse KGV'!F39 -> 9.05 | G36: ='SMI Analyse KGV'!G39 -> 11.16 | H36: ='SMI Analyse KGV'!H39 -> 10.23 | I36: ='SMI Analyse KGV'!I39 -> 9.02 | J36: ='SMI Analyse KGV'!J39 -> 10.11 | K36: ='SMI Analyse KGV'!K39 -> 10.98 | L36: ='SMI Analyse KGV'!L39 -> 11.16 | M36: ='SMI Analyse KGV'!M39 -> 12.93 | N36: ='SMI Analyse KGV'!N39 -> 10.81 | O36: ='SMI Analyse KGV'!O39 -> 10.28 | P36: ='SMI Analyse KGV'!P39 -> 11.13 | Q36: ='SMI Analyse KGV'!Q39 -> 10.04 | R36: ='SMI Analyse KGV'!R39 -> 12.21 | S36: ='SMI Analyse KGV'!S39 -> 15.62 | T36: ='SMI Analyse KGV'!T39 -> 16.52 | U36: ='SMI Analyse KGV'!U39 -> 16.2 | V36: ='SMI Analyse KGV'!V39 -> 15.37 | W36: ='SMI Analyse KGV'!W39 -> 14.31 | X36: ='SMI Analyse KGV'!X39 -> 10.31 | Y36: =LOOKUP(D36,Daten!$C$2:$C$300,Daten!$E$2:$E$500) -> 261.9 | AC36: ='SMI Analyse KGV'!D39 -> 13.199 | AE36: =AC36/Y36*100 -> 5.039709813 | AG36: =AE36-$N$5 -> 4.539709813 | AH36: =AG36 -> 4.539709813
C38: SIKA | D38: SIKA | G38: ='SMI Analyse KGV'!G41 -> 0 | I38: ='SMI Analyse KGV'!I41 -> 1.516666667 | J38: ='SMI Analyse KGV'!J41 -> 2.066666667 | K38: ='SMI Analyse KGV'!K41 -> 1.418333333 | L38: ='SMI Analyse KGV'!L41 -> 1.833333333 | M38: ='SMI Analyse KGV'!M41 -> 2.25 | N38: ='SMI Analyse KGV'!N41 -> 2.883333333 | O38: ='SMI Analyse KGV'!O41 -> 3.022833333 | P38: ='SMI Analyse KGV'!P41 -> 3.696833333 | Q38: ='SMI Analyse KGV'!Q41 -> 4.225333333 | R38: ='SMI Analyse KGV'!R41 -> 4.58 | S38: ='SMI Analyse KGV'!S41 -> 4.81 | T38: ='SMI Analyse KGV'!T41 -> 5.22 | U38: ='SMI Analyse KGV'!U41 -> 6.6 | V38: ='SMI Analyse KGV'!V41 -> 7.29 | W38: ='SMI Analyse KGV'!W41 -> 6.65 | X38: ='SMI Analyse KGV'!X41 -> 7.76 | Y38: =LOOKUP(D38,Daten!$C$2:$C$300,Daten!$E$2:$E$500) -> 205.5 | AC38: ='SMI Analyse KGV'!D41 -> 5.3855 | AE38: =AC38/Y38*100 -> 2.620681265 | AG38: =AE38-$N$5 -> 2.120681265 | AH38: =AG38 -> 2.120681265
C40: SONOVA | D40: SOON | M40: ='SMI Analyse KGV'!M43 -> 5.1 | N40: ='SMI Analyse KGV'!N43 -> 5.37 | O40: ='SMI Analyse KGV'!O43 -> 5.11 | P40: ='SMI Analyse KGV'!P43 -> 5.35 | Q40: ='SMI Analyse KGV'!Q43 -> 6.13 | R40: ='SMI Analyse KGV'!R43 -> 6.98 | S40: ='SMI Analyse KGV'!S43 -> 7.61 | T40: ='SMI Analyse KGV'!T43 -> 9.23 | U40: ='SMI Analyse KGV'!U43 -> 10.35 | V40: ='SMI Analyse KGV'!V43 -> 10.72 | W40: ='SMI Analyse KGV'!W43 -> 10.05 | X40: ='SMI Analyse KGV'!X43 -> 11.5 | Y40: =LOOKUP(D40,Daten!$C$2:$C$300,Daten!$E$2:$E$500) -> 250.9 | AC40: ='SMI Analyse KGV'!D43 -> 8.303 | AE40: =AC40/Y40*100 -> 3.309286568 | AG40: =AE40-$N$5 -> 2.809286568 | AH40: =AG40 -> 2.809286568
C42: SWISS LIFE HOLGING AG | D42: SLHN | F42: ='SMI Analyse KGV'!F45 -> 26.92 | G42: ='SMI Analyse KGV'!G45 -> 39.6 | H42: ='SMI Analyse KGV'!H45 -> 10.88 | I42: ='SMI Analyse KGV'!I45 -> 8.83 | J42: ='SMI Analyse KGV'!J45 -> 17.37 | K42: ='SMI Analyse KGV'!K45 -> 18.87 | L42: ='SMI Analyse KGV'!L45 -> 2.86 | M42: ='SMI Analyse KGV'!M45 -> 24.22 | N42: ='SMI Analyse KGV'!N45 -> 24.11 | O42: ='SMI Analyse KGV'!O45 -> 25.85 | P42: ='SMI Analyse KGV'!P45 -> 27.27 | Q42: ='SMI Analyse KGV'!Q45 -> 29.63 | R42: ='SMI Analyse KGV'!R45 -> 31.49 | S42: ='SMI Analyse KGV'!S45 -> 36.48 | T42: ='SMI Analyse KGV'!T45 -> 32.78 | U42: ='SMI Analyse KGV'!U45 -> 39.93 | V42: ='SMI Analyse KGV'!V45 -> 47.76 | W42: ='SMI Analyse KGV'!W45 -> 37.01 | X42: ='SMI Analyse KGV'!X45 -> 42.29 | Y42: =LOOKUP(D42,Daten!$C$2:$C$300,Daten!$E$2:$E$500) -> 802.6 | AC42: ='SMI Analyse KGV'!D45 -> 35.049 | AE42: =AC42/Y42*100 -> 4.366932469 | AG42: =AE42-$N$5 -> 3.866932469 | AH42: =AG42 -> 3.866932469
C44: SWISS RE | D44: SREN | E44: ='SMI Analyse KGV'!E47 -> 7.44 | F44: ='SMI Analyse KGV'!F47 -> 13.49 | G44: ='SMI Analyse KGV'!G47 -> 11.23 | H44: ='SMI Analyse KGV'!H47 -> -2.61 | I44: ='SMI Analyse KGV'!I47 -> 1.48 | J44: ='SMI Analyse KGV'!J47 -> 2.64 | K44: ='SMI Analyse KGV'!K47 -> 6.63 | L44: ='SMI Analyse KGV'!L47 -> 10.39 | M44: ='SMI Analyse KGV'!M47 -> 11.04 | N44: ='SMI Analyse KGV'!N47 -> 8.56 | O44: ='SMI Analyse KGV'!O47 -> 11.81 | P44: ='SMI Analyse KGV'!P47 -> 9.66 | Q44: ='SMI Analyse KGV'!Q47 -> 1.01 | R44: ='SMI Analyse KGV'!R47 -> 1.34 | S44: ='SMI Analyse KGV'!S47 -> 2.4 | T44: ='SMI Analyse KGV'!T47 -> -2.97 | U44: ='SMI Analyse KGV'!U47 -> 4.35 | V44: ='SMI Analyse KGV'!V47 -> 1.6 | W44: ='SMI Analyse KGV'!W47 -> 9.31 | X44: ='SMI Analyse KGV'!X47 -> 9.48 | Y44: =LOOKUP(D44,Daten!$C$2:$C$300,Daten!$E$2:$E$500) -> 144.8 | AC44: ='SMI Analyse KGV'!D47 -> 4.799 | AE44: =AC44/Y44*100 -> 3.314226519 | AG44: =AE44-$N$5 -> 2.814226519 | AH44: =AG44 -> 2.814226519
C46: SWISSCOM | D46: SCMN | E46: ='SMI Analyse KGV'!E49 -> 33.79 | F46: ='SMI Analyse KGV'!F49 -> 28.92 | G46: ='SMI Analyse KGV'!G49 -> 39.92 | H46: ='SMI Analyse KGV'!H49 -> 33.9 | I46: ='SMI Analyse KGV'!I49 -> 37.18 | J46: ='SMI Analyse KGV'!J49 -> 34.96 | K46: ='SMI Analyse KGV'!K49 -> 13.19 | L46: ='SMI Analyse KGV'!L49 -> 33.88 | M46: ='SMI Analyse KGV'!M49 -> 32.53 | N46: ='SMI Analyse KGV'!N49 -> 32.7 | O46: ='SMI Analyse KGV'!O49 -> 26.27 | P46: ='SMI Analyse KGV'!P49 -> 30.97 | Q46: ='SMI Analyse KGV'!Q49 -> 30.31 | R46: ='SMI Analyse KGV'!R49 -> 29.48 | S46: ='SMI Analyse KGV'!S49 -> 32.28 | T46: ='SMI Analyse KGV'!T49 -> 29.54 | U46: ='SMI Analyse KGV'!U49 -> 35.37 | V46: ='SMI Analyse KGV'!V49 -> 30.93 | W46: ='SMI Analyse KGV'!W49 -> 33.03 | X46: ='SMI Analyse KGV'!X49 -> 29.77 | Y46: =LOOKUP(D46,Daten!$C$2:$C$300,Daten!$E$2:$E$500) -> 538.5 | AC46: ='SMI Analyse KGV'!D49 -> 30.795 | AE46: =AC46/Y46*100 -> 5.718662953 | AG46: =AE46-$N$5 -> 5.218662953 | AH46: =AG46 -> 5.218662953
C48: UBS N | D48: UBSG | E48: ='SMI Analyse KGV'!E51 -> 6.68 | F48: ='SMI Analyse KGV'!F51 -> 4.98 | G48: ='SMI Analyse KGV'!G51 -> -2.41 | H48: ='SMI Analyse KGV'!H51 -> -7.69 | I48: ='SMI Analyse KGV'!I51 -> -0.74 | J48: ='SMI Analyse KGV'!J51 -> 1.96 | K48: ='SMI Analyse KGV'!K51 -> 1.08 | L48: ='SMI Analyse KGV'!L51 -> -0.67 | M48: ='SMI Analyse KGV'!M51 -> 0.83 | N48: ='SMI Analyse KGV'!N51 -> 0.91 | O48: ='SMI Analyse KGV'!O51 -> 1.64 | P48: ='SMI Analyse KGV'!P51 -> 0.84 | Q48: ='SMI Analyse KGV'!Q51 -> 0.27 | R48: ='SMI Analyse KGV'!R51 -> 1.18 | S48: ='SMI Analyse KGV'!S51 -> 1.14 | T48: ='SMI Analyse KGV'!T51 -> 1.77 | U48: ='SMI Analyse KGV'!U51 -> 2.06 | V48: ='SMI Analyse KGV'!V51 -> 2.25 | W48: ='SMI Analyse KGV'!W51 -> 8.3 | X48: ='SMI Analyse KGV'!X51 -> 1.52 | Y48: =LOOKUP(D48,Daten!$C$2:$C$300,Daten!$E$2:$E$500) -> 24.79 | AC48: ='SMI Analyse KGV'!D51 -> 2.097 | AE48: =AC48/Y48*100 -> 8.459056071 | AG48: =AE48-$N$5 -> 7.959056071 | AH48: =AG48 -> 7.959056071
B50: CHF! | C50: ZURICH FINANCIAL N | D50: ZURN | E50: ='SMI Analyse KGV'!E53 -> 27.11 | F50: ='SMI Analyse KGV'!F53 -> 38.71 | G50: ='SMI Analyse KGV'!G53 -> 47.11 | H50: ='SMI Analyse KGV'!H53 -> 23.35 | I50: ='SMI Analyse KGV'!I53 -> 24.21 | J50: ='SMI Analyse KGV'!J53 -> 24.38 | K50: ='SMI Analyse KGV'!K53 -> 22.52 | L50: ='SMI Analyse KGV'!L53 -> 24.66 | M50: ='SMI Analyse KGV'!M53 -> 25.23 | N50: ='SMI Analyse KGV'!N53 -> 23.84 | O50: ='SMI Analyse KGV'!O53 -> 11.86 | P50: ='SMI Analyse KGV'!P53 -> 21.04 | Q50: ='SMI Analyse KGV'!Q53 -> 19.58 | R50: ='SMI Analyse KGV'!R53 -> 24.28 | S50: ='SMI Analyse KGV'!S53 -> 27.51 | T50: ='SMI Analyse KGV'!T53 -> 23.98 | U50: ='SMI Analyse KGV'!U53 -> 31.68 | V50: ='SMI Analyse KGV'!V53 -> 29.36 | W50: ='SMI Analyse KGV'!W53 -> 26.71 | X50: ='SMI Analyse KGV'!X53 -> 35.33 | Y50: =LOOKUP(D50,Daten!$C$2:$C$300,Daten!$E$2:$E$500) -> 568.8 | AC50: ='SMI Analyse KGV'!D53 -> 25.133 | AE50: =AC50/Y50*100 -> 4.418600563 | AG50: =AE50-$N$5 -> 3.918600563 | AH50: =AG50 -> 3.918600563
E59: Gewinn pro Aktie | Y59: akt. Kurs | AA59: akt. Kurs | AC59: Ø Gewinn | AE59: Gewinn- | AG59: Sicherheitsmarge
B60: weitere SPI Titel (SMIM et al.) | E60: 2005 | F60: 2006 | G60: 2007 | H60: 2008 | I60: 2009 | J60: 2010 | K60: 2011 | L60: 2012 | M60: 2013 | N60: 2014 | O60: 2015 | P60: 2016 | Q60: 2017 | R60: 2018 | S60: 2019 | T60: 2020 | U60: 2021 | AA60: in RW | AC60: 2015-2024 | AE60: rendite | AG60: >=5%
B62: ='SMI Analyse KGV'!A63 -> EUR | C62: ='SMI Analyse KGV'!B63 -> Adecco | D62: ='SMI Analyse KGV'!C63 -> ADEN | E62: ='SMI Analyse KGV'!E153 -> 0 | F62: ='SMI Analyse KGV'!F153 -> 0 | G62: ='SMI Analyse KGV'!G153 -> 0 | H62: ='SMI Analyse KGV'!H153 -> 0 | I62: ='SMI Analyse KGV'!I153 -> 0 | J62: ='SMI Analyse KGV'!J153 -> 0 | K62: ='SMI Analyse KGV'!K153 -> 0 | L62: ='SMI Analyse KGV'!L63 -> 2 | M62: ='SMI Analyse KGV'!M63 -> 3.08 | N62: ='SMI Analyse KGV'!N63 -> 3.61 | O62: ='SMI Analyse KGV'!O63 -> 0.05 | P62: ='SMI Analyse KGV'!P63 -> 4.24 | Q62: ='SMI Analyse KGV'!Q63 -> 4.66 | R62: ='SMI Analyse KGV'!R63 -> 2.77 | S62: ='SMI Analyse KGV'!S63 -> 4.47 | T62: ='SMI Analyse KGV'!T63 -> -0.61 | U62: ='SMI Analyse KGV'!U63 -> 3.6 | V62: ='SMI Analyse KGV'!V63 -> 2.04 | W62: ='SMI Analyse KGV'!W63 -> 1.94 | X62: ='SMI Analyse KGV'!X63 -> 1.8 | Y62: =LOOKUP(D62,Daten!$C$2:$C$300,Daten!$E$2:$E$500) -> 21.68 | AA62: =Y62/Währungskurse!C$5 -> 23.56521739 | AC62: ='SMI Analyse KGV'!D63 -> 2.496 | AE62: =AC62/AA62*100 -> 10.59188192 | AG62: =AE62-$N$5 -> 10.09188192 | AH62: =AG62 -> 10.09188192
B64: ='SMI Analyse KGV'!A65 -> ! | C64: ='SMI Analyse KGV'!B65 -> AMS Osram | D64: ='SMI Analyse KGV'!C65 -> AMS | E64: ='SMI Analyse KGV'!E155 -> 0 | F64: ='SMI Analyse KGV'!F155 -> 0 | G64: ='SMI Analyse KGV'!G155 ->  | H64: ='SMI Analyse KGV'!H155 -> 0 | I64: ='SMI Analyse KGV'!I155 -> 0 | J64: ='SMI Analyse KGV'!J155 -> 0 | K64: ='SMI Analyse KGV'!K155 -> 0 | L64: ='SMI Analyse KGV'!L65 -> 1.5 | M64: ='SMI Analyse KGV'!M65 -> 1.11 | N64: ='SMI Analyse KGV'!N65 -> 1.88 | O64: ='SMI Analyse KGV'!O65 -> 2.28 | P64: ='SMI Analyse KGV'!P65 -> 1.51 | Q64: ='SMI Analyse KGV'!Q65 -> 0.81 | R64: ='SMI Analyse KGV'!R65 -> 0.89 | S64: ='SMI Analyse KGV'!S65 -> 2.81 | T64: ='SMI Analyse KGV'!T65 -> -0.06 | U64: ='SMI Analyse KGV'!U65 -> -0.13 | V64: ='SMI Analyse KGV'!V65 -> -0.92 | W64: ='SMI Analyse KGV'!W65 -> -5.05 | X64: ='SMI Analyse KGV'!X65 -> -7.62 | Y64: =LOOKUP(D64,Daten!$C$2:$C$300,Daten!$E$2:$E$500) -> 6.94 | AC64: ='SMI Analyse KGV'!D65 -> -0.548 | AE64: =AC64/Y64*100 -> -7.896253602 | AG64: =AE64-$N$5 -> -8.396253602 | AH64: =AG64 -> -8.396253602
C66: Avolta (ehem. Dufry) | D66: ='SMI Analyse KGV'!C67 -> AVOL | E66: ='SMI Analyse KGV'!E184 -> 0 | F66: ='SMI Analyse KGV'!F184 -> 0 | G66: ='SMI Analyse KGV'!G184 -> 0 | H66: ='SMI Analyse KGV'!H184 -> 0 | I66: ='SMI Analyse KGV'!I184 -> 0 | J66: ='SMI Analyse KGV'!J184 -> 0 | K66: ='SMI Analyse KGV'!K184 -> 0 | L66: ='SMI Analyse KGV'!L67 -> 4.5 | M66: ='SMI Analyse KGV'!M67 -> 3.13 | N66: ='SMI Analyse KGV'!N67 -> 1.55 | O66: ='SMI Analyse KGV'!O67 -> -1.73 | P66: ='SMI Analyse KGV'!P67 -> 0.05 | Q66: ='SMI Analyse KGV'!Q67 -> 1.06 | R66: ='SMI Analyse KGV'!R67 -> 1.38 | S66: ='SMI Analyse KGV'!S67 -> -0.53 | T66: ='SMI Analyse KGV'!T67 -> -43.01 | U66: ='SMI Analyse KGV'!U67 -> -4.39 | V66: ='SMI Analyse KGV'!V67 -> 0.62 | W66: ='SMI Analyse KGV'!W67 -> 0.63 | X66: ='SMI Analyse KGV'!X67 -> 0.68 | Y66: =LOOKUP(D66,Daten!$C$2:$C$300,Daten!$E$2:$E$500) -> 37.2 | AC66: ='SMI Analyse KGV'!D67 -> -4.524 | AE66: =AC66/Y66*100 -> -12.16129032 | AG66: =AE66-$N$5 -> -12.66129032 | AH66: =AG66 -> -12.66129032
C67: ='SMI Analyse KGV'!B78 -> 0
C68: ='SMI Analyse KGV'!B69 -> Bachem | D68: ='SMI Analyse KGV'!C69 -> BANB | E68: =#REF! ->  | F68: =#REF! ->  | G68: =#REF! ->  | H68: =#REF! ->  | I68: =#REF! ->  | J68: =#REF! ->  | K68: =#REF! ->  | L68: ='SMI Analyse KGV'!L69 -> 0.24 | M68: ='SMI Analyse KGV'!M69 -> 0.36 | N68: ='SMI Analyse KGV'!N69 -> 0.43 | O68: ='SMI Analyse KGV'!O69 -> 0.47 | P68: ='SMI Analyse KGV'!P69 -> 0.608 | Q68: ='SMI Analyse KGV'!Q69 -> 0.62 | R68: ='SMI Analyse KGV'!R69 -> 0.69 | S68: ='SMI Analyse KGV'!S69 -> 0.78 | T68: ='SMI Analyse KGV'!T69 -> 1.12 | U68: ='SMI Analyse KGV'!U69 -> 1.62 | V68: ='SMI Analyse KGV'!V69 -> 1.37 | W68: ='SMI Analyse KGV'!W69 -> 1.5 | X68: ='SMI Analyse KGV'!X69 -> 1.6 | Y68: =LOOKUP(D68,Daten!$C$2:$C$300,Daten!$E$2:$E$500) -> 49.52 | AC68: ='SMI Analyse KGV'!D69 -> 1.0378 | AE68: =AC68/Y68*100 -> 2.095718901 | AG68: =AE68-$N$5 -> 1.595718901 | AH68: =AG68 -> 1.595718901
C70: ='SMI Analyse KGV'!B71 -> Baloise | D70: ='SMI Analyse KGV'!C71 -> BALN | E70: ='SMI Analyse KGV'!E156 -> 0 | F70: ='SMI Analyse KGV'!F156 -> 0 | G70: ='SMI Analyse KGV'!G156 -> 0 | H70: ='SMI Analyse KGV'!H156 -> 0 | I70: ='SMI Analyse KGV'!I156 -> 0 | J70: ='SMI Analyse KGV'!J156 -> 0 | K70: ='SMI Analyse KGV'!K156 -> 0 | L70: ='SMI Analyse KGV'!L71 -> 10.2 | M70: ='SMI Analyse KGV'!M71 -> 9.65 | N70: ='SMI Analyse KGV'!N71 -> 15.15 | O70: ='SMI Analyse KGV'!O71 -> 10.96 | P70: ='SMI Analyse KGV'!P71 -> 11.53 | Q70: ='SMI Analyse KGV'!Q71 -> 11.5 | R70: ='SMI Analyse KGV'!R71 -> 11.14 | S70: ='SMI Analyse KGV'!S71 -> 15.02 | T70: ='SMI Analyse KGV'!T71 -> 9.65 | U70: ='SMI Analyse KGV'!U71 -> 13.06 | V70: ='SMI Analyse KGV'!V71 -> 5.48 | W70: ='SMI Analyse KGV'!W71 -> 5.29 | X70: ='SMI Analyse KGV'!X71 -> 8.47 | Y70: =LOOKUP(D70,Daten!$C$2:$C$300,Daten!$E$2:$E$500) -> 184.2 | AC70: ='SMI Analyse KGV'!D71 -> 10.21 | AE70: =AC70/Y70*100 -> 5.542888165 | AG70: =AE70-$N$5 -> 5.042888165 | AH70: =AG70 -> 5.042888165
C71: ='SMI Analyse KGV'!B82 -> 0
C72: ='SMI Analyse KGV'!B73 -> Barry Callebaut | D72: ='SMI Analyse KGV'!C73 -> BARN | E72: ='SMI Analyse KGV'!E158 -> 0 | F72: ='SMI Analyse KGV'!F158 -> 0 | G72: ='SMI Analyse KGV'!G158 -> 0 | H72: ='SMI Analyse KGV'!H158 -> 0 | I72: ='SMI Analyse KGV'!I158 -> 0 | J72: ='SMI Analyse KGV'!J158 -> 0 | K72: ='SMI Analyse KGV'!K158 -> 0 | L72: ='SMI Analyse KGV'!L73 -> 27.5 | M72: ='SMI Analyse KGV'!M73 -> 42.7 | N72: ='SMI Analyse KGV'!N73 -> 46 | O72: ='SMI Analyse KGV'!O73 -> 43.25 | P72: ='SMI Analyse KGV'!P73 -> 39.57 | Q72: ='SMI Analyse KGV'!Q73 -> 51.15 | R72: ='SMI Analyse KGV'!R73 -> 64.93 | S72: ='SMI Analyse KGV'!S73 -> 67.57 | T72: ='SMI Analyse KGV'!T73 -> 57.66 | U72: ='SMI Analyse KGV'!U73 -> 69.84 | V72: ='SMI Analyse KGV'!V73 -> 65.66 | W72: ='SMI Analyse KGV'!W73 -> 80.9 | X72: ='SMI Analyse KGV'!X73 -> 34.58 | Y72: =LOOKUP(D72,Daten!$C$2:$C$300,Daten!$E$2:$E$500) -> 765 | AC72: ='SMI Analyse KGV'!D73 -> 57.511 | AE72: =AC72/Y72*100 -> 7.517777778 | AG72: =AE72-$N$5 -> 7.017777778 | AH72: =AG72 -> 7.017777778
C73: ='SMI Analyse KGV'!B84 -> 0
C74: ='SMI Analyse KGV'!B75 -> Belimo | D74: ='SMI Analyse KGV'!C75 -> BEAN | E74: ='SMI Analyse KGV'!E160 -> 0 | F74: ='SMI Analyse KGV'!F160 -> 0 | G74: ='SMI Analyse KGV'!G160 -> 0 | H74: ='SMI Analyse KGV'!H160 -> 0 | I74: ='SMI Analyse KGV'!I160 -> 0 | J74: ='SMI Analyse KGV'!J160 -> 0 | K74: ='SMI Analyse KGV'!K160 -> 0 | L74: ='SMI Analyse KGV'!L75 -> 4.97 | M74: ='SMI Analyse KGV'!M75 -> 5.15 | N74: ='SMI Analyse KGV'!N75 -> 5.5 | O74: ='SMI Analyse KGV'!O75 -> 4.576 | P74: ='SMI Analyse KGV'!P75 -> 5.7 | Q74: ='SMI Analyse KGV'!Q75 -> 6.3 | R74: ='SMI Analyse KGV'!R75 -> 7.01 | S74: ='SMI Analyse KGV'!S75 -> 9.85 | T74: ='SMI Analyse KGV'!T75 -> 7.05 | U74: ='SMI Analyse KGV'!U75 -> 9.41 | V74: ='SMI Analyse KGV'!V75 -> 9.99 | W74: ='SMI Analyse KGV'!W75 -> 11.14 | X74: ='SMI Analyse KGV'!X75 -> 11.94 | Y74: =LOOKUP(D74,Daten!$C$2:$C$300,Daten!$E$2:$E$500) -> 645 | AC74: ='SMI Analyse KGV'!D75 -> 8.2966 | AE74: =AC74/Y74*100 -> 1.286294574 | AG74: =AE74-$N$5 -> 0.7862945736 | AH74: =AG74 -> 0.7862945736
C75: ='SMI Analyse KGV'!B88 -> 0
C76: ='SMI Analyse KGV'!B77 -> Bell | D76: ='SMI Analyse KGV'!C77 -> BELL | E76: ='SMI Analyse KGV'!E162 -> 0 | F76: ='SMI Analyse KGV'!F162 -> 0 | G76: ='SMI Analyse KGV'!G162 -> 0 | H76: ='SMI Analyse KGV'!H162 -> 0 | I76: ='SMI Analyse KGV'!I162 -> 0 | J76: ='SMI Analyse KGV'!J162 -> 0 | K76: ='SMI Analyse KGV'!K162 -> 0 | L76: ='SMI Analyse KGV'!L77 -> 19.1 | M76: ='SMI Analyse KGV'!M77 -> 19.2 | N76: ='SMI Analyse KGV'!N77 -> 21.9 | O76: ='SMI Analyse KGV'!O77 -> 23.75 | P76: ='SMI Analyse KGV'!P77 -> 25.18 | Q76: ='SMI Analyse KGV'!Q77 -> 26.68 | R76: ='SMI Analyse KGV'!R77 -> 16.89 | S76: ='SMI Analyse KGV'!S77 -> 7.9 | T76: ='SMI Analyse KGV'!T77 -> 18.91 | U76: ='SMI Analyse KGV'!U77 -> 20.31 | V76: ='SMI Analyse KGV'!V77 -> 20.37 | W76: ='SMI Analyse KGV'!W77 -> 20.64 | X76: ='SMI Analyse KGV'!X77 -> 19.71 | Y76: =LOOKUP(D76,Daten!$C$2:$C$300,Daten!$E$2:$E$500) -> 263 | AC76: ='SMI Analyse KGV'!D77 -> 20.034 | AE76: =AC76/Y76*100 -> 7.617490494 | AG76: =AE76-$N$5 -> 7.117490494 | AH76: =AG76 -> 7.117490494
C78: ='alte Firmen'!B3 -> Bobst | D78: ='alte Firmen'!C3 -> BOBNN | E78: ='SMI Analyse KGV'!E164 -> 0 | F78: ='SMI Analyse KGV'!F164 -> 0 | G78: ='SMI Analyse KGV'!G164 -> 0 | H78: ='SMI Analyse KGV'!H164 -> 0 | I78: ='SMI Analyse KGV'!I164 -> 0 | J78: ='SMI Analyse KGV'!J164 -> 0 | K78: ='SMI Analyse KGV'!K164 -> 0 | L78: ='alte Firmen'!L3 -> -0.43 | M78: ='alte Firmen'!M3 -> 1.59 | N78: ='alte Firmen'!N3 -> 3.06 | O78: ='alte Firmen'!O3 -> 3.55 | P78: ='alte Firmen'!P3 -> 5.08 | Q78: ='alte Firmen'!Q3 -> 6.93 | R78: ='alte Firmen'!R3 -> 3.84 | S78: ='alte Firmen'!S3 -> 4.12 | T78: ='alte Firmen'!T3 -> 1.85 | U78: ='alte Firmen'!U3 -> 5.51 | V78: ='SMI Analyse KGV'!V79 -> 10.43 | W78: ='SMI Analyse KGV'!W79 -> 9.06 | X78: ='SMI Analyse KGV'!X79 -> 11.8 | Y78: =LOOKUP(D78,Daten!$C$2:$C$300,Daten!$E$2:$E$500) -> 880 | AC78: ='SMI Analyse KGV'!D79 -> 7.194 | AE78: =AC78/Y78*100 -> 0.8175 | AG78: =AE78-$N$5 -> 0.3175 | AH78: =AG78 -> 0.3175
C79: ='SMI Analyse KGV'!B90 -> 0
C80: ='SMI Analyse KGV'!B81 -> Bossard | D80: ='SMI Analyse KGV'!C81 -> BOSN | E80: ='SMI Analyse KGV'!E166 -> 0 | F80: ='SMI Analyse KGV'!F166 -> 0 | G80: ='SMI Analyse KGV'!G166 -> 0 | H80: ='SMI Analyse KGV'!H166 -> 0 | I80: ='SMI Analyse KGV'!I166 -> 0 | J80: ='SMI Analyse KGV'!J166 -> 0 | K80: ='SMI Analyse KGV'!K166 -> 0 | L80: ='SMI Analyse KGV'!L81 -> 7.19 | M80: ='SMI Analyse KGV'!M81 -> 7.4 | N80: ='SMI Analyse KGV'!N81 -> 7.49 | O80: ='SMI Analyse KGV'!O81 -> 7.01 | P80: ='SMI Analyse KGV'!P81 -> 8.04 | Q80: ='SMI Analyse KGV'!Q81 -> 10.33 | R80: ='SMI Analyse KGV'!R81 -> 10.95 | S80: ='SMI Analyse KGV'!S81 -> 9.73 | T80: ='SMI Analyse KGV'!T81 -> 8.73 | U80: ='SMI Analyse KGV'!U81 -> 12.53 | V80: ='SMI Analyse KGV'!V81 -> 13.38 | W80: ='SMI Analyse KGV'!W81 -> 9.64 | X80: ='SMI Analyse KGV'!X81 -> 9.39 | Y80: =LOOKUP(D80,Daten!$C$2:$C$300,Daten!$E$2:$E$500) -> 178.2 | AC80: ='SMI Analyse KGV'!D81 -> 9.973 | AE80: =AC80/Y80*100 -> 5.596520763 | AG80: =AE80-$N$5 -> 5.096520763 | AH80: =AG80 -> 5.096520763
C81: ='SMI Analyse KGV'!B94 -> 0
C82: ='SMI Analyse KGV'!B83 -> Bucher Industries | D82: ='SMI Analyse KGV'!C83 -> BUCN | E82: ='SMI Analyse KGV'!E168 -> 0 | F82: ='SMI Analyse KGV'!F168 -> 0 | G82: ='SMI Analyse KGV'!G168 -> 0 | H82: ='SMI Analyse KGV'!H168 -> 0 | I82: ='SMI Analyse KGV'!I168 -> 0 | J82: ='SMI Analyse KGV'!J168 -> 0 | K82: ='SMI Analyse KGV'!K168 -> 0 | L82: ='SMI Analyse KGV'!L83 -> 15.53 | M82: ='SMI Analyse KGV'!M83 -> 19.64 | N82: ='SMI Analyse KGV'!N83 -> 18.59 | O82: ='SMI Analyse KGV'!O83 -> 13.68 | P82: ='SMI Analyse KGV'!P83 -> 11.71 | Q82: ='SMI Analyse KGV'!Q83 -> 16.79 | R82: ='SMI Analyse KGV'!R83 -> 20.76 | S82: ='SMI Analyse KGV'!S83 -> 21.92 | T82: ='SMI Analyse KGV'!T83 -> 14.71 | U82: ='SMI Analyse KGV'!U83 -> 25.96 | V82: ='SMI Analyse KGV'!V83 -> 32.36 | W82: ='SMI Analyse KGV'!W83 -> 34.38 | X82: ='SMI Analyse KGV'!X83 -> 22.15 | Y82: =LOOKUP(D82,Daten!$C$2:$C$300,Daten!$E$2:$E$500) -> 346.5 | AC82: ='SMI Analyse KGV'!D83 -> 21.442 | AE82: =AC82/Y82*100 -> 6.188167388 | AG82: =AE82-$N$5 -> 5.688167388 | AH82: =AG82 -> 5.688167388
C84: ='SMI Analyse KGV'!B85 -> Burckhardt Compression | D84: ='SMI Analyse KGV'!C85 -> BCHN | E84: ='SMI Analyse KGV'!E172 -> 0 | F84: ='SMI Analyse KGV'!F172 -> 0 | G84: ='SMI Analyse KGV'!G172 -> 0 | H84: ='SMI Analyse KGV'!H172 -> 0 | I84: ='SMI Analyse KGV'!I172 -> 0 | J84: ='SMI Analyse KGV'!J172 -> 0 | K84: ='SMI Analyse KGV'!K172 -> 0 | L84: ='SMI Analyse KGV'!L85 -> 16.42 | M84: ='SMI Analyse KGV'!M85 -> 15.87 | N84: ='SMI Analyse KGV'!N85 -> 16.93 | O84: ='SMI Analyse KGV'!O85 -> 16.34 | P84: ='SMI Analyse KGV'!P85 -> 11.2 | Q84: ='SMI Analyse KGV'!Q85 -> 8.51 | R84: ='SMI Analyse KGV'!R85 -> 8.15 | S84: ='SMI Analyse KGV'!S85 -> 9.56 | T84: ='SMI Analyse KGV'!T85 -> 13 | U84: ='SMI Analyse KGV'!U85 -> 14.82 | V84: ='SMI Analyse KGV'!V85 -> 20.64 | W84: ='SMI Analyse KGV'!W85 -> 26.63 | X84: ='SMI Analyse KGV'!X85 -> 29.35 | Y84: =LOOKUP(D84,Daten!$C$2:$C$300,Daten!$E$2:$E$500) -> 536 | AC84: ='SMI Analyse KGV'!D85 -> 15.82 | AE84: =AC84/Y84*100 -> 2.951492537 | AG84: =AE84-$N$5 -> 2.451492537 | AH84: =AG84 -> 2.451492537
C86: ='SMI Analyse KGV'!B87 -> Burkhalter | D86: ='SMI Analyse KGV'!C87 -> BRKN | E86: ='SMI Analyse KGV'!E170 -> 0 | F86: ='SMI Analyse KGV'!F170 -> 0 | G86: ='SMI Analyse KGV'!G170 -> 0 | H86: ='SMI Analyse KGV'!H170 -> 0 | I86: ='SMI Analyse KGV'!I170 -> 0 | J86: ='SMI Analyse KGV'!J170 -> 0 | K86: ='SMI Analyse KGV'!K170 -> 0 | L86: ='SMI Analyse KGV'!L87 -> 4.29 | M86: ='SMI Analyse KGV'!M87 -> 4.48 | N86: ='SMI Analyse KGV'!N87 -> 5.25 | O86: ='SMI Analyse KGV'!O87 -> 5.8 | P86: ='SMI Analyse KGV'!P87 -> 6.08 | Q86: ='SMI Analyse KGV'!Q87 -> 5.02 | R86: ='SMI Analyse KGV'!R87 -> 3.92 | S86: ='SMI Analyse KGV'!S87 -> 3.72 | T86: ='SMI Analyse KGV'!T87 -> 2.43 | U86: ='SMI Analyse KGV'!U87 -> 3.99 | V86: ='SMI Analyse KGV'!V87 -> 4.73 | W86: ='SMI Analyse KGV'!W87 -> 4.95 | X86: ='SMI Analyse KGV'!X87 -> 5.1 | Y86: =LOOKUP(D86,Daten!$C$2:$C$300,Daten!$E$2:$E$500) -> 121.8 | AC86: ='SMI Analyse KGV'!D87 -> 4.574 | AE86: =AC86/Y86*100 -> 3.755336617 | AG86: =AE86-$N$5 -> 3.255336617 | AH86: =AG86 -> 3.255336617
C87: ='SMI Analyse KGV'!B104 -> 0
C88: ='SMI Analyse KGV'!B89 -> Calida | D88: ='SMI Analyse KGV'!C89 -> CALN | E88: ='SMI Analyse KGV'!E174 -> 0 | F88: ='SMI Analyse KGV'!F174 -> 0 | G88: ='SMI Analyse KGV'!G174 -> 0 | H88: ='SMI Analyse KGV'!H174 -> 0 | I88: ='SMI Analyse KGV'!I174 -> 0 | J88: ='SMI Analyse KGV'!J174 -> 0 | K88: ='SMI Analyse KGV'!K174 -> 0 | L88: ='SMI Analyse KGV'!L89 -> 2.58 | M88: ='SMI Analyse KGV'!M89 -> 1.36 | N88: ='SMI Analyse KGV'!N89 -> 2.74 | O88: ='SMI Analyse KGV'!O89 -> 1.97 | P88: ='SMI Analyse KGV'!P89 -> 1.72 | Q88: ='SMI Analyse KGV'!Q89 -> 1.88 | R88: ='SMI Analyse KGV'!R89 -> 1.97 | S88: ='SMI Analyse KGV'!S89 -> 1.9 | T88: ='SMI Analyse KGV'!T89 -> -0.17 | U88: ='SMI Analyse KGV'!U89 -> 2.43 | V88: ='SMI Analyse KGV'!V89 -> 4.39 | W88: ='SMI Analyse KGV'!W89 -> -7.88 | X88: ='SMI Analyse KGV'!X89 -> 1.9 | Y88: =LOOKUP(D88,Daten!$C$2:$C$300,Daten!$E$2:$E$500) -> 15.82 | AC88: ='SMI Analyse KGV'!D89 -> 1.011 | AE88: =AC88/Y88*100 -> 6.390644753 | AG88: =AE88-$N$5 -> 5.890644753 | AH88: =AG88 -> 5.890644753
C89: ='SMI Analyse KGV'!B106 -> 0
C90: ='SMI Analyse KGV'!B91 -> Carlo Gavazzi 1) | D90: ='SMI Analyse KGV'!C91 -> GAV | E90: ='SMI Analyse KGV'!E176 -> 0 | F90: ='SMI Analyse KGV'!F176 -> 0 | G90: ='SMI Analyse KGV'!G176 -> 0 | H90: ='SMI Analyse KGV'!H176 -> 0 | I90: ='SMI Analyse KGV'!I176 -> 0 | J90: ='SMI Analyse KGV'!J176 -> 0 | K90: ='SMI Analyse KGV'!K176 -> 0 | L90: ='SMI Analyse KGV'!L91 -> 17.66 | M90: ='SMI Analyse KGV'!M91 -> 15.69 | N90: ='SMI Analyse KGV'!N91 -> 17.26 | O90: ='SMI Analyse KGV'!O91 -> 13.58 | P90: ='SMI Analyse KGV'!P91 -> 18.84 | Q90: ='SMI Analyse KGV'!Q91 -> 11.81 | R90: ='SMI Analyse KGV'!R91 -> 15.07 | S90: ='SMI Analyse KGV'!S91 -> 8.55 | T90: ='SMI Analyse KGV'!T91 -> 16.96 | U90: ='SMI Analyse KGV'!U91 -> 31 | V90: ='SMI Analyse KGV'!V91 -> 39.71 | W90: ='SMI Analyse KGV'!W91 -> 26.29 | X90: ='SMI Analyse KGV'!X91 -> 8.25 | Y90: =LOOKUP(D90,Daten!$C$2:$C$300,Daten!$E$2:$E$500) -> 192.5 | AC90: ='SMI Analyse KGV'!D91 -> 19.006 | AE90: =AC90/Y90*100 -> 9.873246753 | AG90: =AE90-$N$5 -> 9.373246753 | AH90: =AG90 -> 9.373246753
C91: ='SMI Analyse KGV'!B110 -> 0
C92: ='SMI Analyse KGV'!B93 -> Clariant | D92: ='SMI Analyse KGV'!C93 -> CLN | E92: ='SMI Analyse KGV'!E178 -> 0 | F92: ='SMI Analyse KGV'!F178 -> 0 | G92: ='SMI Analyse KGV'!G178 -> 0 | H92: ='SMI Analyse KGV'!H178 -> 0 | I92: ='SMI Analyse KGV'!I178 -> 0 | J92: ='SMI Analyse KGV'!J178 -> 0 | K92: ='SMI Analyse KGV'!K178 -> 0 | L92: ='SMI Analyse KGV'!L93 -> 0.74 | M92: ='SMI Analyse KGV'!M93 -> -0.06 | N92: ='SMI Analyse KGV'!N93 -> 0.48 | O92: ='SMI Analyse KGV'!O93 -> 0.71 | P92: ='SMI Analyse KGV'!P93 -> 0.78 | Q92: ='SMI Analyse KGV'!Q93 -> 0.84 | R92: ='SMI Analyse KGV'!R93 -> 1.02 | S92: ='SMI Analyse KGV'!S93 -> 0.03 | T92: ='SMI Analyse KGV'!T93 -> 2.38 | U92: ='SMI Analyse KGV'!U93 -> 0.81 | V92: ='SMI Analyse KGV'!V93 -> -0.4 | W92: ='SMI Analyse KGV'!W93 -> 0.41 | X92: ='SMI Analyse KGV'!X93 -> 0.74 | Y92: =LOOKUP(D92,Daten!$C$2:$C$300,Daten!$E$2:$E$500) -> 9.085 | AC92: ='SMI Analyse KGV'!D93 -> 0.732 | AE92: =AC92/Y92*100 -> 8.057237204 | AG92: =AE92-$N$5 -> 7.557237204 | AH92: =AG92 -> 7.557237204
C93: ='SMI Analyse KGV'!B112 -> 0
C94: ='SMI Analyse KGV'!B95 -> Dätwyler 2) | D94: ='SMI Analyse KGV'!C95 -> DAE | E94: ='SMI Analyse KGV'!E180 -> 0 | F94: ='SMI Analyse KGV'!F180 -> 0 | G94: ='SMI Analyse KGV'!G180 -> 0 | H94: ='SMI Analyse KGV'!H180 -> 0 | I94: ='SMI Analyse KGV'!I180 -> 0 | J94: ='SMI Analyse KGV'!J180 -> 0 | K94: ='SMI Analyse KGV'!K180 -> 0 | L94: ='SMI Analyse KGV'!L95 -> 8.23 | M94: ='SMI Analyse KGV'!M95 -> 7.6 | N94: ='SMI Analyse KGV'!N95 -> 6.14 | O94: ='SMI Analyse KGV'!O95 -> 5.04 | P94: ='SMI Analyse KGV'!P95 -> 3.47 | Q94: ='SMI Analyse KGV'!Q95 -> 7.28 | R94: ='SMI Analyse KGV'!R95 -> 7.12 | S94: ='SMI Analyse KGV'!S95 -> 5.6 | T94: ='SMI Analyse KGV'!T95 -> 6.99 | U94: ='SMI Analyse KGV'!U95 -> 7.28 | V94: ='SMI Analyse KGV'!V95 -> 6.16 | W94: ='SMI Analyse KGV'!W95 -> 3.93 | X94: ='SMI Analyse KGV'!X95 -> 1.83 | Y94: =LOOKUP(D94,Daten!$C$2:$C$300,Daten!$E$2:$E$500) -> 121 | AC94: ='SMI Analyse KGV'!D95 -> 5.47 | AE94: =AC94/Y94*100 -> 4.520661157 | AG94: =AE94-$N$5 -> 4.020661157 | AH94: =AG94 -> 4.020661157
C95: ='SMI Analyse KGV'!B142 -> 0
C96: ='SMI Analyse KGV'!B97 -> Ems-Chemie | D96: ='SMI Analyse KGV'!C97 -> EMSN | E96: ='SMI Analyse KGV'!E186 -> 0 | F96: ='SMI Analyse KGV'!F186 -> 0 | G96: ='SMI Analyse KGV'!G186 -> 0 | H96: ='SMI Analyse KGV'!H186 -> 0 | I96: ='SMI Analyse KGV'!I186 -> 0 | J96: ='SMI Analyse KGV'!J186 -> 0 | K96: ='SMI Analyse KGV'!K186 -> 0 | L96: ='SMI Analyse KGV'!L97 -> 11.45 | M96: ='SMI Analyse KGV'!M97 -> 13.58 | N96: ='SMI Analyse KGV'!N97 -> 14.66 | O96: ='SMI Analyse KGV'!O97 -> 16.09 | P96: ='SMI Analyse KGV'!P97 -> 19.19 | Q96: ='SMI Analyse KGV'!Q97 -> 20.59 | R96: ='SMI Analyse KGV'!R97 -> 22.22 | S96: ='SMI Analyse KGV'!S97 -> 22.54 | T96: ='SMI Analyse KGV'!T97 -> 18.57 | U96: ='SMI Analyse KGV'!U97 -> 23.53 | V96: ='SMI Analyse KGV'!V97 -> 22.75 | W96: ='SMI Analyse KGV'!W97 -> 19.56 | X96: ='SMI Analyse KGV'!X97 -> 19.7 | Y96: =LOOKUP(D96,Daten!$C$2:$C$300,Daten!$E$2:$E$500) -> 596 | AC96: ='SMI Analyse KGV'!D97 -> 20.474 | AE96: =AC96/Y96*100 -> 3.435234899 | AG96: =AE96-$N$5 -> 2.935234899 | AH96: =AG96 -> 2.935234899
B98: CHF | C98: ='SMI Analyse KGV'!B99 -> Flughafen Zürich | D98: ='SMI Analyse KGV'!C99 -> FHZN | E98: ='SMI Analyse KGV'!E188 -> 0 | F98: ='SMI Analyse KGV'!F188 -> 0 | G98: ='SMI Analyse KGV'!G188 -> 0 | H98: ='SMI Analyse KGV'!H188 -> 0 | I98: ='SMI Analyse KGV'!I188 -> 0 | J98: ='SMI Analyse KGV'!J188 -> 0 | K98: ='SMI Analyse KGV'!K188 -> 0 | L98: ='SMI Analyse KGV'!L99 -> 3.1 | M98: ='SMI Analyse KGV'!M99 -> 4.46 | N98: ='SMI Analyse KGV'!N99 -> 6.71 | O98: ='SMI Analyse KGV'!O99 -> 5.85 | P98: ='SMI Analyse KGV'!P99 -> 8.07 | Q98: ='SMI Analyse KGV'!Q99 -> 9.29 | R98: ='SMI Analyse KGV'!R99 -> 7.75 | S98: ='SMI Analyse KGV'!S99 -> 10.07 | T98: ='SMI Analyse KGV'!T99 -> -2.25 | U98: ='SMI Analyse KGV'!U99 -> -0.33 | V98: ='SMI Analyse KGV'!V99 -> 6.74 | W98: ='SMI Analyse KGV'!W99 -> 9.91 | X98: ='SMI Analyse KGV'!X99 -> 10.64 | Y98: =LOOKUP(D98,Daten!$C$2:$C$300,Daten!$E$2:$E$500) -> 206.8 | AC98: ='SMI Analyse KGV'!D99 -> 6.574 | AE98: =AC98/Y98*100 -> 3.178916828 | AG98: =AE98-$N$5 -> 2.678916828 | AH98: =AG98 -> 2.678916828
C100: ='SMI Analyse KGV'!B101 -> Forbo N | D100: ='SMI Analyse KGV'!C101 -> FORN | E100: ='SMI Analyse KGV'!E190 -> 0 | F100: ='SMI Analyse KGV'!F190 -> 0 | G100: ='SMI Analyse KGV'!G190 -> 0 | H100: ='SMI Analyse KGV'!H190 -> 0 | I100: ='SMI Analyse KGV'!I190 -> 0 | J100: ='SMI Analyse KGV'!J190 -> 0 | K100: ='SMI Analyse KGV'!K190 -> 0 | L100: ='SMI Analyse KGV'!L101 -> 89.04 | M100: ='SMI Analyse KGV'!M101 -> 53.19 | N100: ='SMI Analyse KGV'!N101 -> 61.95 | O100: ='SMI Analyse KGV'!O101 -> 62.13 | P100: ='SMI Analyse KGV'!P101 -> 74.65 | Q100: ='SMI Analyse KGV'!Q101 -> 22.36 | R100: ='SMI Analyse KGV'!R101 -> 82.38 | S100: ='SMI Analyse KGV'!S101 -> 86.33 | T100: ='SMI Analyse KGV'!T101 -> 66.6 | U100: ='SMI Analyse KGV'!U101 -> 91.62 | V100: ='SMI Analyse KGV'!V101 -> 71.76 | W100: ='SMI Analyse KGV'!W101 -> 72.55 | X100: ='SMI Analyse KGV'!X101 -> 67.42 | Y100: =LOOKUP(D100,Daten!$C$2:$C$300,Daten!$E$2:$E$500) -> 782 | AC100: ='SMI Analyse KGV'!D101 -> 69.78 | AE100: =AC100/Y100*100 -> 8.923273657 | AG100: =AE100-$N$5 -> 8.423273657 | AH100: =AG100 -> 8.423273657
C102: ='SMI Analyse KGV'!B103 -> Galenica | D102: ='SMI Analyse KGV'!C103 -> GALE | E102: ='SMI Analyse KGV'!E192 -> 0 | F102: ='SMI Analyse KGV'!F192 -> 0 | G102: ='SMI Analyse KGV'!G192 -> 0 | H102: ='SMI Analyse KGV'!H192 -> 0 | I102: ='SMI Analyse KGV'!I192 -> 0 | J102: ='SMI Analyse KGV'!J192 -> 0 | K102: ='SMI Analyse KGV'!K192 -> 0 | L102: ='SMI Analyse KGV'!L103 -> 3.9 | M102: ='SMI Analyse KGV'!M103 -> 4.5 | N102: ='SMI Analyse KGV'!N103 -> 1.64 | O102: ='SMI Analyse KGV'!O103 -> 1.62 | P102: ='SMI Analyse KGV'!P103 -> 1.67 | Q102: ='SMI Analyse KGV'!Q103 -> 2.43 | R102: ='SMI Analyse KGV'!R103 -> 3 | S102: ='SMI Analyse KGV'!S103 -> 2.54 | T102: ='SMI Analyse KGV'!T103 -> 3.48 | U102: ='SMI Analyse KGV'!U103 -> 3.38 | V102: ='SMI Analyse KGV'!V103 -> 3.32 | W102: ='SMI Analyse KGV'!W103 -> 5.72 | X102: ='SMI Analyse KGV'!X103 -> 3.67 | Y102: =LOOKUP(D102,Daten!$C$2:$C$300,Daten!$E$2:$E$500) -> 84.05 | AC102: ='SMI Analyse KGV'!D103 -> 3.083 | AE102: =AC102/Y102*100 -> 3.668054729 | AG102: =AE102-$N$5 -> 3.168054729 | AH102: =AG102 -> 3.168054729
C104: ='SMI Analyse KGV'!B105 -> Georg Fischer AG | D104: ='SMI Analyse KGV'!C105 -> GF | E104: ='SMI Analyse KGV'!E194 -> 0 | F104: ='SMI Analyse KGV'!F194 -> 0 | G104: ='SMI Analyse KGV'!G194 -> 0 | H104: ='SMI Analyse KGV'!H194 -> 0 | I104: ='SMI Analyse KGV'!I194 -> 0 | J104: ='SMI Analyse KGV'!J194 -> 0 | K104: ='SMI Analyse KGV'!K194 -> 0 | L104: ='SMI Analyse KGV'!L105 -> 1.6 | M104: ='SMI Analyse KGV'!M105 -> 1.7 | N104: ='SMI Analyse KGV'!N105 -> 2.25 | O104: ='SMI Analyse KGV'!O105 -> 2.3 | P104: ='SMI Analyse KGV'!P105 -> 2.65 | Q104: ='SMI Analyse KGV'!Q105 -> 3.1 | R104: ='SMI Analyse KGV'!R105 -> 3.45 | S104: ='SMI Analyse KGV'!S105 -> 2.1 | T104: ='SMI Analyse KGV'!T105 -> 1.4 | U104: ='SMI Analyse KGV'!U105 -> 2.62 | V104: ='SMI Analyse KGV'!V105 -> 3.37 | W104: ='SMI Analyse KGV'!W105 -> 2.87 | X104: ='SMI Analyse KGV'!X105 -> 2.61 | Y104: =LOOKUP(D104,Daten!$C$2:$C$300,Daten!$E$2:$E$500) -> 59.45 | AC104: ='SMI Analyse KGV'!D105 -> 2.647 | AE104: =AC104/Y104*100 -> 4.452481077 | AG104: =AE104-$N$5 -> 3.952481077 | AH104: =AG104 -> 3.952481077
C106: ='SMI Analyse KGV'!B107 -> Gurit Holding I | D106: ='SMI Analyse KGV'!C107 -> GURN | E106: ='SMI Analyse KGV'!E196 -> 0 | F106: ='SMI Analyse KGV'!F196 -> 0 | G106: ='SMI Analyse KGV'!G196 -> 0 | H106: ='SMI Analyse KGV'!H196 -> 0 | I106: ='SMI Analyse KGV'!I196 -> 0 | J106: ='SMI Analyse KGV'!J196 -> 0 | K106: ='SMI Analyse KGV'!K196 -> 0 | L106: ='SMI Analyse KGV'!L107 -> 2.94 | M106: ='SMI Analyse KGV'!M107 -> 0.024 | N106: ='SMI Analyse KGV'!N107 -> 2.374 | O106: ='SMI Analyse KGV'!O107 -> 4.824 | P106: ='SMI Analyse KGV'!P107 -> 5.564 | Q106: ='SMI Analyse KGV'!Q107 -> 5.332 | R106: ='SMI Analyse KGV'!R107 -> 4.296 | S106: ='SMI Analyse KGV'!S107 -> 7.606 | T106: ='SMI Analyse KGV'!T107 -> 10.031 | U106: ='SMI Analyse KGV'!U107 -> 2.429 | V106: ='SMI Analyse KGV'!V107 -> 1.98 | W106: ='SMI Analyse KGV'!W107 -> 1.59 | X106: ='SMI Analyse KGV'!X107 -> -5.97 | Y106: =LOOKUP(D106,Daten!$C$2:$C$300,Daten!$E$2:$E$500) -> 12.54 | AC106: ='SMI Analyse KGV'!D107 -> 3.7682 | AE106: =AC106/Y106*100 -> 30.04944179 | AG106: =AE106-$N$5 -> 29.54944179 | AH106: =AG106 -> 29.54944179
C108: ='SMI Analyse KGV'!B109 -> Helvetia Holding | D108: ='SMI Analyse KGV'!C109 -> HELN | E108: ='SMI Analyse KGV'!E198 -> 0 | F108: ='SMI Analyse KGV'!F198 -> 0 | G108: ='SMI Analyse KGV'!G198 -> 0 | H108: ='SMI Analyse KGV'!H198 -> 0 | I108: ='SMI Analyse KGV'!I198 -> 0 | J108: ='SMI Analyse KGV'!J198 -> 0 | K108: ='SMI Analyse KGV'!K198 -> 0 | L108: ='SMI Analyse KGV'!L109 -> 7.42 | M108: ='SMI Analyse KGV'!M109 -> 8.178 | N108: ='SMI Analyse KGV'!N109 -> 8.596 | O108: ='SMI Analyse KGV'!O109 -> 5.796 | P108: ='SMI Analyse KGV'!P109 -> 7.214 | Q108: ='SMI Analyse KGV'!Q109 -> 7.82 | R108: ='SMI Analyse KGV'!R109 -> 8.37 | S108: ='SMI Analyse KGV'!S109 -> 10.52 | T108: ='SMI Analyse KGV'!T109 -> 4.76 | U108: ='SMI Analyse KGV'!U109 -> 9.17 | V108: ='SMI Analyse KGV'!V109 -> 10.6 | W108: ='SMI Analyse KGV'!W109 -> 5.24 | X108: ='SMI Analyse KGV'!X109 -> 8.99 | Y108: =LOOKUP(D108,Daten!$C$2:$C$300,Daten!$E$2:$E$500) -> 180.7 | AC108: ='SMI Analyse KGV'!D109 -> 7.848 | AE108: =AC108/Y108*100 -> 4.343110127 | AG108: =AE108-$N$5 -> 3.843110127 | AH108: =AG108 -> 3.843110127
C110: ='SMI Analyse KGV'!B111 -> Hypo Lenzburg | D110: ='SMI Analyse KGV'!C111 -> HBLN | E110: ='SMI Analyse KGV'!E200 -> 0 | F110: ='SMI Analyse KGV'!F200 -> 0 | G110: ='SMI Analyse KGV'!G200 -> 0 | H110: ='SMI Analyse KGV'!H200 -> 0 | I110: ='SMI Analyse KGV'!I200 -> 0 | J110: ='SMI Analyse KGV'!J200 -> 0 | K110: ='SMI Analyse KGV'!K200 -> 0 | L110: ='SMI Analyse KGV'!L111 -> 337 | M110: ='SMI Analyse KGV'!M111 -> 318 | N110: ='SMI Analyse KGV'!N111 -> 294 | O110: ='SMI Analyse KGV'!O111 -> 295 | P110: ='SMI Analyse KGV'!P111 -> 300 | Q110: ='SMI Analyse KGV'!Q111 -> 307 | R110: ='SMI Analyse KGV'!R111 -> 289.36 | S110: ='SMI Analyse KGV'!S111 -> 292.33 | T110: ='SMI Analyse KGV'!T111 -> 251 | U110: ='SMI Analyse KGV'!U111 -> 254 | V110: ='SMI Analyse KGV'!V111 -> 259 | W110: ='SMI Analyse KGV'!W111 -> 295 | X110: ='SMI Analyse KGV'!X111 -> 285 | Y110: =LOOKUP(D110,Daten!$C$2:$C$300,Daten!$E$2:$E$500) -> 4020 | AC110: ='SMI Analyse KGV'!D111 -> 282.769 | AE110: =AC110/Y110*100 -> 7.034054726 | AG110: =AE110-$N$5 -> 6.534054726 | AH110: =AG110 -> 6.534054726
C112: ='SMI Analyse KGV'!B113 -> Julius Bär | D112: ='SMI Analyse KGV'!C113 -> BAER | E112: ='SMI Analyse KGV'!E202 -> 0 | F112: ='SMI Analyse KGV'!F202 -> 0 | G112: ='SMI Analyse KGV'!G202 -> 0 | H112: ='SMI Analyse KGV'!H202 -> 0 | I112: ='SMI Analyse KGV'!I202 -> 0 | J112: ='SMI Analyse KGV'!J202 -> 0 | K112: ='SMI Analyse KGV'!K202 -> 0 | L112: ='SMI Analyse KGV'!L113 -> 1.47 | M112: ='SMI Analyse KGV'!M113 -> 0.86 | N112: ='SMI Analyse KGV'!N113 -> 1.68 | O112: ='SMI Analyse KGV'!O113 -> 0.55 | P112: ='SMI Analyse KGV'!P113 -> 2.84 | Q112: ='SMI Analyse KGV'!Q113 -> 3.25 | R112: ='SMI Analyse KGV'!R113 -> 3.38 | S112: ='SMI Analyse KGV'!S113 -> 2.12 | T112: ='SMI Analyse KGV'!T113 -> 3.23 | U112: ='SMI Analyse KGV'!U113 -> 5.06 | V112: ='SMI Analyse KGV'!V113 -> 4.56 | W112: ='SMI Analyse KGV'!W113 -> 2.21 | X112: ='SMI Analyse KGV'!X113 -> 4.97 | Y112: =LOOKUP(D112,Daten!$C$2:$C$300,Daten!$E$2:$E$500) -> 52.02 | AC112: ='SMI Analyse KGV'!D113 -> 3.217 | AE112: =AC112/Y112*100 -> 6.184159938 | AG112: =AE112-$N$5 -> 5.684159938 | AH112: =AG112 -> 5.684159938
C114: ='SMI Analyse KGV'!B115 -> Jungfraubahn | D114: ='SMI Analyse KGV'!C115 -> JFN | E114: ='SMI Analyse KGV'!E204 -> 0 | F114: ='SMI Analyse KGV'!F204 -> 0 | G114: ='SMI Analyse KGV'!G204 -> 0 | H114: ='SMI Analyse KGV'!H204 -> 0 | I114: ='SMI Analyse KGV'!I204 -> 0 | J114: ='SMI Analyse KGV'!J204 -> 0 | K114: ='SMI Analyse KGV'!K204 -> 0 | L114: ='SMI Analyse KGV'!L115 -> 4.46 | M114: ='SMI Analyse KGV'!M115 -> 5.17 | N114: ='SMI Analyse KGV'!N115 -> 5.23 | O114: ='SMI Analyse KGV'!O115 -> 6.23 | P114: ='SMI Analyse KGV'!P115 -> 5.31 | Q114: ='SMI Analyse KGV'!Q115 -> 7.09 | R114: ='SMI Analyse KGV'!R115 -> 8.22 | S114: ='SMI Analyse KGV'!S115 -> 9.11 | T114: ='SMI Analyse KGV'!T115 -> -1.58 | U114: ='SMI Analyse KGV'!U115 -> -0.08 | V114: ='SMI Analyse KGV'!V115 -> 7.49 | W114: ='SMI Analyse KGV'!W115 -> 13.61 | X114: ='SMI Analyse KGV'!X115 -> 13.38 | Y114: =LOOKUP(D114,Daten!$C$2:$C$300,Daten!$E$2:$E$500) -> 196.6 | AC114: ='SMI Analyse KGV'!D115 -> 6.878 | AE114: =AC114/Y114*100 -> 3.498474059 | AG114: =AE114-$N$5 -> 2.998474059 | AH114: =AG114 -> 2.998474059
C116: ='SMI Analyse KGV'!B117 -> Lindt | D116: ='SMI Analyse KGV'!C117 -> LISN | E116: ='SMI Analyse KGV'!E206 -> 0 | F116: ='SMI Analyse KGV'!F206 -> 0 | G116: ='SMI Analyse KGV'!G206 -> 0 | H116: ='SMI Analyse KGV'!H206 -> 0 | I116: ='SMI Analyse KGV'!I206 -> 0 | J116: ='SMI Analyse KGV'!J206 -> 0 | K116: ='SMI Analyse KGV'!K206 -> 0 | L116: ='SMI Analyse KGV'!L117 -> 1079 | M116: ='SMI Analyse KGV'!M117 -> 1339 | N116: ='SMI Analyse KGV'!N117 -> 1503 | O116: ='SMI Analyse KGV'!O117 -> 1646 | P116: ='SMI Analyse KGV'!P117 -> 1791 | Q116: ='SMI Analyse KGV'!Q117 -> 1893 | R116: ='SMI Analyse KGV'!R117 -> 2021 | S116: ='SMI Analyse KGV'!S117 -> 2142 | T116: ='SMI Analyse KGV'!T117 -> 1333 | U116: ='SMI Analyse KGV'!U117 -> 2049 | V116: ='SMI Analyse KGV'!V117 -> 2387 | W116: ='SMI Analyse KGV'!W117 -> 2859.1 | X116: ='SMI Analyse KGV'!X117 -> 2897.7 | Y116: =LOOKUP(D116,Daten!$C$2:$C$300,Daten!$E$2:$E$500) -> 115000 | AC116: ='SMI Analyse KGV'!D117 -> 2101.88 | AE116: =AC116/Y116*100 -> 1.827721739 | AG116: =AE116-$N$5 -> 1.327721739 | AH116: =AG116 -> 1.327721739
C118: ='SMI Analyse KGV'!B119 -> MeierTobler | D118: ='SMI Analyse KGV'!C119 -> MTG | E118: ='SMI Analyse KGV'!E208 -> 0 | F118: ='SMI Analyse KGV'!F208 -> 0 | G118: ='SMI Analyse KGV'!G208 -> 0 | H118: ='SMI Analyse KGV'!H208 -> 0 | I118: ='SMI Analyse KGV'!I208 -> 0 | J118: ='SMI Analyse KGV'!J208 -> 0 | K118: ='SMI Analyse KGV'!K208 -> 0 | L118: ='SMI Analyse KGV'!L119 -> 5.252 | M118: ='SMI Analyse KGV'!M119 -> 2.92 | N118: ='SMI Analyse KGV'!N119 -> 1.96 | O118: ='SMI Analyse KGV'!O119 -> 1.02 | P118: ='SMI Analyse KGV'!P119 -> 2.02 | Q118: ='SMI Analyse KGV'!Q119 -> -0.29 | R118: ='SMI Analyse KGV'!R119 -> -0.77 | S118: ='SMI Analyse KGV'!S119 -> 0.11 | T118: ='SMI Analyse KGV'!T119 -> 0.32 | U118: ='SMI Analyse KGV'!U119 -> 1.31 | V118: ='SMI Analyse KGV'!V119 -> 2.6 | W118: ='SMI Analyse KGV'!W119 -> 2.37 | X118: ='SMI Analyse KGV'!X119 -> 1.92 | Y118: =LOOKUP(D118,Daten!$C$2:$C$300,Daten!$E$2:$E$500) -> 33.95 | AC118: ='SMI Analyse KGV'!D119 -> 1.061 | AE118: =AC118/Y118*100 -> 3.125184094 | AG118: =AE118-$N$5 -> 2.625184094 | AH118: =AG118 -> 2.625184094
C120: ='SMI Analyse KGV'!B121 -> Meyer Burger | D120: ='SMI Analyse KGV'!C121 -> MBTN | E120: ='SMI Analyse KGV'!E210 -> 0 | F120: ='SMI Analyse KGV'!F210 -> 0 | G120: ='SMI Analyse KGV'!G210 -> 0 | H120: ='SMI Analyse KGV'!H210 -> 0 | I120: ='SMI Analyse KGV'!I210 -> 0 | J120: ='SMI Analyse KGV'!J210 -> 0 | K120: ='SMI Analyse KGV'!K210 -> 0 | L120: ='SMI Analyse KGV'!L121 -> -1.9 | M120: ='SMI Analyse KGV'!M121 -> -2.3 | N120: ='SMI Analyse KGV'!N121 -> -0.52 | O120: ='SMI Analyse KGV'!O121 -> -0.65 | P120: ='SMI Analyse KGV'!P121 -> -0.3 | Q120: ='SMI Analyse KGV'!Q121 -> -0.14 | R120: ='SMI Analyse KGV'!R121 -> -0.05 | S120: ='SMI Analyse KGV'!S121 -> -0.02 | T120: ='SMI Analyse KGV'!T121 -> -0.04 | U120: ='SMI Analyse KGV'!U121 -> -0.04 | V120: ='SMI Analyse KGV'!V121 -> -0.02 | W120: ='SMI Analyse KGV'!W121 -> -0.08 | X120: ='SMI Analyse KGV'!X121 -> 0 | Y120: =LOOKUP(D120,Daten!$C$2:$C$300,Daten!$E$2:$E$500) -> 1.616 | AC120: ='SMI Analyse KGV'!D121 -> -0.134 | AE120: =AC120/Y120*100 -> -8.292079208 | AG120: =AE120-$N$5 -> -8.792079208 | AH120: =AG120 -> -8.792079208
C122: ='SMI Analyse KGV'!B123 -> PSP Swiss Property | D122: ='SMI Analyse KGV'!C123 -> PSPN | E122: ='SMI Analyse KGV'!E212 -> 0 | F122: ='SMI Analyse KGV'!F212 -> 0 | G122: ='SMI Analyse KGV'!G212 -> 0 | H122: ='SMI Analyse KGV'!H212 -> 0 | I122: ='SMI Analyse KGV'!I212 -> 0 | J122: ='SMI Analyse KGV'!J212 -> 0 | K122: ='SMI Analyse KGV'!K212 -> 0 | L122: ='SMI Analyse KGV'!L123 -> 3.6 | M122: ='SMI Analyse KGV'!M123 -> 3.79 | N122: ='SMI Analyse KGV'!N123 -> 3.69 | O122: ='SMI Analyse KGV'!O123 -> 3.52 | P122: ='SMI Analyse KGV'!P123 -> 3.76 | Q122: ='SMI Analyse KGV'!Q123 -> 3.89 | R122: ='SMI Analyse KGV'!R123 -> 3.84 | S122: ='SMI Analyse KGV'!S123 -> 4.69 | T122: ='SMI Analyse KGV'!T123 -> 4.7 | U122: ='SMI Analyse KGV'!U123 -> 4.82 | V122: ='SMI Analyse KGV'!V123 -> 5.14 | W122: ='SMI Analyse KGV'!W123 -> 7.4 | X122: ='SMI Analyse KGV'!X123 -> 5.05 | Y122: =LOOKUP(D122,Daten!$C$2:$C$300,Daten!$E$2:$E$500) -> 142.8 | AC122: ='SMI Analyse KGV'!D123 -> 4.681 | AE122: =AC122/Y122*100 -> 3.278011204 | AG122: =AE122-$N$5 -> 2.778011204 | AH122: =AG122 -> 2.778011204
B124: in CHF | C124: Sandoz | D124: SDZ | E124: =SUM(P124:Y124)/10 -> 4.008 | N124: ='SMI Analyse KGV'!N125 -> 0 | O124: ='SMI Analyse KGV'!O125 -> 0 | P124: ='SMI Analyse KGV'!P125 -> 0 | Q124: ='SMI Analyse KGV'!Q125 -> 0 | R124: ='SMI Analyse KGV'!R125 -> 0 | S124: ='SMI Analyse KGV'!S125 -> 0 | T124: ='SMI Analyse KGV'!T125 -> 1.01 | U124: ='SMI Analyse KGV'!U125 -> 1.93 | V124: ='SMI Analyse KGV'!V125 -> 1.97 | W124: ='SMI Analyse KGV'!W125 -> 0.18 | X124: ='SMI Analyse KGV'!X125 -> 0 | Y124: =LOOKUP(D124,Daten!$C$2:$C$300,Daten!$E$2:$E$500) -> 34.99 | AC124: ='SMI Analyse KGV'!D125 -> 1.018 | AE124: =AC124/Y124*100 -> 2.909402686 | AG124: =AE124-$N$5 -> 2.409402686 | AH124: =AG124 -> 2.409402686
C126: ='SMI Analyse KGV'!B127 -> Schindler | D126: ='SMI Analyse KGV'!C127 -> SCHN | E126: ='SMI Analyse KGV'!E214 -> 0 | F126: ='SMI Analyse KGV'!F214 -> 0 | G126: ='SMI Analyse KGV'!G214 -> 0 | H126: ='SMI Analyse KGV'!H214 -> 0 | I126: ='SMI Analyse KGV'!I214 -> 0 | J126: ='SMI Analyse KGV'!J214 -> 0 | K126: ='SMI Analyse KGV'!K214 -> 0 | L126: ='SMI Analyse KGV'!L127 -> 6.1 | M126: ='SMI Analyse KGV'!M127 -> 3.76 | N126: ='SMI Analyse KGV'!N127 -> 7.74 | O126: ='SMI Analyse KGV'!O127 -> 6.28 | P126: ='SMI Analyse KGV'!P127 -> 7.14 | Q126: ='SMI Analyse KGV'!Q127 -> 7.7 | R126: ='SMI Analyse KGV'!R127 -> 8.79 | S126: ='SMI Analyse KGV'!S127 -> 8.04 | T126: ='SMI Analyse KGV'!T127 -> 6.72 | U126: ='SMI Analyse KGV'!U127 -> 7.68 | V126: ='SMI Analyse KGV'!V125 -> 1.97 | W126: ='SMI Analyse KGV'!W125 -> 0.18 | X126: ='SMI Analyse KGV'!X127 -> 8.83 | Y126: =LOOKUP(D126,Daten!$C$2:$C$300,Daten!$E$2:$E$500) -> 268 | AC126: ='SMI Analyse KGV'!D127 -> 7.488 | AE126: =AC126/Y126*100 -> 2.794029851 | AG126: =AE126-$N$5 -> 2.294029851 | AH126: =AG126 -> 2.294029851
C128: ='SMI Analyse KGV'!B129 -> Schweiter Technologies | D128: ='SMI Analyse KGV'!C129 -> SWTQ | E128: ='SMI Analyse KGV'!E216 -> 0 | F128: ='SMI Analyse KGV'!F216 -> 0 | G128: ='SMI Analyse KGV'!G216 -> 0 | H128: ='SMI Analyse KGV'!H216 -> 0 | I128: ='SMI Analyse KGV'!I216 -> 0 | J128: ='SMI Analyse KGV'!J216 -> 0 | K128: ='SMI Analyse KGV'!K216 -> 0 | L128: ='SMI Analyse KGV'!L129 -> 28.4 | M128: ='SMI Analyse KGV'!M129 -> 21.11 | N128: ='SMI Analyse KGV'!N129 -> 31.79 | O128: ='SMI Analyse KGV'!O129 -> 34.98 | P128: ='SMI Analyse KGV'!P129 -> 49.33 | Q128: ='SMI Analyse KGV'!Q129 -> 120.09 | R128: ='SMI Analyse KGV'!R129 -> 42.09 | S128: ='SMI Analyse KGV'!S129 -> 41.89 | T128: ='SMI Analyse KGV'!T129 -> 72.29 | U128: ='SMI Analyse KGV'!U129 -> 59 | V128: ='SMI Analyse KGV'!V127 -> 5.66 | W128: ='SMI Analyse KGV'!W127 -> 8.04 | X128: ='SMI Analyse KGV'!X129 -> 9.01 | Y128: =LOOKUP(D128,Daten!$C$2:$C$300,Daten!$E$2:$E$500) -> 373 | AC128: ='SMI Analyse KGV'!D129 -> 46.801 | AE128: =AC128/Y128*100 -> 12.54718499 | AG128: =AE128-$N$5 -> 12.04718499 | AH128: =AG128 -> 12.04718499
C130: ='SMI Analyse KGV'!B131 -> SGS N | D130: ='SMI Analyse KGV'!C131 -> SGSN | E130: ='SMI Analyse KGV'!E218 -> 0 | F130: ='SMI Analyse KGV'!F218 -> 0 | G130: ='SMI Analyse KGV'!G218 -> 0 | H130: ='SMI Analyse KGV'!H218 -> 0 | I130: ='SMI Analyse KGV'!I218 -> 0 | J130: ='SMI Analyse KGV'!J218 -> 0 | K130: ='SMI Analyse KGV'!K218 -> 0 | L130: ='SMI Analyse KGV'!L131 -> 2.9004 | M130: ='SMI Analyse KGV'!M131 -> 3.1136 | N130: ='SMI Analyse KGV'!N131 -> 3.266 | O130: ='SMI Analyse KGV'!O131 -> 2.878 | P130: ='SMI Analyse KGV'!P131 -> 2.8588 | Q130: ='SMI Analyse KGV'!Q131 -> 3.2908 | R130: ='SMI Analyse KGV'!R131 -> 3.3728 | S130: ='SMI Analyse KGV'!S131 -> 3.4872 | T130: ='SMI Analyse KGV'!T131 -> 2.5528 | U130: ='SMI Analyse KGV'!U131 -> 3.2716 | V130: ='SMI Analyse KGV'!V129 -> 20.03 | W130: ='SMI Analyse KGV'!W129 -> 19.3 | X130: ='SMI Analyse KGV'!X131 -> 3.1 | Y130: =LOOKUP(D130,Daten!$C$2:$C$300,Daten!$E$2:$E$500) -> 80.26 | AC130: ='SMI Analyse KGV'!D131 -> 3.09588 | AE130: =AC130/Y130*100 -> 3.85731373 | AG130: =AE130-$N$5 -> 3.35731373 | AH130: =AG130 -> 3.35731373
B132: ='SMI Analyse KGV'!A133 -> ! | C132: ='SMI Analyse KGV'!B133 -> SIG Group | D132: ='SMI Analyse KGV'!C133 -> SIGN | E132: ='SMI Analyse KGV'!E220 -> 0 | F132: ='SMI Analyse KGV'!F220 -> 0 | G132: ='SMI Analyse KGV'!G220 -> 0 | H132: ='SMI Analyse KGV'!H220 -> 0 | I132: ='SMI Analyse KGV'!I220 -> 0 | J132: ='SMI Analyse KGV'!J220 -> 0 | K132: ='SMI Analyse KGV'!K220 -> 0 | L132: ='SMI Analyse KGV'!L133 -> 0 | M132: ='SMI Analyse KGV'!M133 -> 0 | N132: ='SMI Analyse KGV'!N133 -> 0 | O132: ='SMI Analyse KGV'!O133 -> 0 | P132: ='SMI Analyse KGV'!P133 -> 0 | Q132: ='SMI Analyse KGV'!Q133 -> -0.5 | R132: ='SMI Analyse KGV'!R133 -> -0.4 | S132: ='SMI Analyse KGV'!S133 -> 0.37 | T132: ='SMI Analyse KGV'!T133 -> 0.23 | U132: ='SMI Analyse KGV'!U133 -> 0.51 | V132: ='SMI Analyse KGV'!V131 -> 3.1468 | W132: ='SMI Analyse KGV'!W131 -> 3 | X132: ='SMI Analyse KGV'!X133 -> 0.48 | Y132: =LOOKUP(D132,Daten!$C$2:$C$300,Daten!$E$2:$E$500) -> 15.71 | AC132: ='SMI Analyse KGV'!D133 -> 0.143 | AE132: =AC132/Y132*100 -> 0.9102482495 | AG132: =AE132-$N$5 -> 0.4102482495 | AH132: =AG132 -> 0.4102482495
C134: ='SMI Analyse KGV'!B135 -> Straumann | D134: ='SMI Analyse KGV'!C135 -> STMN | E134: ='SMI Analyse KGV'!E222 -> 0 | F134: ='SMI Analyse KGV'!F222 -> 0 | G134: ='SMI Analyse KGV'!G222 -> 0 | H134: ='SMI Analyse KGV'!H222 -> 0 | I134: ='SMI Analyse KGV'!I222 -> 0 | J134: ='SMI Analyse KGV'!J222 -> 0 | K134: ='SMI Analyse KGV'!K222 -> 0 | L134: ='SMI Analyse KGV'!L135 -> 0.24 | M134: ='SMI Analyse KGV'!M135 -> 0.65 | N134: ='SMI Analyse KGV'!N135 -> 1.015 | O134: ='SMI Analyse KGV'!O135 -> 0.452 | P134: ='SMI Analyse KGV'!P135 -> 1.468 | Q134: ='SMI Analyse KGV'!Q135 -> 1.8 | R134: ='SMI Analyse KGV'!R135 -> 1.72 | S134: ='SMI Analyse KGV'!S135 -> 1.93 | T134: ='SMI Analyse KGV'!T135 -> 0.57 | U134: ='SMI Analyse KGV'!U135 -> 2.48 | V134: ='SMI Analyse KGV'!V133 -> 0.1 | W134: ='SMI Analyse KGV'!W133 -> 0.64 | X134: ='SMI Analyse KGV'!X135 -> 2.87 | Y134: =LOOKUP(D134,Daten!$C$2:$C$300,Daten!$E$2:$E$500) -> 101.9 | AC134: ='SMI Analyse KGV'!D135 -> 1.755 | AE134: =AC134/Y134*100 -> 1.722276742 | AG134: =AE134-$N$5 -> 1.222276742 | AH134: =AG134 -> 1.222276742
C136: ='SMI Analyse KGV'!B137 -> Sulzer | D136: ='SMI Analyse KGV'!C137 -> SUN | E136: ='SMI Analyse KGV'!E224 -> 0 | F136: ='SMI Analyse KGV'!F224 -> 0 | G136: ='SMI Analyse KGV'!G224 -> 0 | H136: ='SMI Analyse KGV'!H224 -> 0 | I136: ='SMI Analyse KGV'!I224 -> 0 | J136: ='SMI Analyse KGV'!J224 -> 0 | K136: ='SMI Analyse KGV'!K224 -> 0 | L136: ='SMI Analyse KGV'!L137 -> 8.83 | M136: ='SMI Analyse KGV'!M137 -> 6.86 | N136: ='SMI Analyse KGV'!N137 -> 8.1 | O136: ='SMI Analyse KGV'!O137 -> 2.16 | P136: ='SMI Analyse KGV'!P137 -> 1.72 | Q136: ='SMI Analyse KGV'!Q137 -> 2.42 | R136: ='SMI Analyse KGV'!R137 -> 3.53 | S136: ='SMI Analyse KGV'!S137 -> 4.48 | T136: ='SMI Analyse KGV'!T137 -> 2.44 | U136: ='SMI Analyse KGV'!U137 -> 4.03 | V136: ='SMI Analyse KGV'!V135 -> 2.72 | W136: ='SMI Analyse KGV'!W135 -> 1.54 | X136: ='SMI Analyse KGV'!X137 -> 7.64 | Y136: =LOOKUP(D136,Daten!$C$2:$C$300,Daten!$E$2:$E$500) -> 137.2 | AC136: ='SMI Analyse KGV'!D137 -> 3.592 | AE136: =AC136/Y136*100 -> 2.618075802 | AG136: =AE136-$N$5 -> 2.118075802 | AH136: =AG136 -> 2.118075802
C138: ='SMI Analyse KGV'!B139 -> Swatch Group | D138: ='SMI Analyse KGV'!C139 -> UHR | E138: ='SMI Analyse KGV'!E226 -> 0 | F138: ='SMI Analyse KGV'!F226 -> 0 | G138: ='SMI Analyse KGV'!G226 -> 0 | H138: ='SMI Analyse KGV'!H226 -> 0 | I138: ='SMI Analyse KGV'!I226 -> 0 | J138: ='SMI Analyse KGV'!J226 -> 0 | K138: ='SMI Analyse KGV'!K226 -> 0 | L138: ='SMI Analyse KGV'!L139 -> 29.62 | M138: ='SMI Analyse KGV'!M139 -> 35.38 | N138: ='SMI Analyse KGV'!N139 -> 25.47 | O138: ='SMI Analyse KGV'!O139 -> 20.05 | P138: ='SMI Analyse KGV'!P139 -> 10.68 | Q138: ='SMI Analyse KGV'!Q139 -> 13.85 | R138: ='SMI Analyse KGV'!R139 -> 16.13 | S138: ='SMI Analyse KGV'!S139 -> 14.17 | T138: ='SMI Analyse KGV'!T139 -> -0.99 | U138: ='SMI Analyse KGV'!U139 -> 14.77 | V138: ='SMI Analyse KGV'!V137 -> 0.83 | W138: ='SMI Analyse KGV'!W137 -> 6.67 | X138: ='SMI Analyse KGV'!X139 -> 3.74 | Y138: =LOOKUP(D138,Daten!$C$2:$C$300,Daten!$E$2:$E$500) -> 142.7 | AC138: ='SMI Analyse KGV'!D139 -> 12.471 | AE138: =AC138/Y138*100 -> 8.739313245 | AG138: =AE138-$N$5 -> 8.239313245 | AH138: =AG138 -> 8.239313245
C140: ='SMI Analyse KGV'!B141 -> Swiss Prime Site | D140: ='SMI Analyse KGV'!C141 -> SPSN | E140: ='SMI Analyse KGV'!E228 -> 0 | F140: ='SMI Analyse KGV'!F228 -> 0 | G140: ='SMI Analyse KGV'!G228 -> 0 | H140: ='SMI Analyse KGV'!H228 -> 0 | I140: ='SMI Analyse KGV'!I228 -> 0 | J140: ='SMI Analyse KGV'!J228 -> 0 | K140: ='SMI Analyse KGV'!K228 -> 0 | L140: ='SMI Analyse KGV'!L141 -> 3.6 | M140: ='SMI Analyse KGV'!M141 -> 3.69 | N140: ='SMI Analyse KGV'!N141 -> 3.9 | O140: ='SMI Analyse KGV'!O141 -> 3.87 | P140: ='SMI Analyse KGV'!P141 -> 4.17 | Q140: ='SMI Analyse KGV'!Q141 -> 3.88 | R140: ='SMI Analyse KGV'!R141 -> 3.95 | S140: ='SMI Analyse KGV'!S141 -> 4.14 | T140: ='SMI Analyse KGV'!T141 -> 6.27 | U140: ='SMI Analyse KGV'!U141 -> 3.87 | V140: ='SMI Analyse KGV'!V139 -> 15.56 | W140: ='SMI Analyse KGV'!W139 -> 16.75 | X140: ='SMI Analyse KGV'!X141 -> 4.52 | Y140: =LOOKUP(D140,Daten!$C$2:$C$300,Daten!$E$2:$E$500) -> 112.9 | AC140: ='SMI Analyse KGV'!D141 -> 4.259 | AE140: =AC140/Y140*100 -> 3.772364925 | AG140: =AE140-$N$5 -> 3.272364925 | AH140: =AG140 -> 3.272364925
C142: ='SMI Analyse KGV'!B143 -> Tecan Group | D142: ='SMI Analyse KGV'!C143 -> TECN | E142: ='SMI Analyse KGV'!E232 -> 0 | F142: ='SMI Analyse KGV'!F232 -> 0 | G142: ='SMI Analyse KGV'!G232 -> 0 | H142: ='SMI Analyse KGV'!H232 -> 0 | I142: ='SMI Analyse KGV'!I232 -> 0 | J142: ='SMI Analyse KGV'!J232 -> 0 | K142: ='SMI Analyse KGV'!K232 -> 0 | L142: ='SMI Analyse KGV'!L143 -> 3.9 | M142: ='SMI Analyse KGV'!M143 -> 4.2 | N142: ='SMI Analyse KGV'!N143 -> 3.63 | O142: ='SMI Analyse KGV'!O143 -> 5.06 | P142: ='SMI Analyse KGV'!P143 -> 4.74 | Q142: ='SMI Analyse KGV'!Q143 -> 5.73 | R142: ='SMI Analyse KGV'!R143 -> 6.02 | S142: ='SMI Analyse KGV'!S143 -> 6.18 | T142: ='SMI Analyse KGV'!T143 -> 8.69 | U142: ='SMI Analyse KGV'!U143 -> 9.88 | V142: ='SMI Analyse KGV'!V141 -> 4.97 | W142: ='SMI Analyse KGV'!W141 -> 2.95 | X142: ='SMI Analyse KGV'!X143 -> 5.29 | Y142: =LOOKUP(D142,Daten!$C$2:$C$300,Daten!$E$2:$E$500) -> 151.3 | AC142: ='SMI Analyse KGV'!D143 -> 7.136 | AE142: =AC142/Y142*100 -> 4.716457369 | AG142: =AE142-$N$5 -> 4.216457369 | AH142: =AG142 -> 4.216457369
C144: ='SMI Analyse KGV'!B145 -> Temenos | D144: ='SMI Analyse KGV'!C145 -> TEMN | E144: ='SMI Analyse KGV'!E234 -> 0 | F144: ='SMI Analyse KGV'!F234 -> 0 | G144: ='SMI Analyse KGV'!G234 -> 0 | H144: ='SMI Analyse KGV'!H234 -> 0 | I144: ='SMI Analyse KGV'!I234 -> 0 | J144: ='SMI Analyse KGV'!J234 -> 0 | K144: ='SMI Analyse KGV'!K234 -> 0 | L144: ='SMI Analyse KGV'!L145 -> 0.34 | M144: ='SMI Analyse KGV'!M145 -> 0.92 | N144: ='SMI Analyse KGV'!N145 -> 1.24 | O144: ='SMI Analyse KGV'!O145 -> 0.97 | P144: ='SMI Analyse KGV'!P145 -> 1.66 | Q144: ='SMI Analyse KGV'!Q145 -> 1.95 | R144: ='SMI Analyse KGV'!R145 -> 2.38 | S144: ='SMI Analyse KGV'!S145 -> 2.56 | T144: ='SMI Analyse KGV'!T145 -> 2.28 | U144: ='SMI Analyse KGV'!U145 -> 2.21 | V144: ='SMI Analyse KGV'!V143 -> 9.47 | W144: ='SMI Analyse KGV'!W143 -> 10.3 | X144: ='SMI Analyse KGV'!X145 -> 2.22 | Y144: =LOOKUP(D144,Daten!$C$2:$C$300,Daten!$E$2:$E$500) -> 58.7 | AC144: ='SMI Analyse KGV'!D145 -> 1.943 | AE144: =AC144/Y144*100 -> 3.310051107 | AG144: =AE144-$N$5 -> 2.810051107 | AH144: =AG144 -> 2.810051107
C146: ='SMI Analyse KGV'!B147 -> VAT Group | D146: ='SMI Analyse KGV'!C147 -> VACN | E146: ='SMI Analyse KGV'!E236 -> 0 | F146: ='SMI Analyse KGV'!F236 -> 0 | G146: ='SMI Analyse KGV'!G236 -> 0 | H146: ='SMI Analyse KGV'!H236 -> 0 | I146: ='SMI Analyse KGV'!I236 -> 0 | J146: ='SMI Analyse KGV'!J236 -> 0 | K146: ='SMI Analyse KGV'!K236 -> 0 | L146: ='SMI Analyse KGV'!L147 -> 0 | M146: ='SMI Analyse KGV'!M147 -> 0 | N146: ='SMI Analyse KGV'!N147 -> 0.89 | O146: ='SMI Analyse KGV'!O147 -> 0.34 | P146: ='SMI Analyse KGV'!P147 -> 2.43 | Q146: ='SMI Analyse KGV'!Q147 -> 3.86 | R146: ='SMI Analyse KGV'!R147 -> 4.53 | S146: ='SMI Analyse KGV'!S147 -> 2.5 | T146: ='SMI Analyse KGV'!T147 -> 4.27 | U146: ='SMI Analyse KGV'!U147 -> 7.24 | V146: ='SMI Analyse KGV'!V145 -> 1.52 | W146: ='SMI Analyse KGV'!W145 -> 1.68 | X146: ='SMI Analyse KGV'!X147 -> 7.06 | Y146: =LOOKUP(D146,Daten!$C$2:$C$300,Daten!$E$2:$E$500) -> 294.9 | AC146: ='SMI Analyse KGV'!D147 -> 4.879 | AE146: =AC146/Y146*100 -> 1.654459139 | AG146: =AE146-$N$5 -> 1.154459139 | AH146: =AG146 -> 1.154459139
C148: Zehnder | D148: ZEHN | N148: ='SMI Analyse KGV'!N149 -> 2.66 | O148: ='SMI Analyse KGV'!O149 -> 0.01 | P148: ='SMI Analyse KGV'!P149 -> 1.9 | Q148: ='SMI Analyse KGV'!Q149 -> 1.49 | R148: ='SMI Analyse KGV'!R149 -> 2.29 | S148: ='SMI Analyse KGV'!S149 -> 2.93 | T148: ='SMI Analyse KGV'!T149 -> 3.57 | U148: ='SMI Analyse KGV'!U149 -> 5.55 | V148: ='SMI Analyse KGV'!V147 -> 10.22 | W148: ='SMI Analyse KGV'!W147 -> 6.34 | X148: ='SMI Analyse KGV'!X149 -> 0.15 | Y148: =LOOKUP(D148,Daten!$C$2:$C$300,Daten!$E$2:$E$500) -> 54.1 | AC148: ='SMI Analyse KGV'!D149 -> 2.648 | AE148: =AC148/Y148*100 -> 4.894639556 | AG148: =AE148-$N$5 -> 4.394639556 | AH148: =AG148 -> 4.394639556

Sheet Analysemöglichkeiten
B9: Analysemöglichkeiten
B11: 1. Suchen Sie nach Firmen, deren KGV (= Kurs-Gewinn Verhältnis) unter 16 liegt (Ticker grün). Entweder neuestes KGV oder, etwas konservativer, KGV des durchschnittlichen Gewinnes über 10 Jahre.
B13: 2. Alternativ suchen Sie nach Firmen, deren Sicherheitsmarge grösser als 5% Punkte ist (Ticker grün).
B15: 3. Untersuchen Sie bei diesen Firmen, ob Sie eine über 10 Jahre insgesamt eine Gewinnsteigerung von über 160 % ausweisen.
B17: 4. Eine hohe durchschnittliche Gewinnveränderungsrate weist auf unstete Gewinnentwicklung mit Verlustjahren und/oder Jahren mit sehr kleinen Gewinnen hin! --> schlecht

Sheet Daten
A1: ShortName | B1: ISIN | C1: ValorSymbol | D1: ValorNumber | E1: ClosingPrice | F1: DailyHighPrice | G1: DailyLowPrice | H1: LatestTradeDate | I1: PreviousClosingPrice | J1: OpeningPrice | K1: OnMarketVolume | L1: OffBookVolume | M1: SwissAtMidVolume | N1: TotalVolume | O1: TradingBaseCurrency | P1: YearlyHighDate | Q1: YearlyHighPrice | R1: YearlyLowDate | S1: YearlyLowPrice | T1: FirstTradingDate | U1: LastTradingDate | V1: Exchange | W1: SecTypeCode | X1: GeographicalAreaCode | Y1: Tminus1Volume | Z1: VWAP60Price
A2: ANGLO PLC | B2: GB00B1XZS820 | C2: AAM | D2: 3186826 | E2: 21.2 | H2: 20250416 | I2: 21.2 | K2: 0 | L2: 0 | M2: 0 | N2: 0 | O2: CHF | P2: 20240513 | Q2: 31.2 | R2: 20250416 | S2: 21.2 | T2: 20070703 | V2: XSWX | W2: RS | X2: GB | Y2: 0 | Z2: 21.33
A3: ABB LTD N | B3: CH0012221716 | C3: ABBN | D3: 1222171 | E3: 43.25 | F3: 43.47 | G3: 42.81 | H3: 20250425 | I3: 42.31 | J3: 43.15 | K3: 2681634 | L3: 141000 | M3: 226339 | N3: 3048973 | O3: CHF | P3: 20250124 | Q3: 54 | R3: 20250407 | S3: 37.25 | T3: 20201207 | V3: XSWX | W3: RS | X3: CH | Y3: 0 | Z3: 46.71
A4: ABB LTD N 2. LINIE | B4: CH0357679619 | C4: ABBNE | D4: 35767961 | E4: 43.37 | F4: 43.37 | G4: 42.88 | H4: 20250425 | I4: 42.29 | J4: 43.34 | K4: 122328 | L4: 0 | M4: 0 | N4: 122328 | O4: CHF | P4: 20250124 | Q4: 54.06 | R4: 20250407 | S4: 37.35 | T4: 20250210 | U4: 20260128 | V4: XSWX | W4: RS | X4: CH | Y4: 0 | Z4: 46.53
A5: ABBOTT LABOR | B5: US0028241000 | C5: ABT | D5: 903037 | E5: 106 | H5: 20250408 | I5: 106 | K5: 0 | L5: 0 | M5: 0 | N5: 0 | O5: CHF | P5: 20250408 | Q5: 104 | R5: 20240815 | S5: 92 | T5: 19951208 | V5: XSWX | W5: RS | X5: US | Y5: 0 | Z5: 104
A6: ACCELLERON N | B6: CH1169360919 | C6: ACLN | D6: 116936091 | E6: 42.9 | F6: 43.26 | G6: 41.92 | H6: 20250425 | I6: 41.9 | J6: 42.1 | K6: 216005 | L6: 0 | M6: 21078 | N6: 237083 | O6: CHF | P6: 20241111 | Q6: 51.6 | R6: 20250407 | S6: 30 | T6: 20221003 | V6: XSWX | W6: RS | X6: CH | Y6: 0 | Z6: 41.71
A7: ADECCO N | B7: CH0012138605 | C7: ADEN | D7: 1213860 | E7: 21.68 | F7: 22.26 | G7: 21.52 | H7: 20250425 | I7: 21.74 | J7: 21.9 | K7: 575623 | L7: 94500 | M7: 40266 | N7: 710389 | O7: CHF | P7: 20240516 | Q7: 36.62 | R7: 20250409 | S7: 19.67 | T7: 20201207 | V7: XSWX | W7: RS | X7: CH | Y7: 0 | Z7: 24.27
A8: ADVAL TECH N | B8: CH0008967926 | C8: ADVN | D8: 896792 | E8: 55.5 | H8: 20250424 | I8: 55.5 | K8: 0 | L8: 0 | M8: 0 | N8: 0 | O8: CHF | P8: 20240709 | Q8: 100 | R8: 20250423 | S8: 53 | T8: 19980604 | V8: XSWX | W8: RS | X8: CH | Y8: 0 | Z8: 64.01
A9: ADDEX N | B9: CH0029850754 | C9: ADXN | D9: 2985075 | E9: 0.0574 | F9: 0.0574 | G9: 0.0514 | H9: 20250425 | I9: 0.0504 | J9: 0.0558 | K9: 429334 | L9: 0 | M9: 0 | N9: 429334 | O9: CHF | P9: 20241022 | Q9: 0.1095 | R9: 20250409 | S9: 0.0472 | T9: 20070522 | V9: XSWX | W9: RS | X9: CH | Y9: 0 | Z9: 0.06
A10: MONTANA N | B10: CH1110425654 | C10: AERO | D10: 111042565 | E10: 15.08 | F10: 15.16 | G10: 14.8 | H10: 20250425 | I10: 14.8 | J10: 14.92 | K10: 19017 | L10: 0 | M10: 4441 | N10: 23458 | O10: CHF | P10: 20240926 | Q10: 21.45 | R10: 20250409 | S10: 13.3 | T10: 20210512 | V10: XSWX | W10: RS | X10: CH | Y10: 0 | Z10: 16.43
A11: AEVIS N | B11: CH0478634105 | C11: AEVS | D11: 47863410 | E11: 13.55 | F11: 13.6 | G11: 13.4 | H11: 20250425 | I11: 13.3 | J11: 13.5 | K11: 871 | L11: 0 | M11: 0 | N11: 871 | O11: CHF | P11: 20240703 | Q11: 16.5 | R11: 20250403 | S11: 11.75 | T11: 20190607 | V11: XSWX | W11: RS | X11: CH | Y11: 0 | Z11: 13.21
A12: ALUFLEXPACK N | B12: CH0453226893 | C12: AFP | D12: 45322689 | E12: 15.65 | H12: 20250424 | I12: 15.65 | K12: 0 | L12: 0 | M12: 0 | N12: 0 | O12: CHF | P12: 20250220 | Q12: 16.05 | R12: 20240805 | S12: 14.15 | T12: 20190628 | V12: XSWX | W12: RS | X12: CH | Y12: 0 | Z12: 15.81
A13: AIRESIS N | B13: CH0010947627 | C13: AIRE | D13: 1094762 | E13: 0.0845 | H13: 20250423 | I13: 0.0845 | K13: 0 | L13: 0 | M13: 0 | N13: 0 | O13: CHF | P13: 20240510 | Q13: 0.52 | R13: 20241205 | S13: 0.04 | T13: 20000717 | V13: XSWX | W13: RS | X13: CH | Y13: 0 | Z13: 0.09
A14: ALCON N | B14: CH0432492467 | C14: ALC | D14: 43249246 | E14: 78.52 | F14: 79.2 | G14: 78.24 | H14: 20250425 | I14: 77.6 | J14: 78.44 | K14: 583908 | L14: 21200 | M14: 28529 | N14: 633637 | O14: CHF | P14: 20250226 | Q14: 87 | R14: 20250407 | S14: 67.34 | T14: 20201207 | V14: XSWX | W14: RS | X14: CH | Y14: 0 | Z14: 79.12
A15: ALLREAL N | B15: CH0008837566 | C15: ALLN | D15: 883756 | E15: 184 | F15: 185.4 | G15: 183.2 | H15: 20250425 | I15: 185.2 | J15: 184.6 | K15: 35639 | L15: 0 | M15: 13110 | N15: 48749 | O15: CHF | P15: 20250422 | Q15: 186.2 | R15: 20240429 | S15: 147.8 | T15: 20000303 | V15: XSWX | W15: RS | X15: CH | Y15: 0 | Z15: 176.38
A16: ALPINE SELECT N | B16: CH0019199550 | C16: ALPN | D16: 1919955 | E16: 7.35 | H16: 20250424 | I16: 7.35 | K16: 0 | L16: 0 | M16: 0 | N16: 0 | O16: CHF | P16: 20240617 | Q16: 8.1 | R16: 20250407 | S16: 6.9 | T16: 20040902 | V16: XSWX | W16: RS | X16: CH | Y16: 0 | Z16: 7.42
A17: ALPINE SELECT N 2. LINIE | B17: CH1298734877 | C17: ALPNE | D17: 129873487 | E17: 7.35 | H17: 20250423 | I17: 7.35 | K17: 0 | L17: 0 | M17: 0 | N17: 0 | O17: CHF | P17: 20241018 | Q17: 7.7 | R17: 20250414 | S17: 7.3 | T17: 20231027 | U17: 20250530 | V17: XSWX | W17: RS | X17: CH | Y17: 0 | Z17: 7.3
A18: ALSO N | B18: CH0024590272 | C18: ALSN | D18: 2459027 | E18: 242.5 | F18: 242.5 | G18: 239 | H18: 20250425 | I18: 238.5 | J18: 240 | K18: 3981 | L18: 0 | M18: 1656 | N18: 5637 | O18: CHF | P18: 20240709 | Q18: 282 | R18: 20250407 | S18: 196.4 | T18: 20060323 | V18: XSWX | W18: RS | X18: CH | Y18: 0 | Z18: 254.16
A19: ams-OSRAM | B19: AT0000A3EPA4 | C19: AMS | D19: 137918297 | E19: 6.94 | F19: 7.01 | G19: 6.715 | H19: 20250425 | I19: 6.685 | J19: 6.775 | K19: 611165 | L19: 0 | M19: 28183 | N19: 639348 | O19: CHF | P19: 20241001 | Q19: 12 | R19: 20250409 | S19: 4.94 | T19: 20240930 | V19: XSWX | W19: BS | X19: AT | Y19: 0 | Z19: 7.76
A20: APG SGA N | B20: CH0019107025 | C20: APGN | D20: 1910702 | E20: 234 | F20: 236 | G20: 232 | H20: 20250425 | I20: 232 | J20: 235 | K20: 2865 | L20: 0 | M20: 6 | N20: 2871 | O20: CHF | P20: 20250425 | Q20: 236 | R20: 20241122 | S20: 188 | T20: 20040818 | V20: XSWX | W20: RS | X20: CH | Y20: 0 | Z20: 217.71
A21: ARBONIA N | B21: CH0110240600 | C21: ARBN | D21: 11024060 | E21: 11.46 | F21: 11.5 | G21: 11.24 | H21: 20250425 | I21: 11.18 | J21: 11.3 | K21: 49967 | L21: 0 | M21: 1010 | N21: 50977 | O21: CHF | P21: 20240527 | Q21: 13.52 | R21: 20250407 | S21: 8 | T21: 20100422 | V21: XSWX | W21: RS | X21: CH | Y21: 0 | Z21: 11.28
A22: ARYZTA N | B22: CH0043238366 | C22: ARYN | D22: 4323836 | E22: 2.05 | F22: 2.062 | G22: 2.02 | H22: 20250425 | I22: 2.024 | J22: 2.03 | K22: 2114050 | L22: 0 | M22: 379995 | N22: 2494045 | O22: CHF | P22: 20250425 | Q22: 2.062 | R22: 20241119 | S22: 1.443 | T22: 20180924 | V22: XSWX | W22: RS | X22: CH | Y22: 0 | Z22: 1.89
A23: ASCOM N | B23: CH0011339204 | C23: ASCN | D23: 1133920 | E23: 3.02 | F23: 3.06 | G23: 3.02 | H23: 20250425 | I23: 3.005 | J23: 3.02 | K23: 14473 | L23: 0 | M23: 187 | N23: 14660 | O23: CHF | P23: 20240528 | Q23: 8.23 | R23: 20250407 | S23: 2.815 | T23: 20001108 | V23: XSWX | W23: RS | X23: CH | Y23: 0 | Z23: 3.51
A24: ASMALLWORLD N | B24: CH0404880129 | C24: ASWN | D24: 40488012 | E24: 1.15 | F24: 1.15 | G24: 1.07 | H24: 20250425 | I24: 1.09 | J24: 1.07 | K24: 11717 | L24: 0 | M24: 0 | N24: 11717 | O24: CHF | P24: 20240527 | Q24: 1.68 | R24: 20250407 | S24: 1.01 | T24: 20180320 | V24: XSWX | W24: RS | X24: CH | Y24: 0 | Z24: 1.2
A25: AUTONEUM N | B25: CH0127480363 | C25: AUTN | D25: 12748036 | E25: 121 | F25: 121 | G25: 119.2 | H25: 20250425 | I25: 118.8 | J25: 119.6 | K25: 3275 | L25: 0 | M25: 40 | N25: 3315 | O25: CHF | P25: 20240516 | Q25: 154.2 | R25: 20250407 | S25: 95.1 | T25: 20110513 | V25: XSWX | W25: RS | X25: CH | Y25: 0 | Z25: 120.2
A26: AVOLTA N | B26: CH0023405456 | C26: AVOL | D26: 2340545 | E26: 37.2 | F26: 37.74 | G26: 37.02 | H26: 20250425 | I26: 37.2 | J26: 37.5 | K26: 131093 | L26: 0 | M26: 10108 | N26: 141201 | O26: CHF | P26: 20250214 | Q26: 42.66 | R26: 20250407 | S26: 27.5 | T26: 20190410 | V26: XSWX | W26: RS | X26: CH | Y26: 0 | Z26: 38.7
A27: JULIUS BAER N | B27: CH0102484968 | C27: BAER | D27: 10248496 | E27: 52.02 | F27: 52.48 | G27: 51.74 | H27: 20250425 | I27: 51.66 | J27: 52.04 | K27: 401376 | L27: 30000 | M27: 33197 | N27: 464573 | O27: CHF | P27: 20250131 | Q27: 65.04 | R27: 20240805 | S27: 43.75 | T27: 20201207 | V27: XSWX | W27: RS | X27: CH | Y27: 0 | Z27: 56.78
A28: BALOISE N | B28: CH0012410517 | C28: BALN | D28: 1241051 | E28: 184.2 | F28: 188.6 | G28: 179.2 | H28: 20250425 | I28: 194.6 | J28: 188.5 | K28: 342647 | L28: 0 | M28: 25594 | N28: 368241 | O28: CHF | P28: 20250424 | Q28: 196.4 | R28: 20240502 | S28: 138.1 | T28: 20180924 | V28: XSWX | W28: RS | X28: CH | Y28: 0 | Z28: 179.68
A29: BACHEM N | B29: CH1176493729 | C29: BANB | D29: 117649372 | E29: 49.52 | F29: 49.92 | G29: 49.1 | H29: 20250425 | I29: 49.06 | J29: 49.5 | K29: 74532 | L29: 0 | M29: 16652 | N29: 91184 | O29: CHF | P29: 20240521 | Q29: 91.65 | R29: 20250407 | S29: 43.34 | T29: 20220505 | V29: XSWX | W29: RS | X29: CH | Y29: 0 | Z29: 54.39
A30: BARRY CALLEBAUT N | B30: CH0009002962 | C30: BARN | D30: 900296 | E30: 765 | F30: 784.5 | G30: 759 | H30: 20250425 | I30: 760 | J30: 764.5 | K30: 20212 | L30: 0 | M30: 1770 | N30: 21982 | O30: CHF | P30: 20240522 | Q30: 1627 | R30: 20250411 | S30: 707.5 | T30: 19980615 | V30: XSWX | W30: RS | X30: CH | Y30: 0 | Z30: 993.82
A31: BELLEVUE GROUP N | B31: CH0028422100 | C31: BBN | D31: 2842210 | E31: 8.6 | F31: 8.74 | G31: 8.4 | H31: 20250425 | I31: 8.3 | J31: 8.4 | K31: 25428 | L31: 0 | M31: 0 | N31: 25428 | O31: CHF | P31: 20240510 | Q31: 20.3 | R31: 20250407 | S31: 7.52 | T31: 20070115 | V31: XSWX | W31: RS | X31: CH | Y31: 0 | Z31: 10.73
A32: BC GENEVE N | B32: CH0350494719 | C32: BCGE | D32: 35049471 | E32: 245 | F32: 250 | G32: 241 | H32: 20250425 | I32: 246 | J32: 247 | K32: 2565 | L32: 0 | M32: 20 | N32: 2585 | O32: CHF | P32: 20240430 | Q32: 303 | R32: 20250423 | S32: 233 | T32: 20170202 | V32: XSWX | W32: RS | X32: CH | Y32: 0 | Z32: 257.46
A33: BURCKHARDT N | B33: CH0025536027 | C33: BCHN | D33: 2553602 | E33: 536 | F33: 538 | G33: 531 | H33: 20250425 | I33: 532 | J33: 535 | K33: 3833 | L33: 175 | M33: 961 | N33: 4969 | O33: CHF | P33: 20250124 | Q33: 710 | R33: 20250407 | S33: 480 | T33: 20060626 | V33: XSWX | W33: RS | X33: CH | Y33: 0 | Z33: 602.68
A34: BC JURA N | B34: CH0350665672 | C34: BCJ | D34: 35066567 | E34: 59.5 | F34: 61.5 | G34: 59.5 | H34: 20250425 | I34: 61 | J34: 61.5 | K34: 195 | L34: 0 | M34: 0 | N34: 195 | O34: CHF | P34: 20240506 | Q34: 65 | R34: 20241128 | S34: 51.5 | T34: 20170505 | V34: XSWX | W34: RS | X34: CH | Y34: 0 | Z34: 58.31
A35: BC VAUD N | B35: CH0531751755 | C35: BCVN | D35: 53175175 | E35: 98.65 | F35: 100.2 | G35: 98.45 | H35: 20250425 | I35: 99.7 | J35: 99.5 | K35: 51746 | L35: 0 | M35: 1239 | N35: 52985 | O35: CHF | P35: 20250424 | Q35: 100.4 | R35: 20241212 | S35: 79.15 | T35: 20200528 | V35: XSWX | W35: RS | X35: CH | Y35: 0 | Z35: 95.15
A36: BELIMO N | B36: CH1101098163 | C36: BEAN | D36: 110109816 | E36: 645 | F36: 646 | G36: 625 | H36: 20250425 | I36: 621 | J36: 627 | K36: 26456 | L36: 0 | M36: 984 | N36: 27440 | O36: CHF | P36: 20250124 | Q36: 721.5 | R36: 20240610 | S36: 403.6 | T36: 20210407 | V36: XSWX | W36: RS | X36: CH | Y36: 0 | Z36: 590.31
A37: BEKB / BCBE N | B37: CH0009691608 | C37: BEKN | D37: 969160 | E37: 253 | F37: 253 | G37: 251 | H37: 20250425 | I37: 251.5 | J37: 252 | K37: 6240 | L37: 0 | M37: 103 | N37: 6343 | O37: CHF | P37: 20250425 | Q37: 253 | R37: 20240911 | S37: 226 | T37: 20000802 | V37: XSWX | W37: RS | X37: CH | Y37: 0 | Z37: 245.55
A38: BELL FOOD GROUP N | B38: CH0315966322 | C38: BELL | D38: 31596632 | E38: 263 | F38: 263 | G38: 260.5 | H38: 20250425 | I38: 263 | J38: 263 | K38: 889 | L38: 0 | M38: 21 | N38: 910 | O38: CHF | P38: 20240531 | Q38: 284.5 | R38: 20250307 | S38: 236.5 | T38: 20160428 | V38: XSWX | W38: RS | X38: CH | Y38: 0 | Z38: 253.45
A39: BB BIOTECH N | B39: CH0038389992 | C39: BION | D39: 3838999 | E39: 28.75 | F39: 28.8 | G39: 28.15 | H39: 20250425 | I39: 28.25 | J39: 28.6 | K39: 99877 | L39: 0 | M39: 79 | N39: 99956 | O39: CHF | P39: 20240729 | Q39: 44.15 | R39: 20250407 | S39: 24.35 | T39: 20080422 | V39: XSWX | W39: RS | X39: CH | Y39: 0 | Z39: 32.97
A40: BioVersys N | B40: CH0210362643 | C40: BIOV | D40: 21036264 | E40: 34.1 | F40: 34.4 | G40: 34.1 | H40: 20250425 | I40: 34.1 | J40: 34.4 | K40: 434 | L40: 0 | M40: 0 | N40: 434 | O40: CHF | P40: 20250207 | Q40: 37 | R40: 20250409 | S40: 33.1 | T40: 20250207 | V40: XSWX | W40: RS | X40: CH | Y40: 0 | Z40: 35.4
A41: BKW N | B41: CH0130293662 | C41: BKW | D41: 13029366 | E41: 157 | F41: 157.8 | G41: 156.5 | H41: 20250425 | I41: 157.1 | J41: 156.9 | K41: 22623 | L41: 0 | M41: 1496 | N41: 24119 | O41: CHF | P41: 20250404 | Q41: 166.1 | R41: 20240430 | S41: 134.7 | T41: 20111212 | V41: XSWX | W41: RS | X41: CH | Y41: 0 | Z41: 153.47
A42: BASELLAND KB PS | B42: CH0001473559 | C42: BLKB | D42: 147355 | E42: 880 | F42: 882 | G42: 870 | H42: 20250425 | I42: 880 | J42: 882 | K42: 810 | L42: 0 | M42: 80 | N42: 890 | O42: CHF | P42: 20250327 | Q42: 956 | R42: 20240625 | S42: 834 | T42: 19960802 | V42: XSWX | W42: PC | X42: CH | Y42: 0 | Z42: 908.93
A43: BOSSARD N | B43: CH0238627142 | C43: BOSN | D43: 23862714 | E43: 178.2 | F43: 178.4 | G43: 172.2 | H43: 20250425 | I43: 170.8 | J43: 172.2 | K43: 9586 | L43: 0 | M43: 3944 | N43: 13530 | O43: CHF | P43: 20241001 | Q43: 240.5 | R43: 20250422 | S43: 166.2 | T43: 20140414 | V43: XSWX | W43: RS | X43: CH | Y43: 0 | Z43: 191.84
A44: BURKHALTER N | B44: CH0212255803 | C44: BRKN | D44: 21225580 | E44: 121.8 | F44: 121.8 | G44: 119 | H44: 20250425 | I44: 120 | J44: 119.8 | K44: 30587 | L44: 5000 | M44: 182 | N44: 35769 | O44: CHF | P44: 20250425 | Q44: 121.8 | R44: 20250407 | S44: 81 | T44: 20130529 | V44: XSWX | W44: RS | X44: CH | Y44: 0 | Z44: 106.62
A45: BASLER KB PS | B45: CH0009236461 | C45: BSKP | D45: 923646 | E45: 73.6 | F45: 73.8 | G45: 72 | H45: 20250425 | I45: 73.6 | J45: 73.2 | K45: 18031 | L45: 0 | M45: 352 | N45: 18383 | O45: CHF | P45: 20250327 | Q45: 80.8 | R45: 20240613 | S45: 63 | T45: 19980710 | V45: XSWX | W45: PC | X45: CH | Y45: 0 | Z45: 75.36
A46: BASILEA N | B46: CH0011432447 | C46: BSLN | D46: 1143244 | E46: 43.1 | F46: 43.5 | G46: 42.95 | H46: 20250425 | I46: 43.1 | J46: 43.2 | K46: 15593 | L46: 0 | M46: 455 | N46: 16048 | O46: CHF | P46: 20250319 | Q46: 48.75 | R46: 20240805 | S46: 36.75 | T46: 20040325 | V46: XSWX | W46: RS | X46: CH | Y46: 0 | Z46: 44.17
A47: BUCHER N | B47: CH0002432174 | C47: BUCN | D47: 243217 | E47: 346.5 | F47: 347 | G47: 342.5 | H47: 20250425 | I47: 342.5 | J47: 344.5 | K47: 12010 | L47: 151 | M47: 265 | N47: 12426 | O47: CHF | P47: 20250303 | Q47: 399.5 | R47: 20250407 | S47: 275 | T47: 20050504 | V47: XSWX | W47: RS | X47: CH | Y47: 0 | Z47: 364.39
A48: BVZ HOL N | B48: CH0008207356 | C48: BVZN | D48: 820735 | E48: 930 | F48: 950 | G48: 930 | H48: 20250425 | I48: 950 | J48: 950 | K48: 17 | L48: 0 | M48: 0 | N48: 17 | O48: CHF | P48: 20240513 | Q48: 1050 | R48: 20241220 | S48: 850 | T48: 19990819 | V48: XSWX | W48: RS | X48: CH | Y48: 0 | Z48: 941.54
A49: BYSTRONIC AG | B49: CH0244017502 | C49: BYS | D49: 24401750 | E49: 242 | F49: 243.5 | G49: 239.5 | H49: 20250425 | I49: 240 | J49: 241.5 | K49: 374 | L49: 0 | M49: 41 | N49: 415 | O49: CHF | P49: 20240528 | Q49: 470 | R49: 20250423 | S49: 223.5 | T49: 20140714 | V49: XSWX | W49: RS | X49: CH | Y49: 0 | Z49: 289.64
A50: CALIDA N | B50: CH0126639464 | C50: CALN | D50: 12663946 | E50: 15.82 | F50: 16.32 | G50: 15.54 | H50: 20250425 | I50: 16.26 | J50: 16.32 | K50: 8082 | L50: 0 | M50: 346 | N50: 8428 | O50: CHF | P50: 20240920 | Q50: 32.4 | R50: 20250417 | S50: 15.36 | T50: 20110418 | V50: XSWX | W50: RS | X50: CH | Y50: 0 | Z50: 19.36
A51: RICHEMONT N | B51: CH0210483332 | C51: CFR | D51: 21048333 | E51: 146.5 | F51: 148.1 | G51: 145.1 | H51: 20250425 | I51: 145.25 | J51: 147 | K51: 649576 | L51: 57707 | M51: 54526 | N51: 761809 | O51: CHF | P51: 20250214 | Q51: 187.55 | R51: 20240923 | S51: 112.8 | T51: 20201207 | V51: XSWX | W51: RS | X51: CH | Y51: 0 | Z51: 160.46
A52: CIE FIN TR I | B52: CH0014345117 | C52: CFT | D52: 1434511 | E52: 215 | F52: 217 | G52: 212 | H52: 20250425 | I52: 214 | J52: 214 | K52: 3307 | L52: 0 | M52: 103 | N52: 3410 | O52: CHF | P52: 20250425 | Q52: 217 | R52: 20240603 | S52: 130.5 | T52: 20020704 | V52: XSWX | W52: BS | X52: CH | Y52: 0 | Z52: 197.56
A53: CIE FIN TR I 2. LINIE | B53: CH1270609584 | C53: CFTE | D53: 127060958 | E53: 216 | F53: 218 | G53: 216 | H53: 20250425 | I53: 215 | J53: 218 | K53: 425 | L53: 0 | M53: 0 | N53: 425 | O53: CHF | P53: 20250425 | Q53: 218 | R53: 20240808 | S53: 138.5 | T53: 20230821 | U53: 20260529 | V53: XSWX | W53: BS | X53: CH | Y53: 0 | Z53: 198.89
A54: Cham Swiss Prop. N | B54: CH0524026959 | C54: CHAM | D54: 52402695 | E54: 22 | F54: 22 | G54: 21.9 | H54: 20250425 | I54: 21.9 | J54: 21.9 | K54: 27941 | L54: 0 | M54: 275 | N54: 28216 | O54: CHF | P54: 20250404 | Q54: 22.2 | R54: 20240815 | S54: 15.65 | T54: 20200612 | V54: XSWX | W54: RS | X54: CH | Y54: 0 | Z54: 21.68
A55: CICOR TECH N | B55: CH0008702190 | C55: CICN | D55: 870219 | E55: 101.5 | F55: 102 | G55: 98 | H55: 20250425 | I55: 99.2 | J55: 99.2 | K55: 27205 | L55: 0 | M55: 1906 | N55: 29111 | O55: CHF | P55: 20250425 | Q55: 102 | R55: 20240515 | S55: 48.5 | T55: 19980424 | V55: XSWX | W55: RS | X55: CH | Y55: 0 | Z55: 85.57
A56: CI COM SA | B56: CH0001625810 | C56: CIE | D56: 162581 | E56: 0.665 | H56: 20250417 | I56: 0.665 | K56: 0 | L56: 0 | M56: 0 | N56: 0 | O56: CHF | P56: 20240507 | Q56: 1.32 | R56: 20250224 | S56: 0.47 | T56: 19960802 | V56: XSWX | W56: BS | X56: CH | Y56: 0 | Z56: 0.62
A57: CLARIANT N | B57: CH0012142631 | C57: CLN | D57: 1214263 | E57: 9.085 | F57: 9.09 | G57: 8.92 | H57: 20250425 | I57: 8.87 | J57: 8.95 | K57: 1257391 | L57: 316000 | M57: 195749 | N57: 1769140 | O57: CHF | P57: 20240527 | Q57: 15.15 | R57: 20250407 | S57: 6.7 | T57: 20201207 | V57: XSWX | W57: RS | X57: CH | Y57: 0 | Z57: 9.74
A58: COLTENE N | B58: CH0025343259 | C58: CLTN | D58: 2534325 | E58: 60.6 | F58: 61.5 | G58: 60 | H58: 20250425 | I58: 62.7 | J58: 60.7 | K58: 3799 | L58: 0 | M58: 146 | N58: 3945 | O58: CHF | P58: 20250326 | Q58: 64.2 | R58: 20240805 | S58: 44.1 | T58: 20060623 | V58: XSWX | W58: RS | X58: CH | Y58: 1000 | Z58: 57.63
A59: CEMBRA MONEY BANK N | B59: CH0225173167 | C59: CMBN | D59: 22517316 | E59: 100.8 | F59: 101.8 | G59: 99.35 | H59: 20250425 | I59: 99.95 | J59: 100.1 | K59: 93669 | L59: 0 | M59: 10669 | N59: 104338 | O59: CHF | P59: 20250425 | Q59: 101.8 | R59: 20240508 | S59: 69.85 | T59: 20131030 | V59: XSWX | W59: RS | X59: CH | Y59: 0 | Z59: 96.15
A60: COSMO PHARM N | B60: NL0011832936 | C60: COPN | D60: 32590356 | E60: 47.65 | F60: 47.8 | G60: 47.15 | H60: 20250425 | I60: 47.3 | J60: 47.3 | K60: 11873 | L60: 0 | M60: 2169 | N60: 14042 | O60: CHF | P60: 20240902 | Q60: 80.6 | R60: 20250409 | S60: 44.95 | T60: 20160518 | V60: XSWX | W60: RS | X60: NL | Y60: 0 | Z60: 57.03
A61: COMET N | B61: CH0360826991 | C61: COTN | D61: 36082699 | E61: 216.6 | F61: 217.6 | G61: 213.8 | H61: 20250425 | I61: 213.8 | J61: 217.2 | K61: 16623 | L61: 0 | M61: 724 | N61: 17347 | O61: CHF | P61: 20240716 | Q61: 389 | R61: 20250407 | S61: 171.2 | T61: 20170426 | V61: XSWX | W61: RS | X61: CH | Y61: 0 | Z61: 231.98
A62: CASTLE PRIVATE N | B62: CH0048854746 | C62: CPEN | D62: 4885474 | E62: 4.1 | F62: 4.1 | G62: 4.08 | H62: 20250425 | I62: 4.1 | J62: 4.1 | K62: 16324 | L62: 0 | M62: 0 | N62: 16324 | O62: CHF | P62: 20240503 | Q62: 5.1 | R62: 20241121 | S62: 3.64 | T62: 20081216 | V62: XSWX | W62: RS | X62: CH | Y62: 0 | Z62: 3.99
A63: CPHG N | B63: CH0001624714 | C63: CPHN | D63: 162471 | E63: 66.2 | F63: 66.2 | G63: 64 | H63: 20250425 | I63: 65.6 | J63: 65 | K63: 850 | L63: 0 | M63: 107 | N63: 957 | O63: CHF | P63: 20240624 | Q63: 93.2 | R63: 20250407 | S63: 50.2 | T63: 20010611 | V63: XSWX | W63: RS | X63: CH | Y63: 0 | Z63: 71.29
A64: CURATIS N | B64: CH1330780979 | C64: CURN | D64: 133078097 | E64: 10.2 | F64: 10.3 | G64: 10.2 | H64: 20250425 | I64: 10.4 | J64: 10.3 | K64: 54 | L64: 0 | M64: 0 | N64: 54 | O64: CHF | P64: 20241115 | Q64: 18.2 | R64: 20240823 | S64: 5 | T64: 20240426 | V64: XSWX | W64: RS | X64: CH | Y64: 0 | Z64: 10.95
A65: DAETWYLER I | B65: CH0030486770 | C65: DAE | D65: 3048677 | E65: 121 | F65: 121 | G65: 116 | H65: 20250425 | I65: 115.8 | J65: 116 | K65: 22197 | L65: 3632 | M65: 1226 | N65: 27055 | O65: CHF | P65: 20240517 | Q65: 204 | R65: 20250409 | S65: 104 | T65: 20070706 | V65: XSWX | W65: BS | X65: CH | Y65: 0 | Z65: 123.15
A66: DOTTIKON ES N | B66: CH0582581713 | C66: DESN | D66: 58258171 | E66: 189.4 | F66: 190 | G66: 188.2 | H66: 20250425 | I66: 186.2 | J66: 189.2 | K66: 2843 | L66: 0 | M66: 43 | N66: 2886 | O66: CHF | P66: 20240527 | Q66: 270 | R66: 20250407 | S66: 151 | T66: 20201204 | V66: XSWX | W66: RS | X66: CH | Y66: 0 | Z66: 193.68
A67: Jiangsu Eastern Shenghong | B67: US47737H1115 | C67: DFSH | D67: 123408194 | E67: 18.8 | I67: 18.8 | K67: 0 | L67: 0 | M67: 0 | N67: 0 | O67: USD | T67: 20221228 | V67: XSWX | W67: BS | X67: 10 | Y67: 0
A68: DKSH N | B68: CH0126673539 | C68: DKSH | D68: 12667353 | E68: 60.1 | F68: 60.3 | G68: 58.9 | H68: 20250425 | I68: 58.5 | J68: 58.9 | K68: 84820 | L68: 0 | M68: 6935 | N68: 91755 | O68: CHF | P68: 20250325 | Q68: 73.7 | R68: 20250407 | S68: 53.5 | T68: 20120320 | V68: XSWX | W68: RS | X68: CH | Y68: 0 | Z68: 67.47
A69: DOCMORRIS N | B69: CH0042615283 | C69: DOCM | D69: 4261528 | E69: 20.82 | F69: 21.68 | G69: 20.6 | H69: 20250425 | I69: 20.84 | J69: 20.88 | K69: 130123 | L69: 0 | M69: 4031 | N69: 134154 | O69: CHF | P69: 20240430 | Q69: 86.9 | R69: 20250313 | S69: 14.9 | T69: 20170706 | V69: XSWX | W69: RS | X69: CH | Y69: 0 | Z69: 18.99
A70: dormakaba N | B70: CH0011795959 | C70: DOKA | D70: 1179595 | E70: 662 | F70: 663 | G70: 649 | H70: 20250425 | I70: 647 | J70: 649 | K70: 3454 | L70: 70 | M70: 311 | N70: 3835 | O70: CHF | P70: 20250225 | Q70: 725 | R70: 20240626 | S70: 455.5 | T70: 20010212 | V70: XSWX | W70: RS | X70: CH | Y70: 0 | Z70: 666.39
A71: EEII I | B71: CH0007162958 | C71: EEII | D71: 716295 | E71: 2.48 | H71: 20250331 | I71: 2.48 | K71: 0 | L71: 0 | M71: 0 | N71: 0 | O71: CHF | P71: 20250307 | Q71: 3.2 | R71: 20250129 | S71: 1.2 | T71: 19990122 | V71: XSWX | W71: BS | X71: CH | Y71: 0 | Z71: 2.26
A72: EFG INTERNATIONAL N | B72: CH0022268228 | C72: EFGN | D72: 2226822 | E72: 12.02 | F72: 12.08 | G72: 11.86 | H72: 20250425 | I72: 11.84 | J72: 11.86 | K72: 275126 | L72: 0 | M72: 4436 | N72: 279562 | O72: CHF | P72: 20250219 | Q72: 14.9 | R72: 20250407 | S72: 9.39 | T72: 20051007 | V72: XSWX | W72: RS | X72: CH | Y72: 0 | Z72: 13.15
A73: ELMA ELECTRONIC N | B73: CH0005319162 | C73: ELMN | D73: 531916 | E73: 1100 | H73: 20250417 | I73: 1100 | K73: 0 | L73: 0 | M73: 0 | N73: 0 | O73: CHF | P73: 20250417 | Q73: 1100 | R73: 20240521 | S73: 980 | T73: 19961204 | V73: XSWX | W73: RS | X73: CH | Y73: 0 | Z73: 1078.37
A74: EMMI N | B74: CH0012829898 | C74: EMMN | D74: 1282989 | E74: 788 | F74: 803 | G74: 782 | H74: 20250425 | I74: 782 | J74: 803 | K74: 2900 | L74: 0 | M74: 281 | N74: 3181 | O74: CHF | P74: 20240523 | Q74: 950 | R74: 20250114 | S74: 709 | T74: 20041206 | V74: XSWX | W74: RS | X74: CH | Y74: 0 | Z74: 805.29
A75: EMS-CHEMIE N | B75: CH0016440353 | C75: EMSN | D75: 1644035 | E75: 596 | F75: 597.5 | G75: 592 | H75: 20250425 | I75: 591 | J75: 593.5 | K75: 8983 | L75: 2370 | M75: 243 | N75: 11596 | O75: CHF | P75: 20240709 | Q75: 785 | R75: 20250407 | S75: 536.5 | T75: 20100401 | V75: XSWX | W75: RS | X75: CH | Y75: 0 | Z75: 616.24
A76: EPH EUROPEAN PROPERTY | B76: CY0109992111 | C76: EPH | D76: 117016316 | E76: 29 | H76: 20250318 | I76: 29 | K76: 0 | L76: 0 | M76: 0 | N76: 0 | O76: EUR | P76: 20250318 | Q76: 29.6 | R76: 20241227 | S76: 20 | T76: 20220610 | V76: XSWX | W76: RS | X76: CY | Y76: 0 | Z76: 29.6
A77: EPIC N | B77: CH0516131684 | C77: EPIC | D77: 51613168 | E77: 78 | F77: 79.4 | G77: 77 | H77: 20250425 | I77: 77 | J77: 77 | K77: 2137 | L77: 26220 | M77: 0 | N77: 28357 | O77: CHF | P77: 20250328 | Q77: 82 | R77: 20240527 | S77: 69.4 | T77: 20220525 | V77: XSWX | W77: RS | X77: CH | Y77: 0 | Z77: 78.05
A78: EDISUN POWER EUROPE N | B78: CH0024736404 | C78: ESUN | D78: 2473640 | E78: 42.6 | F78: 43 | G78: 42.6 | H78: 20250425 | I78: 42.8 | J78: 43 | K78: 89 | L78: 0 | M78: 0 | N78: 89 | O78: CHF | P78: 20240506 | Q78: 101 | R78: 20241107 | S78: 35 | T78: 20080926 | V78: XSWX | W78: RS | X78: CH | Y78: 0 | Z78: 50.91
A79: EVOLVA N | B79: CH1262055788 | C79: EVE | D79: 126205578 | E79: 1.1 | F79: 1.175 | G79: 1.1 | H79: 20250425 | I79: 1.18 | J79: 1.175 | K79: 1942 | L79: 0 | M79: 0 | N79: 1942 | O79: CHF | P79: 20250210 | Q79: 1.69 | R79: 20241014 | S79: 0.75 | T79: 20230426 | V79: XSWX | W79: RS | X79: CH | Y79: 0 | Z79: 1.27
A80: Fangda Carbon New Material Co. | B80: US30712D1072 | C80: FDCB | D80: 123814773 | E80: 8.65 | I80: 8.65 | K80: 0 | L80: 0 | M80: 0 | N80: 0 | O80: USD | T80: 20230315 | V80: XSWX | W80: BS | X80: 10 | Y80: 0
A81: FLUGHAFEN ZUERICH N | B81: CH0319416936 | C81: FHZN | D81: 31941693 | E81: 206.8 | F81: 208.2 | G81: 205.2 | H81: 20250425 | I81: 205 | J81: 205.8 | K81: 37396 | L81: 0 | M81: 3516 | N81: 40912 | O81: CHF | P81: 20250213 | Q81: 230 | R81: 20240502 | S81: 183.4 | T81: 20160506 | V81: XSWX | W81: RS | X81: CH | Y81: 0 | Z81: 213.48
A82: FORBO N | B82: CH0003541510 | C82: FORN | D82: 354151 | E82: 782 | F82: 787 | G82: 777 | H82: 20250425 | I82: 777 | J82: 787 | K82: 1224 | L82: 0 | M82: 57 | N82: 1281 | O82: CHF | P82: 20240527 | Q82: 1112 | R82: 20250409 | S82: 669 | T82: 19960802 | V82: XSWX | W82: RS | X82: CH | Y82: 0 | Z82: 831.23
A83: Fundamenta Real Estate N | B83: CH0045825517 | C83: FREN | D83: 4582551 | E83: 17.05 | F83: 17.3 | G83: 17 | H83: 20250425 | I83: 17.2 | J83: 17.3 | K83: 17106 | L83: 0 | M83: 455 | N83: 17561 | O83: CHF | P83: 20250407 | Q83: 17.9 | R83: 20240614 | S83: 15.2 | T83: 20181206 | V83: XSWX | W83: RS | X83: CH | Y83: 0 | Z83: 17.21
A84: FEINTOOL N | B84: CH0009320091 | C84: FTON | D84: 932009 | E84: 10.8 | F84: 10.8 | G84: 10.3 | H84: 20250425 | I84: 10.5 | J84: 10.5 | K84: 2252 | L84: 0 | M84: 68 | N84: 2320 | O84: CHF | P84: 20240708 | Q84: 19.5 | R84: 20250417 | S84: 9.82 | T84: 19980817 | V84: XSWX | W84: RS | X84: CH | Y84: 0 | Z84: 12.01
A85: Galderma Group N | B85: CH1335392721 | C85: GALD | D85: 133539272 | E85: 93.25 | F85: 93.25 | G85: 90.05 | H85: 20250425 | I85: 90 | J85: 90.85 | K85: 429386 | L85: 17726 | M85: 24951 | N85: 472063 | O85: CHF | P85: 20250206 | Q85: 119.6 | R85: 20240726 | S85: 64.75 | T85: 20240322 | V85: XSWX | W85: RS | X85: CH | Y85: 0 | Z85: 95.54
A86: GALENICA N | B86: CH0360674466 | C86: GALE | D86: 36067446 | E86: 84.05 | F86: 84.55 | G86: 83.05 | H86: 20250425 | I86: 83.6 | J86: 83.5 | K86: 74868 | L86: 0 | M86: 12745 | N86: 87613 | O86: CHF | P86: 20250311 | Q86: 86.7 | R86: 20240502 | S86: 69.75 | T86: 20170407 | V86: XSWX | W86: RS | X86: CH | Y86: 0 | Z86: 81.15
A87: GAM N | B87: CH0102659627 | C87: GAM | D87: 10265962 | E87: 0.1045 | F87: 0.1065 | G87: 0.0982 | H87: 20250425 | I87: 0.1025 | J87: 0.103 | K87: 335772 | L87: 0 | M87: 0 | N87: 335772 | O87: CHF | P87: 20240502 | Q87: 0.2975 | R87: 20241219 | S87: 0.0568 | T87: 20100621 | V87: XSWX | W87: RS | X87: CH | Y87: 0 | Z87: 0.1
A88: GAVAZZI N | B88: CH1278877563 | C88: GAV | D88: 127887756 | E88: 192.5 | F88: 192.5 | G88: 192.5 | H88: 20250425 | I88: 194 | J88: 192.5 | K88: 19 | L88: 0 | M88: 0 | N88: 19 | O88: CHF | P88: 20240611 | Q88: 320 | R88: 20250122 | S88: 182 | T88: 20230803 | V88: XSWX | W88: RS | X88: CH | Y88: 0 | Z88: 201.13
A89: GEBERIT N | B89: CH0030170408 | C89: GEBN | D89: 3017040 | E89: 556.6 | F89: 561 | G89: 555 | H89: 20250425 | I89: 554.6 | J89: 555 | K89: 75213 | L89: 38 | M89: 2079 | N89: 77330 | O89: CHF | P89: 20250314 | Q89: 597.2 | R89: 20250116 | S89: 486.5 | T89: 20201207 | V89: XSWX | W89: RS | X89: CH | Y89: 0 | Z89: 545.98
A90: GEBERIT N 2. LINIE | B90: CH0358541057 | C90: GEBNE | D90: 35854105 | E90: 561 | F90: 561 | G90: 557.8 | H90: 20250425 | I90: 553.6 | J90: 559.2 | K90: 600 | L90: 0 | M90: 0 | N90: 600 | O90: CHF | P90: 20250306 | Q90: 594.8 | R90: 20250116 | S90: 488 | T90: 20240902 | U90: 20260902 | V90: XSWX | W90: RS | X90: CH | Y90: 0 | Z90: 534.95
A91: GEM Co. Ltd. | B91: US36265D2045 | C91: GEM | D91: 119740522 | E91: 12 | H91: 20221215 | I91: 12 | K91: 0 | L91: 0 | M91: 0 | N91: 0 | O91: USD | T91: 20220728 | V91: XSWX | W91: BS | X91: 10 | Y91: 0
A92: GEORG FISCHER N | B92: CH1169151003 | C92: GF | D92: 116915100 | E92: 59.45 | F92: 59.45 | G92: 58.55 | H92: 20250425 | I92: 58.2 | J92: 58.8 | K92: 137278 | L92: 0 | M92: 3992 | N92: 141270 | O92: CHF | P92: 20250307 | Q92: 74.2 | R92: 20250407 | S92: 50 | T92: 20220428 | V92: XSWX | W92: RS | X92: CH | Y92: 0 | Z92: 66.2
A93: GIVAUDAN N | B93: CH0010645932 | C93: GIVN | D93: 1064593 | E93: 3875 | F93: 3899 | G93: 3837 | H93: 20250425 | I93: 3841 | J93: 3839 | K93: 20370 | L93: 0 | M93: 639 | N93: 21009 | O93: CHF | P93: 20240926 | Q93: 4690 | R93: 20250409 | S93: 3440 | T93: 20201207 | V93: XSWX | W93: RS | X93: CH | Y93: 0 | Z93: 3869.15
A94: GLARNER KB N | B94: CH0189396655 | C94: GLKBN | D94: 18939665 | E94: 22.1 | F94: 22.2 | G94: 22 | H94: 20250425 | I94: 22.2 | J94: 22.2 | K94: 19545 | L94: 31170 | M94: 1301 | N94: 52016 | O94: CHF | P94: 20250213 | Q94: 23 | R94: 20241206 | S94: 20.6 | T94: 20140624 | V94: XSWX | W94: RS | X94: CH | Y94: 0 | Z94: 22.48
A95: GMSA N | B95: CH0012949464 | C95: GMI | D95: 1294946 | E95: 246 | F95: 246 | G95: 238 | H95: 20250425 | I95: 236 | J95: 238 | K95: 65 | L95: 0 | M95: 0 | N95: 65 | O95: CHF | P95: 20250213 | Q95: 278 | R95: 20240917 | S95: 216 | T95: 20011015 | V95: XSWX | W95: RS | X95: CH | Y95: 0 | Z95: 260.7
A96: SAINT GOBAIN I | B96: FR0000125007 | C96: GOB | D96: 490580 | E96: 89.74 | H96: 20250124 | I96: 89.74 | K96: 0 | L96: 0 | M96: 0 | N96: 0 | O96: CHF | P96: 20250124 | Q96: 85.54 | R96: 20240807 | S96: 67.6 | T96: 19951208 | V96: XSWX | W96: BS | X96: FR | Y96: 0
A97: GRAUB KB PS | B97: CH0001340204 | C97: GRKP | D97: 134020 | E97: 1735 | F97: 1745 | G97: 1720 | H97: 20250425 | I97: 1740 | J97: 1735 | K97: 179 | L97: 0 | M97: 0 | N97: 179 | O97: CHF | P97: 20241021 | Q97: 1840 | R97: 20240726 | S97: 1670 | T97: 19960802 | V97: XSWX | W97: PC | X97: CH | Y97: 0 | Z97: 1760.08
A98: Hangzhou GreatStar Industrial | B98: US41044C1053 | C98: GSI | D98: 122668634 | E98: 14 | I98: 14 | K98: 0 | L98: 0 | M98: 0 | N98: 0 | O98: USD | T98: 20221115 | V98: XSWX | W98: BS | X98: 10 | Y98: 0
A99: GOODYEAR | B99: US3825501014 | C99: GT | D99: 935430 | E99: 8.8 | H99: 20250415 | I99: 8.8 | K99: 0 | L99: 0 | M99: 0 | N99: 0 | O99: CHF | P99: 20241129 | Q99: 9.3 | R99: 20250415 | S99: 7.45 | T99: 19951208 | V99: XSWX | W99: RS | X99: US | Y99: 0 | Z99: 7.5
A100: GURIT N | B100: CH1173567111 | C100: GURN | D100: 117356711 | E100: 12.54 | F100: 12.72 | G100: 12.52 | H100: 20250425 | I100: 12.58 | J100: 12.58 | K100: 1905 | L100: 0 | M100: 77 | N100: 1982 | O100: CHF | P100: 20240603 | Q100: 63 | R100: 20241122 | S100: 10.54 | T100: 20220502 | V100: XSWX | W100: RS | X100: CH | Y100: 0 | Z100: 16.32
A101: HYPO LENZB N | B101: CH0001341608 | C101: HBLN | D101: 134160 | E101: 4020 | F101: 4020 | G101: 3940 | H101: 20250425 | I101: 3960 | J101: 4000 | K101: 16 | L101: 0 | M101: 0 | N101: 16 | O101: CHF | P101: 20240523 | Q101: 4240 | R101: 20241213 | S101: 3880 | T101: 19960802 | V101: XSWX | W101: RS | X101: CH | Y101: 0 | Z101: 4050.6
A102: HBM N | B102: CH0012627250 | C102: HBMN | D102: 1262725 | E102: 180.2 | F102: 181.8 | G102: 179.6 | H102: 20250425 | I102: 179 | J102: 180 | K102: 2138 | L102: 0 | M102: 0 | N102: 2138 | O102: CHF | P102: 20240617 | Q102: 214 | R102: 20250407 | S102: 150 | T102: 20080214 | V102: XSWX | W102: RS | X102: CH | Y102: 0 | Z102: 185.5
A103: HBM N 2. LINIE | B103: CH0257717097 | C103: HBMNE | D103: 25771709 | E103: 180.8 | F103: 182.6 | G103: 180.6 | H103: 20250425 | I103: 180 | J103: 181.6 | K103: 800 | L103: 0 | M103: 0 | N103: 800 | O103: CHF | P103: 20240618 | Q103: 214 | R103: 20250407 | S103: 160.6 | T103: 20220704 | U103: 20250627 | V103: XSWX | W103: RS | X103: CH | Y103: 0 | Z103: 186.98
A104: HELVETIA HOLDING N | B104: CH0466642201 | C104: HELN | D104: 46664220 | E104: 180.7 | F104: 182.9 | G104: 177.5 | H104: 20250425 | I104: 181.2 | J104: 182.4 | K104: 172718 | L104: 0 | M104: 4583 | N104: 177301 | O104: CHF | P104: 20250422 | Q104: 190 | R104: 20240614 | S104: 117 | T104: 20190513 | V104: XSWX | W104: RS | X104: CH | Y104: 0 | Z104: 173.97
A105: HIAG IMMOBILIEN N | B105: CH0239518779 | C105: HIAG | D105: 23951877 | E105: 96.3 | F105: 97.6 | G105: 96 | H105: 20250425 | I105: 97.2 | J105: 97.6 | K105: 9672 | L105: 0 | M105: 383 | N105: 10055 | O105: CHF | P105: 20250422 | Q105: 102.6 | R105: 20240627 | S105: 71.6 | T105: 20140516 | V105: XSWX | W105: RS | X105: CH | Y105: 0 | Z105: 92.76
A106: HIGHLIGHT E AND E I | B106: CH0003583256 | C106: HLEE | D106: 358325 | E106: 7.05 | H106: 20250423 | I106: 7.05 | K106: 0 | L106: 0 | M106: 0 | N106: 0 | O106: CHF | P106: 20250207 | Q106: 11.5 | R106: 20241213 | S106: 4.24 | T106: 19960802 | V106: XSWX | W106: BS | X106: CH | Y106: 0 | Z106: 8.6
A107: HOCN N | B107: CH0024666528 | C107: HOCN | D107: 2466652 | E107: 1.444 | F107: 1.49 | G107: 1.4 | H107: 20250425 | I107: 1.362 | J107: 1.49 | K107: 37498 | L107: 0 | M107: 0 | N107: 37498 | O107: CHF | P107: 20240503 | Q107: 16.8 | R107: 20240828 | S107: 0.19 | T107: 20110517 | V107: XSWX | W107: RS | X107: CH | Y107: 0 | Z107: 1.36
A108: HOLCIM N | B108: CH0012214059 | C108: HOLN | D108: 1221405 | E108: 91.9 | F108: 92.4 | G108: 90.8 | H108: 20250425 | I108: 90.4 | J108: 91 | K108: 1039008 | L108: 1450 | M108: 97867 | N108: 1138325 | O108: CHF | P108: 20250306 | Q108: 101.95 | R108: 20240805 | S108: 70 | T108: 20201207 | V108: XSWX | W108: RS | X108: CH | Y108: 0 | Z108: 93.95
A109: Zhejiang Huayou Cobalt | B109: US98955Q1013 | C109: HUAYO | D109: 124566121 | E109: 9.8 | I109: 9.8 | K109: 0 | L109: 0 | M109: 0 | N109: 0 | O109: USD | T109: 20230707 | V109: XSWX | W109: BS | X109: 10 | Y109: 0
A110: HUBER+SUHNER N | B110: CH0030380734 | C110: HUBN | D110: 3038073 | E110: 70.6 | F110: 70.6 | G110: 69.5 | H110: 20250425 | I110: 69.5 | J110: 69.5 | K110: 15167 | L110: 0 | M110: 257 | N110: 15424 | O110: CHF | P110: 20240926 | Q110: 89.6 | R110: 20250407 | S110: 58 | T110: 20070706 | V110: XSWX | W110: RS | X110: CH | Y110: 0 | Z110: 73.06
A111: IDORSIA N | B111: CH0363463438 | C111: IDIA | D111: 36346343 | E111: 1.162 | F111: 1.176 | G111: 1.134 | H111: 20250425 | I111: 1.146 | J111: 1.15 | K111: 445135 | L111: 0 | M111: 67169 | N111: 512304 | O111: CHF | P111: 20240729 | Q111: 2.98 | R111: 20241119 | S111: 0.6115 | T111: 20170616 | V111: XSWX | W111: RS | X111: CH | Y111: 0 | Z111: 1.06
A112: INFICON N | B112: CH1431598916 | C112: IFCN | D112: 143159891 | E112: 90.1 | F112: 90.8 | G112: 88 | H112: 20250425 | I112: 87.8 | J112: 88.4 | K112: 71637 | L112: 31156 | M112: 9868 | N112: 112661 | O112: CHF | P112: 20240606 | Q112: 150.8 | R112: 20250407 | S112: 66.6 | T112: 20250416 | V112: XSWX | W112: RS | X112: CH | Y112: 0 | Z112: 97.31
A113: IMPLENIA N | B113: CH0023868554 | C113: IMPN | D113: 2386855 | E113: 45.5 | F113: 45.7 | G113: 44.6 | H113: 20250425 | I113: 44.85 | J113: 44.9 | K113: 59392 | L113: 0 | M113: 3656 | N113: 63048 | O113: CHF | P113: 20250425 | Q113: 45.7 | R113: 20241127 | S113: 28.65 | T113: 20060306 | V113: XSWX | W113: RS | X113: CH | Y113: 0 | Z113: 39.52
A114: INTERROLL N | B114: CH0006372897 | C114: INRN | D114: 637289 | E114: 1766 | F114: 1776 | G114: 1740 | H114: 20250425 | I114: 1746 | J114: 1776 | K114: 1644 | L114: 200 | M114: 118 | N114: 1962 | O114: CHF | P114: 20240503 | Q114: 3060 | R114: 20250407 | S114: 1440 | T114: 19970605 | V114: XSWX | W114: RS | X114: CH | Y114: 0 | Z114: 2038.99
A115: INVESTIS N | B115: CH0325094297 | C115: IREN | D115: 32509429 | E115: 120 | F115: 121 | G115: 119 | H115: 20250425 | I115: 120.5 | J115: 120.5 | K115: 4056 | L115: 0 | M115: 947 | N115: 5003 | O115: CHF | P115: 20250425 | Q115: 121 | R115: 20240605 | S115: 95.6 | T115: 20160630 | V115: XSWX | W115: RS | X115: CH | Y115: 0 | Z115: 115.16
A116: INTERSHOP N | B116: CH1338987303 | C116: ISN | D116: 133898730 | E116: 132.2 | F116: 133.6 | G116: 132.2 | H116: 20250425 | I116: 133 | J116: 133 | K116: 4739 | L116: 11 | M116: 330 | N116: 5080 | O116: CHF | P116: 20250128 | Q116: 140.6 | R116: 20240614 | S116: 112.6 | T116: 20240410 | V116: XSWX | W116: RS | X116: CH | Y116: 0 | Z116: 133.97
A117: Joincare Pharmaceutical Group | B117: US47973H2058 | C117: JCARE | D117: 120978688 | E117: 8 | H117: 20230612 | I117: 8 | K117: 0 | L117: 0 | M117: 0 | N117: 0 | O117: USD | T117: 20220926 | V117: XSWX | W117: BS | X117: 10 | Y117: 0
A118: JUNGFRAUBAHN HLD N | B118: CH0017875789 | C118: JFN | D118: 1787578 | E118: 196.6 | F118: 197 | G118: 195.4 | H118: 20250425 | I118: 196.6 | J118: 196.8 | K118: 4734 | L118: 0 | M118: 4296 | N118: 9030 | O118: CHF | P118: 20240429 | Q118: 210.5 | R118: 20250407 | S118: 159 | T118: 20040416 | V118: XSWX | W118: RS | X118: CH | Y118: 0 | Z118: 187.52
A119: KARDEX N | B119: CH0100837282 | C119: KARN | D119: 10083728 | E119: 205 | F119: 208 | G119: 198.6 | H119: 20250425 | I119: 199.8 | J119: 200.5 | K119: 26213 | L119: 0 | M119: 7702 | N119: 33915 | O119: CHF | P119: 20250122 | Q119: 298.5 | R119: 20250407 | S119: 175.2 | T119: 20090423 | V119: XSWX | W119: RS | X119: CH | Y119: 0 | Z119: 238.49
A120: KLINGELNBERG N | B120: CH0420462266 | C120: KLIN | D120: 42046226 | E120: 11.4 | F120: 11.5 | G120: 11.4 | H120: 20250425 | I120: 11.4 | J120: 11.5 | K120: 166 | L120: 0 | M120: 0 | N120: 166 | O120: CHF | P120: 20240624 | Q120: 18.4 | R120: 20250422 | S120: 9.86 | T120: 20180620 | V120: XSWX | W120: RS | X120: CH | Y120: 0 | Z120: 12.33
A121: KUEHNE+NAGEL INT N | B121: CH0025238863 | C121: KNIN | D121: 2523886 | E121: 188.45 | F121: 193.55 | G121: 188.1 | H121: 20250425 | I121: 191.4 | J121: 193.35 | K121: 211002 | L121: 0 | M121: 25935 | N121: 236937 | O121: CHF | P121: 20240731 | Q121: 277 | R121: 20250407 | S121: 161.05 | T121: 20201207 | V121: XSWX | W121: RS | X121: CH | Y121: 0 | Z121: 198.42
A122: KOMAX N | B122: CH0010702154 | C122: KOMN | D122: 1070215 | E122: 101 | F122: 102 | G122: 100 | H122: 20250425 | I122: 99.6 | J122: 100.8 | K122: 5142 | L122: 0 | M122: 50 | N122: 5192 | O122: CHF | P122: 20240515 | Q122: 171.4 | R122: 20250407 | S122: 81.9 | T122: 20000524 | V122: XSWX | W122: RS | X122: CH | Y122: 0 | Z122: 110.34
A123: KUDELSKI I | B123: CH0012268360 | C123: KUD | D123: 1226836 | E123: 1.18 | F123: 1.2 | G123: 1.165 | H123: 20250425 | I123: 1.19 | J123: 1.195 | K123: 48949 | L123: 0 | M123: 0 | N123: 48949 | O123: CHF | P123: 20240722 | Q123: 1.77 | R123: 20250422 | S123: 1.155 | T123: 20100401 | V123: XSWX | W123: BS | X123: CH | Y123: 0 | Z123: 1.38
A124: Kunshan Dongwei Technology | B124: US50126R1041 | C124: KUDO | D124: 125377946 | E124: 17.8 | I124: 17.8 | K124: 0 | L124: 0 | M124: 0 | N124: 0 | O124: USD | T124: 20230613 | V124: XSWX | W124: BS | X124: 10 | Y124: 0
A125: Kuros N | B125: CH0325814116 | C125: KURN | D125: 32581411 | E125: 23.08 | F125: 23.16 | G125: 21.76 | H125: 20250425 | I125: 21.8 | J125: 21.88 | K125: 270295 | L125: 0 | M125: 5077 | N125: 275372 | O125: CHF | P125: 20241114 | Q125: 32 | R125: 20240430 | S125: 6.18 | T125: 20160623 | V125: XSWX | W125: RS | X125: CH | Y125: 0 | Z125: 20.17
A126: Landis+Gyr N | B126: CH0371153492 | C126: LAND | D126: 37115349 | E126: 50.5 | F126: 50.9 | G126: 48.75 | H126: 20250425 | I126: 47.5 | J126: 48.8 | K126: 94014 | L126: 0 | M126: 2886 | N126: 96900 | O126: CHF | P126: 20240710 | Q126: 83.4 | R126: 20250409 | S126: 41.45 | T126: 20170721 | V126: XSWX | W126: RS | X126: CH | Y126: 0 | Z126: 51.68
A127: LECLANCHE N | B127: CH0110303119 | C127: LECN | D127: 11030311 | E127: 0.209 | F127: 0.22 | G127: 0.209 | H127: 20250425 | I127: 0.219 | J127: 0.209 | K127: 204266 | L127: 0 | M127: 0 | N127: 204266 | O127: CHF | P127: 20240508 | Q127: 0.616 | R127: 20241024 | S127: 0.04 | T127: 20100326 | V127: XSWX | W127: RS | X127: CH | Y127: 0 | Z127: 0.25
A128: LEM N | B128: CH0022427626 | C128: LEHN | D128: 2242762 | E128: 675 | F128: 685 | G128: 670 | H128: 20250425 | I128: 670 | J128: 678 | K128: 824 | L128: 0 | M128: 830 | N128: 1654 | O128: CHF | P128: 20240523 | Q128: 1764 | R128: 20250407 | S128: 560 | T128: 20050923 | V128: XSWX | W128: RS | X128: CH | Y128: 0 | Z128: 768.72
A129: LEONTEQ N | B129: CH0190891181 | C129: LEON | D129: 19089118 | E129: 15.56 | F129: 15.66 | G129: 15.22 | H129: 20250425 | I129: 15.1 | J129: 15.22 | K129: 19807 | L129: 0 | M129: 190 | N129: 19997 | O129: CHF | P129: 20240820 | Q129: 28.6 | R129: 20250411 | S129: 13.64 | T129: 20121019 | V129: XSWX | W129: RS | X129: CH | Y129: 0 | Z129: 17.72
A130: LINDT N | B130: CH0010570759 | C130: LISN | D130: 1057075 | E130: 115000 | F130: 115600 | G130: 114000 | H130: 20250425 | I130: 115800 | J130: 115200 | K130: 125 | L130: 0 | M130: 0 | N130: 125 | O130: CHF | P130: 20250304 | Q130: 119000 | R130: 20250113 | S130: 97000 | T130: 20170918 | V130: XSWX | W130: RS | X130: CH | Y130: 0 | Z130: 111463.6
A131: LINDT N 2.LINIE | B131: CH1192548399 | C131: LISNE | D131: 119254839 | E131: 114800 | F131: 115600 | G131: 114800 | H131: 20250425 | I131: 115800 | J131: 115400 | K131: 4 | L131: 0 | M131: 0 | N131: 4 | O131: CHF | P131: 20250402 | Q131: 117200 | R131: 20241216 | S131: 97600 | T131: 20240802 | U131: 20260731 | V131: XSWX | W131: RS | X131: CH | Y131: 0 | Z131: 110153.7
A132: LINDT PS | B132: CH0010570767 | C132: LISP | D132: 1057076 | E132: 11940 | F132: 11980 | G132: 11830 | H132: 20250425 | I132: 11990 | J132: 11950 | K132: 1497 | L132: 2 | M132: 194 | N132: 1693 | O132: CHF | P132: 20250304 | Q132: 12550 | R132: 20250113 | S132: 9755 | T132: 20000508 | V132: XSWX | W132: PC | X132: CH | Y132: 0 | Z132: 11548.03
A133: LINDT PS 2.LINIE | B133: CH1192548407 | C133: LISPE | D133: 119254840 | E133: 11860 | F133: 11970 | G133: 11860 | H133: 20250425 | I133: 11990 | J133: 11940 | K133: 100 | L133: 0 | M133: 0 | N133: 100 | O133: CHF | P133: 20250304 | Q133: 12500 | R133: 20250113 | S133: 9770 | T133: 20240802 | U133: 20260731 | V133: XSWX | W133: PC | X133: CH | Y133: 0 | Z133: 11234.31
A134: LIECHT LANDBK N | B134: LI0355147575 | C134: LLBN | D134: 35514757 | E134: 75.1 | F134: 75.6 | G134: 74.9 | H134: 20250425 | I134: 75 | J134: 75.5 | K134: 4169 | L134: 0 | M134: 1181 | N134: 5350 | O134: CHF | P134: 20250325 | Q134: 80.5 | R134: 20241203 | S134: 67.2 | T134: 20170518 | V134: XSWX | W134: RS | X134: LI | Y134: 0 | Z134: 76.8
A135: LILLY ELI | B135: US5324571083 | C135: LLY | D135: 947556 | E135: 720 | F135: 720 | G135: 715 | H135: 20250425 | I135: 675 | J135: 715 | K135: 35 | L135: 0 | M135: 0 | N135: 35 | O135: CHF | P135: 20240703 | Q135: 830 | R135: 20250409 | S135: 605 | T135: 19951208 | V135: XSWX | W135: RS | X135: US | Y135: 0 | Z135: 715.47
A136: lastminute.com N.V. | B136: NL0010733960 | C136: LMN | D136: 23806732 | E136: 12.85 | F136: 12.85 | G136: 12.6 | H136: 20250425 | I136: 12.7 | J136: 12.6 | K136: 2514 | L136: 0 | M136: 600 | N136: 3114 | O136: CHF | P136: 20240507 | Q136: 22.4 | R136: 20250422 | S136: 12 | T136: 20140415 | V136: XSWX | W136: BS | X136: NL | Y136: 0 | Z136: 13.97
A137: LOGITECH N | B137: CH0025751329 | C137: LOGN | D137: 2575132 | E137: 63.76 | F137: 65.06 | G137: 63.5 | H137: 20250425 | I137: 63.16 | J137: 64.62 | K137: 660557 | L137: 16800 | M137: 56014 | N137: 733371 | O137: CHF | P137: 20250218 | Q137: 94.9 | R137: 20250409 | S137: 54.58 | T137: 20201207 | V137: XSWX | W137: RS | X137: CH | Y137: 0 | Z137: 75.46
A138: LOGITECH N 2.LINIE | B138: CH1282125983 | C138: LOGNE | D138: 128212598 | E138: 63.76 | F138: 65.12 | G138: 63.62 | H138: 20250425 | I138: 63.06 | J138: 65 | K138: 25091 | L138: 0 | M138: 0 | N138: 25091 | O138: CHF | P138: 20250219 | Q138: 94.86 | R138: 20250409 | S138: 54.92 | T138: 20230728 | U138: 20260727 | V138: XSWX | W138: RS | X138: CH | Y138: 0 | Z138: 78.06
A139: LONZA N | B139: CH0013841017 | C139: LONN | D139: 1384101 | E139: 573.8 | F139: 578.8 | G139: 570 | H139: 20250425 | I139: 567 | J139: 570 | K139: 134479 | L139: 18676 | M139: 9114 | N139: 162269 | O139: CHF | P139: 20250206 | Q139: 616 | R139: 20250407 | S139: 467.8 | T139: 20201207 | V139: XSWX | W139: RS | X139: CH | Y139: 0 | Z139: 559.09
A140: LUZERNER KB N | B140: CH1252930610 | C140: LUKN | D140: 125293061 | E140: 67.4 | F140: 68.5 | G140: 67.2 | H140: 20250425 | I140: 68.1 | J140: 68.3 | K140: 11801 | L140: 0 | M140: 294 | N140: 12095 | O140: CHF | P140: 20250416 | Q140: 71 | R140: 20240911 | S140: 60.5 | T140: 20230425 | V140: XSWX | W140: RS | X140: CH | Y140: 0 | Z140: 68.84
A141: MEYER BURGER N | B141: CH1357065999 | C141: MBTN | D141: 135706599 | E141: 1.616 | F141: 1.668 | G141: 1.58 | H141: 20250425 | I141: 1.592 | J141: 1.624 | K141: 55809 | L141: 0 | M141: 108 | N141: 55917 | O141: CHF | P141: 20240430 | Q141: 10.725 | R141: 20241121 | S141: 0.301 | T141: 20240701 | V141: XSWX | W141: RS | X141: CH | Y141: 0 | Z141: 1.71
A142: MCH GROUP N | B142: CH0039542854 | C142: MCHN | D142: 3954285 | E142: 2.99 | F142: 3.06 | G142: 2.98 | H142: 20250425 | I142: 3.07 | J142: 3.06 | K142: 6984 | L142: 0 | M142: 0 | N142: 6984 | O142: CHF | P142: 20240513 | Q142: 5.88 | R142: 20250424 | S142: 2.94 | T142: 20080519 | V142: XSWX | W142: RS | X142: CH | Y142: 0 | Z142: 3.45
A143: MEDARTIS N | B143: CH0386200239 | C143: MED | D143: 38620023 | E143: 72.9 | F143: 73 | G143: 72.4 | H143: 20250425 | I143: 73.7 | J143: 73 | K143: 358 | L143: 0 | M143: 147 | N143: 505 | O143: CHF | P143: 20240429 | Q143: 82 | R143: 20241119 | S143: 44.15 | T143: 20180323 | V143: XSWX | W143: RS | X143: CH | Y143: 0 | Z143: 72.79
A144: MEDMIX N | B144: CH1129677105 | C144: MEDX | D144: 112967710 | E144: 9.84 | F144: 10.34 | G144: 9.76 | H144: 20250425 | I144: 10.22 | J144: 9.85 | K144: 33347 | L144: 0 | M144: 184 | N144: 33531 | O144: CHF | P144: 20240528 | Q144: 17.34 | R144: 20241220 | S144: 8.1 | T144: 20210930 | V144: XSWX | W144: RS | X144: CH | Y144: 0 | Z144: 11.25
A145: Metall Zug AG | B145: CH0039821084 | C145: METN | D145: 3982108 | E145: 1015 | F145: 1015 | G145: 1000 | H145: 20250425 | I145: 1005 | J145: 1010 | K145: 353 | L145: 0 | M145: 79 | N145: 432 | O145: CHF | P145: 20240513 | Q145: 1400 | R145: 20250423 | S145: 972 | T145: 20080526 | V145: XSWX | W145: RS | X145: CH | Y145: 0 | Z145: 1053.81
A146: MIKRON N | B146: CH0003390066 | C146: MIKN | D146: 339006 | E146: 15.94 | F146: 16.5 | G146: 15.5 | H146: 20250425 | I146: 16.5 | J146: 16.5 | K146: 9783 | L146: 0 | M146: 661 | N146: 10444 | O146: CHF | P146: 20240717 | Q146: 20 | R146: 20241217 | S146: 13.05 | T146: 19960802 | V146: XSWX | W146: RS | X146: CH | Y146: 0 | Z146: 15.72
A147: 3M | B147: US88579Y1010 | C147: MMM | D147: 1405105 | E147: 115 | H147: 20250402 | I147: 115 | K147: 0 | L147: 0 | M147: 0 | N147: 0 | O147: CHF | P147: 20250128 | Q147: 136 | R147: 20240510 | S147: 83.5 | T147: 20020409 | V147: XSWX | W147: RS | X147: US | Y147: 0 | Z147: 128.22
A148: MOBIMO N | B148: CH0011108872 | C148: MOBN | D148: 1110887 | E148: 311 | F148: 311 | G148: 310 | H148: 20250425 | I148: 311 | J148: 310.5 | K148: 7984 | L148: 0 | M148: 448 | N148: 8432 | O148: CHF | P148: 20250218 | Q148: 320 | R148: 20240618 | S148: 249.5 | T148: 20050623 | V148: XSWX | W148: RS | X148: CH | Y148: 0 | Z148: 306.75
A149: MOLECULAR PARTNERS N | B149: CH0256379097 | C149: MOLN | D149: 25637909 | E149: 3.42 | F149: 3.86 | G149: 3.36 | H149: 20250425 | I149: 3.47 | J149: 3.495 | K149: 29999 | L149: 2200 | M149: 19912 | N149: 52111 | O149: CHF | P149: 20240619 | Q149: 9.5 | R149: 20250407 | S149: 2.7 | T149: 20141105 | V149: XSWX | W149: RS | X149: CH | Y149: 0 | Z149: 3.74
A150: MEDACTA GROUP N | B150: CH0468525222 | C150: MOVE | D150: 46852522 | E150: 131.4 | F150: 132.6 | G150: 130 | H150: 20250425 | I150: 129.6 | J150: 130 | K150: 7234 | L150: 0 | M150: 163 | N150: 7397 | O150: CHF | P150: 20250218 | Q150: 141 | R150: 20241220 | S150: 103.6 | T150: 20190404 | V150: XSWX | W150: RS | X150: CH | Y150: 0 | Z150: 127.53
A151: MOBILEZONE N | B151: CH0276837694 | C151: MOZN | D151: 27683769 | E151: 11.12 | F151: 11.16 | G151: 10.96 | H151: 20250425 | I151: 10.9 | J151: 10.98 | K151: 143663 | L151: 0 | M151: 2783 | N151: 146446 | O151: CHF | P151: 20240729 | Q151: 14.68 | R151: 20250407 | S151: 9 | T151: 20150428 | V151: XSWX | W151: RS | X151: CH | Y151: 0 | Z151: 11.76
A152: MOBILEZONE N 2. LINIE | B152: CH1143739519 | C152: MOZN1 | D152: 114373951 | E152: 15.66 | H152: 20221020 | I152: 15.66 | K152: 0 | L152: 0 | M152: 0 | N152: 0 | O152: CHF | T152: 20220822 | U152: 20250821 | V152: XSWX | W152: RS | X152: CH | Y152: 0
A153: MEIER TOBLER N | B153: CH0208062627 | C153: MTG | D153: 20806262 | E153: 33.95 | F153: 34.4 | G153: 33.6 | H153: 20250425 | I153: 34.25 | J153: 34.35 | K153: 5937 | L153: 0 | M153: 104 | N153: 6041 | O153: CHF | P153: 20240606 | Q153: 35 | R153: 20240910 | S153: 23.85 | T153: 20130410 | V153: XSWX | W153: RS | X153: CH | Y153: 0 | Z153: 31.29
A154: nebag N | B154: CH0005059438 | C154: NBEN | D154: 505943 | E154: 6.4 | H154: 20250424 | I154: 6.4 | K154: 0 | L154: 0 | M154: 0 | N154: 0 | O154: CHF | P154: 20240521 | Q154: 7.55 | R154: 20250414 | S154: 6.15 | T154: 20051104 | V154: XSWX | W154: RS | X154: CH | Y154: 0 | Z154: 6.35
A155: NATURENERGIE N | B155: CH0039651184 | C155: NEAG | D155: 3965118 | E155: 32.8 | F155: 32.8 | G155: 32.2 | H155: 20250425 | I155: 32.4 | J155: 32.2 | K155: 3051 | L155: 0 | M155: 338 | N155: 3389 | O155: CHF | P155: 20240715 | Q155: 40.5 | R155: 20250409 | S155: 31.1 | T155: 20080627 | V155: XSWX | W155: RS | X155: CH | Y155: 0 | Z155: 33.36
A156: NESTLE N | B156: CH0038863350 | C156: NESN | D156: 3886335 | E156: 85.74 | F156: 87.36 | G156: 85.74 | H156: 20250425 | I156: 87.44 | J156: 87.16 | K156: 3297242 | L156: 77338 | M156: 194679 | N156: 3569259 | O156: CHF | P156: 20240607 | Q156: 98.62 | R156: 20241220 | S156: 72.82 | T156: 20201207 | V156: XSWX | W156: RS | X156: CH | Y156: 0 | Z156: 85.83
A157: NIBE Industrier AB N | B157: SE0015988019 | C157: NIBEB | D157: 111709033 | E157: 3.496 | F157: 3.497 | G157: 3.496 | H157: 20250425 | I157: 3.254 | J157: 3.497 | K157: 549 | L157: 0 | M157: 0 | N157: 549 | O157: CHF | P157: 20240930 | Q157: 4.77 | R157: 20250407 | S157: 2.716 | T157: 20210525 | V157: XSWX | W157: RS | X157: SE | Y157: 0 | Z157: 3.42
A158: NOVARTIS N | B158: CH0012005267 | C158: NOVN | D158: 1200526 | E158: 92.54 | F158: 93.15 | G158: 91.66 | H158: 20250425 | I158: 92 | J158: 92.31 | K158: 2933206 | L158: 53700 | M158: 159209 | N158: 3146115 | O158: CHF | P158: 20240902 | Q158: 102.72 | R158: 20250409 | S158: 81.1 | T158: 20201207 | V158: XSWX | W158: RS | X158: CH | Y158: 0 | Z158: 95.23
A159: NOVARTIS N 2. LINIE | B159: CH0038459415 | C159: NOVNEE | D159: 3845941 | E159: 92.43 | F159: 93.09 | G159: 91.94 | H159: 20250425 | I159: 92.47 | J159: 92.65 | K159: 400000 | L159: 0 | M159: 0 | N159: 400000 | O159: CHF | P159: 20240902 | Q159: 102.82 | R159: 20250409 | S159: 81.55 | T159: 20200311 | U159: 20260313 | V159: XSWX | W159: RS | X159: CH | Y159: 0 | Z159: 95.76
A160: Novavest Real Estate N | B160: CH0212186248 | C160: NREN | D160: 21218624 | E160: 37.3 | F160: 37.4 | G160: 37.1 | H160: 20250425 | I160: 37.4 | J160: 37.2 | K160: 4278 | L160: 0 | M160: 115 | N160: 4393 | O160: CHF | P160: 20250404 | Q160: 37.8 | R160: 20240809 | S160: 31.7 | T160: 20191216 | V160: XSWX | W160: RS | X160: CH | Y160: 0 | Z160: 36.53
A161: NEWRON PHARMA N | B161: IT0004147952 | C161: NWRN | D161: 2791431 | E161: 7.13 | F161: 7.25 | G161: 7 | H161: 20250425 | I161: 7.18 | J161: 7.25 | K161: 23877 | L161: 0 | M161: 249 | N161: 24126 | O161: CHF | P161: 20240624 | Q161: 11.2 | R161: 20250407 | S161: 5.2 | T161: 20061212 | V161: XSWX | W161: RS | X161: IT | Y161: 0 | Z161: 8.38
A162: ORASCOM DEVELOPMENT HLD AG N | B162: CH0038285679 | C162: ODHN | D162: 3828567 | E162: 5.36 | F162: 5.36 | G162: 5.36 | H162: 20250425 | I162: 5.34 | J162: 5.36 | K162: 478 | L162: 0 | M162: 0 | N162: 478 | O162: CHF | P162: 20241218 | Q162: 5.76 | R162: 20240626 | S162: 3.2 | T162: 20080514 | V162: XSWX | W162: RS | X162: CH | Y162: 0 | Z162: 5.51
A163: OC OERLIKON N | B163: CH0000816824 | C163: OERL | D163: 81682 | E163: 3.406 | F163: 3.406 | G163: 3.33 | H163: 20250425 | I163: 3.308 | J163: 3.352 | K163: 393402 | L163: 0 | M163: 15670 | N163: 409072 | O163: CHF | P163: 20240619 | Q163: 5.115 | R163: 20250407 | S163: 2.21 | T163: 20100401 | V163: XSWX | W163: RS | X163: CH | Y163: 0 | Z163: 3.75
A164: O FUESSLI N | B164: CH0003420806 | C164: OFN | D164: 342080 | E164: 94.4 | F164: 96.4 | G164: 94.4 | H164: 20250425 | I164: 96.2 | J164: 96.2 | K164: 831 | L164: 0 | M164: 67 | N164: 898 | O164: CHF | P164: 20250425 | Q164: 96.4 | R164: 20240912 | S164: 74.6 | T164: 19960802 | V164: XSWX | W164: RS | X164: CH | Y164: 0 | Z164: 86.99
A165: ORIOR N | B165: CH0111677362 | C165: ORON | D165: 11167736 | E165: 16.56 | F165: 16.82 | G165: 16.34 | H165: 20250425 | I165: 16.46 | J165: 16.54 | K165: 15798 | L165: 0 | M165: 946 | N165: 16744 | O165: CHF | P165: 20240517 | Q165: 68 | R165: 20250424 | S165: 15.88 | T165: 20100422 | V165: XSWX | W165: RS | X165: CH | Y165: 0 | Z165: 25.43
A166: Peach Property N | B166: CH0118530366 | C166: PEAN | D166: 11853036 | E166: 6.16 | F166: 6.5 | G166: 6.16 | H166: 20250425 | I166: 6.45 | J166: 6.49 | K166: 11491 | L166: 0 | M166: 595 | N166: 12086 | O166: CHF | P166: 20241128 | Q166: 13.92 | R166: 20250417 | S166: 5.73 | T166: 20101112 | V166: XSWX | W166: RS | X166: CH | Y166: 0 | Z166: 7.11
A167: PERROT DUVAL I | B167: CH0252620700 | C167: PEDU | D167: 25262070 | E167: 65 | F167: 65 | G167: 65 | H167: 20250425 | I167: 65 | J167: 65 | K167: 3 | L167: 0 | M167: 0 | N167: 3 | O167: CHF | P167: 20240813 | Q167: 70.5 | R167: 20240611 | S167: 35.2 | T167: 20141110 | V167: XSWX | W167: BS | X167: CH | Y167: 0 | Z167: 58.79
A168: PRIVATE EQUITY N | B168: CH0006089921 | C168: PEHN | D168: 608992 | E168: 71 | F168: 71 | G168: 71 | H168: 20250425 | I168: 71 | J168: 71 | K168: 58 | L168: 0 | M168: 0 | N168: 58 | O168: CHF | P168: 20240605 | Q168: 78 | R168: 20240805 | S168: 65 | T168: 20060516 | V168: XSWX | W168: RS | X168: CH | Y168: 0 | Z168: 74
A169: PEPSICO | B169: US7134481081 | C169: PEP | D169: 961618 | E169: 119 | H169: 20250424 | I169: 119 | K169: 0 | L169: 0 | M169: 0 | N169: 0 | O169: CHF | P169: 20240719 | Q169: 152 | R169: 20250416 | S169: 118 | T169: 19951208 | V169: XSWX | W169: RS | X169: US | Y169: 0 | Z169: 129.89
A170: PARTNERS GROUP N | B170: CH0024608827 | C170: PGHN | D170: 2460882 | E170: 1098.5 | F170: 1106 | G170: 1090 | H170: 20250425 | I170: 1084.5 | J170: 1100 | K170: 47595 | L170: 8850 | M170: 6413 | N170: 62858 | O170: CHF | P170: 20250214 | Q170: 1426.5 | R170: 20250409 | S170: 942 | T170: 20201207 | V170: XSWX | W170: RS | X170: CH | Y170: 0 | Z170: 1221.23
A171: PIERER Mobility AG | B171: AT0000KTMI02 | C171: PKTM | D171: 41860974 | E171: 11.82 | F171: 12.44 | G171: 11.82 | H171: 20250425 | I171: 11.78 | J171: 12.08 | K171: 7365 | L171: 0 | M171: 24 | N171: 7389 | O171: CHF | P171: 20240516 | Q171: 40.45 | R171: 20241113 | S171: 6.1 | T171: 20180525 | V171: XSWX | W171: BS | X171: AT | Y171: 0 | Z171: 17.72
A172: PLAZZA N | B172: CH0284142913 | C172: PLAN | D172: 28414291 | E172: 353 | F172: 354 | G172: 353 | H172: 20250425 | I172: 354 | J172: 354 | K172: 299 | L172: 10000 | M172: 141 | N172: 10440 | O172: CHF | P172: 20250404 | Q172: 367 | R172: 20240626 | S172: 291 | T172: 20150626 | V172: XSWX | W172: RS | X172: CH | Y172: 0 | Z172: 355.59
A173: PHILIP MRRS INT-WI | B173: US7181721090 | C173: PMI | D173: 3754629 | E173: 140 | F173: 140 | G173: 140 | H173: 20250425 | I173: 137 | J173: 140 | K173: 202 | L173: 0 | M173: 0 | N173: 202 | O173: CHF | P173: 20250403 | Q173: 143 | R173: 20240502 | S173: 88 | T173: 20080331 | V173: XSWX | W173: RS | X173: US | Y173: 0 | Z173: 136.62
A174: PHOENIX MECANO N | B174: CH1261338102 | C174: PMN | D174: 126133810 | E174: 424 | F174: 430 | G174: 424 | H174: 20250425 | I174: 429 | J174: 429 | K174: 220 | L174: 0 | M174: 72 | N174: 292 | O174: CHF | P174: 20240516 | Q174: 536 | R174: 20250407 | S174: 391 | T174: 20230526 | V174: XSWX | W174: RS | X174: CH | Y174: 0 | Z174: 420.65
A175: PHOENIX MECANO N 2. LINIE | B175: CH1305603651 | C175: PMNE | D175: 130560365 | E175: 432 | F175: 433 | G175: 432 | H175: 20250425 | I175: 436 | J175: 433 | K175: 84 | L175: 0 | M175: 0 | N175: 84 | O175: CHF | P175: 20240516 | Q175: 530 | R175: 20250407 | S175: 400 | T175: 20231115 | U175: 20251114 | V175: XSWX | W175: RS | X175: CH | Y175: 0 | Z175: 429.21
A176: POLYPEPTIDE N | B176: CH1110760852 | C176: PPGN | D176: 111076085 | E176: 17.3 | F176: 17.34 | G176: 16.88 | H176: 20250425 | I176: 17.1 | J176: 17.1 | K176: 28633 | L176: 0 | M176: 2028 | N176: 30661 | O176: CHF | P176: 20240813 | Q176: 35.8 | R176: 20250407 | S176: 13.22 | T176: 20210429 | V176: XSWX | W176: RS | X176: CH | Y176: 0 | Z176: 18.21
A177: PSP N | B177: CH0018294154 | C177: PSPN | D177: 1829415 | E177: 142.8 | F177: 143.7 | G177: 142.5 | H177: 20250425 | I177: 143.4 | J177: 143.2 | K177: 111289 | L177: 31898 | M177: 2362 | N177: 145549 | O177: CHF | P177: 20250422 | Q177: 144.2 | R177: 20240612 | S177: 110.9 | T177: 20040513 | V177: XSWX | W177: RS | X177: CH | Y177: 0 | Z177: 135.91
A178: ROMANDE ENERGIE N | B178: CH1263676327 | C178: REHN | D178: 126367632 | E178: 42.8 | F178: 44.3 | G178: 42.8 | H178: 20250425 | I178: 43.3 | J178: 43.7 | K178: 2366 | L178: 0 | M178: 235 | N178: 2601 | O178: CHF | P178: 20240522 | Q178: 58.8 | R178: 20241118 | S178: 41 | T178: 20230628 | V178: XSWX | W178: RS | X178: CH | Y178: 0 | Z178: 44.42
A179: RIETER N | B179: CH0003671440 | C179: RIEN | D179: 367144 | E179: 70 | F179: 70.5 | G179: 68.2 | H179: 20250425 | I179: 67.8 | J179: 68.2 | K179: 17306 | L179: 0 | M179: 282 | N179: 17588 | O179: CHF | P179: 20240528 | Q179: 138 | R179: 20250407 | S179: 50 | T179: 19960802 | V179: XSWX | W179: RS | X179: CH | Y179: 0 | Z179: 76.88
A180: RELIEF THERAPEUTICS N | B180: CH1251125998 | C180: RLF | D180: 125112599 | E180: 2.49 | F180: 2.49 | G180: 2.31 | H180: 20250425 | I180: 2.355 | J180: 2.4 | K180: 20937 | L180: 0 | M180: 143 | N180: 21080 | O180: CHF | P180: 20241112 | Q180: 7.6 | R180: 20240827 | S180: 1.055 | T180: 20230505 | V180: XSWX | W180: RS | X180: CH | Y180: 0 | Z180: 2.71
A181: ROCHE I | B181: CH0012032113 | C181: RO | D181: 1203211 | E181: 279.2 | F181: 280.2 | G181: 276.6 | H181: 20250425 | I181: 279.8 | J181: 279 | K181: 12813 | L181: 0 | M181: 256 | N181: 13069 | O181: CHF | P181: 20250312 | Q181: 333.6 | R181: 20240503 | S181: 232.4 | T181: 20010504 | V181: XSWX | W181: BS | X181: CH | Y181: 0 | Z181: 304.83
A182: ROCHE GS | B182: CH0012032048 | C182: ROG | D182: 1203204 | E182: 261.9 | F182: 263.9 | G182: 258.8 | H182: 20250425 | I182: 262.3 | J182: 261.3 | K182: 799958 | L182: 43764 | M182: 40119 | N182: 883841 | O182: CHF | P182: 20250312 | Q182: 313.8 | R182: 20240503 | S182: 212.9 | T182: 20201207 | V182: XSWX | W182: GC | X182: CH | Y182: 0 | Z182: 283.59
A183: R&S GROUP N | B183: CH1107979838 | C183: RSGN | D183: 110797983 | E183: 19.3 | F183: 19.3 | G183: 18.7 | H183: 20250425 | I183: 18.68 | J183: 18.7 | K183: 61198 | L183: 8507 | M183: 2215 | N183: 71920 | O183: CHF | P183: 20241029 | Q183: 23.7 | R183: 20240502 | S183: 10.5 | T183: 20211215 | V183: XSWX | W183: RS | X183: CH | Y183: 0 | Z183: 18.25
A184: SANTHERA N | B184: CH1276028821 | C184: SANN | D184: 127602882 | E184: 14.84 | F184: 15 | G184: 14.34 | H184: 20250425 | I184: 14.34 | J184: 14.48 | K184: 62268 | L184: 0 | M184: 448 | N184: 62716 | O184: CHF | P184: 20250213 | Q184: 17.76 | R184: 20241118 | S184: 7.21 | T184: 20230703 | V184: XSWX | W184: RS | X184: CH | Y184: 0 | Z184: 15.18
A185: SCHINDLER N | B185: CH0024638212 | C185: SCHN | D185: 2463821 | E185: 268 | F185: 268 | G185: 265.5 | H185: 20250425 | I185: 267.5 | J185: 267 | K185: 24970 | L185: 0 | M185: 348 | N185: 25318 | O185: CHF | P185: 20250319 | Q185: 281 | R185: 20240805 | S185: 216 | T185: 20060327 | V185: XSWX | W185: RS | X185: CH | Y185: 0 | Z185: 264.41
A186: SCHINDLER N 2.LINIE | B186: CH1391509895 | C186: SCHNE | D186: 139150989 | E186: 249 | H186: 20250409 | I186: 249 | K186: 0 | L186: 0 | M186: 0 | N186: 0 | O186: CHF | P186: 20250320 | Q186: 281 | R186: 20250113 | S186: 242.5 | T186: 20241106 | U186: 20261105 | V186: XSWX | W186: RS | X186: CH | Y186: 0 | Z186: 263.24
A187: SCHINDLER PS | B187: CH0024638196 | C187: SCHP | D187: 2463819 | E187: 274.8 | F187: 276.8 | G187: 272.6 | H187: 20250425 | I187: 274.8 | J187: 275 | K187: 80065 | L187: 0 | M187: 6072 | N187: 86137 | O187: CHF | P187: 20250311 | Q187: 293.2 | R187: 20240626 | S187: 221.4 | T187: 20201207 | V187: XSWX | W187: PC | X187: CH | Y187: 0 | Z187: 273.93
A188: SCHINDLER PS 2.LINIE | B188: CH1391509903 | C188: SCHPE | D188: 139150990 | E188: 257.4 | H188: 20250409 | I188: 257.4 | K188: 0 | L188: 0 | M188: 0 | N188: 0 | O188: CHF | P188: 20250319 | Q188: 290.4 | R188: 20250113 | S188: 245.6 | T188: 20241106 | U188: 20261105 | V188: XSWX | W188: PC | X188: CH | Y188: 0 | Z188: 270.67
A189: SWISSCOM N | B189: CH0008742519 | C189: SCMN | D189: 874251 | E189: 538.5 | F189: 540.5 | G189: 534 | H189: 20250425 | I189: 538.5 | J189: 538 | K189: 87093 | L189: 0 | M189: 4384 | N189: 91477 | O189: CHF | P189: 20241017 | Q189: 571 | R189: 20240530 | S189: 486.8 | T189: 20201207 | V189: XSWX | W189: RS | X189: CH | Y189: 0 | Z189: 516.33
A190: SCOR SE | B190: FR0010411983 | C190: SCR | D190: 2844943 | E190: 23.38 | H190: 20250416 | I190: 23.38 | K190: 0 | L190: 0 | M190: 0 | N190: 0 | O190: CHF | P190: 20240517 | Q190: 29.58 | R190: 20240808 | S190: 16.95 | T190: 20070808 | V190: XSWX | W190: RS | X190: FR | Y190: 0 | Z190: 23.38
A191: SANDOZ GROUP N | B191: CH1243598427 | C191: SDZ | D191: 124359842 | E191: 34.99 | F191: 35 | G191: 34 | H191: 20250425 | I191: 33.83 | J191: 34.03 | K191: 1028217 | L191: 25000 | M191: 151298 | N191: 1204515 | O191: CHF | P191: 20250213 | Q191: 45.1 | R191: 20250407 | S191: 26.25 | T191: 20231004 | V191: XSWX | W191: RS | X191: CH | Y191: 0 | Z191: 37.46
A192: Shenzhen Senior Tech Material | B192: US82322J1079 | C192: SENIOR | D192: 123430195 | E192: 9.45 | I192: 9.45 | K192: 0 | L192: 0 | M192: 0 | N192: 0 | O192: USD | T192: 20231218 | V192: XSWX | W192: BS | X192: 10 | Y192: 0
A193: SENSIRION N | B193: CH0406705126 | C193: SENS | D193: 40670512 | E193: 65.2 | F193: 65.3 | G193: 64.1 | H193: 20250425 | I193: 63.8 | J193: 64.5 | K193: 20815 | L193: 0 | M193: 698 | N193: 21513 | O193: CHF | P193: 20240718 | Q193: 84.4 | R193: 20250409 | S193: 48.75 | T193: 20180322 | V193: XSWX | W193: RS | X193: CH | Y193: 0 | Z193: 64.93
A194: SF Urban Properties N | B194: CH0032816131 | C194: SFPN | D194: 3281613 | E194: 92 | F194: 92.6 | G194: 92 | H194: 20250425 | I194: 92 | J194: 92.6 | K194: 1570 | L194: 0 | M194: 0 | N194: 1570 | O194: CHF | P194: 20250403 | Q194: 101 | R194: 20240625 | S194: 89.4 | T194: 20120417 | V194: XSWX | W194: RS | X194: CH | Y194: 0 | Z194: 97.79
A195: SFS Group N | B195: CH0239229302 | C195: SFSN | D195: 23922930 | E195: 109 | F195: 109 | G195: 107.2 | H195: 20250425 | I195: 106.8 | J195: 107.8 | K195: 37518 | L195: 0 | M195: 1141 | N195: 38659 | O195: CHF | P195: 20241001 | Q195: 133.8 | R195: 20250407 | S195: 95.5 | T195: 20140507 | V195: XSWX | W195: RS | X195: CH | Y195: 0 | Z195: 112.31
A196: SIEGFRIED N | B196: CH0014284498 | C196: SFZN | D196: 1428449 | E196: 930 | F196: 930 | G196: 911 | H196: 20250425 | I196: 908 | J196: 913 | K196: 8454 | L196: 0 | M196: 462 | N196: 8916 | O196: CHF | P196: 20240916 | Q196: 1182.06 | R196: 20250407 | S196: 534.315 | T196: 20020806 | U196: 20250425 | V196: XSWX | W196: RS | X196: CH | Y196: 0 | Z196: 933.23
A197: ST GALLER KB N | B197: CH0011484067 | C197: SGKN | D197: 1148406 | E197: 487 | F197: 492 | G197: 484 | H197: 20250425 | I197: 490.5 | J197: 492 | K197: 2242 | L197: 0 | M197: 92 | N197: 2334 | O197: CHF | P197: 20250423 | Q197: 500 | R197: 20240911 | S197: 404 | T197: 20010402 | V197: XSWX | W197: RS | X197: CH | Y197: 0 | Z197: 477.46
A198: SGS N | B198: CH1256740924 | C198: SGSN | D198: 125674092 | E198: 80.26 | F198: 80.68 | G198: 78.7 | H198: 20250425 | I198: 79 | J198: 79.16 | K198: 465099 | L198: 254 | M198: 45861 | N198: 511214 | O198: CHF | P198: 20250212 | Q198: 99.06 | R198: 20250409 | S198: 71.12 | T198: 20230412 | V198: XSWX | W198: RS | X198: CH | Y198: 0 | Z198: 86.46
A199: SHL TELEMEDICINE N | B199: IL0010855885 | C199: SHLTN | D199: 1128957 | E199: 1.96 | F199: 2.07 | G199: 1.805 | H199: 20250425 | I199: 2 | J199: 1.99 | K199: 1661 | L199: 0 | M199: 1 | N199: 1662 | O199: CHF | P199: 20240522 | Q199: 5.5 | R199: 20250212 | S199: 1.105 | T199: 20001115 | V199: XSWX | W199: RS | X199: IL | Y199: 0 | Z199: 2.08
A200: SIG Group N | B200: CH0435377954 | C200: SIGN | D200: 43537795 | E200: 15.71 | F200: 15.81 | G200: 15.55 | H200: 20250425 | I200: 15.56 | J200: 15.62 | K200: 675143 | L200: 0 | M200: 18727 | N200: 693870 | O200: CHF | P200: 20250221 | Q200: 20.84 | R200: 20250407 | S200: 14.46 | T200: 20180928 | V200: XSWX | W200: RS | X200: CH | Y200: 0 | Z200: 17.66
... 58 more rows

Sheet Tabelle1
C1: VERÄNDERUNGSRATEN | O1: Durchschnittliche Gewinnveränderungsraten
C2: 2013 | D2: 2014 | E2: 2015 | F2: 2016 | G2: 2017 | H2: 2018 | I2: 2019 | J2: 2020 | K2: 2021 | L2: 2022 | M2: 2023 | N2: 2024
B13: ABB LTD N | C13: =('SMI Analyse KGV'!M15-'SMI Analyse KGV'!L15)/ABS('SMI Analyse KGV'!L15) -> 0.02542372881 | D13: =('SMI Analyse KGV'!N15-'SMI Analyse KGV'!M15)/ABS('SMI Analyse KGV'!M15) -> -0.06611570248 | E13: =('SMI Analyse KGV'!O15-'SMI Analyse KGV'!N15)/ABS('SMI Analyse KGV'!N15) -> -0.2300884956 | F13: =('SMI Analyse KGV'!P15-'SMI Analyse KGV'!O15)/ABS('SMI Analyse KGV'!O15) -> 0.01149425287 | G13: =('SMI Analyse KGV'!Q15-'SMI Analyse KGV'!P15)/ABS('SMI Analyse KGV'!P15) -> 0.1818181818 | H13: =('SMI Analyse KGV'!R15-'SMI Analyse KGV'!Q15)/ABS('SMI Analyse KGV'!Q15) -> -0.01923076923 | I13: =('SMI Analyse KGV'!S15-'SMI Analyse KGV'!R15)/ABS('SMI Analyse KGV'!R15) -> -0.3431372549 | J13: =('SMI Analyse KGV'!T15-'SMI Analyse KGV'!S15)/ABS('SMI Analyse KGV'!S15) -> 2.641791045 | K13: =('SMI Analyse KGV'!U15-'SMI Analyse KGV'!T15)/ABS('SMI Analyse KGV'!T15) -> -0.06967213115 | L13: =('SMI Analyse KGV'!V15-'SMI Analyse KGV'!U15)/ABS('SMI Analyse KGV'!U15) -> -0.4273127753 | M13: =('SMI Analyse KGV'!W15-'SMI Analyse KGV'!V15)/ABS('SMI Analyse KGV'!V15) -> 0.5461538462 | N13: =('SMI Analyse KGV'!X15-'SMI Analyse KGV'!W15)/ABS('SMI Analyse KGV'!W15) -> 0.05970149254 | O13: =AVERAGE(E13:N13) -> 0.2351517392
B15: ALCON N 1) | H15: =('SMI Analyse KGV'!R17-'SMI Analyse KGV'!Q17)/ABS('SMI Analyse KGV'!Q17) -> -1.884615385 | I15: =('SMI Analyse KGV'!S17-'SMI Analyse KGV'!R17)/ABS('SMI Analyse KGV'!R17) -> -1.913043478 | J15: =('SMI Analyse KGV'!T17-'SMI Analyse KGV'!S17)/ABS('SMI Analyse KGV'!S17) -> 0.1865671642 | K15: =('SMI Analyse KGV'!U17-'SMI Analyse KGV'!T17)/ABS('SMI Analyse KGV'!T17) -> 1.697247706 | L15: =('SMI Analyse KGV'!V17-'SMI Analyse KGV'!U17)/ABS('SMI Analyse KGV'!U17) -> -0.1052631579 | M15: =('SMI Analyse KGV'!W17-'SMI Analyse KGV'!V17)/ABS('SMI Analyse KGV'!V17) -> 1.882352941 | N15: =('SMI Analyse KGV'!X17-'SMI Analyse KGV'!W17)/ABS('SMI Analyse KGV'!W17) -> 0.04591836735 | O15: =AVERAGE(H15:N15) -> -0.01297654881
B17: GEBERIT N | C17: =('SMI Analyse KGV'!M19-'SMI Analyse KGV'!L19)/ABS('SMI Analyse KGV'!L19) -> 0.1253644315 | D17: =('SMI Analyse KGV'!N19-'SMI Analyse KGV'!M19)/ABS('SMI Analyse KGV'!M19) -> 0.1450777202 | E17: =('SMI Analyse KGV'!O19-'SMI Analyse KGV'!N19)/ABS('SMI Analyse KGV'!N19) -> -0.1470588235 | F17: =('SMI Analyse KGV'!P19-'SMI Analyse KGV'!O19)/ABS('SMI Analyse KGV'!O19) -> 0.3129973475 | G17: =('SMI Analyse KGV'!Q19-'SMI Analyse KGV'!P19)/ABS('SMI Analyse KGV'!P19) -> -0.03636363636 | H17: =('SMI Analyse KGV'!R19-'SMI Analyse KGV'!Q19)/ABS('SMI Analyse KGV'!Q19) -> 0.1453529001 | I17: =('SMI Analyse KGV'!S19-'SMI Analyse KGV'!R19)/ABS('SMI Analyse KGV'!R19) -> 0.09395973154 | J17: =('SMI Analyse KGV'!T19-'SMI Analyse KGV'!S19)/ABS('SMI Analyse KGV'!S19) -> -0.002788622421 | K17: =('SMI Analyse KGV'!U19-'SMI Analyse KGV'!T19)/ABS('SMI Analyse KGV'!T19) -> 0.1834451902 | L17: =('SMI Analyse KGV'!V19-'SMI Analyse KGV'!U19)/ABS('SMI Analyse KGV'!U19) -> -0.0354442344 | M17: =('SMI Analyse KGV'!W19-'SMI Analyse KGV'!V19)/ABS('SMI Analyse KGV'!V19) -> -0.1009309162 | N17: =('SMI Analyse KGV'!X19-'SMI Analyse KGV'!W19)/ABS('SMI Analyse KGV'!W19) -> -0.0136239782 | O17: =AVERAGE(E17:N17) -> 0.03995449581
B19: GIVAUDAN N | C19: =('SMI Analyse KGV'!M21-'SMI Analyse KGV'!L21)/ABS('SMI Analyse KGV'!L21) -> 0.1779264214 | D19: =('SMI Analyse KGV'!N21-'SMI Analyse KGV'!M21)/ABS('SMI Analyse KGV'!M21) -> 0.1423433655 | E19: =('SMI Analyse KGV'!O21-'SMI Analyse KGV'!N21)/ABS('SMI Analyse KGV'!N21) -> 0.1111847556 | F19: =('SMI Analyse KGV'!P21-'SMI Analyse KGV'!O21)/ABS('SMI Analyse KGV'!O21) -> 0.03399940352 | G19: =('SMI Analyse KGV'!Q21-'SMI Analyse KGV'!P21)/ABS('SMI Analyse KGV'!P21) -> 0.1182578598 | H19: =('SMI Analyse KGV'!R21-'SMI Analyse KGV'!Q21)/ABS('SMI Analyse KGV'!Q21) -> -0.07970079959 | I19: =('SMI Analyse KGV'!S21-'SMI Analyse KGV'!R21)/ABS('SMI Analyse KGV'!R21) -> 0.05927690583 | J19: =('SMI Analyse KGV'!T21-'SMI Analyse KGV'!S21)/ABS('SMI Analyse KGV'!S21) -> 0.05781187988 | K19: =('SMI Analyse KGV'!U21-'SMI Analyse KGV'!T21)/ABS('SMI Analyse KGV'!T21) -> 0.1051775888 | L19: =('SMI Analyse KGV'!V21-'SMI Analyse KGV'!U21)/ABS('SMI Analyse KGV'!U21) -> 0.04684847799 | M19: =('SMI Analyse KGV'!W21-'SMI Analyse KGV'!V21)/ABS('SMI Analyse KGV'!V21) -> 0.04280618312 | N19: =('SMI Analyse KGV'!X21-'SMI Analyse KGV'!W21)/ABS('SMI Analyse KGV'!W21) -> 0.1920804395 | O19: =AVERAGE(E19:N19) -> 0.06877426945
B21: HOLCIM N | C21: =('SMI Analyse KGV'!M23-'SMI Analyse KGV'!L23)/ABS('SMI Analyse KGV'!L23) -> 1.036458333 | D21: =('SMI Analyse KGV'!N23-'SMI Analyse KGV'!M23)/ABS('SMI Analyse KGV'!M23) -> 0.01023017903 | E21: =('SMI Analyse KGV'!O23-'SMI Analyse KGV'!N23)/ABS('SMI Analyse KGV'!N23) -> -1.787341772 | F21: =('SMI Analyse KGV'!P23-'SMI Analyse KGV'!O23)/ABS('SMI Analyse KGV'!O23) -> 1.951768489 | G21: =('SMI Analyse KGV'!Q23-'SMI Analyse KGV'!P23)/ABS('SMI Analyse KGV'!P23) -> -1.939189189 | H21: =('SMI Analyse KGV'!R23-'SMI Analyse KGV'!Q23)/ABS('SMI Analyse KGV'!Q23) -> 1.90647482 | I21: =('SMI Analyse KGV'!S23-'SMI Analyse KGV'!R23)/ABS('SMI Analyse KGV'!R23) -> 0.4603174603 | J21: =('SMI Analyse KGV'!T23-'SMI Analyse KGV'!S23)/ABS('SMI Analyse KGV'!S23) -> -0.2554347826 | K21: =('SMI Analyse KGV'!U23-'SMI Analyse KGV'!T23)/ABS('SMI Analyse KGV'!T23) -> 0.3576642336 | L21: =('SMI Analyse KGV'!V23-'SMI Analyse KGV'!U23)/ABS('SMI Analyse KGV'!U23) -> 0.4677419355 | M21: =('SMI Analyse KGV'!W23-'SMI Analyse KGV'!V23)/ABS('SMI Analyse KGV'!V23) -> -0.02014652015 | N21: =('SMI Analyse KGV'!X23-'SMI Analyse KGV'!W23)/ABS('SMI Analyse KGV'!W23) -> -0.02429906542 | O21: =AVERAGE(E21:N21) -> 0.1117555609
B23: KÜHNE & NAGEL | C23: =('SMI Analyse KGV'!M25-'SMI Analyse KGV'!L25)/ABS('SMI Analyse KGV'!L25) -> 0.25 | D23: =('SMI Analyse KGV'!N25-'SMI Analyse KGV'!M25)/ABS('SMI Analyse KGV'!M25) -> 0.056 | E23: =('SMI Analyse KGV'!O25-'SMI Analyse KGV'!N25)/ABS('SMI Analyse KGV'!N25) -> 0.06818181818 | F23: =('SMI Analyse KGV'!P25-'SMI Analyse KGV'!O25)/ABS('SMI Analyse KGV'!O25) -> 0.06205673759 | G23: =('SMI Analyse KGV'!Q25-'SMI Analyse KGV'!P25)/ABS('SMI Analyse KGV'!P25) -> 0.02838063439 | H23: =('SMI Analyse KGV'!R25-'SMI Analyse KGV'!Q25)/ABS('SMI Analyse KGV'!Q25) -> 0.04383116883 | I23: =('SMI Analyse KGV'!S25-'SMI Analyse KGV'!R25)/ABS('SMI Analyse KGV'!R25) -> 0.03732503888 | J23: =('SMI Analyse KGV'!T25-'SMI Analyse KGV'!S25)/ABS('SMI Analyse KGV'!S25) -> -0.011994003 | K23: =('SMI Analyse KGV'!U25-'SMI Analyse KGV'!T25)/ABS('SMI Analyse KGV'!T25) -> 1.561456753 | L23: =('SMI Analyse KGV'!V25-'SMI Analyse KGV'!U25)/ABS('SMI Analyse KGV'!U25) -> 0.3050947867 | M23: =('SMI Analyse KGV'!W25-'SMI Analyse KGV'!V25)/ABS('SMI Analyse KGV'!V25) -> -0.4543803904 | N23: =('SMI Analyse KGV'!X25-'SMI Analyse KGV'!W25)/ABS('SMI Analyse KGV'!W25) -> -0.1722129784 | O23: =AVERAGE(E23:N23) -> 0.1467739566
B25: LOGITECH | C25: =('SMI Analyse KGV'!M27-'SMI Analyse KGV'!L27)/ABS('SMI Analyse KGV'!L27) -> 1.319444444 | D25: =('SMI Analyse KGV'!N27-'SMI Analyse KGV'!M27)/ABS('SMI Analyse KGV'!M27) -> -0.8695652174 | E25: =('SMI Analyse KGV'!O27-'SMI Analyse KGV'!N27)/ABS('SMI Analyse KGV'!N27) -> 7.833333333 | F25: =('SMI Analyse KGV'!P27-'SMI Analyse KGV'!O27)/ABS('SMI Analyse KGV'!O27) -> 1.339622642 | G25: =('SMI Analyse KGV'!Q27-'SMI Analyse KGV'!P27)/ABS('SMI Analyse KGV'!P27) -> -0.008064516129 | H25: =('SMI Analyse KGV'!R27-'SMI Analyse KGV'!Q27)/ABS('SMI Analyse KGV'!Q27) -> 0.2357723577 | I25: =('SMI Analyse KGV'!S27-'SMI Analyse KGV'!R27)/ABS('SMI Analyse KGV'!R27) -> 0.75 | J25: =('SMI Analyse KGV'!T27-'SMI Analyse KGV'!S27)/ABS('SMI Analyse KGV'!S27) -> 1.071428571 | K25: =('SMI Analyse KGV'!U27-'SMI Analyse KGV'!T27)/ABS('SMI Analyse KGV'!T27) -> -0.3139745917 | L25: =('SMI Analyse KGV'!V27-'SMI Analyse KGV'!U27)/ABS('SMI Analyse KGV'!U27) -> -0.4100529101 | M25: =('SMI Analyse KGV'!W27-'SMI Analyse KGV'!V27)/ABS('SMI Analyse KGV'!V27) -> 0.735426009 | N25: =('SMI Analyse KGV'!X27-'SMI Analyse KGV'!W27)/ABS('SMI Analyse KGV'!W27) -> -0.1472868217 | O25: =AVERAGE(E25:N25) -> 1.108620407
B27: LONZA N | C27: =('SMI Analyse KGV'!M29-'SMI Analyse KGV'!L29)/ABS('SMI Analyse KGV'!L29) -> -0.5228571429 | D27: =('SMI Analyse KGV'!N29-'SMI Analyse KGV'!M29)/ABS('SMI Analyse KGV'!M29) -> 1.718562874 | E27: =('SMI Analyse KGV'!O29-'SMI Analyse KGV'!N29)/ABS('SMI Analyse KGV'!N29) -> 0.1585903084 | F27: =('SMI Analyse KGV'!P29-'SMI Analyse KGV'!O29)/ABS('SMI Analyse KGV'!O29) -> 0.08174904943 | G27: =('SMI Analyse KGV'!Q29-'SMI Analyse KGV'!P29)/ABS('SMI Analyse KGV'!P29) -> 0.8629173989 | H27: =('SMI Analyse KGV'!R29-'SMI Analyse KGV'!Q29)/ABS('SMI Analyse KGV'!Q29) -> -0.2943396226 | I27: =('SMI Analyse KGV'!S29-'SMI Analyse KGV'!R29)/ABS('SMI Analyse KGV'!R29) -> 0.1564171123 | J27: =('SMI Analyse KGV'!T29-'SMI Analyse KGV'!S29)/ABS('SMI Analyse KGV'!S29) -> 0.3445086705 | K27: =('SMI Analyse KGV'!U29-'SMI Analyse KGV'!T29)/ABS('SMI Analyse KGV'!T29) -> 2.39810834 | L27: =('SMI Analyse KGV'!V29-'SMI Analyse KGV'!U29)/ABS('SMI Analyse KGV'!U29) -> -0.5865384615 | M27: =('SMI Analyse KGV'!W29-'SMI Analyse KGV'!V29)/ABS('SMI Analyse KGV'!V29) -> -0.4565483476 | N27: =('SMI Analyse KGV'!X29-'SMI Analyse KGV'!W29)/ABS('SMI Analyse KGV'!W29) -> 0.004504504505 | O27: =AVERAGE(E27:N27) -> 0.2669368953
B29: NESTLE N | C29: =('SMI Analyse KGV'!M31-'SMI Analyse KGV'!L31)/ABS('SMI Analyse KGV'!L31) -> -0.021875 | D29: =('SMI Analyse KGV'!N31-'SMI Analyse KGV'!M31)/ABS('SMI Analyse KGV'!M31) -> 0.4440894569 | E29: =('SMI Analyse KGV'!O31-'SMI Analyse KGV'!N31)/ABS('SMI Analyse KGV'!N31) -> -0.360619469 | F29: =('SMI Analyse KGV'!P31-'SMI Analyse KGV'!O31)/ABS('SMI Analyse KGV'!O31) -> -0.04844290657 | G29: =('SMI Analyse KGV'!Q31-'SMI Analyse KGV'!P31)/ABS('SMI Analyse KGV'!P31) -> -0.1563636364 | H29: =('SMI Analyse KGV'!R31-'SMI Analyse KGV'!Q31)/ABS('SMI Analyse KGV'!Q31) -> 0.4482758621 | I29: =('SMI Analyse KGV'!S31-'SMI Analyse KGV'!R31)/ABS('SMI Analyse KGV'!R31) -> 0.2797619048 | J29: =('SMI Analyse KGV'!T31-'SMI Analyse KGV'!S31)/ABS('SMI Analyse KGV'!S31) -> -0.002325581395 | K29: =('SMI Analyse KGV'!U31-'SMI Analyse KGV'!T31)/ABS('SMI Analyse KGV'!T31) -> 0.4125874126 | L29: =('SMI Analyse KGV'!V31-'SMI Analyse KGV'!U31)/ABS('SMI Analyse KGV'!U31) -> -0.4356435644 | M29: =('SMI Analyse KGV'!W31-'SMI Analyse KGV'!V31)/ABS('SMI Analyse KGV'!V31) -> 0.2368421053 | N29: =('SMI Analyse KGV'!X31-'SMI Analyse KGV'!W31)/ABS('SMI Analyse KGV'!W31) -> -0.009456264775 | O29: =AVERAGE(E29:N29) -> 0.03646158622
B31: NOVARTIS N | C31: =('SMI Analyse KGV'!M33-'SMI Analyse KGV'!L33)/ABS('SMI Analyse KGV'!L33) -> -0.04884318766 | D31: =('SMI Analyse KGV'!N33-'SMI Analyse KGV'!M33)/ABS('SMI Analyse KGV'!M33) -> 0.1162162162 | E31: =('SMI Analyse KGV'!O33-'SMI Analyse KGV'!N33)/ABS('SMI Analyse KGV'!N33) -> -0.3026634383 | F31: =('SMI Analyse KGV'!P33-'SMI Analyse KGV'!O33)/ABS('SMI Analyse KGV'!O33) -> -0.02083333333 | G31: =('SMI Analyse KGV'!Q33-'SMI Analyse KGV'!P33)/ABS('SMI Analyse KGV'!P33) -> 0.1524822695 | H31: =('SMI Analyse KGV'!R33-'SMI Analyse KGV'!Q33)/ABS('SMI Analyse KGV'!Q33) -> 0.6553846154 | I31: =('SMI Analyse KGV'!S33-'SMI Analyse KGV'!R33)/ABS('SMI Analyse KGV'!R33) -> -0.0594795539 | J31: =('SMI Analyse KGV'!T33-'SMI Analyse KGV'!S33)/ABS('SMI Analyse KGV'!S33) -> -0.3043478261 | K31: =('SMI Analyse KGV'!U33-'SMI Analyse KGV'!T33)/ABS('SMI Analyse KGV'!T33) -> 2.019886364 | L31: =('SMI Analyse KGV'!V33-'SMI Analyse KGV'!U33)/ABS('SMI Analyse KGV'!U33) -> -0.7017873942 | M31: =('SMI Analyse KGV'!W33-'SMI Analyse KGV'!V33)/ABS('SMI Analyse KGV'!V33) -> 1.239747634 | N31: =('SMI Analyse KGV'!X33-'SMI Analyse KGV'!W33)/ABS('SMI Analyse KGV'!W33) -> -0.1732394366 | O31: =AVERAGE(E31:N31) -> 0.25051499
B33: PARTNERS GROUP | C33: =('SMI Analyse KGV'!M35-'SMI Analyse KGV'!L35)/ABS('SMI Analyse KGV'!L35) -> 0.2178217822 | D33: =('SMI Analyse KGV'!N35-'SMI Analyse KGV'!M35)/ABS('SMI Analyse KGV'!M35) -> 0.1772357724 | E33: =('SMI Analyse KGV'!O35-'SMI Analyse KGV'!N35)/ABS('SMI Analyse KGV'!N35) -> 0.03522099448 | F33: =('SMI Analyse KGV'!P35-'SMI Analyse KGV'!O35)/ABS('SMI Analyse KGV'!O35) -> 0.4109406271 | G33: =('SMI Analyse KGV'!Q35-'SMI Analyse KGV'!P35)/ABS('SMI Analyse KGV'!P35) -> 0.3413711584 | H33: =('SMI Analyse KGV'!R35-'SMI Analyse KGV'!Q35)/ABS('SMI Analyse KGV'!Q35) -> 0.01903419105 | I33: =('SMI Analyse KGV'!S35-'SMI Analyse KGV'!R35)/ABS('SMI Analyse KGV'!R35) -> 0.1736423383 | J33: =('SMI Analyse KGV'!T35-'SMI Analyse KGV'!S35)/ABS('SMI Analyse KGV'!S35) -> -0.1052166225 | K33: =('SMI Analyse KGV'!U35-'SMI Analyse KGV'!T35)/ABS('SMI Analyse KGV'!T35) -> 0.8155467721 | L33: =('SMI Analyse KGV'!V35-'SMI Analyse KGV'!U35)/ABS('SMI Analyse KGV'!U35) -> -0.290820029 | M33: =('SMI Analyse KGV'!W35-'SMI Analyse KGV'!V35)/ABS('SMI Analyse KGV'!V35) -> -0.01381427475 | N33: =('SMI Analyse KGV'!X35-'SMI Analyse KGV'!W35)/ABS('SMI Analyse KGV'!W35) -> 0.1175097276 | O33: =AVERAGE(E33:N33) -> 0.1503414883
B35: RICHEMONT 2) | C35: =('SMI Analyse KGV'!M37-'SMI Analyse KGV'!L37)/ABS('SMI Analyse KGV'!L37) -> 0.02222222222 | D35: =('SMI Analyse KGV'!N37-'SMI Analyse KGV'!M37)/ABS('SMI Analyse KGV'!M37) -> -0.3597826087 | E35: =('SMI Analyse KGV'!O37-'SMI Analyse KGV'!N37)/ABS('SMI Analyse KGV'!N37) -> 0.6723259762 | F35: =('SMI Analyse KGV'!P37-'SMI Analyse KGV'!O37)/ABS('SMI Analyse KGV'!O37) -> -0.4568527919 | G35: =('SMI Analyse KGV'!Q37-'SMI Analyse KGV'!P37)/ABS('SMI Analyse KGV'!P37) -> 0.009345794393 | H35: =('SMI Analyse KGV'!R37-'SMI Analyse KGV'!Q37)/ABS('SMI Analyse KGV'!Q37) -> 1.281018519 | I35: =('SMI Analyse KGV'!S37-'SMI Analyse KGV'!R37)/ABS('SMI Analyse KGV'!R37) -> -0.6649076517 | J35: =('SMI Analyse KGV'!T37-'SMI Analyse KGV'!S37)/ABS('SMI Analyse KGV'!S37) -> 0.3930950939 | K35: =('SMI Analyse KGV'!U37-'SMI Analyse KGV'!T37)/ABS('SMI Analyse KGV'!T37) -> 0.57 | L35: =('SMI Analyse KGV'!V37-'SMI Analyse KGV'!U37)/ABS('SMI Analyse KGV'!U37) -> -0.8504569371 | M35: =('SMI Analyse KGV'!W37-'SMI Analyse KGV'!V37)/ABS('SMI Analyse KGV'!V37) -> 6.55 | N35: =('SMI Analyse KGV'!X37-'SMI Analyse KGV'!W37)/ABS('SMI Analyse KGV'!W37) -> 0.3980868286 | O35: =AVERAGE(E35:N35) -> 0.7901654831
B37: ROCHE GS | C37: =('SMI Analyse KGV'!M39-'SMI Analyse KGV'!L39)/ABS('SMI Analyse KGV'!L39) -> 0.1586021505 | D37: =('SMI Analyse KGV'!N39-'SMI Analyse KGV'!M39)/ABS('SMI Analyse KGV'!M39) -> -0.1639597834 | E37: =('SMI Analyse KGV'!O39-'SMI Analyse KGV'!N39)/ABS('SMI Analyse KGV'!N39) -> -0.04902867715 | F37: =('SMI Analyse KGV'!P39-'SMI Analyse KGV'!O39)/ABS('SMI Analyse KGV'!O39) -> 0.0826848249 | G37: =('SMI Analyse KGV'!Q39-'SMI Analyse KGV'!P39)/ABS('SMI Analyse KGV'!P39) -> -0.09793351303 | H37: =('SMI Analyse KGV'!R39-'SMI Analyse KGV'!Q39)/ABS('SMI Analyse KGV'!Q39) -> 0.2161354582 | I37: =('SMI Analyse KGV'!S39-'SMI Analyse KGV'!R39)/ABS('SMI Analyse KGV'!R39) -> 0.2792792793 | J37: =('SMI Analyse KGV'!T39-'SMI Analyse KGV'!S39)/ABS('SMI Analyse KGV'!S39) -> 0.0576184379 | K37: =('SMI Analyse KGV'!U39-'SMI Analyse KGV'!T39)/ABS('SMI Analyse KGV'!T39) -> -0.01937046005 | L37: =('SMI Analyse KGV'!V39-'SMI Analyse KGV'!U39)/ABS('SMI Analyse KGV'!U39) -> -0.0512345679 | M37: =('SMI Analyse KGV'!W39-'SMI Analyse KGV'!V39)/ABS('SMI Analyse KGV'!V39) -> -0.06896551724 | N37: =('SMI Analyse KGV'!X39-'SMI Analyse KGV'!W39)/ABS('SMI Analyse KGV'!W39) -> -0.2795248078 | O37: =AVERAGE(E37:N37) -> 0.006966045705
B39: SIKA | C39: =('SMI Analyse KGV'!M41-'SMI Analyse KGV'!L41)/ABS('SMI Analyse KGV'!L41) -> 0.2272727273 | D39: =('SMI Analyse KGV'!N41-'SMI Analyse KGV'!M41)/ABS('SMI Analyse KGV'!M41) -> 0.2814814815 | E39: =('SMI Analyse KGV'!O41-'SMI Analyse KGV'!N41)/ABS('SMI Analyse KGV'!N41) -> 0.04838150289 | F39: =('SMI Analyse KGV'!P41-'SMI Analyse KGV'!O41)/ABS('SMI Analyse KGV'!O41) -> 0.2229696201 | G39: =('SMI Analyse KGV'!Q41-'SMI Analyse KGV'!P41)/ABS('SMI Analyse KGV'!P41) -> 0.1429601912 | H39: =('SMI Analyse KGV'!R41-'SMI Analyse KGV'!Q41)/ABS('SMI Analyse KGV'!Q41) -> 0.08393815084 | I39: =('SMI Analyse KGV'!S41-'SMI Analyse KGV'!R41)/ABS('SMI Analyse KGV'!R41) -> 0.05021834061 | J39: =('SMI Analyse KGV'!T41-'SMI Analyse KGV'!S41)/ABS('SMI Analyse KGV'!S41) -> 0.08523908524 | K39: =('SMI Analyse KGV'!U41-'SMI Analyse KGV'!T41)/ABS('SMI Analyse KGV'!T41) -> 0.2643678161 | L39: =('SMI Analyse KGV'!V41-'SMI Analyse KGV'!U41)/ABS('SMI Analyse KGV'!U41) -> 0.1045454545 | M39: =('SMI Analyse KGV'!W41-'SMI Analyse KGV'!V41)/ABS('SMI Analyse KGV'!V41) -> -0.0877914952 | N39: =('SMI Analyse KGV'!X41-'SMI Analyse KGV'!W41)/ABS('SMI Analyse KGV'!W41) -> 0.1669172932 | O39: =AVERAGE(E39:N39) -> 0.108174596
B41: SONOVA | C41: =('SMI Analyse KGV'!M43-'SMI Analyse KGV'!L43)/ABS('SMI Analyse KGV'!L43) -> 2.1875 | D41: =('SMI Analyse KGV'!N43-'SMI Analyse KGV'!M43)/ABS('SMI Analyse KGV'!M43) -> 0.05294117647 | E41: =('SMI Analyse KGV'!O43-'SMI Analyse KGV'!N43)/ABS('SMI Analyse KGV'!N43) -> -0.04841713222 | F41: =('SMI Analyse KGV'!P43-'SMI Analyse KGV'!O43)/ABS('SMI Analyse KGV'!O43) -> 0.0469667319 | G41: =('SMI Analyse KGV'!Q43-'SMI Analyse KGV'!P43)/ABS('SMI Analyse KGV'!P43) -> 0.1457943925 | H41: =('SMI Analyse KGV'!R43-'SMI Analyse KGV'!Q43)/ABS('SMI Analyse KGV'!Q43) -> 0.1386623165 | I41: =('SMI Analyse KGV'!S43-'SMI Analyse KGV'!R43)/ABS('SMI Analyse KGV'!R43) -> 0.09025787966 | J41: =('SMI Analyse KGV'!T43-'SMI Analyse KGV'!S43)/ABS('SMI Analyse KGV'!S43) -> 0.2128777924 | K41: =('SMI Analyse KGV'!U43-'SMI Analyse KGV'!T43)/ABS('SMI Analyse KGV'!T43) -> 0.1213434453 | L41: =('SMI Analyse KGV'!V43-'SMI Analyse KGV'!U43)/ABS('SMI Analyse KGV'!U43) -> 0.03574879227 | M41: =('SMI Analyse KGV'!W43-'SMI Analyse KGV'!V43)/ABS('SMI Analyse KGV'!V43) -> -0.0625 | N41: =('SMI Analyse KGV'!X43-'SMI Analyse KGV'!W43)/ABS('SMI Analyse KGV'!W43) -> 0.144278607 | O41: =AVERAGE(E41:N41) -> 0.08250128252
B43: SWISS LIFE HOLDING N | C43: =('SMI Analyse KGV'!M45-'SMI Analyse KGV'!L45)/ABS('SMI Analyse KGV'!L45) -> 7.468531469 | D43: =('SMI Analyse KGV'!N45-'SMI Analyse KGV'!M45)/ABS('SMI Analyse KGV'!M45) -> -0.004541701073 | E43: =('SMI Analyse KGV'!O45-'SMI Analyse KGV'!N45)/ABS('SMI Analyse KGV'!N45) -> 0.07216922439 | F43: =('SMI Analyse KGV'!P45-'SMI Analyse KGV'!O45)/ABS('SMI Analyse KGV'!O45) -> 0.05493230174 | G43: =('SMI Analyse KGV'!Q45-'SMI Analyse KGV'!P45)/ABS('SMI Analyse KGV'!P45) -> 0.08654198753 | H43: =('SMI Analyse KGV'!R45-'SMI Analyse KGV'!Q45)/ABS('SMI Analyse KGV'!Q45) -> 0.06277421532 | I43: =('SMI Analyse KGV'!S45-'SMI Analyse KGV'!R45)/ABS('SMI Analyse KGV'!R45) -> 0.1584630041 | J43: =('SMI Analyse KGV'!T45-'SMI Analyse KGV'!S45)/ABS('SMI Analyse KGV'!S45) -> -0.1014254386 | K43: =('SMI Analyse KGV'!U45-'SMI Analyse KGV'!T45)/ABS('SMI Analyse KGV'!T45) -> 0.2181208054 | L43: =('SMI Analyse KGV'!V45-'SMI Analyse KGV'!U45)/ABS('SMI Analyse KGV'!U45) -> 0.196093163 | M43: =('SMI Analyse KGV'!W45-'SMI Analyse KGV'!V45)/ABS('SMI Analyse KGV'!V45) -> -0.2250837521 | N43: =('SMI Analyse KGV'!X45-'SMI Analyse KGV'!W45)/ABS('SMI Analyse KGV'!W45) -> 0.1426641448 | O43: =AVERAGE(E43:N43) -> 0.06652496557
B45: SWISS RE N | C45: =('SMI Analyse KGV'!M47-'SMI Analyse KGV'!L47)/ABS('SMI Analyse KGV'!L47) -> 0.06256015399 | D45: =('SMI Analyse KGV'!N47-'SMI Analyse KGV'!M47)/ABS('SMI Analyse KGV'!M47) -> -0.2246376812 | E45: =('SMI Analyse KGV'!O47-'SMI Analyse KGV'!N47)/ABS('SMI Analyse KGV'!N47) -> 0.3796728972 | F45: =('SMI Analyse KGV'!P47-'SMI Analyse KGV'!O47)/ABS('SMI Analyse KGV'!O47) -> -0.1820491109 | G45: =('SMI Analyse KGV'!Q47-'SMI Analyse KGV'!P47)/ABS('SMI Analyse KGV'!P47) -> -0.8954451346 | H45: =('SMI Analyse KGV'!R47-'SMI Analyse KGV'!Q47)/ABS('SMI Analyse KGV'!Q47) -> 0.3267326733 | I45: =('SMI Analyse KGV'!S47-'SMI Analyse KGV'!R47)/ABS('SMI Analyse KGV'!R47) -> 0.7910447761 | J45: =('SMI Analyse KGV'!T47-'SMI Analyse KGV'!S47)/ABS('SMI Analyse KGV'!S47) -> -2.2375 | K45: =('SMI Analyse KGV'!U47-'SMI Analyse KGV'!T47)/ABS('SMI Analyse KGV'!T47) -> 2.464646465 | L45: =('SMI Analyse KGV'!V47-'SMI Analyse KGV'!U47)/ABS('SMI Analyse KGV'!U47) -> -0.632183908 | M45: =('SMI Analyse KGV'!W47-'SMI Analyse KGV'!V47)/ABS('SMI Analyse KGV'!V47) -> 4.81875 | N45: =('SMI Analyse KGV'!X47-'SMI Analyse KGV'!W47)/ABS('SMI Analyse KGV'!W47) -> 0.01825993555 | O45: =AVERAGE(E45:N45) -> 0.4851928593
B47: SWISSCOM N | C47: =('SMI Analyse KGV'!M49-'SMI Analyse KGV'!L49)/ABS('SMI Analyse KGV'!L49) -> -0.03984651712 | D47: =('SMI Analyse KGV'!N49-'SMI Analyse KGV'!M49)/ABS('SMI Analyse KGV'!M49) -> 0.005225945281 | E47: =('SMI Analyse KGV'!O49-'SMI Analyse KGV'!N49)/ABS('SMI Analyse KGV'!N49) -> -0.1966360856 | F47: =('SMI Analyse KGV'!P49-'SMI Analyse KGV'!O49)/ABS('SMI Analyse KGV'!O49) -> 0.1789113057 | G47: =('SMI Analyse KGV'!Q49-'SMI Analyse KGV'!P49)/ABS('SMI Analyse KGV'!P49) -> -0.02131094608 | H47: =('SMI Analyse KGV'!R49-'SMI Analyse KGV'!Q49)/ABS('SMI Analyse KGV'!Q49) -> -0.02738370175 | I47: =('SMI Analyse KGV'!S49-'SMI Analyse KGV'!R49)/ABS('SMI Analyse KGV'!R49) -> 0.09497964722 | J47: =('SMI Analyse KGV'!T49-'SMI Analyse KGV'!S49)/ABS('SMI Analyse KGV'!S49) -> -0.08488228005 | K47: =('SMI Analyse KGV'!U49-'SMI Analyse KGV'!T49)/ABS('SMI Analyse KGV'!T49) -> 0.1973595125 | L47: =('SMI Analyse KGV'!V49-'SMI Analyse KGV'!U49)/ABS('SMI Analyse KGV'!U49) -> -0.1255301103 | M47: =('SMI Analyse KGV'!W49-'SMI Analyse KGV'!V49)/ABS('SMI Analyse KGV'!V49) -> 0.06789524733 | N47: =('SMI Analyse KGV'!X49-'SMI Analyse KGV'!W49)/ABS('SMI Analyse KGV'!W49) -> -0.09869815319 | O47: =AVERAGE(E47:N47) -> -0.001529556421
B49: UBS N | C49: =('SMI Analyse KGV'!M51-'SMI Analyse KGV'!L51)/ABS('SMI Analyse KGV'!L51) -> 2.23880597 | D49: =('SMI Analyse KGV'!N51-'SMI Analyse KGV'!M51)/ABS('SMI Analyse KGV'!M51) -> 0.09638554217 | E49: =('SMI Analyse KGV'!O51-'SMI Analyse KGV'!N51)/ABS('SMI Analyse KGV'!N51) -> 0.8021978022 | F49: =('SMI Analyse KGV'!P51-'SMI Analyse KGV'!O51)/ABS('SMI Analyse KGV'!O51) -> -0.487804878 | G49: =('SMI Analyse KGV'!Q51-'SMI Analyse KGV'!P51)/ABS('SMI Analyse KGV'!P51) -> -0.6785714286 | H49: =('SMI Analyse KGV'!R51-'SMI Analyse KGV'!Q51)/ABS('SMI Analyse KGV'!Q51) -> 3.37037037 | I49: =('SMI Analyse KGV'!S51-'SMI Analyse KGV'!R51)/ABS('SMI Analyse KGV'!R51) -> -0.03389830508 | J49: =('SMI Analyse KGV'!T51-'SMI Analyse KGV'!S51)/ABS('SMI Analyse KGV'!S51) -> 0.5526315789 | K49: =('SMI Analyse KGV'!U51-'SMI Analyse KGV'!T51)/ABS('SMI Analyse KGV'!T51) -> 0.1638418079 | L49: =('SMI Analyse KGV'!V51-'SMI Analyse KGV'!U51)/ABS('SMI Analyse KGV'!U51) -> 0.09223300971 | M49: =('SMI Analyse KGV'!W51-'SMI Analyse KGV'!V51)/ABS('SMI Analyse KGV'!V51) -> 2.688888889 | N49: =('SMI Analyse KGV'!X51-'SMI Analyse KGV'!W51)/ABS('SMI Analyse KGV'!W51) -> -0.8168674699 | O49: =AVERAGE(E49:N49) -> 0.5653021376
B51: ZURICH FINANCIAL N | C51: =('SMI Analyse KGV'!M53-'SMI Analyse KGV'!L53)/ABS('SMI Analyse KGV'!L53) -> 0.02311435523 | D51: =('SMI Analyse KGV'!N53-'SMI Analyse KGV'!M53)/ABS('SMI Analyse KGV'!M53) -> -0.05509314308 | E51: =('SMI Analyse KGV'!O53-'SMI Analyse KGV'!N53)/ABS('SMI Analyse KGV'!N53) -> -0.5025167785 | F51: =('SMI Analyse KGV'!P53-'SMI Analyse KGV'!O53)/ABS('SMI Analyse KGV'!O53) -> 0.7740303541 | G51: =('SMI Analyse KGV'!Q53-'SMI Analyse KGV'!P53)/ABS('SMI Analyse KGV'!P53) -> -0.06939163498 | H51: =('SMI Analyse KGV'!R53-'SMI Analyse KGV'!Q53)/ABS('SMI Analyse KGV'!Q53) -> 0.240040858 | I51: =('SMI Analyse KGV'!S53-'SMI Analyse KGV'!R53)/ABS('SMI Analyse KGV'!R53) -> 0.1330313015 | J51: =('SMI Analyse KGV'!T53-'SMI Analyse KGV'!S53)/ABS('SMI Analyse KGV'!S53) -> -0.1283169756 | K51: =('SMI Analyse KGV'!U53-'SMI Analyse KGV'!T53)/ABS('SMI Analyse KGV'!T53) -> 0.3211009174 | L51: =('SMI Analyse KGV'!V53-'SMI Analyse KGV'!U53)/ABS('SMI Analyse KGV'!U53) -> -0.07323232323 | M51: =('SMI Analyse KGV'!W53-'SMI Analyse KGV'!V53)/ABS('SMI Analyse KGV'!V53) -> -0.09025885559 | N51: =('SMI Analyse KGV'!X53-'SMI Analyse KGV'!W53)/ABS('SMI Analyse KGV'!W53) -> 0.3227255709 | O51: =AVERAGE(E51:N51) -> 0.0927212434
C60: 2013 | D60: 2014 | E60: 2015 | F60: 2016 | G60: 2017 | H60: 2018 | I60: 2019 | J60: 2020 | K60: 2021 | L60: 2022 | M60: 2023
C62: Veränderungsraten | O62: Mittelwert
B65: Adecco | C65: =('SMI Analyse KGV'!M63-'SMI Analyse KGV'!L63)/ABS('SMI Analyse KGV'!L63) -> 0.54 | D65: =('SMI Analyse KGV'!N63-'SMI Analyse KGV'!M63)/ABS('SMI Analyse KGV'!M63) -> 0.1720779221 | E65: =('SMI Analyse KGV'!O63-'SMI Analyse KGV'!N63)/ABS('SMI Analyse KGV'!N63) -> -0.9861495845 | F65: =('SMI Analyse KGV'!P63-'SMI Analyse KGV'!O63)/ABS('SMI Analyse KGV'!O63) -> 83.8 | G65: =('SMI Analyse KGV'!Q63-'SMI Analyse KGV'!P63)/ABS('SMI Analyse KGV'!P63) -> 0.09905660377 | H65: =('SMI Analyse KGV'!R63-'SMI Analyse KGV'!Q63)/ABS('SMI Analyse KGV'!Q63) -> -0.4055793991 | I65: =('SMI Analyse KGV'!S63-'SMI Analyse KGV'!R63)/ABS('SMI Analyse KGV'!R63) -> 0.6137184116 | J65: =('SMI Analyse KGV'!T63-'SMI Analyse KGV'!S63)/ABS('SMI Analyse KGV'!S63) -> -1.136465324 | K65: =('SMI Analyse KGV'!U63-'SMI Analyse KGV'!T63)/ABS('SMI Analyse KGV'!T63) -> 6.901639344 | L65: =('SMI Analyse KGV'!V63-'SMI Analyse KGV'!U63)/ABS('SMI Analyse KGV'!U63) -> -0.4333333333 | M65: =('SMI Analyse KGV'!W63-'SMI Analyse KGV'!V63)/ABS('SMI Analyse KGV'!V63) -> -0.04901960784 | O65: =AVERAGE(D65:M65) -> 8.857594503
B67: AMS Osram | C67: =('SMI Analyse KGV'!M65-'SMI Analyse KGV'!L65)/ABS('SMI Analyse KGV'!L65) -> -0.26 | D67: =('SMI Analyse KGV'!N65-'SMI Analyse KGV'!M65)/ABS('SMI Analyse KGV'!M65) -> 0.6936936937 | E67: =('SMI Analyse KGV'!O65-'SMI Analyse KGV'!N65)/ABS('SMI Analyse KGV'!N65) -> 0.2127659574 | F67: =('SMI Analyse KGV'!P65-'SMI Analyse KGV'!O65)/ABS('SMI Analyse KGV'!O65) -> -0.3377192982 | G67: =('SMI Analyse KGV'!Q65-'SMI Analyse KGV'!P65)/ABS('SMI Analyse KGV'!P65) -> -0.4635761589 | H67: =('SMI Analyse KGV'!R65-'SMI Analyse KGV'!Q65)/ABS('SMI Analyse KGV'!Q65) -> 0.0987654321 | I67: =('SMI Analyse KGV'!S65-'SMI Analyse KGV'!R65)/ABS('SMI Analyse KGV'!R65) -> 2.157303371 | J67: =('SMI Analyse KGV'!T65-'SMI Analyse KGV'!S65)/ABS('SMI Analyse KGV'!S65) -> -1.021352313 | K67: =('SMI Analyse KGV'!U65-'SMI Analyse KGV'!T65)/ABS('SMI Analyse KGV'!T65) -> -1.166666667 | L67: =('SMI Analyse KGV'!V65-'SMI Analyse KGV'!U65)/ABS('SMI Analyse KGV'!U65) -> -6.076923077 | M67: =('SMI Analyse KGV'!W65-'SMI Analyse KGV'!V65)/ABS('SMI Analyse KGV'!V65) -> -4.489130435 | O67: =AVERAGE(D67:M67) -> -1.039283949
B69: Avolta | C69: =('SMI Analyse KGV'!M67-'SMI Analyse KGV'!L67)/ABS('SMI Analyse KGV'!L67) -> -0.3044444444 | D69: =('SMI Analyse KGV'!N67-'SMI Analyse KGV'!M67)/ABS('SMI Analyse KGV'!M67) -> -0.5047923323 | E69: =('SMI Analyse KGV'!O67-'SMI Analyse KGV'!N67)/ABS('SMI Analyse KGV'!N67) -> -2.116129032 | F69: =('SMI Analyse KGV'!P67-'SMI Analyse KGV'!O67)/ABS('SMI Analyse KGV'!O67) -> 1.028901734 | G69: =('SMI Analyse KGV'!Q67-'SMI Analyse KGV'!P67)/ABS('SMI Analyse KGV'!P67) -> 20.2 | H69: =('SMI Analyse KGV'!R67-'SMI Analyse KGV'!Q67)/ABS('SMI Analyse KGV'!Q67) -> 0.3018867925 | I69: =('SMI Analyse KGV'!S67-'SMI Analyse KGV'!R67)/ABS('SMI Analyse KGV'!R67) -> -1.384057971 | J69: =('SMI Analyse KGV'!T67-'SMI Analyse KGV'!S67)/ABS('SMI Analyse KGV'!S67) -> -80.1509434 | K69: =('SMI Analyse KGV'!U67-'SMI Analyse KGV'!T67)/ABS('SMI Analyse KGV'!T67) -> 0.8979307138 | L69: =('SMI Analyse KGV'!V67-'SMI Analyse KGV'!U67)/ABS('SMI Analyse KGV'!U67) -> 1.141230068 | M69: =('SMI Analyse KGV'!W67-'SMI Analyse KGV'!V67)/ABS('SMI Analyse KGV'!V67) -> 0.01612903226 | O69: =AVERAGE(D69:M69) -> -6.056984439
B71: Bachem | C71: =('SMI Analyse KGV'!M69-'SMI Analyse KGV'!L69)/ABS('SMI Analyse KGV'!L69) -> 0.5 | D71: =('SMI Analyse KGV'!N69-'SMI Analyse KGV'!M69)/ABS('SMI Analyse KGV'!M69) -> 0.1944444444 | E71: =('SMI Analyse KGV'!O69-'SMI Analyse KGV'!N69)/ABS('SMI Analyse KGV'!N69) -> 0.09302325581 | F71: =('SMI Analyse KGV'!P69-'SMI Analyse KGV'!O69)/ABS('SMI Analyse KGV'!O69) -> 0.2936170213 | G71: =('SMI Analyse KGV'!Q69-'SMI Analyse KGV'!P69)/ABS('SMI Analyse KGV'!P69) -> 0.01973684211 | H71: =('SMI Analyse KGV'!R69-'SMI Analyse KGV'!Q69)/ABS('SMI Analyse KGV'!Q69) -> 0.1129032258 | I71: =('SMI Analyse KGV'!S69-'SMI Analyse KGV'!R69)/ABS('SMI Analyse KGV'!R69) -> 0.1304347826 | J71: =('SMI Analyse KGV'!T69-'SMI Analyse KGV'!S69)/ABS('SMI Analyse KGV'!S69) -> 0.4358974359 | K71: =('SMI Analyse KGV'!U69-'SMI Analyse KGV'!T69)/ABS('SMI Analyse KGV'!T69) -> 0.4464285714 | L71: =('SMI Analyse KGV'!V69-'SMI Analyse KGV'!U69)/ABS('SMI Analyse KGV'!U69) -> -0.1543209877 | M71: =('SMI Analyse KGV'!W69-'SMI Analyse KGV'!V69)/ABS('SMI Analyse KGV'!V69) -> 0.09489051095 | O71: =AVERAGE(D71:M71) -> 0.1667055103
B73: Baloise | C73: =('SMI Analyse KGV'!M71-'SMI Analyse KGV'!L71)/ABS('SMI Analyse KGV'!L71) -> -0.05392156863 | D73: =('SMI Analyse KGV'!N71-'SMI Analyse KGV'!M71)/ABS('SMI Analyse KGV'!M71) -> 0.5699481865 | E73: =('SMI Analyse KGV'!O71-'SMI Analyse KGV'!N71)/ABS('SMI Analyse KGV'!N71) -> -0.2765676568 | F73: =('SMI Analyse KGV'!P71-'SMI Analyse KGV'!O71)/ABS('SMI Analyse KGV'!O71) -> 0.05200729927 | G73: =('SMI Analyse KGV'!Q71-'SMI Analyse KGV'!P71)/ABS('SMI Analyse KGV'!P71) -> -0.002601908066 | H73: =('SMI Analyse KGV'!R71-'SMI Analyse KGV'!Q71)/ABS('SMI Analyse KGV'!Q71) -> -0.03130434783 | I73: =('SMI Analyse KGV'!S71-'SMI Analyse KGV'!R71)/ABS('SMI Analyse KGV'!R71) -> 0.3482944345 | J73: =('SMI Analyse KGV'!T71-'SMI Analyse KGV'!S71)/ABS('SMI Analyse KGV'!S71) -> -0.3575233023 | K73: =('SMI Analyse KGV'!U71-'SMI Analyse KGV'!T71)/ABS('SMI Analyse KGV'!T71) -> 0.3533678756 | L73: =('SMI Analyse KGV'!V71-'SMI Analyse KGV'!U71)/ABS('SMI Analyse KGV'!U71) -> -0.5803981623 | M73: =('SMI Analyse KGV'!W71-'SMI Analyse KGV'!V71)/ABS('SMI Analyse KGV'!V71) -> -0.03467153285 | O73: =AVERAGE(D73:M73) -> 0.004055088582
B75: Barry Callebaut | C75: =('SMI Analyse KGV'!M73-'SMI Analyse KGV'!L73)/ABS('SMI Analyse KGV'!L73) -> 0.5527272727 | D75: =('SMI Analyse KGV'!N73-'SMI Analyse KGV'!M73)/ABS('SMI Analyse KGV'!M73) -> 0.07728337237 | E75: =('SMI Analyse KGV'!O73-'SMI Analyse KGV'!N73)/ABS('SMI Analyse KGV'!N73) -> -0.0597826087 | F75: =('SMI Analyse KGV'!P73-'SMI Analyse KGV'!O73)/ABS('SMI Analyse KGV'!O73) -> -0.0850867052 | G75: =('SMI Analyse KGV'!Q73-'SMI Analyse KGV'!P73)/ABS('SMI Analyse KGV'!P73) -> 0.2926459439 | H75: =('SMI Analyse KGV'!R73-'SMI Analyse KGV'!Q73)/ABS('SMI Analyse KGV'!Q73) -> 0.2694037146 | I75: =('SMI Analyse KGV'!S73-'SMI Analyse KGV'!R73)/ABS('SMI Analyse KGV'!R73) -> 0.04065917142 | J75: =('SMI Analyse KGV'!T73-'SMI Analyse KGV'!S73)/ABS('SMI Analyse KGV'!S73) -> -0.1466627201 | K75: =('SMI Analyse KGV'!U73-'SMI Analyse KGV'!T73)/ABS('SMI Analyse KGV'!T73) -> 0.2112382934 | L75: =('SMI Analyse KGV'!V73-'SMI Analyse KGV'!U73)/ABS('SMI Analyse KGV'!U73) -> -0.0598510882 | M75: =('SMI Analyse KGV'!W73-'SMI Analyse KGV'!V73)/ABS('SMI Analyse KGV'!V73) -> 0.2321047822 | O75: =AVERAGE(D75:M75) -> 0.07719521557
B77: Belimo | C77: =('SMI Analyse KGV'!M75-'SMI Analyse KGV'!L75)/ABS('SMI Analyse KGV'!L75) -> 0.03621730382 | D77: =('SMI Analyse KGV'!N75-'SMI Analyse KGV'!M75)/ABS('SMI Analyse KGV'!M75) -> 0.06796116505 | E77: =('SMI Analyse KGV'!O75-'SMI Analyse KGV'!N75)/ABS('SMI Analyse KGV'!N75) -> -0.168 | F77: =('SMI Analyse KGV'!P75-'SMI Analyse KGV'!O75)/ABS('SMI Analyse KGV'!O75) -> 0.2456293706 | G77: =('SMI Analyse KGV'!Q75-'SMI Analyse KGV'!P75)/ABS('SMI Analyse KGV'!P75) -> 0.1052631579 | H77: =('SMI Analyse KGV'!R75-'SMI Analyse KGV'!Q75)/ABS('SMI Analyse KGV'!Q75) -> 0.1126984127 | I77: =('SMI Analyse KGV'!S75-'SMI Analyse KGV'!R75)/ABS('SMI Analyse KGV'!R75) -> 0.4051355207 | J77: =('SMI Analyse KGV'!T75-'SMI Analyse KGV'!S75)/ABS('SMI Analyse KGV'!S75) -> -0.2842639594 | K77: =('SMI Analyse KGV'!U75-'SMI Analyse KGV'!T75)/ABS('SMI Analyse KGV'!T75) -> 0.334751773 | L77: =('SMI Analyse KGV'!V75-'SMI Analyse KGV'!U75)/ABS('SMI Analyse KGV'!U75) -> 0.06163655685 | M77: =('SMI Analyse KGV'!W75-'SMI Analyse KGV'!V75)/ABS('SMI Analyse KGV'!V75) -> 0.1151151151 | O77: =AVERAGE(D77:M77) -> 0.09959271126
B79: Bell | C79: =('SMI Analyse KGV'!M77-'SMI Analyse KGV'!L77)/ABS('SMI Analyse KGV'!L77) -> 0.005235602094 | D79: =('SMI Analyse KGV'!N77-'SMI Analyse KGV'!M77)/ABS('SMI Analyse KGV'!M77) -> 0.140625 | E79: =('SMI Analyse KGV'!O77-'SMI Analyse KGV'!N77)/ABS('SMI Analyse KGV'!N77) -> 0.08447488584 | F79: =('SMI Analyse KGV'!P77-'SMI Analyse KGV'!O77)/ABS('SMI Analyse KGV'!O77) -> 0.06021052632 | G79: =('SMI Analyse KGV'!Q77-'SMI Analyse KGV'!P77)/ABS('SMI Analyse KGV'!P77) -> 0.05957108817 | H79: =('SMI Analyse KGV'!R77-'SMI Analyse KGV'!Q77)/ABS('SMI Analyse KGV'!Q77) -> -0.3669415292 | I79: =('SMI Analyse KGV'!S77-'SMI Analyse KGV'!R77)/ABS('SMI Analyse KGV'!R77) -> -0.532267614 | J79: =('SMI Analyse KGV'!T77-'SMI Analyse KGV'!S77)/ABS('SMI Analyse KGV'!S77) -> 1.393670886 | K79: =('SMI Analyse KGV'!U77-'SMI Analyse KGV'!T77)/ABS('SMI Analyse KGV'!T77) -> 0.07403490217 | L79: =('SMI Analyse KGV'!V77-'SMI Analyse KGV'!U77)/ABS('SMI Analyse KGV'!U77) -> 0.002954209749 | M79: =('SMI Analyse KGV'!W77-'SMI Analyse KGV'!V77)/ABS('SMI Analyse KGV'!V77) -> 0.01325478645 | O79: =AVERAGE(D79:M79) -> 0.09295871416
B81: BKW | C81: =('SMI Analyse KGV'!M79-'SMI Analyse KGV'!L79)/ABS('SMI Analyse KGV'!L79) -> -2.666666667 | D81: =('SMI Analyse KGV'!N79-'SMI Analyse KGV'!M79)/ABS('SMI Analyse KGV'!M79) -> 2.324444444 | E81: =('SMI Analyse KGV'!O79-'SMI Analyse KGV'!N79)/ABS('SMI Analyse KGV'!N79) -> -0.04194630872 | F81: =('SMI Analyse KGV'!P79-'SMI Analyse KGV'!O79)/ABS('SMI Analyse KGV'!O79) -> 0.122591944 | G81: =('SMI Analyse KGV'!Q79-'SMI Analyse KGV'!P79)/ABS('SMI Analyse KGV'!P79) -> -0.232449298 | H81: =('SMI Analyse KGV'!R79-'SMI Analyse KGV'!Q79)/ABS('SMI Analyse KGV'!Q79) -> -0.2764227642 | I81: =('SMI Analyse KGV'!S79-'SMI Analyse KGV'!R79)/ABS('SMI Analyse KGV'!R79) -> 1.084269663 | J81: =('SMI Analyse KGV'!T79-'SMI Analyse KGV'!S79)/ABS('SMI Analyse KGV'!S79) -> -0.07547169811 | K81: =('SMI Analyse KGV'!U79-'SMI Analyse KGV'!T79)/ABS('SMI Analyse KGV'!T79) -> -0.1588921283 | L81: =('SMI Analyse KGV'!V79-'SMI Analyse KGV'!U79)/ABS('SMI Analyse KGV'!U79) -> 0.8076256499 | M81: =('SMI Analyse KGV'!W79-'SMI Analyse KGV'!V79)/ABS('SMI Analyse KGV'!V79) -> -0.1313518696 | O81: =AVERAGE(D81:M81) -> 0.3422397634
B83: Bossard | C83: =('SMI Analyse KGV'!M81-'SMI Analyse KGV'!L81)/ABS('SMI Analyse KGV'!L81) -> 0.02920723227 | D83: =('SMI Analyse KGV'!N81-'SMI Analyse KGV'!M81)/ABS('SMI Analyse KGV'!M81) -> 0.01216216216 | E83: =('SMI Analyse KGV'!O81-'SMI Analyse KGV'!N81)/ABS('SMI Analyse KGV'!N81) -> -0.06408544726 | F83: =('SMI Analyse KGV'!P81-'SMI Analyse KGV'!O81)/ABS('SMI Analyse KGV'!O81) -> 0.1469329529 | G83: =('SMI Analyse KGV'!Q81-'SMI Analyse KGV'!P81)/ABS('SMI Analyse KGV'!P81) -> 0.2848258706 | H83: =('SMI Analyse KGV'!R81-'SMI Analyse KGV'!Q81)/ABS('SMI Analyse KGV'!Q81) -> 0.06001936108 | I83: =('SMI Analyse KGV'!S81-'SMI Analyse KGV'!R81)/ABS('SMI Analyse KGV'!R81) -> -0.1114155251 | J83: =('SMI Analyse KGV'!T81-'SMI Analyse KGV'!S81)/ABS('SMI Analyse KGV'!S81) -> -0.1027749229 | K83: =('SMI Analyse KGV'!U81-'SMI Analyse KGV'!T81)/ABS('SMI Analyse KGV'!T81) -> 0.4352806415 | L83: =('SMI Analyse KGV'!V81-'SMI Analyse KGV'!U81)/ABS('SMI Analyse KGV'!U81) -> 0.06783719074 | M83: =('SMI Analyse KGV'!W81-'SMI Analyse KGV'!V81)/ABS('SMI Analyse KGV'!V81) -> -0.2795216741 | O83: =AVERAGE(D83:M83) -> 0.04492606096
B85: Bucher Industries | C85: =('SMI Analyse KGV'!M83-'SMI Analyse KGV'!L83)/ABS('SMI Analyse KGV'!L83) -> 0.2646490663 | D85: =('SMI Analyse KGV'!N83-'SMI Analyse KGV'!M83)/ABS('SMI Analyse KGV'!M83) -> -0.05346232179 | E85: =('SMI Analyse KGV'!O83-'SMI Analyse KGV'!N83)/ABS('SMI Analyse KGV'!N83) -> -0.2641204949 | F85: =('SMI Analyse KGV'!P83-'SMI Analyse KGV'!O83)/ABS('SMI Analyse KGV'!O83) -> -0.144005848 | G85: =('SMI Analyse KGV'!Q83-'SMI Analyse KGV'!P83)/ABS('SMI Analyse KGV'!P83) -> 0.4338172502 | H85: =('SMI Analyse KGV'!R83-'SMI Analyse KGV'!Q83)/ABS('SMI Analyse KGV'!Q83) -> 0.236450268 | I85: =('SMI Analyse KGV'!S83-'SMI Analyse KGV'!R83)/ABS('SMI Analyse KGV'!R83) -> 0.05587668593 | J85: =('SMI Analyse KGV'!T83-'SMI Analyse KGV'!S83)/ABS('SMI Analyse KGV'!S83) -> -0.3289233577 | K85: =('SMI Analyse KGV'!U83-'SMI Analyse KGV'!T83)/ABS('SMI Analyse KGV'!T83) -> 0.76478586 | L85: =('SMI Analyse KGV'!V83-'SMI Analyse KGV'!U83)/ABS('SMI Analyse KGV'!U83) -> 0.2465331279 | M85: =('SMI Analyse KGV'!W83-'SMI Analyse KGV'!V83)/ABS('SMI Analyse KGV'!V83) -> 0.06242274413 | O85: =AVERAGE(D85:M85) -> 0.1009373914
B87: Burkhalter | C87: =('SMI Analyse KGV'!M87-'SMI Analyse KGV'!L87)/ABS('SMI Analyse KGV'!L87) -> 0.04428904429 | D87: =('SMI Analyse KGV'!N87-'SMI Analyse KGV'!M87)/ABS('SMI Analyse KGV'!M87) -> 0.171875 | E87: =('SMI Analyse KGV'!O87-'SMI Analyse KGV'!N87)/ABS('SMI Analyse KGV'!N87) -> 0.1047619048 | F87: =('SMI Analyse KGV'!P87-'SMI Analyse KGV'!O87)/ABS('SMI Analyse KGV'!O87) -> 0.04827586207 | G87: =('SMI Analyse KGV'!Q87-'SMI Analyse KGV'!P87)/ABS('SMI Analyse KGV'!P87) -> -0.1743421053 | H87: =('SMI Analyse KGV'!R87-'SMI Analyse KGV'!Q87)/ABS('SMI Analyse KGV'!Q87) -> -0.219123506 | I87: =('SMI Analyse KGV'!S87-'SMI Analyse KGV'!R87)/ABS('SMI Analyse KGV'!R87) -> -0.05102040816 | J87: =('SMI Analyse KGV'!T87-'SMI Analyse KGV'!S87)/ABS('SMI Analyse KGV'!S87) -> -0.3467741935 | K87: =('SMI Analyse KGV'!U87-'SMI Analyse KGV'!T87)/ABS('SMI Analyse KGV'!T87) -> 0.6419753086 | L87: =('SMI Analyse KGV'!V87-'SMI Analyse KGV'!U87)/ABS('SMI Analyse KGV'!U87) -> 0.1854636591 | M87: =('SMI Analyse KGV'!W85-'SMI Analyse KGV'!V85)/ABS('SMI Analyse KGV'!V85) -> 0.2902131783 | O87: =AVERAGE(D87:M87) -> 0.06513047
B89: Burckhardt Compression | C89: =('SMI Analyse KGV'!M85-'SMI Analyse KGV'!L85)/ABS('SMI Analyse KGV'!L85) -> -0.03349573691 | D89: =('SMI Analyse KGV'!N85-'SMI Analyse KGV'!M85)/ABS('SMI Analyse KGV'!M85) -> 0.06679269061 | E89: =('SMI Analyse KGV'!O85-'SMI Analyse KGV'!N85)/ABS('SMI Analyse KGV'!N85) -> -0.0348493798 | F89: =('SMI Analyse KGV'!P85-'SMI Analyse KGV'!O85)/ABS('SMI Analyse KGV'!O85) -> -0.3145654835 | G89: =('SMI Analyse KGV'!Q85-'SMI Analyse KGV'!P85)/ABS('SMI Analyse KGV'!P85) -> -0.2401785714 | H89: =('SMI Analyse KGV'!R85-'SMI Analyse KGV'!Q85)/ABS('SMI Analyse KGV'!Q85) -> -0.04230317274 | I89: =('SMI Analyse KGV'!S85-'SMI Analyse KGV'!R85)/ABS('SMI Analyse KGV'!R85) -> 0.173006135 | J89: =('SMI Analyse KGV'!T85-'SMI Analyse KGV'!S85)/ABS('SMI Analyse KGV'!S85) -> 0.359832636 | K89: =('SMI Analyse KGV'!U85-'SMI Analyse KGV'!T85)/ABS('SMI Analyse KGV'!T85) -> 0.14 | L89: =('SMI Analyse KGV'!V85-'SMI Analyse KGV'!U85)/ABS('SMI Analyse KGV'!U85) -> 0.3927125506 | M89: =('SMI Analyse KGV'!W87-'SMI Analyse KGV'!V87)/ABS('SMI Analyse KGV'!V87) -> 0.04651162791 | O89: =AVERAGE(D89:M89) -> 0.05469590326
B91: Calida | C91: =('SMI Analyse KGV'!M89-'SMI Analyse KGV'!L89)/ABS('SMI Analyse KGV'!L89) -> -0.4728682171 | D91: =('SMI Analyse KGV'!N89-'SMI Analyse KGV'!M89)/ABS('SMI Analyse KGV'!M89) -> 1.014705882 | E91: =('SMI Analyse KGV'!O89-'SMI Analyse KGV'!N89)/ABS('SMI Analyse KGV'!N89) -> -0.2810218978 | F91: =('SMI Analyse KGV'!P89-'SMI Analyse KGV'!O89)/ABS('SMI Analyse KGV'!O89) -> -0.1269035533 | G91: =('SMI Analyse KGV'!Q89-'SMI Analyse KGV'!P89)/ABS('SMI Analyse KGV'!P89) -> 0.09302325581 | H91: =('SMI Analyse KGV'!R89-'SMI Analyse KGV'!Q89)/ABS('SMI Analyse KGV'!Q89) -> 0.04787234043 | I91: =('SMI Analyse KGV'!S89-'SMI Analyse KGV'!R89)/ABS('SMI Analyse KGV'!R89) -> -0.03553299492 | J91: =('SMI Analyse KGV'!T89-'SMI Analyse KGV'!S89)/ABS('SMI Analyse KGV'!S89) -> -1.089473684 | K91: =('SMI Analyse KGV'!U89-'SMI Analyse KGV'!T89)/ABS('SMI Analyse KGV'!T89) -> 15.29411765 | L91: =('SMI Analyse KGV'!V89-'SMI Analyse KGV'!U89)/ABS('SMI Analyse KGV'!U89) -> 0.8065843621 | M91: =('SMI Analyse KGV'!W89-'SMI Analyse KGV'!V89)/ABS('SMI Analyse KGV'!V89) -> -2.79498861 | O91: =AVERAGE(D91:M91) -> 1.292838275
B93: Carlo Gavazzi 1) | C93: =('SMI Analyse KGV'!M91-'SMI Analyse KGV'!L91)/ABS('SMI Analyse KGV'!L91) -> -0.1115515289 | D93: =('SMI Analyse KGV'!N91-'SMI Analyse KGV'!M91)/ABS('SMI Analyse KGV'!M91) -> 0.1000637349 | E93: =('SMI Analyse KGV'!O91-'SMI Analyse KGV'!N91)/ABS('SMI Analyse KGV'!N91) -> -0.2132097335 | F93: =('SMI Analyse KGV'!P91-'SMI Analyse KGV'!O91)/ABS('SMI Analyse KGV'!O91) -> 0.3873343152 | G93: =('SMI Analyse KGV'!Q91-'SMI Analyse KGV'!P91)/ABS('SMI Analyse KGV'!P91) -> -0.3731422505 | H93: =('SMI Analyse KGV'!R91-'SMI Analyse KGV'!Q91)/ABS('SMI Analyse KGV'!Q91) -> 0.2760372566 | I93: =('SMI Analyse KGV'!S91-'SMI Analyse KGV'!R91)/ABS('SMI Analyse KGV'!R91) -> -0.4326476443 | J93: =('SMI Analyse KGV'!T91-'SMI Analyse KGV'!S91)/ABS('SMI Analyse KGV'!S91) -> 0.983625731 | K93: =('SMI Analyse KGV'!U91-'SMI Analyse KGV'!T91)/ABS('SMI Analyse KGV'!T91) -> 0.8278301887 | L93: =('SMI Analyse KGV'!V91-'SMI Analyse KGV'!U91)/ABS('SMI Analyse KGV'!U91) -> 0.2809677419 | M93: =('SMI Analyse KGV'!W91-'SMI Analyse KGV'!V91)/ABS('SMI Analyse KGV'!V91) -> -0.3379501385 | O93: =AVERAGE(D93:M93) -> 0.1498909201
B95: Clariant | C95: =('SMI Analyse KGV'!M93-'SMI Analyse KGV'!L93)/ABS('SMI Analyse KGV'!L93) -> -1.081081081 | D95: =('SMI Analyse KGV'!N93-'SMI Analyse KGV'!M93)/ABS('SMI Analyse KGV'!M93) -> 9 | E95: =('SMI Analyse KGV'!O93-'SMI Analyse KGV'!N93)/ABS('SMI Analyse KGV'!N93) -> 0.4791666667 | F95: =('SMI Analyse KGV'!P93-'SMI Analyse KGV'!O93)/ABS('SMI Analyse KGV'!O93) -> 0.0985915493 | G95: =('SMI Analyse KGV'!Q93-'SMI Analyse KGV'!P93)/ABS('SMI Analyse KGV'!P93) -> 0.07692307692 | H95: =('SMI Analyse KGV'!R93-'SMI Analyse KGV'!Q93)/ABS('SMI Analyse KGV'!Q93) -> 0.2142857143 | I95: =('SMI Analyse KGV'!S93-'SMI Analyse KGV'!R93)/ABS('SMI Analyse KGV'!R93) -> -0.9705882353 | J95: =('SMI Analyse KGV'!T93-'SMI Analyse KGV'!S93)/ABS('SMI Analyse KGV'!S93) -> 78.33333333 | K95: =('SMI Analyse KGV'!U93-'SMI Analyse KGV'!T93)/ABS('SMI Analyse KGV'!T93) -> -0.6596638655 | L95: =('SMI Analyse KGV'!V93-'SMI Analyse KGV'!U93)/ABS('SMI Analyse KGV'!U93) -> -1.49382716 | M95: =('SMI Analyse KGV'!W93-'SMI Analyse KGV'!V93)/ABS('SMI Analyse KGV'!V93) -> 2.025 | O95: =AVERAGE(D95:M95) -> 8.710322108
B97: Dätwyler 2) | C97: =('SMI Analyse KGV'!M95-'SMI Analyse KGV'!L95)/ABS('SMI Analyse KGV'!L95) -> -0.07654921021 | D97: =('SMI Analyse KGV'!N95-'SMI Analyse KGV'!M95)/ABS('SMI Analyse KGV'!M95) -> -0.1921052632 | E97: =('SMI Analyse KGV'!O95-'SMI Analyse KGV'!N95)/ABS('SMI Analyse KGV'!N95) -> -0.1791530945 | F97: =('SMI Analyse KGV'!P95-'SMI Analyse KGV'!O95)/ABS('SMI Analyse KGV'!O95) -> -0.3115079365 | G97: =('SMI Analyse KGV'!Q95-'SMI Analyse KGV'!P95)/ABS('SMI Analyse KGV'!P95) -> 1.097982709 | H97: =('SMI Analyse KGV'!R95-'SMI Analyse KGV'!Q95)/ABS('SMI Analyse KGV'!Q95) -> -0.02197802198 | I97: =('SMI Analyse KGV'!S95-'SMI Analyse KGV'!R95)/ABS('SMI Analyse KGV'!R95) -> -0.2134831461 | J97: =('SMI Analyse KGV'!T95-'SMI Analyse KGV'!S95)/ABS('SMI Analyse KGV'!S95) -> 0.2482142857 | K97: =('SMI Analyse KGV'!U95-'SMI Analyse KGV'!T95)/ABS('SMI Analyse KGV'!T95) -> 0.04148783977 | L97: =('SMI Analyse KGV'!V95-'SMI Analyse KGV'!U95)/ABS('SMI Analyse KGV'!U95) -> -0.1538461538 | M97: =('SMI Analyse KGV'!W95-'SMI Analyse KGV'!V95)/ABS('SMI Analyse KGV'!V95) -> -0.362012987 | O97: =AVERAGE(D97:M97) -> -0.004640176861
B99: Ems-Chemie | C99: =('SMI Analyse KGV'!M97-'SMI Analyse KGV'!L97)/ABS('SMI Analyse KGV'!L97) -> 0.1860262009 | D99: =('SMI Analyse KGV'!N97-'SMI Analyse KGV'!M97)/ABS('SMI Analyse KGV'!M97) -> 0.0795287187 | E99: =('SMI Analyse KGV'!O97-'SMI Analyse KGV'!N97)/ABS('SMI Analyse KGV'!N97) -> 0.09754433834 | F99: =('SMI Analyse KGV'!P97-'SMI Analyse KGV'!O97)/ABS('SMI Analyse KGV'!O97) -> 0.1926662523 | G99: =('SMI Analyse KGV'!Q97-'SMI Analyse KGV'!P97)/ABS('SMI Analyse KGV'!P97) -> 0.07295466389 | H99: =('SMI Analyse KGV'!R97-'SMI Analyse KGV'!Q97)/ABS('SMI Analyse KGV'!Q97) -> 0.07916464303 | I99: =('SMI Analyse KGV'!S97-'SMI Analyse KGV'!R97)/ABS('SMI Analyse KGV'!R97) -> 0.01440144014 | J99: =('SMI Analyse KGV'!T97-'SMI Analyse KGV'!S97)/ABS('SMI Analyse KGV'!S97) -> -0.1761313221 | K99: =('SMI Analyse KGV'!U97-'SMI Analyse KGV'!T97)/ABS('SMI Analyse KGV'!T97) -> 0.267097469 | L99: =('SMI Analyse KGV'!V97-'SMI Analyse KGV'!U97)/ABS('SMI Analyse KGV'!U97) -> -0.03314917127 | M99: =('SMI Analyse KGV'!W97-'SMI Analyse KGV'!V97)/ABS('SMI Analyse KGV'!V97) -> -0.1402197802 | O99: =AVERAGE(D99:M99) -> 0.04538572519
B101: Flughafen Zürich | C101: =('SMI Analyse KGV'!M99-'SMI Analyse KGV'!L99)/ABS('SMI Analyse KGV'!L99) -> 0.4387096774 | D101: =('SMI Analyse KGV'!N99-'SMI Analyse KGV'!M99)/ABS('SMI Analyse KGV'!M99) -> 0.5044843049 | E101: =('SMI Analyse KGV'!O99-'SMI Analyse KGV'!N99)/ABS('SMI Analyse KGV'!N99) -> -0.1281669151 | F101: =('SMI Analyse KGV'!P99-'SMI Analyse KGV'!O99)/ABS('SMI Analyse KGV'!O99) -> 0.3794871795 | G101: =('SMI Analyse KGV'!Q99-'SMI Analyse KGV'!P99)/ABS('SMI Analyse KGV'!P99) -> 0.1511771995 | H101: =('SMI Analyse KGV'!R99-'SMI Analyse KGV'!Q99)/ABS('SMI Analyse KGV'!Q99) -> -0.1657696448 | I101: =('SMI Analyse KGV'!S99-'SMI Analyse KGV'!R99)/ABS('SMI Analyse KGV'!R99) -> 0.2993548387 | J101: =('SMI Analyse KGV'!T99-'SMI Analyse KGV'!S99)/ABS('SMI Analyse KGV'!S99) -> -1.223435948 | K101: =('SMI Analyse KGV'!U99-'SMI Analyse KGV'!T99)/ABS('SMI Analyse KGV'!T99) -> 0.8533333333 | L101: =('SMI Analyse KGV'!V99-'SMI Analyse KGV'!U99)/ABS('SMI Analyse KGV'!U99) -> 21.42424242 | M101: =('SMI Analyse KGV'!W99-'SMI Analyse KGV'!V99)/ABS('SMI Analyse KGV'!V99) -> 0.4703264095 | O101: =AVERAGE(D101:M101) -> 2.256503318
B103: Forbo N | C103: =('SMI Analyse KGV'!M101-'SMI Analyse KGV'!L101)/ABS('SMI Analyse KGV'!L101) -> -0.4026280323 | D103: =('SMI Analyse KGV'!N101-'SMI Analyse KGV'!M101)/ABS('SMI Analyse KGV'!M101) -> 0.1646926114 | E103: =('SMI Analyse KGV'!O101-'SMI Analyse KGV'!N101)/ABS('SMI Analyse KGV'!N101) -> 0.002905569007 | F103: =('SMI Analyse KGV'!P101-'SMI Analyse KGV'!O101)/ABS('SMI Analyse KGV'!O101) -> 0.2015129567 | G103: =('SMI Analyse KGV'!Q101-'SMI Analyse KGV'!P101)/ABS('SMI Analyse KGV'!P101) -> -0.7004688547 | H103: =('SMI Analyse KGV'!R101-'SMI Analyse KGV'!Q101)/ABS('SMI Analyse KGV'!Q101) -> 2.684257603 | I103: =('SMI Analyse KGV'!S101-'SMI Analyse KGV'!R101)/ABS('SMI Analyse KGV'!R101) -> 0.0479485312 | J103: =('SMI Analyse KGV'!T101-'SMI Analyse KGV'!S101)/ABS('SMI Analyse KGV'!S101) -> -0.2285416425 | K103: =('SMI Analyse KGV'!U101-'SMI Analyse KGV'!T101)/ABS('SMI Analyse KGV'!T101) -> 0.3756756757 | L103: =('SMI Analyse KGV'!V101-'SMI Analyse KGV'!U101)/ABS('SMI Analyse KGV'!U101) -> -0.2167648985 | M103: =('SMI Analyse KGV'!W101-'SMI Analyse KGV'!V101)/ABS('SMI Analyse KGV'!V101) -> 0.01100891862 | O103: =AVERAGE(D103:M103) -> 0.234222647
B105: Galenica | C105: =('SMI Analyse KGV'!M103-'SMI Analyse KGV'!L103)/ABS('SMI Analyse KGV'!L103) -> 0.1538461538 | D105: =('SMI Analyse KGV'!N103-'SMI Analyse KGV'!M103)/ABS('SMI Analyse KGV'!M103) -> -0.6355555556 | E105: =('SMI Analyse KGV'!O103-'SMI Analyse KGV'!N103)/ABS('SMI Analyse KGV'!N103) -> -0.01219512195 | F105: =('SMI Analyse KGV'!P103-'SMI Analyse KGV'!O103)/ABS('SMI Analyse KGV'!O103) -> 0.03086419753 | G105: =('SMI Analyse KGV'!Q103-'SMI Analyse KGV'!P103)/ABS('SMI Analyse KGV'!P103) -> 0.4550898204 | H105: =('SMI Analyse KGV'!R103-'SMI Analyse KGV'!Q103)/ABS('SMI Analyse KGV'!Q103) -> 0.2345679012 | I105: =('SMI Analyse KGV'!S103-'SMI Analyse KGV'!R103)/ABS('SMI Analyse KGV'!R103) -> -0.1533333333 | J105: =('SMI Analyse KGV'!T103-'SMI Analyse KGV'!S103)/ABS('SMI Analyse KGV'!S103) -> 0.3700787402 | K105: =('SMI Analyse KGV'!U103-'SMI Analyse KGV'!T103)/ABS('SMI Analyse KGV'!T103) -> -0.02873563218 | L105: =('SMI Analyse KGV'!V103-'SMI Analyse KGV'!U103)/ABS('SMI Analyse KGV'!U103) -> -0.01775147929 | M105: =('SMI Analyse KGV'!W103-'SMI Analyse KGV'!V103)/ABS('SMI Analyse KGV'!V103) -> 0.7228915663 | O105: =AVERAGE(D105:M105) -> 0.09659211032
